Workbook

Sheet Instructions
A1: Project Name: | C1: Reclaim Model - Overview of Program
B2: Back River Project | C2: All users are urged to read the Reclaim Model User Manual - Scroll down for overview description of program.
C3: Important! Reclaim 7.0 Works better With no other excel files open.
C4: If other excel files are open ignore run time error and proceed
A5: Reclaim Menu | C5: The default Excel menu bar has an additional tab labelled "Add-Ins" that provides options specific to the Reclaim Model.
B6: Clear | C6: This option deletes all input data, deletes any duplicated elements and blanks out the project name. It also allows for segregation into land costs vs Water costs if required.
B7: Duplicate | C7: This option Duplicates components of the project. E.g. if there is more than one Open Pit, use duplicate to add a second Open Pit. Quantities for the new Open Pit are erased, but the Activities and Cost Codes are carried over from the original Open Pit. The new Open Pit subtotal is added to the Summary page.
B8: Unit Costs | C8: This option opens a Window of unit costs to provide easy reference. NOTE: the unit cost table has a filter in the 'UNITS' column. You can select to only see a particular unit (e.g. km) or multiple units (km and m3) or all units.
B9: Print All | C9: This option prints the Summary Worksheet, Unit Cost Worksheet, and the individual component Worksheets having non-zero balances. Individual Worksheets can be printed directly using standard printing methods, such as Ctl - P.
B10: Quit | C10: Select Quit to exit the program
B11: Help | C11: Redirects user to Instructions Worksheet.
A13: Worksheets
B14: Summary | C14: This Worksheet contains a cumulative summary of costs for each component of the project. Associated costs such as engineering and project management are added as a percentage of the component costs.
B15: Components | C15: Costs are derived for individual closure and reclamation activities by multiplying a "quantity" of activity by a "unit cost". An activity can be edited, added, or deleted from Worksheet. However, care should be taken not to modify cells that are defined and used elsewhere in the program.
C16: Do not change the content or column Width of the first column of each component Worksheet.
B17: Unit Costs | C17: This Worksheet contains a look up table With costs for typical Work associated With each closure and reclamation activity
A19: Limitations | C19: The Reclaim Program will NOT work if the worksheets are changed such that the following requirements are not met. Please review the following prior to modifiying worksheets.
B20: Worksheet Names | C20: The names of the Worksheets must not be changed.
B21: Defined Names | C21: Certain cells have defined names, which must not be changed. Where the cell is named, the name will appear in the "Name Box" to the left of the formula bar.
B22: First line of data | C22: The first line of data for any component Worksheet starts on line 4. Do not change the first line of a component Worksheet, i.e. the component name.
B23: Cell A1 | C23: Cell A1 on the component sheet MUST always contain the count of that component for the duplicate function to operate. DO NOT CHANGE.
B24: Adding Lines | C24: You can add lines to components and the unit cost table, as long as they are not the last lines. The last line might fall outside the named ranges. You can check the size of the named range by selecting the name from the drop down box at the top left of the sheet. Usually this box has a cell reference, or a name.
B25: Printing | C25: A component Will only be printed if its sub-total is greater than zero. In addition, a component and the summary sheet cannot be printed if there is an error. Printing has been set to print 1 page per component.
A27: Conditions of Use | C27: The Reclamation Cost Estimating Model was prepared to serve as a guide for Government Agencies, mining companies, and others to estimate the cost of mine reclamation. This model is not intended to replace reclamation planning or to be used to determine the activities required to reclaim a site or to dictate how much should be spent on reclamation.
C29: Reclaim was prepared by Brodie Consulting Ltd. on behalf of AANDC. AANDC and Brodie Consulting Ltd. are not responsible for the completeness or accuracy of any reclamation estimate made using this model. The user agrees to check and take responsibility for all aspects of any cost estimate made using this model.
A31: The following table provides guidance as to Whether Water management and treatment is considered short term or long term. Short term closure activities
A32: may be costed Within a component (e.g. 'Open Pit' or 'Rock Pile') or 'Water Management'. Long term or post-closure Water treatment is costed in 'Water Treatment'.
D33: Short Term/ Capital Ex. | E33: Long term/ NPV
A34: Open Pit | C34: flood pit - install/operate pumping system | D34: x
C35: construct diversion ditches | D35: x
C36: treat 1st filling | D36: x
C37: install pump/decant system | D37: x
C38: passive/biological treatment | D38: x
C39: overflow treatment | E39: x
A40: Rock Pile/Heap Leach Facility | C40: construct diversion ditches | D40: x
C41: install groundwater collection system | D41: x
C42: install toe seepage collection system | D42: x
C43: collect and treat groundwater | E43: x
C44: collect and treat seepage (ARD/ML) | E44: x
C45: install passive treatment system | D45: x
C46: operate and maintain passive treatment system | E46: x
C47: operate pump and detoxify heap leach pile (cyanide destruction) | D47: x
A48: Tailings Facility | C48: construct diversion ditches | D48: x
C49: pump supernatant (to pit, U/G) | D49: x
C50: treat supernatant | D50: x
C51: install toe seepage collection system | D51: x
C52: collect and treat seepage (ARD/ML) | E52: x
C53: install passive treatment system | D53: x
C54: operate and maintain passive treatment system | E54: x
A55: U/G Mine | C55: accelerate flooding | D55: x
C56: install seepage collection system | D56: x
C57: install dewatering/pumping system | D57: x
C58: operate seepage/dewatering system (ARD/ML) | E58: x
A59: Water Management | C59: refill lakes
C60: redirect creeks/streams | D60: x
C61: stabilize water management ponds | D61: x
C62: stabilize/close sediment ponds | D62: x
C63: fresh water supply - breach embankment | D63: x
C64: fresh water supply - remove piping system | D64: x
C65: construct water treatment plant | D65: x
C66: construct sludge pond | D66: x
C67: water control in reclamation quarry | D67: x
C68: operate/maintain water treatment plant | E68: x

Sheet Summary
B1: SUMMARY OF COSTS
A4: CAPITAL COSTS | B4: COMPONENT NAME | D4: COST | F4: LAND LIABILITY | H4: TOTAL LIABILITY | J4: 2AM COST | K4: Difference | L4: Updated Cloure Cost Changes | N4: Updated Cost Estimate Legend
A5: OPEN PIT | B5: =IF(ISBLANK('Open Pit'!$C$1),"",'Open Pit'!$C$1) -> Umwelt | D5: =Pit1Total -> 51016.74995 | F5: =Pit1LandTotal -> 0 | H5: =Pit1WaterTotal -> 51016.74985 | J5: 50424.88749 | K5: =ROUND(D5-J5,0) -> 592 | L5: W&W Mgmt Infrastructure | N5: Approved Cost Estimate text and values
B6: =IF(ISBLANK('Open Pit'!$W$1),"",'Open Pit'!$W$1) -> Llama | D6: ='Open Pit'!$AB$63 -> 57577.3534 | F6: ='Open Pit'!$AD$63 -> 0 | H6: ='Open Pit'!$AE$63 -> 57577.3533 | J6: 26176.6 | K6: =ROUND(D6-J6,0) -> 31401 | L6: W&W Mgmt Infrastructure | N6: Updated Cost Estimate text and values (November 2020)
B7: =IF(ISBLANK('Open Pit'!$AQ$1),"",'Open Pit'!$AQ$1) -> Echo | D7: ='Open Pit'!$AV$63 -> 55054.59591 | F7: ='Open Pit'!$AX$63 -> 0 | H7: ='Open Pit'!$AY$63 -> 55054.59581 | J7: 25934.3125 | K7: 29120 | L7: Supplementary Adjustment | N7: Updated Cost Estimate text and values (May 14, 2021)
B8: =IF(ISBLANK('Open Pit'!$BL$1),"",'Open Pit'!$BL$1) -> Goose Main | D8: ='Open Pit'!$BQ$63 -> 88471.77304 | F8: ='Open Pit'!$BS$63 -> 0 | H8: ='Open Pit'!$BT$63 -> 88471.77294 | J8: 84849.58125 | K8: 3622 | L8: W&W Mgmt Infrastructure | N8: Updated Cost Estimate text and values (May 27, 2021)
A9: QUARRY (under OPEN PIT TAB estimate) | B9: =IF(ISBLANK('Open Pit'!$CF$1),"",'Open Pit'!$CF$1) -> Airstrip Quarry | D9: ='Open Pit'!$CK$63 -> 3864.6001 | F9: ='Open Pit'!$CM$63 -> 0 | H9: ='Open Pit'!$CN$63 -> 3864.6 | J9: 3800 | K9: 65 | L9: No change from Approved Cost Estimate
A10: UNDERGROUND MINE | B10: =IF(ISBLANK('UG Mine'!$C$1),"",'UG Mine'!$C$1) -> Umwelt | D10: =UG1Total -> 378099.0397 | F10: =UG1LandTotal -> 0 | H10: =UG1WaterTotal -> 378099.0396 | J10: 320806.54 | K10: 57292 | L10: Umwelt Underground Extension
B11: =IF(ISBLANK('UG Mine'!$V$1),"",'UG Mine'!$V$1) -> Llama | D11: ='UG Mine'!$AA$42 -> 105417.7453 | F11: ='UG Mine'!$AC$42 -> 0 | H11: ='UG Mine'!$AD$42 -> 105417.7452 | J11: 103655.6 | K11: 1762 | L11: No change from Approved Cost Estimate
B12: =IF(ISBLANK('UG Mine'!$AG$1),"",'UG Mine'!$AG$1) -> Goose Main | D12: ='UG Mine'!$AL$42 -> 289249.7021 | F12: ='UG Mine'!$AN$42 -> 0 | H12: ='UG Mine'!$AO$42 -> 289249.702 | J12: 284414.6529 | K12: 4835 | L12: No change from Approved Cost Estimate
B13: =IF(ISBLANK('UG Mine'!$AR$1),"",'UG Mine'!$AR$1) -> Echo | D13: ='UG Mine'!$AW$42 -> 97841.0953 | F13: ='UG Mine'!$AY$42 -> 0 | H13: ='UG Mine'!$AZ$42 -> 97841.0952 | J13: 96205.6 | K13: 1635 | L13: No change from Approved Cost Estimate
A14: TAILINGS FACILITIES | B14: =IF(ISBLANK(Tailings!$C$1),"",Tailings!$C$1) -> TSF | D14: =Tailings1Total -> 1730393.871 | F14: =Tailings1LandTotal -> 0 | H14: =Tailings1WaterTotal -> 1730393.871 | J14: 344568.9 | K14: 1385825 | L14: W&W Mgmt Infrastructure
A15: ROCK PILE | B15: =IF(ISBLANK('Rock Pile'!$C$1),"",'Rock Pile'!$C$1) -> Umwelt, Llama, Goose Main, and Echo | D15: =RP1Total -> 18310068 | F15: =RP1LandTotal -> 0 | H15: =D15 -> 18310068 | J15: 16800000 | K15: 1510068 | L15: W&W Mgmt Infrastructure
A16: BUILDINGS AND EQUIPMENT | B16: =IF(ISBLANK('Bldgs & Equip'!$C$1),"",'Bldgs & Equip'!$C$1) ->  | D16: =Bldg1Total -> 2502132.851 | F16: =Bldg1LandTotal -> 0 | H16: =Bldg1WaterTotal -> 2502132.851 | J16: 2069430.617 | K16: 432702 | L16: Goose Property Airstrip Extension; Goose Property Total Water Use Increase; MLA Airstrip Extension; MLA Fuel Transfer Area; MLA Shoreline Pad Extension; WIR Subbase Upgrade; WIR Service/Emergency Camps; WIR Total Water Use Increase
A17: CHEMICALS AND CONTAMINATED SOIL MANAGEMENT | B17: =IF(ISBLANK(Chemicals!$C$1),"",Chemicals!$C$1) ->  | D17: =Chem1Total -> 1386303.21 | F17: =Chem1LandTotal -> 0 | H17: =Chem1WaterTotal -> 1386303.21 | J17: 1393130 | K17: -6827 | L17: W&W Mgmt Infrastructure
A18: SURFACE AND GROUNDWATER MANAGEMENT | B18: =IF(ISBLANK('Water Treatment'!$C$1),"",'Water Treatment'!$C$1) ->  | D18: =Water1Total -> 2131641.996 | F18: - | H18: =Water1Total -> 2131641.996 | J18: 346699.3285 | K18: 1784943 | L18: W&W Mgmt Infrastructure
A19: INTERIM CARE AND MAINTENANCE | B19: =IF(ISBLANK(ICM!$C$1),"",ICM!$C$1) ->  | D19: =ICMTotal -> 968813.3196 | F19: - | H19: =ICMTotal -> 968813.3196 | J19: 952618.8 | K19: 16195 | L19: No change from Approved Cost Estimate
B20: SUBTOTAL: Capital Costs | D20: =SUM(D5:D19) -> 28155945.9 | F20: =SUM(F5:F19) -> 0 | H20: =SUM(H5:H19) -> 28155945.9 | J20: 22902715.42 | K20: =SUM(K5:K19) -> 5253230
B21: PERCENT OF SUBTOTAL | F21: =IF(F20<0.01,0,F20/D20) -> 0 | H21: =IF(H20<0.01,0,H20/D20) -> 1
A23: INDIRECT COSTS | D23: COST | F23: LAND LIABILITY | H23: TOTAL LIABILITY | J23: 2AM COST | K23: Difference | L23: Comments
A24: MOBILIZATION/DEMOBILIZATION | B24: =IF(ISBLANK(Mobilization!$C$1),"",Mobilization!$C$1) ->  | D24: =MobTotal -> 4316542.427 | F24: =D24*$F$21 -> 0 | H24: =D24*$H$21 -> 4316542.426 | J24: 4244387.833 | K24: =D24-J24 -> 72154.59339 | L24: No change from Approved Cost Estimate
A25: POST-CLOSURE MONITORING AND MAINTENANCE | B25: =IF(ISBLANK(PostClosure!$S$1),"",PostClosure!$S$1) ->  | D25: =PC1Total -> 1981838.073 | F25: =D25*$F$21 -> 0 | H25: =D25*$H$21 -> 1981838.073 | J25: 7568243.195 | K25: -5586405.122 | L25: Goose Property Airstrip Extension; MLA Airstrip Extension
A26: ENGINEERING | B26: 0.1 | D26: =B26*$D$20 -> 2815594.59 | F26: =+$F$21*D26 -> 0 | H26: =+$H$21*D26 -> 2815594.59 | J26: 2290271.542 | K26: 525323.0483 | L26: No direct changes from previous Closure Cost Estimate; difference from % recalculation
A27: PROJECT MANAGEMENT | B27: 0.05 | D27: 1407797.295 | F27: 0 | H27: 1407797.295 | J27: 1145135.771 | K27: 262661.5242 | L27: No direct changes from previous Closure Cost Estimate; difference from % recalculation
A28: HEALTH AND SAFETY PLANS/MONITORING & QA/QC | B28: 0.01 | D28: 281559.459 | F28: 0 | H28: 281559.459 | J28: 229027.1542 | K28: 52532.30483 | L28: No direct changes from previous Closure Cost Estimate; difference from % recalculation
A29: BONDING/INSURANCE | B29: 0.01 | D29: 281559.459 | F29: 0 | H29: 281559.459 | J29: 229027.1542 | K29: 52532.30483 | L29: No direct changes from previous Closure Cost Estimate; difference from % recalculation
A30: CONTINGENCY | B30: 0.2 | D30: 5631189.181 | F30: 0 | H30: 5631189.18 | J30: 4580543.084 | K30: 1050646.097 | L30: No direct changes from previous Closure Cost Estimate; difference from % recalculation
A31: MARKET PRICE FACTOR ADJUSTMENT | B31: 0 | D31: 0 | F31: 0 | H31: 0 | J31: 0 | K31: 0 | L31: No direct changes from previous Closure Cost Estimate; difference from % recalculation
B32: SUBTOTAL: Indirect Costs | D32: =SUM(D24:D31) -> 16716080.48 | F32: =SUM(F24:F31) -> 0 | H32: =SUM(H24:H31) -> 16716080.48 | J32: 20286635.73 | K32: =SUM(K24:K31) -> -3570555.249
A34: TOTAL COSTS | D34: =D20+D32 -> 44872026.39 | F34: =F20+F32 -> 0 | H34: =H20+H32 -> 44872026.38 | J34: 43189351.15 | K34: =D34-J34 -> 1682675.234

Sheet Open Pit
A1: 5 | B1: Open Pit Name: | C1: Umwelt | G1: Pit # | H1: 1 | K1: =H1 -> 1 | M1: Umwelt | Q1: Pit # | R1: 1 | V1: Open Pit Name: | W1: Llama | AA1: Pit # | AB1: =H1+1 -> 2 | AE1: =AB1 -> 2 | AG1: Llama | AK1: Pit # | AL1: 2 | AP1: Open Pit Name: | AQ1: Echo | AU1: Pit # | AV1: =AB1+1 -> 3 | AY1: =AV1 -> 3 | BA1: Open Pit Name: | BB1: Echo | BF1: Pit # | BG1: 3 | BK1: Open Pit Name: | BL1: Goose Main | BP1: Pit # | BQ1: =AV1+1 -> 4 | BT1: =BQ1 -> 4 | BV1: Goose Main | BZ1: Pit # | CA1: 4 | CB1: 4 | CE1: Quarry Name: | CF1: Airstrip Quarry | CJ1: Quarry # | CK1: 1 | CN1: =CK1 -> 1
B3: ACTIVITY/MATERIAL | C3: Notes | D3: Units | E3: Quantity | F3: Cost Code | G3: Unit Cost | H3: Cost | I3: % Land | J3: Land Cost | K3: Total Cost | M3: Notes | N3: Units | O3: Quantity | P3: Cost Code | Q3: Unit Cost | R3: Cost | S3: Total Cost | T3: Difference | V3: ACTIVITY/MATERIAL | W3: Notes | X3: Units | Y3: Quantity | Z3: Cost Code | AA3: Unit Cost | AB3: Cost | AC3: % Land | AD3: Land Cost | AE3: Total Cost | AG3: Notes | AH3: Units | AI3: Quantity | AJ3: Cost Code | AK3: Unit Cost | AL3: Cost | AM3: Total Cost | AN3: Difference | AP3: ACTIVITY/MATERIAL | AQ3: Notes | AR3: Units | AS3: Quantity | AT3: Cost Code | AU3: Unit Cost | AV3: Cost | AW3: % Land | AX3: Land Cost | AY3: Total Cost | BA3: ACTIVITY/MATERIAL | BB3: Notes | BC3: Units | BD3: Quantity | BE3: Cost Code | BF3: Unit Cost | BG3: Cost | BH3: Total Cost | BI3: Difference | BK3: ACTIVITY/MATERIAL | BL3: Notes | BM3: Units | BN3: Quantity | BO3: Cost Code | BP3: Unit Cost | BQ3: Cost | BR3: % Land | BS3: Land Cost | BT3: Total Cost | BV3: Notes | BW3: Units | BX3: Quantity | BY3: Cost Code | BZ3: Unit Cost | CA3: Cost | CB3: Total Cost | CC3: Difference | CE3: ACTIVITY/MATERIAL | CF3: Notes | CG3: Units | CH3: Quantity | CI3: Cost Code | CJ3: Unit Cost | CK3: Cost | CL3: % Land | CM3: Land Cost | CN3: Total Cost
B4: CONTROL ACCESS | V4: CONTROL ACCESS | AP4: CONTROL ACCESS | BA4: CONTROL ACCESS | BK4: CONTROL ACCESS | CE4: CONTROL ACCESS
B5: Fence | D5: m | F5: =NA() ->  | G5: =IF(ISNA(F5),0,INDEX(IF(UPPER(RIGHT(F5,1))=Low,UnitCostLow, IF(UPPER(RIGHT(F5,1))=High,UnitCostHigh,UnitCostSpecified)),MATCH(UPPER(LEFT(F5,LEN(F5)-1)),CostCode,0))) -> 0 | H5: =G5*E5 -> 0 | J5: =H5*I5 -> 0 | K5: =H5*(1-I5) -> 0 | N5: m | Q5: 0 | R5: 0 | S5: 0 | T5: =K5-S5 -> 0 | V5: Fence | X5: m | Z5: =NA() ->  | AA5: =IF(ISNA(Z5),0,INDEX(IF(UPPER(RIGHT(Z5,1))=Low,UnitCostLow, IF(UPPER(RIGHT(Z5,1))=High,UnitCostHigh,UnitCostSpecified)),MATCH(UPPER(LEFT(Z5,LEN(Z5)-1)),CostCode,0))) -> 0 | AB5: =AA5*Y5 -> 0 | AD5: =AB5*AC5 -> 0 | AE5: =AB5*(1-AC5) -> 0 | AH5: m | AK5: 0 | AL5: 0 | AM5: 0 | AN5: =AE5-AM5 -> 0 | AP5: Fence | AR5: m | AT5: =NA() ->  | AU5: =IF(ISNA(AT5),0,INDEX(IF(UPPER(RIGHT(AT5,1))=Low,UnitCostLow, IF(UPPER(RIGHT(AT5,1))=High,UnitCostHigh,UnitCostSpecified)),MATCH(UPPER(LEFT(AT5,LEN(AT5)-1)),CostCode,0))) -> 0 | AV5: =AU5*AS5 -> 0 | AX5: =AV5*AW5 -> 0 | AY5: =AV5*(1-AW5) -> 0 | BA5: Fence | BC5: m | BF5: 0 | BG5: 0 | BH5: 0 | BI5: =AY5-BH5 -> 0 | BK5: Fence | BM5: m | BO5: =NA() ->  | BP5: =IF(ISNA(BO5),0,INDEX(IF(UPPER(RIGHT(BO5,1))=Low,UnitCostLow, IF(UPPER(RIGHT(BO5,1))=High,UnitCostHigh,UnitCostSpecified)),MATCH(UPPER(LEFT(BO5,LEN(BO5)-1)),CostCode,0))) -> 0 | BQ5: =BP5*BN5 -> 0 | BS5: =BQ5*BR5 -> 0 | BT5: =BQ5*(1-BR5) -> 0 | BW5: m | BZ5: 0 | CA5: 0 | CB5: 0 | CC5: =BT5-CB5 -> 0 | CE5: Fence | CG5: m | CI5: =NA() ->  | CJ5: =IF(ISNA(CI5),0,INDEX(IF(UPPER(RIGHT(CI5,1))=Low,UnitCostLow, IF(UPPER(RIGHT(CI5,1))=High,UnitCostHigh,UnitCostSpecified)),MATCH(UPPER(LEFT(CI5,LEN(CI5)-1)),CostCode,0))) -> 0 | CK5: =CJ5*CH5 -> 0 | CM5: =CK5*CL5 -> 0 | CN5: =CK5*(1-CL5) -> 0
B6: Signs | C6: Assumed | D6: each | E6: 4 | F6: Sabina | G6: =Unit_Costs!F175 -> 76.275 | H6: =G6*E6 -> 305.1 | J6: =H6*I6 -> 0 | K6: =H6*(1-I6) -> 305.1 | M6: Assumed | N6: each | O6: 4 | P6: Sabina | Q6: 75 | R6: 300 | S6: 300 | T6: =K6-S6 -> 5.1 | V6: Signs | W6: Assumed | X6: each | Y6: 4 | Z6: Sabina | AA6: =Unit_Costs!F175 -> 76.275 | AB6: =AA6*Y6 -> 305.1 | AD6: 0 | AE6: 305.1 | AG6: Assumed | AH6: each | AI6: 4 | AJ6: Sabina | AK6: 75 | AL6: 300 | AM6: 300 | AN6: =AE6-AM6 -> 5.1 | AP6: Signs | AQ6: Assumed | AR6: each | AS6: 4 | AT6: Sabina | AU6: =Unit_Costs!F175 -> 76.275 | AV6: =AU6*AS6 -> 305.1 | AX6: 0 | AY6: 305.1 | BA6: Signs | BB6: Assumed | BC6: each | BD6: 4 | BE6: Sabina | BF6: 75 | BG6: 300 | BH6: 300 | BI6: =AY6-BH6 -> 5.1 | BK6: Signs | BL6: Assumed | BM6: each | BN6: 4 | BO6: Sabina | BP6: =Unit_Costs!F175 -> 76.275 | BQ6: =BP6*BN6 -> 305.1 | BS6: 0 | BT6: 305.1 | BV6: Assumed | BW6: each | BX6: 4 | BY6: Sabina | BZ6: 75 | CA6: 300 | CB6: 300 | CC6: =BT6-CB6 -> 5.1 | CE6: Signs | CG6: each | CI6: =NA() ->  | CJ6: =IF(ISNA(CI6),0,INDEX(IF(UPPER(RIGHT(CI6,1))=Low,UnitCostLow, IF(UPPER(RIGHT(CI6,1))=High,UnitCostHigh,UnitCostSpecified)),MATCH(UPPER(LEFT(CI6,LEN(CI6)-1)),CostCode,0))) -> 0 | CK6: =CJ6*CH6 -> 0 | CM6: =CK6*CL6 -> 0 | CN6: =CK6*(1-CL6) -> 0
B7: Berm at crest | C7: Estimated for continuous berm with 1m diameter boulders, no spacing between boulders - 0.52 m3/m - assumed 50 % done during Operations | D7: m3 | E7: =ROUNDUP('SBB Comp. Est.'!F7*0.52*0.5,0)*1.05 -> 432.6 | F7: RR1H | G7: 18.05175 | H7: =G7*E7 -> 7809.18705 | J7: 0 | K7: 7809.18705 | M7: Estimated for continuous berm with 1m diameter boulders, no spacing between boulders - 0.52 m3/m - assumed 50 % done during Operations | N7: m3 | O7: 447.3 | P7: RR1H | Q7: 17.75 | R7: 7939.575 | S7: 7939.575 | T7: =K7-S7 -> -130.38795 | V7: Berm at crest | W7: Estimated for berm with 1m diameter boulders, no spacing between boulders - 0.52 m3/m; berm needed only where pit edge will not abut the final flooded lake footprint. | X7: m3 | Y7: =ROUNDUP('SBB Comp. Est.'!F10*0.52,0)*1.05 -> 327.6 | Z7: RR1H | AA7: 18.05175 | AB7: =AA7*Y7 -> 5913.7533 | AD7: 0 | AE7: 5913.7533 | AG7: Estimated for berm with 1m diameter boulders, no spacing between boulders - 0.52 m3/m; berm needed only where pit edge will not abut the final flooded lake footprint. | AH7: m3 | AI7: 218.4 | AJ7: RR1H | AK7: 17.75 | AL7: 3876.6 | AM7: 3876.6 | AN7: =AE7-AM7 -> 2037.1533 | AP7: Berm at crest | AQ7: Estimated for continuous berm with 1m diameter boulders, no spacing between boulders - 0.52 m3/m - assumed 50 % done during Operations | AR7: m3 | AS7: =ROUNDUP('SBB Comp. Est.'!F8*0.52*0.5,0)*1.05 -> 204.75 | AT7: RR1H | AU7: 18.05175 | AV7: =AU7*AS7 -> 3696.095812 | AX7: 0 | AY7: 3696.095812 | BA7: Berm at crest | BB7: Estimated for continuous berm with 1m diameter boulders, no spacing between boulders - 0.52 m3/m - assumed 50 % done during Operations | BC7: m3 | BD7: 204.75 | BE7: RR1H | BF7: 17.75 | BG7: 3634.3125 | BH7: 3634.3125 | BI7: =AY7-BH7 -> 61.7833125 | BK7: Berm at crest | BL7: Estimated for continuous berm with 1m diameter boulders, no spacing between boulders - 0.52 m3/m - assumed 50 % done during Operations | BM7: m3 | BN7: =ROUNDUP('SBB Comp. Est.'!F9*0.52*0.5,0)*1.05 -> 639.45 | BO7: RR1H | BP7: 18.05175 | BQ7: =BP7*BN7 -> 11543.19154 | BS7: 0 | BT7: 11543.19154 | BV7: Estimated for continuous berm with 1m diameter boulders, no spacing between boulders - 0.52 m3/m - assumed 50 % done during Operations | BW7: m3 | BX7: 518.7 | BY7: RR1H | BZ7: 17.75 | CA7: 9206.925 | CB7: 9206.925 | CC7: =BT7-CB7 -> 2336.266537 | CE7: Berm at crest | CG7: m3 | CI7: RB1H | CJ7: =IF(ISNA(CI7),0,INDEX(IF(UPPER(RIGHT(CI7,1))=Low,UnitCostLow, IF(UPPER(RIGHT(CI7,1))=High,UnitCostHigh,UnitCostSpecified)),MATCH(UPPER(LEFT(CI7,LEN(CI7)-1)),CostCode,0))) -> 17.33985 | CK7: =CJ7*CH7 -> 0 | CM7: 0 | CN7: 0
B8: Block roads | C8: Temporary gate installation to allow water monitoring. It includes decommissioning of gate when no longer required. Exposed area after gate has been decommissioned will be blocked with boulders (exposed area along with block of roads with boulders included in berm cost above) | D8: allow | E8: 1 | F8: Sabina | G8: =Unit_Costs!F176 -> 5085 | H8: =G8*E8 -> 5085 | J8: 0 | K8: 5085 | M8: Temporary gate installation to allow water monitoring. It includes decommissioning of gate when no longer required. Exposed area after gate has been decommissioned will be blocked with boulders (exposed area along with block of roads with boulders included in berm cost above) | N8: allow | O8: 1 | P8: Sabina | Q8: 5000 | R8: 5000 | S8: 5000 | T8: =K8-S8 -> 85 | V8: Block roads | W8: Temporary gate installation to allow water monitoring. It includes decommissioning of gate when no longer required. Exposed area after gate has been decommissioned will be blocked with boulders (exposed area along with block of roads with boulders included in berm cost above) | X8: allow | Y8: 1 | Z8: Sabina | AA8: =Unit_Costs!F176 -> 5085 | AB8: =AA8*Y8 -> 5085 | AD8: 0 | AE8: 5085 | AG8: Temporary gate installation to allow water monitoring. It includes decommissioning of gate when no longer required. Exposed area after gate has been decommissioned will be blocked with boulders (exposed area along with block of roads with boulders included in berm cost above) | AH8: allow | AI8: 1 | AJ8: Sabina | AK8: 5000 | AL8: 5000 | AM8: 5000 | AN8: =AE8-AM8 -> 85 | AP8: Block roads | AQ8: Temporary gate installation to allow water monitoring. It includes decommissioning of gate when no longer required. Exposed area after gate has been decommissioned will be blocked with boulders (exposed area along with block of roads with boulders included in berm cost above) | AR8: allow | AS8: 1 | AT8: Sabina | AU8: =Unit_Costs!F176 -> 5085 | AV8: =AU8*AS8 -> 5085 | AX8: 0 | AY8: 5085 | BA8: Block roads | BB8: Temporary gate installation to allow water monitoring. It includes decommissioning of gate when no longer required. Exposed area after gate has been decommissioned will be blocked with boulders (exposed area along with block of roads with boulders included in berm cost above) | BC8: allow | BD8: 1 | BE8: Sabina | BF8: 5000 | BG8: 5000 | BH8: 5000 | BI8: =AY8-BH8 -> 85 | BK8: Block roads | BL8: Temporary gate installation to allow water monitoring. It includes decommissioning of gate when no longer required. Exposed area after gate has been decommissioned will be blocked with boulders (exposed area along with block of roads with boulders included in berm cost above) | BM8: allow | BN8: 1 | BO8: Sabina | BP8: =Unit_Costs!F176 -> 5085 | BQ8: =BP8*BN8 -> 5085 | BS8: 0 | BT8: 5085 | BV8: Temporary gate installation to allow water monitoring. It includes decommissioning of gate when no longer required. Exposed area after gate has been decommissioned will be blocked with boulders (exposed area along with block of roads with boulders included in berm cost above) | BW8: allow | BX8: 1 | BY8: Sabina | BZ8: 5000 | CA8: 5000 | CB8: 5000 | CC8: =BT8-CB8 -> 85 | CE8: Block roads | CG8: allow | CI8: =NA() ->  | CJ8: 0 | CK8: =CJ8*CH8 -> 0 | CM8: 0 | CN8: 0
B9: Other | F9: =NA() ->  | G9: =IF(ISNA(F9),0,INDEX(IF(UPPER(RIGHT(F9,1))=Low,UnitCostLow, IF(UPPER(RIGHT(F9,1))=High,UnitCostHigh,UnitCostSpecified)),MATCH(UPPER(LEFT(F9,LEN(F9)-1)),CostCode,0))) -> 0 | H9: =G9*E9 -> 0 | J9: =H9*I9 -> 0 | K9: =H9*(1-I9) -> 0 | Q9: 0 | R9: 0 | S9: 0 | T9: =K9-S9 -> 0 | V9: Other | Z9: =NA() ->  | AA9: =IF(ISNA(Z9),0,INDEX(IF(UPPER(RIGHT(Z9,1))=Low,UnitCostLow, IF(UPPER(RIGHT(Z9,1))=High,UnitCostHigh,UnitCostSpecified)),MATCH(UPPER(LEFT(Z9,LEN(Z9)-1)),CostCode,0))) -> 0 | AB9: =AA9*Y9 -> 0 | AD9: =AB9*AC9 -> 0 | AE9: =AB9*(1-AC9) -> 0 | AK9: 0 | AL9: 0 | AM9: 0 | AN9: =AE9-AM9 -> 0 | AP9: Other | AT9: =NA() ->  | AU9: =IF(ISNA(AT9),0,INDEX(IF(UPPER(RIGHT(AT9,1))=Low,UnitCostLow, IF(UPPER(RIGHT(AT9,1))=High,UnitCostHigh,UnitCostSpecified)),MATCH(UPPER(LEFT(AT9,LEN(AT9)-1)),CostCode,0))) -> 0 | AV9: =AU9*AS9 -> 0 | AX9: =AV9*AW9 -> 0 | AY9: =AV9*(1-AW9) -> 0 | BA9: Other | BF9: 0 | BG9: 0 | BH9: 0 | BI9: =AY9-BH9 -> 0 | BK9: Other | BO9: =NA() ->  | BP9: =IF(ISNA(BO9),0,INDEX(IF(UPPER(RIGHT(BO9,1))=Low,UnitCostLow, IF(UPPER(RIGHT(BO9,1))=High,UnitCostHigh,UnitCostSpecified)),MATCH(UPPER(LEFT(BO9,LEN(BO9)-1)),CostCode,0))) -> 0 | BQ9: =BP9*BN9 -> 0 | BS9: =BQ9*BR9 -> 0 | BT9: =BQ9*(1-BR9) -> 0 | BZ9: 0 | CA9: 0 | CB9: 0 | CC9: =BT9-CB9 -> 0 | CE9: Other | CI9: =NA() ->  | CJ9: =IF(ISNA(CI9),0,INDEX(IF(UPPER(RIGHT(CI9,1))=Low,UnitCostLow, IF(UPPER(RIGHT(CI9,1))=High,UnitCostHigh,UnitCostSpecified)),MATCH(UPPER(LEFT(CI9,LEN(CI9)-1)),CostCode,0))) -> 0 | CK9: =CJ9*CH9 -> 0 | CM9: =CK9*CL9 -> 0 | CN9: =CK9*(1-CL9) -> 0
B10: STABILITY STUDY | V10: STABILITY STUDY | AP10: STABILITY STUDY | BA10: STABILITY STUDY | BK10: STABILITY STUDY | CE10: STABILITY STUDY
B11: Conduct stability and setback study | D11: allow | E11: 1 | F11: Sabina | G11: =Unit_Costs!F177 -> 17289 | H11: =G11*E11 -> 17289 | J11: =H11*I11 -> 0 | K11: =H11*(1-I11) -> 17289 | N11: allow | O11: 1 | P11: Sabina | Q11: 17000 | R11: 17000 | S11: 17000 | T11: =K11-S11 -> 289 | V11: Conduct stability and setback study | X11: allow | Y11: 1 | Z11: Sabina | AA11: =Unit_Costs!F177 -> 17289 | AB11: =AA11*Y11 -> 17289 | AD11: =AB11*AC11 -> 0 | AE11: =AB11*(1-AC11) -> 17289 | AH11: allow | AI11: 1 | AJ11: Sabina | AK11: 17000 | AL11: 17000 | AM11: 17000 | AN11: =AE11-AM11 -> 289 | AP11: Conduct stability and setback study | AR11: allow | AS11: 1 | AT11: Sabina | AU11: =Unit_Costs!F177 -> 17289 | AV11: =AU11*AS11 -> 17289 | AX11: =AV11*AW11 -> 0 | AY11: =AV11*(1-AW11) -> 17289 | BA11: Conduct stability and setback study | BC11: allow | BD11: 1 | BE11: Sabina | BF11: 17000 | BG11: 17000 | BH11: 17000 | BI11: =AY11-BH11 -> 289 | BK11: Conduct stability and setback study | BM11: allow | BN11: 1 | BO11: Sabina | BP11: =Unit_Costs!F177 -> 17289 | BQ11: =BP11*BN11 -> 17289 | BS11: =BQ11*BR11 -> 0 | BT11: =BQ11*(1-BR11) -> 17289 | BW11: allow | BX11: 1 | BY11: Sabina | BZ11: 17000 | CA11: 17000 | CB11: 17000 | CC11: =BT11-CB11 -> 289 | CE11: Conduct stability and setback study | CF11: Not required for quarry | CG11: allow | CI11: =NA() ->  | CJ11: =IF(ISNA(CI11),0,INDEX(IF(UPPER(RIGHT(CI11,1))=Low,UnitCostLow, IF(UPPER(RIGHT(CI11,1))=High,UnitCostHigh,UnitCostSpecified)),MATCH(UPPER(LEFT(CI11,LEN(CI11)-1)),CostCode,0))) -> 0 | CK11: =CJ11*CH11 -> 0 | CM11: =CK11*CL11 -> 0 | CN11: =CK11*(1-CL11) -> 0
B12: STABILIZE SLOPES | V12: STABILIZE SLOPES | AP12: STABILIZE SLOPES | BA12: STABILIZE SLOPES | BK12: STABILIZE SLOPES | CE12: STABILIZE SLOPES
B13: Off-load crest, soil A | D13: m3 | F13: =NA() ->  | G13: 0 | H13: =G13*E13 -> 0 | J13: 0 | K13: 0 | N13: m3 | Q13: 0 | R13: 0 | S13: 0 | T13: =K13-S13 -> 0 | V13: Off-load crest, soil A | X13: m3 | Z13: =NA() ->  | AA13: =IF(ISNA(Z13),0,INDEX(IF(UPPER(RIGHT(Z13,1))=Low,UnitCostLow, IF(UPPER(RIGHT(Z13,1))=High,UnitCostHigh,UnitCostSpecified)),MATCH(UPPER(LEFT(Z13,LEN(Z13)-1)),CostCode,0))) -> 0 | AB13: =AA13*Y13 -> 0 | AD13: =AB13*AC13 -> 0 | AE13: =AB13*(1-AC13) -> 0 | AH13: m3 | AK13: 0 | AL13: 0 | AM13: 0 | AN13: =AE13-AM13 -> 0 | AP13: Off-load crest, soil A | AR13: m3 | AT13: =NA() ->  | AU13: =IF(ISNA(AT13),0,INDEX(IF(UPPER(RIGHT(AT13,1))=Low,UnitCostLow, IF(UPPER(RIGHT(AT13,1))=High,UnitCostHigh,UnitCostSpecified)),MATCH(UPPER(LEFT(AT13,LEN(AT13)-1)),CostCode,0))) -> 0 | AV13: =AU13*AS13 -> 0 | AX13: =AV13*AW13 -> 0 | AY13: =AV13*(1-AW13) -> 0 | BA13: Off-load crest, soil A | BC13: m3 | BF13: 0 | BG13: 0 | BH13: 0 | BI13: =AY13-BH13 -> 0 | BK13: Off-load crest, soil A | BM13: m3 | BO13: =NA() ->  | BP13: =IF(ISNA(BO13),0,INDEX(IF(UPPER(RIGHT(BO13,1))=Low,UnitCostLow, IF(UPPER(RIGHT(BO13,1))=High,UnitCostHigh,UnitCostSpecified)),MATCH(UPPER(LEFT(BO13,LEN(BO13)-1)),CostCode,0))) -> 0 | BQ13: =BP13*BN13 -> 0 | BS13: =BQ13*BR13 -> 0 | BT13: =BQ13*(1-BR13) -> 0 | BW13: m3 | BZ13: 0 | CA13: 0 | CB13: 0 | CC13: =BT13-CB13 -> 0 | CE13: Off-load crest, soil A | CG13: m3 | CI13: =NA() ->  | CJ13: =IF(ISNA(CI13),0,INDEX(IF(UPPER(RIGHT(CI13,1))=Low,UnitCostLow, IF(UPPER(RIGHT(CI13,1))=High,UnitCostHigh,UnitCostSpecified)),MATCH(UPPER(LEFT(CI13,LEN(CI13)-1)),CostCode,0))) -> 0 | CK13: =CJ13*CH13 -> 0 | CM13: =CK13*CL13 -> 0 | CN13: =CK13*(1-CL13) -> 0
B14: Off-load crest, soil B | D14: m3 | F14: =NA() ->  | G14: 0 | H14: 0 | J14: 0 | K14: 0 | N14: m3 | Q14: 0 | R14: 0 | S14: 0 | T14: 0 | V14: Off-load crest, soil B | X14: m3 | Z14: =NA() ->  | AA14: 0 | AB14: 0 | AD14: 0 | AE14: 0 | AH14: m3 | AK14: 0 | AL14: 0 | AM14: 0 | AN14: 0 | AP14: Off-load crest, soil B | AR14: m3 | AT14: =NA() ->  | AU14: 0 | AV14: 0 | AX14: 0 | AY14: 0 | BA14: Off-load crest, soil B | BC14: m3 | BF14: 0 | BG14: 0 | BH14: 0 | BI14: 0 | BK14: Off-load crest, soil B | BM14: m3 | BO14: =NA() ->  | BP14: 0 | BQ14: 0 | BS14: 0 | BT14: 0 | BW14: m3 | BZ14: 0 | CA14: 0 | CB14: 0 | CC14: 0 | CE14: Off-load crest, soil B | CG14: m3 | CI14: =NA() ->  | CJ14: 0 | CK14: 0 | CM14: 0 | CN14: 0
B15: Doze/trim overburden at crest | D15: m3 | F15: =NA() ->  | G15: 0 | H15: 0 | J15: 0 | K15: 0 | N15: m3 | Q15: 0 | R15: 0 | S15: 0 | T15: 0 | V15: Doze/trim overburden at crest | X15: m3 | Z15: =NA() ->  | AA15: 0 | AB15: 0 | AD15: 0 | AE15: 0 | AH15: m3 | AK15: 0 | AL15: 0 | AM15: 0 | AN15: 0 | AP15: Doze/trim overburden at crest | AR15: m3 | AT15: =NA() ->  | AU15: 0 | AV15: 0 | AX15: 0 | AY15: 0 | BA15: Doze/trim overburden at crest | BC15: m3 | BF15: 0 | BG15: 0 | BH15: 0 | BI15: 0 | BK15: Doze/trim overburden at crest | BM15: m3 | BO15: =NA() ->  | BP15: 0 | BQ15: 0 | BS15: 0 | BT15: 0 | BW15: m3 | BZ15: 0 | CA15: 0 | CB15: 0 | CC15: 0 | CE15: Doze/trim overburden at crest | CG15: m3 | CI15: =NA() ->  | CJ15: 0 | CK15: 0 | CM15: 0 | CN15: 0
B16: Drill & blast pit crest | D16: m3 | F16: =NA() ->  | G16: 0 | H16: 0 | J16: 0 | K16: 0 | N16: m3 | Q16: 0 | R16: 0 | S16: 0 | T16: 0 | V16: Drill & blast pit crest | X16: m3 | Z16: =NA() ->  | AA16: 0 | AB16: 0 | AD16: 0 | AE16: 0 | AH16: m3 | AK16: 0 | AL16: 0 | AM16: 0 | AN16: 0 | AP16: Drill & blast pit crest | AR16: m3 | AT16: =NA() ->  | AU16: 0 | AV16: 0 | AX16: 0 | AY16: 0 | BA16: Drill & blast pit crest | BC16: m3 | BF16: 0 | BG16: 0 | BH16: 0 | BI16: 0 | BK16: Drill & blast pit crest | BM16: m3 | BO16: =NA() ->  | BP16: 0 | BQ16: 0 | BS16: 0 | BT16: 0 | BW16: m3 | BZ16: 0 | CA16: 0 | CB16: 0 | CC16: 0 | CE16: Drill & blast pit crest | CG16: m3 | CI16: =NA() ->  | CJ16: 0 | CK16: 0 | CM16: 0 | CN16: 0
B17: Buttress slope | D17: m3 | F17: =NA() ->  | G17: 0 | H17: 0 | J17: 0 | K17: 0 | N17: m3 | Q17: 0 | R17: 0 | S17: 0 | T17: 0 | V17: Buttress slope | X17: m3 | Z17: =NA() ->  | AA17: 0 | AB17: 0 | AD17: 0 | AE17: 0 | AH17: m3 | AK17: 0 | AL17: 0 | AM17: 0 | AN17: 0 | AP17: Buttress slope | AR17: m3 | AT17: =NA() ->  | AU17: 0 | AV17: 0 | AX17: 0 | AY17: 0 | BA17: Buttress slope | BC17: m3 | BF17: 0 | BG17: 0 | BH17: 0 | BI17: 0 | BK17: Buttress slope | BM17: m3 | BO17: =NA() ->  | BP17: 0 | BQ17: 0 | BS17: 0 | BT17: 0 | BW17: m3 | BZ17: 0 | CA17: 0 | CB17: 0 | CC17: 0 | CE17: Buttress slope | CG17: m3 | CI17: =NA() ->  | CJ17: 0 | CK17: 0 | CM17: 0 | CN17: 0
B18: Other | F18: =NA() ->  | G18: 0 | H18: 0 | J18: 0 | K18: 0 | Q18: 0 | R18: 0 | S18: 0 | T18: 0 | V18: Other | Z18: =NA() ->  | AA18: 0 | AB18: 0 | AD18: 0 | AE18: 0 | AK18: 0 | AL18: 0 | AM18: 0 | AN18: 0 | AP18: Other | AT18: =NA() ->  | AU18: 0 | AV18: 0 | AX18: 0 | AY18: 0 | BA18: Other | BF18: 0 | BG18: 0 | BH18: 0 | BI18: 0 | BK18: Other | BO18: =NA() ->  | BP18: 0 | BQ18: 0 | BS18: 0 | BT18: 0 | BZ18: 0 | CA18: 0 | CB18: 0 | CC18: 0 | CE18: Other | CF18: Backhoe to pull down loose rock on bedrock backslope - assumed | CG18: hrs | CH18: 20 | CI18: exc-sL | CJ18: 193.23 | CK18: 3864.6 | CM18: 0 | CN18: 3864.6
B19: COVER/CONTOUR SLOPES | V19: COVER/CONTOUR SLOPES | AP19: COVER/CONTOUR SLOPES | BA19: COVER/CONTOUR SLOPES | BK19: COVER/CONTOUR SLOPES | CE19: COVER/CONTOUR SLOPES
B20: Place fill, soil A | D20: m3 | F20: =NA() ->  | G20: 0 | H20: =G20*E20 -> 0 | J20: 0 | K20: 0 | N20: m3 | Q20: 0 | R20: 0 | S20: 0 | T20: =K20-S20 -> 0 | V20: Place fill, soil A | X20: m3 | Z20: =NA() ->  | AA20: =IF(ISNA(Z20),0,INDEX(IF(UPPER(RIGHT(Z20,1))=Low,UnitCostLow, IF(UPPER(RIGHT(Z20,1))=High,UnitCostHigh,UnitCostSpecified)),MATCH(UPPER(LEFT(Z20,LEN(Z20)-1)),CostCode,0))) -> 0 | AB20: =AA20*Y20 -> 0 | AD20: =AB20*AC20 -> 0 | AE20: =AB20*(1-AC20) -> 0 | AH20: m3 | AK20: 0 | AL20: 0 | AM20: 0 | AN20: =AE20-AM20 -> 0 | AP20: Place fill, soil A | AR20: m3 | AT20: =NA() ->  | AU20: =IF(ISNA(AT20),0,INDEX(IF(UPPER(RIGHT(AT20,1))=Low,UnitCostLow, IF(UPPER(RIGHT(AT20,1))=High,UnitCostHigh,UnitCostSpecified)),MATCH(UPPER(LEFT(AT20,LEN(AT20)-1)),CostCode,0))) -> 0 | AV20: =AU20*AS20 -> 0 | AX20: =AV20*AW20 -> 0 | AY20: =AV20*(1-AW20) -> 0 | BA20: Place fill, soil A | BC20: m3 | BF20: 0 | BG20: 0 | BH20: 0 | BI20: =AY20-BH20 -> 0 | BK20: Place fill, soil A | BM20: m3 | BO20: =NA() ->  | BP20: =IF(ISNA(BO20),0,INDEX(IF(UPPER(RIGHT(BO20,1))=Low,UnitCostLow, IF(UPPER(RIGHT(BO20,1))=High,UnitCostHigh,UnitCostSpecified)),MATCH(UPPER(LEFT(BO20,LEN(BO20)-1)),CostCode,0))) -> 0 | BQ20: =BP20*BN20 -> 0 | BS20: =BQ20*BR20 -> 0 | BT20: =BQ20*(1-BR20) -> 0 | BW20: m3 | BZ20: 0 | CA20: 0 | CB20: 0 | CC20: =BT20-CB20 -> 0 | CE20: Place fill, soil A | CG20: m3 | CI20: =NA() ->  | CJ20: =IF(ISNA(CI20),0,INDEX(IF(UPPER(RIGHT(CI20,1))=Low,UnitCostLow, IF(UPPER(RIGHT(CI20,1))=High,UnitCostHigh,UnitCostSpecified)),MATCH(UPPER(LEFT(CI20,LEN(CI20)-1)),CostCode,0))) -> 0 | CK20: =CJ20*CH20 -> 0 | CM20: =CK20*CL20 -> 0 | CN20: =CK20*(1-CL20) -> 0
B21: Place fill, soil B | D21: m3 | F21: =NA() ->  | G21: 0 | H21: 0 | J21: 0 | K21: 0 | N21: m3 | Q21: 0 | R21: 0 | S21: 0 | T21: 0 | V21: Place fill, soil B | X21: m3 | Z21: =NA() ->  | AA21: 0 | AB21: 0 | AD21: 0 | AE21: 0 | AH21: m3 | AK21: 0 | AL21: 0 | AM21: 0 | AN21: 0 | AP21: Place fill, soil B | AR21: m3 | AT21: =NA() ->  | AU21: 0 | AV21: 0 | AX21: 0 | AY21: 0 | BA21: Place fill, soil B | BC21: m3 | BF21: 0 | BG21: 0 | BH21: 0 | BI21: 0 | BK21: Place fill, soil B | BM21: m3 | BO21: =NA() ->  | BP21: 0 | BQ21: 0 | BS21: 0 | BT21: 0 | BW21: m3 | BZ21: 0 | CA21: 0 | CB21: 0 | CC21: 0 | CE21: Place fill, soil B | CG21: m3 | CI21: =NA() ->  | CJ21: 0 | CK21: 0 | CM21: 0 | CN21: 0
B22: Rip rap | D22: m3 | F22: =NA() ->  | G22: 0 | H22: 0 | J22: 0 | K22: 0 | N22: m3 | Q22: 0 | R22: 0 | S22: 0 | T22: 0 | V22: Rip rap | X22: m3 | Z22: =NA() ->  | AA22: 0 | AB22: 0 | AD22: 0 | AE22: 0 | AH22: m3 | AK22: 0 | AL22: 0 | AM22: 0 | AN22: 0 | AP22: Rip rap | AR22: m3 | AT22: =NA() ->  | AU22: 0 | AV22: 0 | AX22: 0 | AY22: 0 | BA22: Rip rap | BC22: m3 | BF22: 0 | BG22: 0 | BH22: 0 | BI22: 0 | BK22: Rip rap | BM22: m3 | BO22: =NA() ->  | BP22: 0 | BQ22: 0 | BS22: 0 | BT22: 0 | BW22: m3 | BZ22: 0 | CA22: 0 | CB22: 0 | CC22: 0 | CE22: Rip rap | CG22: m3 | CI22: =NA() ->  | CJ22: 0 | CK22: 0 | CM22: 0 | CN22: 0
B23: Vegetate slopes | D23: ha | F23: =NA() ->  | G23: 0 | H23: 0 | J23: 0 | K23: 0 | N23: ha | Q23: 0 | R23: 0 | S23: 0 | T23: 0 | V23: Vegetate slopes | X23: ha | Z23: =NA() ->  | AA23: 0 | AB23: 0 | AD23: 0 | AE23: 0 | AH23: ha | AK23: 0 | AL23: 0 | AM23: 0 | AN23: 0 | AP23: Vegetate slopes | AR23: ha | AT23: =NA() ->  | AU23: 0 | AV23: 0 | AX23: 0 | AY23: 0 | BA23: Vegetate slopes | BC23: ha | BF23: 0 | BG23: 0 | BH23: 0 | BI23: 0 | BK23: Vegetate slopes | BM23: ha | BO23: =NA() ->  | BP23: 0 | BQ23: 0 | BS23: 0 | BT23: 0 | BW23: ha | BZ23: 0 | CA23: 0 | CB23: 0 | CC23: 0 | CE23: Vegetate slopes | CF23: Allow to revegetate naturally | CG23: ha | CI23: =NA() ->  | CJ23: 0 | CK23: 0 | CM23: 0 | CN23: 0
B24: Vegetate pit floor | D24: ha | F24: =NA() ->  | G24: 0 | H24: 0 | J24: 0 | K24: 0 | N24: ha | Q24: 0 | R24: 0 | S24: 0 | T24: 0 | V24: Vegetate pit floor | X24: ha | Z24: =NA() ->  | AA24: 0 | AB24: 0 | AD24: 0 | AE24: 0 | AH24: ha | AK24: 0 | AL24: 0 | AM24: 0 | AN24: 0 | AP24: Vegetate pit floor | AR24: ha | AT24: =NA() ->  | AU24: 0 | AV24: 0 | AX24: 0 | AY24: 0 | BA24: Vegetate pit floor | BC24: ha | BF24: 0 | BG24: 0 | BH24: 0 | BI24: 0 | BK24: Vegetate pit floor | BM24: ha | BO24: =NA() ->  | BP24: 0 | BQ24: 0 | BS24: 0 | BT24: 0 | BW24: ha | BZ24: 0 | CA24: 0 | CB24: 0 | CC24: 0 | CE24: Vegetate pit floor | CG24: ha | CI24: =NA() ->  | CJ24: 0 | CK24: 0 | CM24: 0 | CN24: 0
B25: Other | F25: =NA() ->  | G25: 0 | H25: 0 | J25: 0 | K25: 0 | Q25: 0 | R25: 0 | S25: 0 | T25: 0 | V25: Other | Z25: =NA() ->  | AA25: 0 | AB25: 0 | AD25: 0 | AE25: 0 | AK25: 0 | AL25: 0 | AM25: 0 | AN25: 0 | AP25: Other | AT25: =NA() ->  | AU25: 0 | AV25: 0 | AX25: 0 | AY25: 0 | BA25: Other | BF25: 0 | BG25: 0 | BH25: 0 | BI25: 0 | BK25: Other | BO25: =NA() ->  | BP25: 0 | BQ25: 0 | BS25: 0 | BT25: 0 | BZ25: 0 | CA25: 0 | CB25: 0 | CC25: 0 | CE25: Other | CI25: =NA() ->  | CJ25: 0 | CK25: 0 | CM25: 0 | CN25: 0
B26: CONSTRUCT DIVERSION DITCHES | V26: CONSTRUCT DIVERSION DITCHES | AP26: CONSTRUCT DIVERSION DITCHES | BA26: CONSTRUCT DIVERSION DITCHES | BK26: CONSTRUCT DIVERSION DITCHES | CE26: CONSTRUCT DIVERSION DITCHES
B27: Excavate ditches -soil | D27: m3 | F27: =NA() ->  | G27: =IF(ISNA(F27),0,INDEX(IF(UPPER(RIGHT(F27,1))=Low,UnitCostLow, IF(UPPER(RIGHT(F27,1))=High,UnitCostHigh,UnitCostSpecified)),MATCH(UPPER(LEFT(F27,LEN(F27)-1)),CostCode,0))) -> 0 | H27: =G27*E27 -> 0 | J27: =H27*I27 -> 0 | K27: =H27*(1-I27) -> 0 | N27: m3 | Q27: 0 | R27: 0 | S27: 0 | T27: =K27-S27 -> 0 | V27: Excavate ditches -soil | X27: m3 | Z27: =NA() ->  | AA27: =IF(ISNA(Z27),0,INDEX(IF(UPPER(RIGHT(Z27,1))=Low,UnitCostLow, IF(UPPER(RIGHT(Z27,1))=High,UnitCostHigh,UnitCostSpecified)),MATCH(UPPER(LEFT(Z27,LEN(Z27)-1)),CostCode,0))) -> 0 | AB27: =AA27*Y27 -> 0 | AD27: =AB27*AC27 -> 0 | AE27: =AB27*(1-AC27) -> 0 | AH27: m3 | AK27: 0 | AL27: 0 | AM27: 0 | AN27: =AE27-AM27 -> 0 | AP27: Excavate ditches -soil | AR27: m3 | AT27: =NA() ->  | AU27: =IF(ISNA(AT27),0,INDEX(IF(UPPER(RIGHT(AT27,1))=Low,UnitCostLow, IF(UPPER(RIGHT(AT27,1))=High,UnitCostHigh,UnitCostSpecified)),MATCH(UPPER(LEFT(AT27,LEN(AT27)-1)),CostCode,0))) -> 0 | AV27: =AU27*AS27 -> 0 | AX27: =AV27*AW27 -> 0 | AY27: =AV27*(1-AW27) -> 0 | BA27: Excavate ditches -soil | BC27: m3 | BF27: 0 | BG27: 0 | BH27: 0 | BI27: =AY27-BH27 -> 0 | BK27: Excavate ditches -soil | BM27: m3 | BO27: =NA() ->  | BP27: =IF(ISNA(BO27),0,INDEX(IF(UPPER(RIGHT(BO27,1))=Low,UnitCostLow, IF(UPPER(RIGHT(BO27,1))=High,UnitCostHigh,UnitCostSpecified)),MATCH(UPPER(LEFT(BO27,LEN(BO27)-1)),CostCode,0))) -> 0 | BQ27: =BP27*BN27 -> 0 | BS27: =BQ27*BR27 -> 0 | BT27: =BQ27*(1-BR27) -> 0 | BW27: m3 | BZ27: 0 | CA27: 0 | CB27: 0 | CC27: =BT27-CB27 -> 0 | CE27: Excavate ditches -soil | CG27: m3 | CI27: =NA() ->  | CJ27: =IF(ISNA(CI27),0,INDEX(IF(UPPER(RIGHT(CI27,1))=Low,UnitCostLow, IF(UPPER(RIGHT(CI27,1))=High,UnitCostHigh,UnitCostSpecified)),MATCH(UPPER(LEFT(CI27,LEN(CI27)-1)),CostCode,0))) -> 0 | CK27: =CJ27*CH27 -> 0 | CM27: =CK27*CL27 -> 0 | CN27: =CK27*(1-CL27) -> 0
B28: Excavate ditches -rock | D28: m3 | F28: =NA() ->  | G28: =IF(ISNA(F28),0,INDEX(IF(UPPER(RIGHT(F28,1))=Low,UnitCostLow, IF(UPPER(RIGHT(F28,1))=High,UnitCostHigh,UnitCostSpecified)),MATCH(UPPER(LEFT(F28,LEN(F28)-1)),CostCode,0))) -> 0 | H28: 0 | J28: 0 | K28: 0 | N28: m3 | Q28: 0 | R28: 0 | S28: 0 | T28: =K28-S28 -> 0 | V28: Excavate ditches -rock | X28: m3 | Z28: =NA() ->  | AA28: =IF(ISNA(Z28),0,INDEX(IF(UPPER(RIGHT(Z28,1))=Low,UnitCostLow, IF(UPPER(RIGHT(Z28,1))=High,UnitCostHigh,UnitCostSpecified)),MATCH(UPPER(LEFT(Z28,LEN(Z28)-1)),CostCode,0))) -> 0 | AB28: =AA28*Y28 -> 0 | AD28: 0 | AE28: 0 | AH28: m3 | AK28: 0 | AL28: 0 | AM28: 0 | AN28: =AE28-AM28 -> 0 | AP28: Excavate ditches -rock | AR28: m3 | AT28: =NA() ->  | AU28: =IF(ISNA(AT28),0,INDEX(IF(UPPER(RIGHT(AT28,1))=Low,UnitCostLow, IF(UPPER(RIGHT(AT28,1))=High,UnitCostHigh,UnitCostSpecified)),MATCH(UPPER(LEFT(AT28,LEN(AT28)-1)),CostCode,0))) -> 0 | AV28: =AU28*AS28 -> 0 | AX28: 0 | AY28: 0 | BA28: Excavate ditches -rock | BC28: m3 | BF28: 0 | BG28: 0 | BH28: 0 | BI28: 0 | BK28: Excavate ditches -rock | BM28: m3 | BO28: =NA() ->  | BP28: =IF(ISNA(BO28),0,INDEX(IF(UPPER(RIGHT(BO28,1))=Low,UnitCostLow, IF(UPPER(RIGHT(BO28,1))=High,UnitCostHigh,UnitCostSpecified)),MATCH(UPPER(LEFT(BO28,LEN(BO28)-1)),CostCode,0))) -> 0 | BQ28: =BP28*BN28 -> 0 | BS28: 0 | BT28: 0 | BW28: m3 | BZ28: 0 | CA28: 0 | CB28: 0 | CC28: =BT28-CB28 -> 0 | CE28: Excavate ditches -rock | CG28: m3 | CI28: =NA() ->  | CJ28: =IF(ISNA(CI28),0,INDEX(IF(UPPER(RIGHT(CI28,1))=Low,UnitCostLow, IF(UPPER(RIGHT(CI28,1))=High,UnitCostHigh,UnitCostSpecified)),MATCH(UPPER(LEFT(CI28,LEN(CI28)-1)),CostCode,0))) -> 0 | CK28: =CJ28*CH28 -> 0 | CM28: 0 | CN28: 0
B29: Rip rap in channel base | D29: m3 | F29: =NA() ->  | G29: =IF(ISNA(F29),0,INDEX(IF(UPPER(RIGHT(F29,1))=Low,UnitCostLow, IF(UPPER(RIGHT(F29,1))=High,UnitCostHigh,UnitCostSpecified)),MATCH(UPPER(LEFT(F29,LEN(F29)-1)),CostCode,0))) -> 0 | H29: 0 | J29: 0 | K29: 0 | N29: m3 | Q29: 0 | R29: 0 | S29: 0 | T29: =K29-S29 -> 0 | V29: Rip rap in channel base | X29: m3 | Z29: =NA() ->  | AA29: =IF(ISNA(Z29),0,INDEX(IF(UPPER(RIGHT(Z29,1))=Low,UnitCostLow, IF(UPPER(RIGHT(Z29,1))=High,UnitCostHigh,UnitCostSpecified)),MATCH(UPPER(LEFT(Z29,LEN(Z29)-1)),CostCode,0))) -> 0 | AB29: =AA29*Y29 -> 0 | AD29: 0 | AE29: 0 | AH29: m3 | AK29: 0 | AL29: 0 | AM29: 0 | AN29: =AE29-AM29 -> 0 | AP29: Rip rap in channel base | AR29: m3 | AT29: =NA() ->  | AU29: =IF(ISNA(AT29),0,INDEX(IF(UPPER(RIGHT(AT29,1))=Low,UnitCostLow, IF(UPPER(RIGHT(AT29,1))=High,UnitCostHigh,UnitCostSpecified)),MATCH(UPPER(LEFT(AT29,LEN(AT29)-1)),CostCode,0))) -> 0 | AV29: =AU29*AS29 -> 0 | AX29: 0 | AY29: 0 | BA29: Rip rap in channel base | BC29: m3 | BF29: 0 | BG29: 0 | BH29: 0 | BI29: 0 | BK29: Rip rap in channel base | BM29: m3 | BO29: =NA() ->  | BP29: =IF(ISNA(BO29),0,INDEX(IF(UPPER(RIGHT(BO29,1))=Low,UnitCostLow, IF(UPPER(RIGHT(BO29,1))=High,UnitCostHigh,UnitCostSpecified)),MATCH(UPPER(LEFT(BO29,LEN(BO29)-1)),CostCode,0))) -> 0 | BQ29: =BP29*BN29 -> 0 | BS29: 0 | BT29: 0 | BW29: m3 | BZ29: 0 | CA29: 0 | CB29: 0 | CC29: =BT29-CB29 -> 0 | CE29: Rip rap in channel base | CG29: m3 | CI29: =NA() ->  | CJ29: =IF(ISNA(CI29),0,INDEX(IF(UPPER(RIGHT(CI29,1))=Low,UnitCostLow, IF(UPPER(RIGHT(CI29,1))=High,UnitCostHigh,UnitCostSpecified)),MATCH(UPPER(LEFT(CI29,LEN(CI29)-1)),CostCode,0))) -> 0 | CK29: =CJ29*CH29 -> 0 | CM29: 0 | CN29: 0
B30: CONSTRUCT SPILLWAY | G30: ='SBB Comp. Est.'!X25 -> 10.17 | H30: 0 | J30: 0 | K30: 0 | V30: CONSTRUCT SPILLWAY | AK30: ='SBB Comp. Est.'!X30 -> 12.995 | AP30: CONSTRUCT SPILLWAY | BA30: CONSTRUCT SPILLWAY | BK30: CONSTRUCT SPILLWAY | CE30: CONSTRUCT SPILLWAY
B31: Excavate channel | C31: 200 m long, 6 m wide and 1 m deep | D31: m3 | E31: ='SBB Comp. Est.'!F17 -> 1200 | F31: SB1L | G31: =IF(ISNA(F31),0,INDEX(IF(UPPER(RIGHT(F31,1))=Low,UnitCostLow, IF(UPPER(RIGHT(F31,1))=High,UnitCostHigh,UnitCostSpecified)),MATCH(UPPER(LEFT(F31,LEN(F31)-1)),CostCode,0))) -> 4.3731 | H31: 5247.72 | J31: 0 | K31: 5247.72 | M31: 200 m long, 6 m wide and 1 m deep | N31: m3 | O31: 1200 | P31: SB1L | Q31: 4.3 | R31: 5160 | S31: 5160 | T31: =K31-S31 -> 87.72 | V31: Excavate channel | W31: Spillway not required; will follow natural drainage to Umwelt Lake. | X31: m3 | Z31: =NA() ->  | AA31: =IF(ISNA(Z31),0,INDEX(IF(UPPER(RIGHT(Z31,1))=Low,UnitCostLow, IF(UPPER(RIGHT(Z31,1))=High,UnitCostHigh,UnitCostSpecified)),MATCH(UPPER(LEFT(Z31,LEN(Z31)-1)),CostCode,0))) -> 0 | AB31: =AA31*Y31 -> 0 | AD31: =AB31*AC31 -> 0 | AE31: =AB31*(1-AC31) -> 0 | AG31: Spillway not required; will follow natural drainage to Umwelt Lake. | AH31: m3 | AK31: ='SBB Comp. Est.'!X29 -> 0.135708339 | AL31: 0 | AM31: 0 | AN31: =AE31-AM31 -> 0 | AP31: Excavate channel | AQ31: Spillway not required; will follow natural drainage to Goose Lake. | AR31: m3 | AT31: =NA() ->  | AU31: =IF(ISNA(AT31),0,INDEX(IF(UPPER(RIGHT(AT31,1))=Low,UnitCostLow, IF(UPPER(RIGHT(AT31,1))=High,UnitCostHigh,UnitCostSpecified)),MATCH(UPPER(LEFT(AT31,LEN(AT31)-1)),CostCode,0))) -> 0 | AV31: =AU31*AS31 -> 0 | AX31: =AV31*AW31 -> 0 | AY31: =AV31*(1-AW31) -> 0 | BA31: Excavate channel | BB31: Spillway not required; will follow natural drainage to Goose Lake. | BC31: m3 | BF31: 0 | BG31: 0 | BH31: 0 | BI31: =AY31-BH31 -> 0 | BK31: Excavate channel | BL31: 100 m long, 6 m wide and 1 m deep | BM31: m3 | BN31: ='SBB Comp. Est.'!F20 -> 600 | BO31: SB1L | BP31: =IF(ISNA(BO31),0,INDEX(IF(UPPER(RIGHT(BO31,1))=Low,UnitCostLow, IF(UPPER(RIGHT(BO31,1))=High,UnitCostHigh,UnitCostSpecified)),MATCH(UPPER(LEFT(BO31,LEN(BO31)-1)),CostCode,0))) -> 4.3731 | BQ31: =BP31*BN31 -> 2623.86 | BS31: =BQ31*BR31 -> 0 | BT31: =BQ31*(1-BR31) -> 2623.86 | BV31: 100 m long, 6 m wide and 1 m deep | BW31: m3 | BX31: 600 | BY31: SB1L | BZ31: 4.3 | CA31: 2580 | CB31: 2580 | CC31: =BT31-CB31 -> 43.86 | CE31: Excavate channel | CF31: Not required. Quarry base will be graded for sheet drainage. | CG31: m3 | CI31: SB1L | CJ31: =IF(ISNA(CI31),0,INDEX(IF(UPPER(RIGHT(CI31,1))=Low,UnitCostLow, IF(UPPER(RIGHT(CI31,1))=High,UnitCostHigh,UnitCostSpecified)),MATCH(UPPER(LEFT(CI31,LEN(CI31)-1)),CostCode,0))) -> 4.3731 | CK31: =CJ31*CH31 -> 0 | CM31: =CK31*CL31 -> 0 | CN31: =CK31*(1-CL31) -> 0
B32: Concrete | D32: m3 | F32: =NA() ->  | G32: 0 | H32: 0 | J32: 0 | K32: 0 | N32: m3 | Q32: 0 | R32: 0 | S32: 0 | T32: =K32-S32 -> 0 | V32: Concrete | X32: m3 | Z32: =NA() ->  | AA32: 0 | AB32: =AA32*Y32 -> 0 | AD32: 0 | AE32: 0 | AH32: m3 | AK32: ='SBB Comp. Est.'!X32 -> 10.17 | AL32: 0 | AM32: 0 | AN32: =AE32-AM32 -> 0 | AP32: Concrete | AR32: m3 | AT32: =NA() ->  | AU32: 0 | AV32: =AU32*AS32 -> 0 | AX32: 0 | AY32: 0 | BA32: Concrete | BC32: m3 | BF32: 0 | BG32: 0 | BH32: 0 | BI32: 0 | BK32: Concrete | BM32: m3 | BO32: =NA() ->  | BP32: 0 | BQ32: =BP32*BN32 -> 0 | BS32: 0 | BT32: 0 | BW32: m3 | BZ32: 0 | CA32: 0 | CB32: 0 | CC32: =BT32-CB32 -> 0 | CE32: Concrete | CG32: m3 | CI32: =NA() ->  | CJ32: 0 | CK32: =CJ32*CH32 -> 0 | CM32: 0 | CN32: 0
B33: Rip rap | D33: m3 | E33: 400 | F33: RR1H | G33: 18.05175 | H33: 7220.7 | J33: 0 | K33: 7220.7 | N33: m3 | O33: 400 | P33: RR1H | Q33: 17.75 | R33: 7100 | S33: 7100 | T33: =K33-S33 -> 120.7 | V33: Rip rap | X33: m3 | Z33: =NA() ->  | AA33: 0 | AB33: =AA33*Y33 -> 0 | AD33: 0 | AE33: 0 | AH33: m3 | AK33: 0 | AL33: 0 | AM33: 0 | AN33: =AE33-AM33 -> 0 | AP33: Rip rap | AR33: m3 | AT33: =NA() ->  | AU33: 0 | AV33: =AU33*AS33 -> 0 | AX33: 0 | AY33: 0 | BA33: Rip rap | BC33: m3 | BF33: 0 | BG33: 0 | BH33: 0 | BI33: 0 | BK33: Rip rap | BM33: m3 | BN33: 200 | BO33: RR1H | BP33: 18.05175 | BQ33: =BP33*BN33 -> 3610.35 | BS33: 0 | BT33: 3610.35 | BW33: m3 | BX33: 200 | BY33: RR1H | BZ33: 17.75 | CA33: 3550 | CB33: 3550 | CC33: =BT33-CB33 -> 60.35 | CE33: Rip rap | CG33: m3 | CI33: RR1L | CJ33: 13.7295 | CK33: =CJ33*CH33 -> 0 | CM33: 0 | CN33: 0
B34: Other | C34: Geotextile | D34: m2 | E34: =((SQRT(1^2+2^2))*2+6)*200*1.1 -> 2303.86991 | F34: GSTL | G34: 3.49848 | H34: 8060.042803 | J34: 0 | K34: 8060.042803 | M34: Geotextile | N34: m2 | O34: 2303.86991 | P34: GSTL | Q34: 3.44 | R34: 7925.312491 | S34: 7925.312491 | T34: =K34-S34 -> 134.7303123 | V34: Other | Z34: =NA() ->  | AA34: 0 | AB34: =AA34*Y34 -> 0 | AD34: 0 | AE34: 0 | AK34: 0 | AL34: 0 | AM34: 0 | AN34: =AE34-AM34 -> 0 | AP34: Other | AT34: =NA() ->  | AU34: 0 | AV34: =AU34*AS34 -> 0 | AX34: 0 | AY34: 0 | BA34: Other | BF34: 0 | BG34: 0 | BH34: 0 | BI34: 0 | BK34: Other | BL34: Geotextile | BM34: m2 | BN34: =((SQRT(1^2+2^2))*2+6)*100*1.1 -> 1151.934955 | BO34: GSTL | BP34: 3.49848 | BQ34: =BP34*BN34 -> 4030.021402 | BS34: 0 | BT34: 4030.021402 | BV34: Geotextile | BW34: m2 | BX34: 1151.934955 | BY34: GSTL | BZ34: 3.44 | CA34: 3962.656245 | CB34: 3962.656245 | CC34: =BT34-CB34 -> 67.36515617 | CE34: Other | CG34: m2 | CI34: GSTL | CJ34: 3.49848 | CK34: =CJ34*CH34 -> 0 | CM34: 0 | CN34: 0
B35: RECLAIM QUARRIES | V35: RECLAIM QUARRIES | AP35: RECLAIM QUARRIES | BA35: RECLAIM QUARRIES | BK35: RECLAIM QUARRIES | CE35: RECLAIM QUARRIES
B36: Contour slopes | D36: m3 | F36: =NA() ->  | G36: =IF(ISNA(F36),0,INDEX(IF(UPPER(RIGHT(F36,1))=Low,UnitCostLow, IF(UPPER(RIGHT(F36,1))=High,UnitCostHigh,UnitCostSpecified)),MATCH(UPPER(LEFT(F36,LEN(F36)-1)),CostCode,0))) -> 0 | H36: =G36*E36 -> 0 | J36: =H36*I36 -> 0 | K36: =H36*(1-I36) -> 0 | N36: m3 | Q36: 0 | R36: 0 | S36: 0 | T36: =K36-S36 -> 0 | V36: Contour slopes | X36: m3 | Z36: =NA() ->  | AA36: =IF(ISNA(Z36),0,INDEX(IF(UPPER(RIGHT(Z36,1))=Low,UnitCostLow, IF(UPPER(RIGHT(Z36,1))=High,UnitCostHigh,UnitCostSpecified)),MATCH(UPPER(LEFT(Z36,LEN(Z36)-1)),CostCode,0))) -> 0 | AB36: =AA36*Y36 -> 0 | AD36: =AB36*AC36 -> 0 | AE36: =AB36*(1-AC36) -> 0 | AH36: m3 | AK36: 0 | AL36: 0 | AM36: 0 | AN36: =AE36-AM36 -> 0 | AP36: Contour slopes | AR36: m3 | AT36: =NA() ->  | AU36: =IF(ISNA(AT36),0,INDEX(IF(UPPER(RIGHT(AT36,1))=Low,UnitCostLow, IF(UPPER(RIGHT(AT36,1))=High,UnitCostHigh,UnitCostSpecified)),MATCH(UPPER(LEFT(AT36,LEN(AT36)-1)),CostCode,0))) -> 0 | AV36: =AU36*AS36 -> 0 | AX36: =AV36*AW36 -> 0 | AY36: =AV36*(1-AW36) -> 0 | BA36: Contour slopes | BC36: m3 | BF36: 0 | BG36: 0 | BH36: 0 | BI36: =AY36-BH36 -> 0 | BK36: Contour slopes | BM36: m3 | BO36: =NA() ->  | BP36: =IF(ISNA(BO36),0,INDEX(IF(UPPER(RIGHT(BO36,1))=Low,UnitCostLow, IF(UPPER(RIGHT(BO36,1))=High,UnitCostHigh,UnitCostSpecified)),MATCH(UPPER(LEFT(BO36,LEN(BO36)-1)),CostCode,0))) -> 0 | BQ36: =BP36*BN36 -> 0 | BS36: =BQ36*BR36 -> 0 | BT36: =BQ36*(1-BR36) -> 0 | BW36: m3 | BZ36: 0 | CA36: 0 | CB36: 0 | CC36: =BT36-CB36 -> 0 | CE36: Contour slopes | CF36: Quarry will not be flooded - development will occur below water level and the areas will be contoured to drain positively | CG36: m3 | CI36: =NA() ->  | CJ36: =IF(ISNA(CI36),0,INDEX(IF(UPPER(RIGHT(CI36,1))=Low,UnitCostLow, IF(UPPER(RIGHT(CI36,1))=High,UnitCostHigh,UnitCostSpecified)),MATCH(UPPER(LEFT(CI36,LEN(CI36)-1)),CostCode,0))) -> 0 | CK36: =CJ36*CH36 -> 0 | CM36: =CK36*CL36 -> 0 | CN36: =CK36*(1-CL36) -> 0
B37: Place overburden | D37: m3 | F37: =NA() ->  | G37: =IF(ISNA(F37),0,INDEX(IF(UPPER(RIGHT(F37,1))=Low,UnitCostLow, IF(UPPER(RIGHT(F37,1))=High,UnitCostHigh,UnitCostSpecified)),MATCH(UPPER(LEFT(F37,LEN(F37)-1)),CostCode,0))) -> 0 | H37: =G37*E37 -> 0 | J37: =H37*I37 -> 0 | K37: =H37*(1-I37) -> 0 | N37: m3 | Q37: 0 | R37: 0 | S37: 0 | T37: =K37-S37 -> 0 | V37: Place overburden | X37: m3 | Z37: =NA() ->  | AA37: =IF(ISNA(Z37),0,INDEX(IF(UPPER(RIGHT(Z37,1))=Low,UnitCostLow, IF(UPPER(RIGHT(Z37,1))=High,UnitCostHigh,UnitCostSpecified)),MATCH(UPPER(LEFT(Z37,LEN(Z37)-1)),CostCode,0))) -> 0 | AB37: =AA37*Y37 -> 0 | AD37: =AB37*AC37 -> 0 | AE37: =AB37*(1-AC37) -> 0 | AH37: m3 | AK37: 0 | AL37: 0 | AM37: 0 | AN37: =AE37-AM37 -> 0 | AP37: Place overburden | AR37: m3 | AT37: =NA() ->  | AU37: =IF(ISNA(AT37),0,INDEX(IF(UPPER(RIGHT(AT37,1))=Low,UnitCostLow, IF(UPPER(RIGHT(AT37,1))=High,UnitCostHigh,UnitCostSpecified)),MATCH(UPPER(LEFT(AT37,LEN(AT37)-1)),CostCode,0))) -> 0 | AV37: =AU37*AS37 -> 0 | AX37: =AV37*AW37 -> 0 | AY37: =AV37*(1-AW37) -> 0 | BA37: Place overburden | BC37: m3 | BF37: 0 | BG37: 0 | BH37: 0 | BI37: 0 | BK37: Place overburden | BM37: m3 | BO37: =NA() ->  | BP37: =IF(ISNA(BO37),0,INDEX(IF(UPPER(RIGHT(BO37,1))=Low,UnitCostLow, IF(UPPER(RIGHT(BO37,1))=High,UnitCostHigh,UnitCostSpecified)),MATCH(UPPER(LEFT(BO37,LEN(BO37)-1)),CostCode,0))) -> 0 | BQ37: =BP37*BN37 -> 0 | BS37: =BQ37*BR37 -> 0 | BT37: =BQ37*(1-BR37) -> 0 | BW37: m3 | BZ37: 0 | CA37: 0 | CB37: 0 | CC37: =BT37-CB37 -> 0 | CE37: Place overburden | CG37: m3 | CI37: =NA() ->  | CJ37: =IF(ISNA(CI37),0,INDEX(IF(UPPER(RIGHT(CI37,1))=Low,UnitCostLow, IF(UPPER(RIGHT(CI37,1))=High,UnitCostHigh,UnitCostSpecified)),MATCH(UPPER(LEFT(CI37,LEN(CI37)-1)),CostCode,0))) -> 0 | CK37: =CJ37*CH37 -> 0 | CM37: =CK37*CL37 -> 0 | CN37: =CK37*(1-CL37) -> 0
B38: Vegetate | D38: m3 | F38: =NA() ->  | G38: =IF(ISNA(F38),0,INDEX(IF(UPPER(RIGHT(F38,1))=Low,UnitCostLow, IF(UPPER(RIGHT(F38,1))=High,UnitCostHigh,UnitCostSpecified)),MATCH(UPPER(LEFT(F38,LEN(F38)-1)),CostCode,0))) -> 0 | H38: =G38*E38 -> 0 | J38: =H38*I38 -> 0 | K38: =H38*(1-I38) -> 0 | N38: m3 | Q38: 0 | R38: 0 | S38: 0 | T38: =K38-S38 -> 0 | V38: Vegetate | X38: m3 | Z38: =NA() ->  | AA38: =IF(ISNA(Z38),0,INDEX(IF(UPPER(RIGHT(Z38,1))=Low,UnitCostLow, IF(UPPER(RIGHT(Z38,1))=High,UnitCostHigh,UnitCostSpecified)),MATCH(UPPER(LEFT(Z38,LEN(Z38)-1)),CostCode,0))) -> 0 | AB38: =AA38*Y38 -> 0 | AD38: =AB38*AC38 -> 0 | AE38: =AB38*(1-AC38) -> 0 | AH38: m3 | AK38: 0 | AL38: 0 | AM38: 0 | AN38: =AE38-AM38 -> 0 | AP38: Vegetate | AR38: m3 | AT38: =NA() ->  | AU38: =IF(ISNA(AT38),0,INDEX(IF(UPPER(RIGHT(AT38,1))=Low,UnitCostLow, IF(UPPER(RIGHT(AT38,1))=High,UnitCostHigh,UnitCostSpecified)),MATCH(UPPER(LEFT(AT38,LEN(AT38)-1)),CostCode,0))) -> 0 | AV38: =AU38*AS38 -> 0 | AX38: =AV38*AW38 -> 0 | AY38: =AV38*(1-AW38) -> 0 | BA38: Vegetate | BC38: m3 | BF38: 0 | BG38: 0 | BH38: 0 | BI38: 0 | BK38: Vegetate | BM38: m3 | BO38: =NA() ->  | BP38: =IF(ISNA(BO38),0,INDEX(IF(UPPER(RIGHT(BO38,1))=Low,UnitCostLow, IF(UPPER(RIGHT(BO38,1))=High,UnitCostHigh,UnitCostSpecified)),MATCH(UPPER(LEFT(BO38,LEN(BO38)-1)),CostCode,0))) -> 0 | BQ38: =BP38*BN38 -> 0 | BS38: =BQ38*BR38 -> 0 | BT38: =BQ38*(1-BR38) -> 0 | BW38: m3 | BZ38: 0 | CA38: 0 | CB38: 0 | CC38: =BT38-CB38 -> 0 | CE38: Vegetate | CG38: m3 | CI38: =NA() ->  | CJ38: =IF(ISNA(CI38),0,INDEX(IF(UPPER(RIGHT(CI38,1))=Low,UnitCostLow, IF(UPPER(RIGHT(CI38,1))=High,UnitCostHigh,UnitCostSpecified)),MATCH(UPPER(LEFT(CI38,LEN(CI38)-1)),CostCode,0))) -> 0 | CK38: =CJ38*CH38 -> 0 | CM38: =CK38*CL38 -> 0 | CN38: =CK38*(1-CL38) -> 0
B39: FLOOD PIT-Capital | V39: FLOOD PIT-Capital | AP39: FLOOD PIT-Capital | BA39: FLOOD PIT-Capital | BK39: FLOOD PIT-Capital | CE39: FLOOD PIT-Capital
B40: Remove stationary equipment (sump pumps) and Pipeline | C40: In Year 3, the exhausted Umwelt Pit will be converted to a water reservoir. Water from the Saline Water Pond will be pumped into Umwelt Reservoir between Year 3 and 4. The Umwelt Reservoir will continue to passively flood with site runoff and direct precipitation through the remainder of Operations and into the Closure Phase. Pipelines/pumps will be relocated for use in the other active pits (Goose Main Pit) and removed to closure landfill once they are no longer needed. Dispose of fuel in diesel day tank and oil from pump and landfill cleaned pump. Remove of pumps and pipelines will occur during Operations. | D40: m | F40: =NA() ->  | G40: =IF(ISNA(F40),0,INDEX(IF(UPPER(RIGHT(F40,1))=Low,UnitCostLow, IF(UPPER(RIGHT(F40,1))=High,UnitCostHigh,UnitCostSpecified)),MATCH(UPPER(LEFT(F40,LEN(F40)-1)),CostCode,0))) -> 0 | H40: =G40*E40 -> 0 | J40: =H40*I40 -> 0 | K40: =H40*(1-I40) -> 0 | M40: Umwelt TF will be used to store tailings in Years 2 to 6 and it will then passively flood with site runoff and direct precipitation through the remainder of Operations and into the Closure Phase. Pipelines/pumps will be relocated for use in the other active pits (Llama Pit and Goose Main Pit) and removed to closure landfill once they are no longer needed. Dispose of fuel in diesel day tank and oil from pump and landfill cleaned pump. Remove of pumps and pipelines will occur during Operations. | N40: m | Q40: 0 | R40: 0 | S40: 0 | T40: =K40-S40 -> 0 | V40: Remove stationary equipment (sump pumps) and Pipeline | W40: Llama TF will be used to store tailings in Years 5 to 12; it will be passively flooded from Year 5 through Year 11 with site runoff and direct precipitation throughout the end of Operations. At Closure, pump will be at top of TF and pipeline leads to WTP. Remove pipeline to closure landfill; dispose of fuel in diesel day tank and oil from pump and landfill cleaned pump. | X40: m | Y40: ='SBB Comp. Est.'!F13 -> 2850 | Z40: Sabina | AA40: ='SBB Comp. Est.'!X13 -> 10.17 | AB40: =AA40*Y40 -> 28984.5 | AD40: =AB40*AC40 -> 0 | AE40: =AB40*(1-AC40) -> 28984.5 | AG40: In Year 6, the exhausted Llama Pit will be converted to a water reservoir. Water from the Saline Water Pond will be pumped into Llama Reservoir between Year 4 and Year 9. The Llama Reservoir will continue to passively flood with site runoff and direct precipitation through the remainder of Operations and into the Closure Phase. Pipelines/pumps will be relocated for use in the other active pits (Goose Main Pit and Echo Pit) and removed to closure landfill once they are no longer needed. Dispose of fuel in diesel day tank and oil from pump and landfill cleaned pump. Remove of pumps and pipelines will occur during Operations. | AH40: m | AK40: 0 | AL40: 0 | AM40: 0 | AN40: =AE40-AM40 -> 28984.5 | AP40: Remove stationary equipment (sump pumps) and Pipeline | AQ40: Deposit not in current mine plan. No changes to costs to keep the stage intact, except: Allotment added for future potential usage of Echo Pit for permenant tailings storage. At Closure, pump and pipeline removed to closure landfill; dispose of fuel in diesel day tank and oil from pump and landfill cleaned pump. | AR40: m | AS40: ='SBB Comp. Est.'!F15 -> 2820 | AT40: Sabina | AU40: ='SBB Comp. Est.'!X15 -> 10.17 | AV40: =AU40*AS40 -> 28679.4 | AX40: =AV40*AW40 -> 0 | AY40: =AV40*(1-AW40) -> 28679.4 | BA40: Remove stationary equipment (sump pumps) and Pipeline | BB40: Once mining of the Echo Pit concludes in Year 5, dewatering will continue until Year 9 (i.e., the end of Echo U/G mining) as the two mines will be connected. Starting in Year 10, Echo Pit will passively flood with site runoff and direct precipitation through the remainder of Operations and into the Closure Phase. Pipelines/pumps will be removed to closure landfill. Dispose of fuel in diesel day tank and oil from pump and landfill cleaned pump. Remove of pumps and pipeline will occur during Operations. | BC40: m | BF40: 0 | BG40: 0 | BH40: 0 | BI40: =AY40-BH40 -> 28679.4 | BK40: Remove stationary equipment (sump pumps) and Pipeline | BL40: At closure, pump will be at top of Goose Reservoir. Remove pipeline to closure landfill; dispose of fuel in diesel day tank and oil from pump and landfill cleaned pump. | BM40: m | BN40: ='SBB Comp. Est.'!F14 -> 4325 | BO40: Sabina | BP40: ='SBB Comp. Est.'!X14 -> 10.17 | BQ40: =BP40*BN40 -> 43985.25 | BS40: =BQ40*BR40 -> 0 | BT40: =BQ40*(1-BR40) -> 43985.25 | BV40: At closure, pump will be at top of TF and pipeline leads to WTP. Remove pipeline to closure landfill; dispose of fuel in diesel day tank and oil from pump and landfill cleaned pump. | BW40: m | BX40: 4325 | BY40: Sabina | BZ40: 10 | CA40: 43250 | CB40: 43250 | CC40: =BT40-CB40 -> 735.25 | CE40: Remove stationary equipment (sump pumps) and Pipeline | CG40: m | CI40: =NA() ->  | CJ40: =IF(ISNA(CI40),0,INDEX(IF(UPPER(RIGHT(CI40,1))=Low,UnitCostLow, IF(UPPER(RIGHT(CI40,1))=High,UnitCostHigh,UnitCostSpecified)),MATCH(UPPER(LEFT(CI40,LEN(CI40)-1)),CostCode,0))) -> 0 | CK40: =CJ40*CH40 -> 0 | CM40: =CK40*CL40 -> 0 | CN40: =CK40*(1-CL40) -> 0
B41: Remove dewatering pipeline | D41: m | F41: =NA() ->  | G41: =IF(ISNA(F41),0,INDEX(IF(UPPER(RIGHT(F41,1))=Low,UnitCostLow, IF(UPPER(RIGHT(F41,1))=High,UnitCostHigh,UnitCostSpecified)),MATCH(UPPER(LEFT(F41,LEN(F41)-1)),CostCode,0))) -> 0 | H41: =G41*E41 -> 0 | J41: =H41*I41 -> 0 | K41: =H41*(1-I41) -> 0 | N41: m | Q41: 0 | R41: 0 | S41: 0 | T41: 0 | V41: Remove dewatering pipeline | X41: m | Z41: =NA() ->  | AA41: =IF(ISNA(Z41),0,INDEX(IF(UPPER(RIGHT(Z41,1))=Low,UnitCostLow, IF(UPPER(RIGHT(Z41,1))=High,UnitCostHigh,UnitCostSpecified)),MATCH(UPPER(LEFT(Z41,LEN(Z41)-1)),CostCode,0))) -> 0 | AB41: =AA41*Y41 -> 0 | AD41: =AB41*AC41 -> 0 | AE41: =AB41*(1-AC41) -> 0 | AH41: m | AK41: 0 | AL41: 0 | AM41: 0 | AN41: 0 | AP41: Remove dewatering pipeline | AR41: m | AT41: =NA() ->  | AU41: =IF(ISNA(AT41),0,INDEX(IF(UPPER(RIGHT(AT41,1))=Low,UnitCostLow, IF(UPPER(RIGHT(AT41,1))=High,UnitCostHigh,UnitCostSpecified)),MATCH(UPPER(LEFT(AT41,LEN(AT41)-1)),CostCode,0))) -> 0 | AV41: =AU41*AS41 -> 0 | AX41: =AV41*AW41 -> 0 | AY41: =AV41*(1-AW41) -> 0 | BA41: Remove dewatering pipeline | BC41: m | BF41: 0 | BG41: 0 | BH41: 0 | BI41: 0 | BK41: Remove dewatering pipeline | BM41: m | BO41: =NA() ->  | BP41: =IF(ISNA(BO41),0,INDEX(IF(UPPER(RIGHT(BO41,1))=Low,UnitCostLow, IF(UPPER(RIGHT(BO41,1))=High,UnitCostHigh,UnitCostSpecified)),MATCH(UPPER(LEFT(BO41,LEN(BO41)-1)),CostCode,0))) -> 0 | BQ41: =BP41*BN41 -> 0 | BS41: =BQ41*BR41 -> 0 | BT41: =BQ41*(1-BR41) -> 0 | BW41: m | BZ41: 0 | CA41: 0 | CB41: 0 | CC41: 0 | CE41: Remove dewatering pipeline | CG41: m | CI41: =NA() ->  | CJ41: =IF(ISNA(CI41),0,INDEX(IF(UPPER(RIGHT(CI41,1))=Low,UnitCostLow, IF(UPPER(RIGHT(CI41,1))=High,UnitCostHigh,UnitCostSpecified)),MATCH(UPPER(LEFT(CI41,LEN(CI41)-1)),CostCode,0))) -> 0 | CK41: =CJ41*CH41 -> 0 | CM41: =CK41*CL41 -> 0 | CN41: =CK41*(1-CL41) -> 0
B42: Remove power lines | D42: each | F42: =NA() ->  | G42: 0 | H42: =G42*E42 -> 0 | J42: 0 | K42: 0 | N42: each | Q42: 0 | R42: 0 | S42: 0 | T42: 0 | V42: Remove power lines | X42: each | Z42: =NA() ->  | AA42: =IF(ISNA(Z42),0,INDEX(IF(UPPER(RIGHT(Z42,1))=Low,UnitCostLow, IF(UPPER(RIGHT(Z42,1))=High,UnitCostHigh,UnitCostSpecified)),MATCH(UPPER(LEFT(Z42,LEN(Z42)-1)),CostCode,0))) -> 0 | AB42: =AA42*Y42 -> 0 | AD42: =AB42*AC42 -> 0 | AE42: =AB42*(1-AC42) -> 0 | AH42: each | AK42: 0 | AL42: 0 | AM42: 0 | AN42: 0 | AP42: Remove power lines | AR42: each | AT42: =NA() ->  | AU42: =IF(ISNA(AT42),0,INDEX(IF(UPPER(RIGHT(AT42,1))=Low,UnitCostLow, IF(UPPER(RIGHT(AT42,1))=High,UnitCostHigh,UnitCostSpecified)),MATCH(UPPER(LEFT(AT42,LEN(AT42)-1)),CostCode,0))) -> 0 | AV42: =AU42*AS42 -> 0 | AX42: =AV42*AW42 -> 0 | AY42: =AV42*(1-AW42) -> 0 | BA42: Remove power lines | BC42: each | BF42: 0 | BG42: 0 | BH42: 0 | BI42: 0 | BK42: Remove power lines | BM42: each | BO42: =NA() ->  | BP42: =IF(ISNA(BO42),0,INDEX(IF(UPPER(RIGHT(BO42,1))=Low,UnitCostLow, IF(UPPER(RIGHT(BO42,1))=High,UnitCostHigh,UnitCostSpecified)),MATCH(UPPER(LEFT(BO42,LEN(BO42)-1)),CostCode,0))) -> 0 | BQ42: =BP42*BN42 -> 0 | BS42: =BQ42*BR42 -> 0 | BT42: =BQ42*(1-BR42) -> 0 | BW42: each | BZ42: 0 | CA42: 0 | CB42: 0 | CC42: 0 | CE42: Remove power lines | CG42: each | CI42: =NA() ->  | CJ42: =IF(ISNA(CI42),0,INDEX(IF(UPPER(RIGHT(CI42,1))=Low,UnitCostLow, IF(UPPER(RIGHT(CI42,1))=High,UnitCostHigh,UnitCostSpecified)),MATCH(UPPER(LEFT(CI42,LEN(CI42)-1)),CostCode,0))) -> 0 | CK42: =CJ42*CH42 -> 0 | CM42: =CK42*CL42 -> 0 | CN42: =CK42*(1-CL42) -> 0
B43: Construct diversion ditches | D43: m3 | F43: =NA() ->  | G43: =IF(ISNA(F43),0,INDEX(IF(UPPER(RIGHT(F43,1))=Low,UnitCostLow, IF(UPPER(RIGHT(F43,1))=High,UnitCostHigh,UnitCostSpecified)),MATCH(UPPER(LEFT(F43,LEN(F43)-1)),CostCode,0))) -> 0 | H43: =G43*E43 -> 0 | J43: =H43*I43 -> 0 | K43: =H43*(1-I43) -> 0 | N43: m3 | Q43: 0 | R43: 0 | S43: 0 | T43: 0 | V43: Construct diversion ditches | X43: m3 | Z43: =NA() ->  | AA43: 0 | AB43: 0 | AD43: 0 | AE43: 0 | AH43: m3 | AK43: 0 | AL43: 0 | AM43: 0 | AN43: 0 | AP43: Construct diversion ditches | AR43: m3 | AT43: =NA() ->  | AU43: 0 | AV43: 0 | AX43: 0 | AY43: 0 | BA43: Construct diversion ditches | BC43: m3 | BF43: 0 | BG43: 0 | BH43: 0 | BI43: 0 | BK43: Construct diversion ditches | BM43: m3 | BO43: =NA() ->  | BP43: 0 | BQ43: 0 | BS43: 0 | BT43: 0 | BW43: m3 | BZ43: 0 | CA43: 0 | CB43: 0 | CC43: 0 | CE43: Construct diversion ditches | CG43: m3 | CI43: =NA() ->  | CJ43: 0 | CK43: 0 | CM43: 0 | CN43: 0
B44: -Ditch, mat'l A | D44: m3 | F44: =NA() ->  | G44: 0 | H44: =G44*E44 -> 0 | J44: 0 | K44: =+H44*(1-I44) -> 0 | N44: m3 | Q44: 0 | R44: 0 | S44: 0 | T44: 0 | V44: -Ditch, mat'l A | X44: m3 | Z44: =NA() ->  | AA44: 0 | AB44: =AA44*Y44 -> 0 | AD44: 0 | AE44: =+AB44*(1-AC44) -> 0 | AH44: m3 | AK44: 0 | AL44: 0 | AM44: 0 | AN44: 0 | AP44: -Ditch, mat'l A | AR44: m3 | AT44: =NA() ->  | AU44: 0 | AV44: =AU44*AS44 -> 0 | AX44: 0 | AY44: =+AV44*(1-AW44) -> 0 | BA44: -Ditch, mat'l A | BC44: m3 | BF44: 0 | BG44: 0 | BH44: 0 | BI44: 0 | BK44: -Ditch, mat'l A | BM44: m3 | BO44: =NA() ->  | BP44: 0 | BQ44: =BP44*BN44 -> 0 | BS44: 0 | BT44: =+BQ44*(1-BR44) -> 0 | BW44: m3 | BZ44: 0 | CA44: 0 | CB44: 0 | CC44: 0 | CE44: -Ditch, mat'l A | CG44: m3 | CI44: =NA() ->  | CJ44: 0 | CK44: =CJ44*CH44 -> 0 | CM44: 0 | CN44: =+CK44*(1-CL44) -> 0
B45: -Ditch, mat'l B | D45: m3 | F45: =NA() ->  | G45: 0 | H45: =G45*E45 -> 0 | J45: 0 | K45: 0 | N45: m3 | Q45: 0 | R45: 0 | S45: 0 | T45: 0 | V45: -Ditch, mat'l B | X45: m3 | Z45: =NA() ->  | AA45: 0 | AB45: =AA45*Y45 -> 0 | AD45: 0 | AE45: 0 | AH45: m3 | AK45: 0 | AL45: 0 | AM45: 0 | AN45: 0 | AP45: -Ditch, mat'l B | AR45: m3 | AT45: =NA() ->  | AU45: 0 | AV45: =AU45*AS45 -> 0 | AX45: 0 | AY45: 0 | BA45: -Ditch, mat'l B | BC45: m3 | BF45: 0 | BG45: 0 | BH45: 0 | BI45: 0 | BK45: -Ditch, mat'l B | BM45: m3 | BO45: =NA() ->  | BP45: 0 | BQ45: =BP45*BN45 -> 0 | BS45: 0 | BT45: 0 | BW45: m3 | BZ45: 0 | CA45: 0 | CB45: 0 | CC45: 0 | CE45: -Ditch, mat'l B | CG45: m3 | CI45: =NA() ->  | CJ45: 0 | CK45: =CJ45*CH45 -> 0 | CM45: 0 | CN45: 0
B46: Construct embankment/dam | D46: m3 | F46: =NA() ->  | G46: 0 | H46: 0 | J46: 0 | K46: 0 | N46: m3 | Q46: 0 | R46: 0 | S46: 0 | T46: 0 | V46: Construct embankment/dam | X46: m3 | Z46: =NA() ->  | AA46: 0 | AB46: =AA46*Y46 -> 0 | AD46: 0 | AE46: =AB46*(1-AC46) -> 0 | AH46: m3 | AK46: 0 | AL46: 0 | AM46: 0 | AN46: 0 | AP46: Construct embankment/dam | AR46: m3 | AT46: =NA() ->  | AU46: 0 | AV46: =AU46*AS46 -> 0 | AX46: 0 | AY46: =AV46*(1-AW46) -> 0 | BA46: Construct embankment/dam | BC46: m3 | BF46: 0 | BG46: 0 | BH46: 0 | BI46: 0 | BK46: Construct embankment/dam | BM46: m3 | BO46: =NA() ->  | BP46: 0 | BQ46: =BP46*BN46 -> 0 | BS46: 0 | BT46: =BQ46*(1-BR46) -> 0 | BW46: m3 | BZ46: 0 | CA46: 0 | CB46: 0 | CC46: 0 | CE46: Construct embankment/dam | CG46: m3 | CI46: =NA() ->  | CJ46: 0 | CK46: =CJ46*CH46 -> 0 | CM46: 0 | CN46: =CK46*(1-CL46) -> 0
B47: Supply/install pump station | D47: each | F47: =NA() ->  | G47: 0 | H47: 0 | J47: 0 | K47: 0 | N47: each | Q47: 0 | R47: 0 | S47: 0 | T47: 0 | V47: Supply/install pump station | X47: each | Z47: =NA() ->  | AA47: 0 | AB47: 0 | AD47: 0 | AE47: 0 | AH47: each | AK47: 0 | AL47: 0 | AM47: 0 | AN47: 0 | AP47: Supply/install pump station | AR47: each | AT47: =NA() ->  | AU47: 0 | AV47: 0 | AX47: 0 | AY47: 0 | BA47: Supply/install pump station | BC47: each | BF47: 0 | BG47: 0 | BH47: 0 | BI47: 0 | BK47: Supply/install pump station | BM47: each | BO47: =NA() ->  | BP47: 0 | BQ47: 0 | BS47: 0 | BT47: 0 | BW47: each | BZ47: 0 | CA47: 0 | CB47: 0 | CC47: 0 | CE47: Supply/install pump station | CG47: each | CI47: =NA() ->  | CJ47: 0 | CK47: 0 | CM47: 0 | CN47: 0
B48: Supply/install piping system | D48: m | F48: =NA() ->  | G48: =IF(ISNA(F48),0,INDEX(IF(UPPER(RIGHT(F48,1))=Low,UnitCostLow, IF(UPPER(RIGHT(F48,1))=High,UnitCostHigh,UnitCostSpecified)),MATCH(UPPER(LEFT(F48,LEN(F48)-1)),CostCode,0))) -> 0 | H48: =G48*E48 -> 0 | J48: =H48*I48 -> 0 | K48: =H48*(1-I48) -> 0 | N48: m | Q48: 0 | R48: 0 | S48: 0 | T48: 0 | V48: Supply/install piping system | X48: m | Z48: =NA() ->  | AA48: 0 | AB48: 0 | AD48: 0 | AE48: 0 | AH48: m | AK48: 0 | AL48: 0 | AM48: 0 | AN48: 0 | AP48: Supply/install piping system | AR48: m | AT48: =NA() ->  | AU48: 0 | AV48: 0 | AX48: 0 | AY48: 0 | BA48: Supply/install piping system | BC48: m | BF48: 0 | BG48: 0 | BH48: 0 | BI48: 0 | BK48: Supply/install piping system | BM48: m | BO48: =NA() ->  | BP48: 0 | BQ48: 0 | BS48: 0 | BT48: 0 | BW48: m | BZ48: 0 | CA48: 0 | CB48: 0 | CC48: 0 | CE48: Supply/install piping system | CG48: m | CI48: =NA() ->  | CJ48: 0 | CK48: 0 | CM48: 0 | CN48: 0
B49: Remove pump post-closure | D49: each | F49: =NA() ->  | G49: =IF(ISNA(F49),0,INDEX(IF(UPPER(RIGHT(F49,1))=Low,UnitCostLow, IF(UPPER(RIGHT(F49,1))=High,UnitCostHigh,UnitCostSpecified)),MATCH(UPPER(LEFT(F49,LEN(F49)-1)),CostCode,0))) -> 0 | H49: =G49*E49 -> 0 | J49: =H49*I49 -> 0 | K49: =H49*(1-I49) -> 0 | N49: each | Q49: 0 | R49: 0 | S49: 0 | T49: 0 | V49: Remove pump post-closure | X49: each | Z49: =NA() ->  | AA49: 0 | AB49: 0 | AD49: 0 | AE49: 0 | AH49: each | AK49: 0 | AL49: 0 | AM49: 0 | AN49: 0 | AP49: Remove pump post-closure | AR49: each | AT49: =NA() ->  | AU49: 0 | AV49: 0 | AX49: 0 | AY49: 0 | BA49: Remove pump post-closure | BC49: each | BF49: 0 | BG49: 0 | BH49: 0 | BI49: 0 | BK49: Remove pump post-closure | BM49: each | BO49: =NA() ->  | BP49: 0 | BQ49: 0 | BS49: 0 | BT49: 0 | BW49: each | BZ49: 0 | CA49: 0 | CB49: 0 | CC49: 0 | CE49: Remove pump post-closure | CG49: each | CI49: =NA() ->  | CJ49: 0 | CK49: 0 | CM49: 0 | CN49: 0
B50: Remove pipeline post-closure | D50: m | F50: =NA() ->  | G50: =IF(ISNA(F50),0,INDEX(IF(UPPER(RIGHT(F50,1))=Low,UnitCostLow, IF(UPPER(RIGHT(F50,1))=High,UnitCostHigh,UnitCostSpecified)),MATCH(UPPER(LEFT(F50,LEN(F50)-1)),CostCode,0))) -> 0 | H50: =G50*E50 -> 0 | J50: =H50*I50 -> 0 | K50: =H50*(1-I50) -> 0 | N50: m | Q50: 0 | R50: 0 | S50: 0 | T50: 0 | V50: Remove pipeline post-closure | X50: m | Z50: =NA() ->  | AA50: 0 | AB50: 0 | AD50: 0 | AE50: 0 | AH50: m | AK50: 0 | AL50: 0 | AM50: 0 | AN50: 0 | AP50: Remove pipeline post-closure | AR50: m | AT50: =NA() ->  | AU50: 0 | AV50: 0 | AX50: 0 | AY50: 0 | BA50: Remove pipeline post-closure | BC50: m | BF50: 0 | BG50: 0 | BH50: 0 | BI50: 0 | BK50: Remove pipeline post-closure | BM50: m | BO50: =NA() ->  | BP50: 0 | BQ50: 0 | BS50: 0 | BT50: 0 | BW50: m | BZ50: 0 | CA50: 0 | CB50: 0 | CC50: 0 | CE50: Remove pipeline post-closure | CG50: m | CI50: =NA() ->  | CJ50: 0 | CK50: 0 | CM50: 0 | CN50: 0
B51: FLOOD PIT-Annual Cost | V51: FLOOD PIT-Annual Cost | AP51: FLOOD PIT-Annual Cost | BA51: FLOOD PIT-Annual Cost | BK51: FLOOD PIT-Annual Cost | CE51: FLOOD PIT-Annual Cost
B52: Operate pumps (power) | D52: m3 | F52: =NA() ->  | G52: 0 | H52: 0 | J52: 0 | K52: 0 | N52: m3 | Q52: 0 | R52: 0 | S52: 0 | T52: =K52-S52 -> 0 | V52: Operate pumps (power) | X52: m3 | Z52: =NA() ->  | AA52: =IF(ISNA(Z52),0,INDEX(IF(UPPER(RIGHT(Z52,1))=Low,UnitCostLow, IF(UPPER(RIGHT(Z52,1))=High,UnitCostHigh,UnitCostSpecified)),MATCH(UPPER(LEFT(Z52,LEN(Z52)-1)),CostCode,0))) -> 0 | AB52: =AA52*Y52 -> 0 | AD52: =AB52*AC52 -> 0 | AE52: =AB52*(1-AC52) -> 0 | AH52: m3 | AK52: 0 | AL52: 0 | AM52: 0 | AN52: =AE52-AM52 -> 0 | AP52: Operate pumps (power) | AR52: m3 | AT52: =NA() ->  | AU52: =IF(ISNA(AT52),0,INDEX(IF(UPPER(RIGHT(AT52,1))=Low,UnitCostLow, IF(UPPER(RIGHT(AT52,1))=High,UnitCostHigh,UnitCostSpecified)),MATCH(UPPER(LEFT(AT52,LEN(AT52)-1)),CostCode,0))) -> 0 | AV52: =AU52*AS52 -> 0 | AX52: =AV52*AW52 -> 0 | AY52: =AV52*(1-AW52) -> 0 | BA52: Operate pumps (power) | BC52: m3 | BF52: 0 | BG52: 0 | BH52: 0 | BI52: =AY52-BH52 -> 0 | BK52: Operate pumps (power) | BM52: m3 | BO52: =NA() ->  | BP52: =IF(ISNA(BO52),0,INDEX(IF(UPPER(RIGHT(BO52,1))=Low,UnitCostLow, IF(UPPER(RIGHT(BO52,1))=High,UnitCostHigh,UnitCostSpecified)),MATCH(UPPER(LEFT(BO52,LEN(BO52)-1)),CostCode,0))) -> 0 | BQ52: =BP52*BN52 -> 0 | BS52: =BQ52*BR52 -> 0 | BT52: =BQ52*(1-BR52) -> 0 | BW52: m3 | BZ52: 0 | CA52: 0 | CB52: 0 | CC52: =BT52-CB52 -> 0 | CE52: Operate pumps (power) | CG52: m3 | CI52: =NA() ->  | CJ52: =IF(ISNA(CI52),0,INDEX(IF(UPPER(RIGHT(CI52,1))=Low,UnitCostLow, IF(UPPER(RIGHT(CI52,1))=High,UnitCostHigh,UnitCostSpecified)),MATCH(UPPER(LEFT(CI52,LEN(CI52)-1)),CostCode,0))) -> 0 | CK52: =CJ52*CH52 -> 0 | CM52: =CK52*CL52 -> 0 | CN52: =CK52*(1-CL52) -> 0
B53: Maintain pump/pipeline | D53: allow | F53: =NA() ->  | G53: =IF(ISNA(F53),0,INDEX(IF(UPPER(RIGHT(F53,1))=Low,UnitCostLow, IF(UPPER(RIGHT(F53,1))=High,UnitCostHigh,UnitCostSpecified)),MATCH(UPPER(LEFT(F53,LEN(F53)-1)),CostCode,0))) -> 0 | H53: =G53*E53 -> 0 | J53: =H53*I53 -> 0 | K53: =H53*(1-I53) -> 0 | N53: allow | Q53: 0 | R53: 0 | S53: 0 | T53: 0 | V53: Maintain pump/pipeline | X53: allow | Z53: =NA() ->  | AA53: 0 | AB53: 0 | AD53: 0 | AE53: 0 | AH53: allow | AK53: 0 | AL53: 0 | AM53: 0 | AN53: 0 | AP53: Maintain pump/pipeline | AR53: allow | AT53: =NA() ->  | AU53: 0 | AV53: 0 | AX53: 0 | AY53: 0 | BA53: Maintain pump/pipeline | BC53: allow | BF53: 0 | BG53: 0 | BH53: 0 | BI53: 0 | BK53: Maintain pump/pipeline | BM53: allow | BO53: =NA() ->  | BP53: 0 | BQ53: 0 | BS53: 0 | BT53: 0 | BW53: allow | BZ53: 0 | CA53: 0 | CB53: 0 | CC53: 0 | CE53: Maintain pump/pipeline | CG53: allow | CI53: =NA() ->  | CJ53: 0 | CK53: 0 | CM53: 0 | CN53: 0
B54: Labour: fuel management, commissioning/decom | D54: $/h | F54: =NA() ->  | G54: =IF(ISNA(F54),0,INDEX(IF(UPPER(RIGHT(F54,1))=Low,UnitCostLow, IF(UPPER(RIGHT(F54,1))=High,UnitCostHigh,UnitCostSpecified)),MATCH(UPPER(LEFT(F54,LEN(F54)-1)),CostCode,0))) -> 0 | H54: =G54*E54 -> 0 | J54: =H54*I54 -> 0 | K54: =H54*(1-I54) -> 0 | N54: $/h | Q54: 0 | R54: 0 | S54: 0 | T54: 0 | V54: Labour: fuel management, commissioning/decom | X54: $/h | Z54: =NA() ->  | AA54: 0 | AB54: 0 | AD54: 0 | AE54: 0 | AH54: $/h | AK54: 0 | AL54: 0 | AM54: 0 | AN54: 0 | AP54: Labour: fuel management, commissioning/decom | AR54: $/h | AT54: =NA() ->  | AU54: 0 | AV54: 0 | AX54: 0 | AY54: 0 | BA54: Labour: fuel management, commissioning/decom | BC54: $/h | BF54: 0 | BG54: 0 | BH54: 0 | BI54: 0 | BK54: Labour: fuel management, commissioning/decom | BM54: $/h | BO54: =NA() ->  | BP54: 0 | BQ54: 0 | BS54: 0 | BT54: 0 | BW54: $/h | BZ54: 0 | CA54: 0 | CB54: 0 | CC54: 0 | CE54: Labour: fuel management, commissioning/decom | CG54: $/h | CI54: =NA() ->  | CJ54: 0 | CK54: 0 | CM54: 0 | CN54: 0
B55: Chemical addition, _____ kg/m3 of water | D55: tonne | F55: =NA() ->  | G55: 0 | H55: 0 | J55: 0 | K55: 0 | N55: tonne | Q55: 0 | R55: 0 | S55: 0 | T55: 0 | V55: Chemical addition, _____ kg/m3 of water | X55: tonne | Z55: =NA() ->  | AA55: 0 | AB55: 0 | AD55: 0 | AE55: 0 | AH55: tonne | AK55: 0 | AL55: 0 | AM55: 0 | AN55: 0 | AP55: Chemical addition, _____ kg/m3 of water | AR55: tonne | AT55: =NA() ->  | AU55: 0 | AV55: 0 | AX55: 0 | AY55: 0 | BA55: Chemical addition, _____ kg/m3 of water | BC55: tonne | BF55: 0 | BG55: 0 | BH55: 0 | BI55: 0 | BK55: Chemical addition, _____ kg/m3 of water | BM55: tonne | BO55: =NA() ->  | BP55: 0 | BQ55: 0 | BS55: 0 | BT55: 0 | BW55: tonne | BZ55: 0 | CA55: 0 | CB55: 0 | CC55: 0 | CE55: Chemical addition, _____ kg/m3 of water | CG55: tonne | CI55: =NA() ->  | CJ55: 0 | CK55: 0 | CM55: 0 | CN55: 0
B56: Chemicals, purchase and shipping | D56: tonne | F56: =NA() ->  | G56: 0 | H56: 0 | J56: 0 | K56: 0 | N56: tonne | Q56: 0 | R56: 0 | S56: 0 | T56: 0 | V56: Chemicals, purchase and shipping | X56: tonne | Z56: =NA() ->  | AA56: 0 | AB56: 0 | AD56: 0 | AE56: 0 | AH56: tonne | AK56: 0 | AL56: 0 | AM56: 0 | AN56: 0 | AP56: Chemicals, purchase and shipping | AR56: tonne | AT56: =NA() ->  | AU56: 0 | AV56: 0 | AX56: 0 | AY56: 0 | BA56: Chemicals, purchase and shipping | BC56: tonne | BF56: 0 | BG56: 0 | BH56: 0 | BI56: 0 | BK56: Chemicals, purchase and shipping | BM56: tonne | BO56: =NA() ->  | BP56: 0 | BQ56: 0 | BS56: 0 | BT56: 0 | BW56: tonne | BZ56: 0 | CA56: 0 | CB56: 0 | CC56: 0 | CE56: Chemicals, purchase and shipping | CG56: tonne | CI56: =NA() ->  | CJ56: 0 | CK56: 0 | CM56: 0 | CN56: 0
B57: Passive/biological additives | D57: $/ha | F57: =NA() ->  | G57: =IF(ISNA(F57),0,INDEX(IF(UPPER(RIGHT(F57,1))=Low,UnitCostLow, IF(UPPER(RIGHT(F57,1))=High,UnitCostHigh,UnitCostSpecified)),MATCH(UPPER(LEFT(F57,LEN(F57)-1)),CostCode,0))) -> 0 | H57: =G57*E57 -> 0 | J57: =H57*I57 -> 0 | K57: =H57*(1-I57) -> 0 | N57: $/ha | Q57: 0 | R57: 0 | S57: 0 | T57: 0 | V57: Passive/biological additives | X57: $/ha | Z57: =NA() ->  | AA57: =IF(ISNA(Z57),0,INDEX(IF(UPPER(RIGHT(Z57,1))=Low,UnitCostLow, IF(UPPER(RIGHT(Z57,1))=High,UnitCostHigh,UnitCostSpecified)),MATCH(UPPER(LEFT(Z57,LEN(Z57)-1)),CostCode,0))) -> 0 | AB57: =AA57*Y57 -> 0 | AD57: =AB57*AC57 -> 0 | AE57: =AB57*(1-AC57) -> 0 | AH57: $/ha | AK57: 0 | AL57: 0 | AM57: 0 | AN57: 0 | AP57: Passive/biological additives | AR57: $/ha | AT57: =NA() ->  | AU57: =IF(ISNA(AT57),0,INDEX(IF(UPPER(RIGHT(AT57,1))=Low,UnitCostLow, IF(UPPER(RIGHT(AT57,1))=High,UnitCostHigh,UnitCostSpecified)),MATCH(UPPER(LEFT(AT57,LEN(AT57)-1)),CostCode,0))) -> 0 | AV57: =AU57*AS57 -> 0 | AX57: =AV57*AW57 -> 0 | AY57: =AV57*(1-AW57) -> 0 | BA57: Passive/biological additives | BC57: $/ha | BF57: 0 | BG57: 0 | BH57: 0 | BI57: 0 | BK57: Passive/biological additives | BM57: $/ha | BO57: =NA() ->  | BP57: =IF(ISNA(BO57),0,INDEX(IF(UPPER(RIGHT(BO57,1))=Low,UnitCostLow, IF(UPPER(RIGHT(BO57,1))=High,UnitCostHigh,UnitCostSpecified)),MATCH(UPPER(LEFT(BO57,LEN(BO57)-1)),CostCode,0))) -> 0 | BQ57: =BP57*BN57 -> 0 | BS57: =BQ57*BR57 -> 0 | BT57: =BQ57*(1-BR57) -> 0 | BW57: $/ha | BZ57: 0 | CA57: 0 | CB57: 0 | CC57: 0 | CE57: Passive/biological additives | CG57: $/ha | CI57: =NA() ->  | CJ57: =IF(ISNA(CI57),0,INDEX(IF(UPPER(RIGHT(CI57,1))=Low,UnitCostLow, IF(UPPER(RIGHT(CI57,1))=High,UnitCostHigh,UnitCostSpecified)),MATCH(UPPER(LEFT(CI57,LEN(CI57)-1)),CostCode,0))) -> 0 | CK57: =CJ57*CH57 -> 0 | CM57: =CK57*CL57 -> 0 | CN57: =CK57*(1-CL57) -> 0
B58: Passive additives purchase and shipping | D58: tonne | F58: =NA() ->  | G58: =IF(ISNA(F58),0,INDEX(IF(UPPER(RIGHT(F58,1))=Low,UnitCostLow, IF(UPPER(RIGHT(F58,1))=High,UnitCostHigh,UnitCostSpecified)),MATCH(UPPER(LEFT(F58,LEN(F58)-1)),CostCode,0))) -> 0 | H58: =G58*E58 -> 0 | J58: =H58*I58 -> 0 | K58: =H58*(1-I58) -> 0 | N58: tonne | Q58: 0 | R58: 0 | S58: 0 | T58: 0 | V58: Passive additives purchase and shipping | X58: tonne | Z58: =NA() ->  | AA58: =IF(ISNA(Z58),0,INDEX(IF(UPPER(RIGHT(Z58,1))=Low,UnitCostLow, IF(UPPER(RIGHT(Z58,1))=High,UnitCostHigh,UnitCostSpecified)),MATCH(UPPER(LEFT(Z58,LEN(Z58)-1)),CostCode,0))) -> 0 | AB58: =AA58*Y58 -> 0 | AD58: =AB58*AC58 -> 0 | AE58: =AB58*(1-AC58) -> 0 | AH58: tonne | AK58: 0 | AL58: 0 | AM58: 0 | AN58: 0 | AP58: Passive additives purchase and shipping | AR58: tonne | AT58: =NA() ->  | AU58: =IF(ISNA(AT58),0,INDEX(IF(UPPER(RIGHT(AT58,1))=Low,UnitCostLow, IF(UPPER(RIGHT(AT58,1))=High,UnitCostHigh,UnitCostSpecified)),MATCH(UPPER(LEFT(AT58,LEN(AT58)-1)),CostCode,0))) -> 0 | AV58: =AU58*AS58 -> 0 | AX58: =AV58*AW58 -> 0 | AY58: =AV58*(1-AW58) -> 0 | BA58: Passive additives purchase and shipping | BC58: tonne | BF58: 0 | BG58: 0 | BH58: 0 | BI58: 0 | BK58: Passive additives purchase and shipping | BM58: tonne | BO58: =NA() ->  | BP58: =IF(ISNA(BO58),0,INDEX(IF(UPPER(RIGHT(BO58,1))=Low,UnitCostLow, IF(UPPER(RIGHT(BO58,1))=High,UnitCostHigh,UnitCostSpecified)),MATCH(UPPER(LEFT(BO58,LEN(BO58)-1)),CostCode,0))) -> 0 | BQ58: =BP58*BN58 -> 0 | BS58: =BQ58*BR58 -> 0 | BT58: =BQ58*(1-BR58) -> 0 | BW58: tonne | BZ58: 0 | CA58: 0 | CB58: 0 | CC58: 0 | CE58: Passive additives purchase and shipping | CG58: tonne | CI58: =NA() ->  | CJ58: =IF(ISNA(CI58),0,INDEX(IF(UPPER(RIGHT(CI58,1))=Low,UnitCostLow, IF(UPPER(RIGHT(CI58,1))=High,UnitCostHigh,UnitCostSpecified)),MATCH(UPPER(LEFT(CI58,LEN(CI58)-1)),CostCode,0))) -> 0 | CK58: =CJ58*CH58 -> 0 | CM58: =CK58*CL58 -> 0 | CN58: =CK58*(1-CL58) -> 0
B59: Other | F59: =NA() ->  | G59: 0 | H59: 0 | J59: =H59*I59 -> 0 | K59: 0 | Q59: 0 | R59: 0 | S59: 0 | T59: 0 | V59: Other | Z59: =NA() ->  | AA59: =IF(ISNA(Z59),0,INDEX(IF(UPPER(RIGHT(Z59,1))=Low,UnitCostLow, IF(UPPER(RIGHT(Z59,1))=High,UnitCostHigh,UnitCostSpecified)),MATCH(UPPER(LEFT(Z59,LEN(Z59)-1)),CostCode,0))) -> 0 | AB59: =AA59*Y59 -> 0 | AD59: =AB59*AC59 -> 0 | AE59: =AB59*(1-AC59) -> 0 | AK59: 0 | AL59: 0 | AM59: 0 | AN59: 0 | AP59: Other | AT59: =NA() ->  | AU59: =IF(ISNA(AT59),0,INDEX(IF(UPPER(RIGHT(AT59,1))=Low,UnitCostLow, IF(UPPER(RIGHT(AT59,1))=High,UnitCostHigh,UnitCostSpecified)),MATCH(UPPER(LEFT(AT59,LEN(AT59)-1)),CostCode,0))) -> 0 | AV59: =AU59*AS59 -> 0 | AX59: =AV59*AW59 -> 0 | AY59: =AV59*(1-AW59) -> 0 | BA59: Other | BF59: 0 | BG59: 0 | BH59: 0 | BI59: 0 | BK59: Other | BO59: =NA() ->  | BP59: =IF(ISNA(BO59),0,INDEX(IF(UPPER(RIGHT(BO59,1))=Low,UnitCostLow, IF(UPPER(RIGHT(BO59,1))=High,UnitCostHigh,UnitCostSpecified)),MATCH(UPPER(LEFT(BO59,LEN(BO59)-1)),CostCode,0))) -> 0 | BQ59: =BP59*BN59 -> 0 | BS59: =BQ59*BR59 -> 0 | BT59: =BQ59*(1-BR59) -> 0 | BZ59: 0 | CA59: 0 | CB59: 0 | CC59: 0 | CE59: Other | CI59: =NA() ->  | CJ59: =IF(ISNA(CI59),0,INDEX(IF(UPPER(RIGHT(CI59,1))=Low,UnitCostLow, IF(UPPER(RIGHT(CI59,1))=High,UnitCostHigh,UnitCostSpecified)),MATCH(UPPER(LEFT(CI59,LEN(CI59)-1)),CostCode,0))) -> 0 | CK59: =CJ59*CH59 -> 0 | CM59: =CK59*CL59 -> 0 | CN59: =CK59*(1-CL59) -> 0
G60: Annual pumping costs | H60: =SUM(H52:H59)+0.0001 -> 0.0001 | Q60: Annual pumping costs | R60: 0.0001 | AA60: Annual pumping costs | AB60: =SUM(AB52:AB59)+0.0001 -> 0.0001 | AK60: Annual pumping costs | AL60: 0.0001 | AN60: 0 | AU60: Annual pumping costs | AV60: =SUM(AV52:AV59)+0.0001 -> 0.0001 | BF60: Annual pumping costs | BG60: 0.0001 | BI60: =AY60-BH60 -> 0 | BP60: Annual pumping costs | BQ60: =SUM(BQ52:BQ59)+0.0001 -> 0.0001 | BZ60: Annual pumping costs | CA60: 0.0001 | CC60: 0 | CJ60: Annual pumping costs | CK60: =SUM(CK52:CK59)+0.0001 -> 0.0001
B61: Number of years of pump flooding | C61: passive pit flooding | D61: years | E61: 0 | M61: passive pit flooding | N61: years | O61: 0 | V61: Number of years of pump flooding | W61: passive pit flooding | X61: years | Y61: 0 | AG61: passive pit flooding | AH61: years | AI61: 0 | AP61: Number of years of pump flooding | AQ61: passive pit flooding | AR61: years | AS61: 0 | BA61: Number of years of pump flooding | BB61: passive pit flooding | BC61: years | BD61: 0 | BK61: Number of years of pump flooding | BL61: passive pit flooding | BM61: years | BN61: 0 | BV61: passive pit flooding | BW61: years | BX61: 0 | CE61: Number of years of pump flooding | CF61: No flooding | CG61: years | CH61: 0
G62: Total pumping costs | H62: =H60*E61 -> 0 | J62: =H62*I62 -> 0 | K62: =H62*(1-I62) -> 0 | Q62: Total pumping costs | R62: 0 | S62: 0 | T62: =K62-S62 -> 0 | AA62: Total pumping costs | AB62: =AB60*Y61 -> 0 | AD62: =AB62*AC62 -> 0 | AE62: =AB62*(1-AC62) -> 0 | AK62: Total pumping costs | AL62: 0 | AM62: 0 | AN62: =AE62-AM62 -> 0 | AU62: Total pumping costs | AV62: =AV60*AS61 -> 0 | AX62: =AV62*AW62 -> 0 | AY62: =AV62*(1-AW62) -> 0 | BF62: Total pumping costs | BG62: 0 | BH62: 0 | BI62: =AY62-BH62 -> 0 | BP62: Total pumping costs | BQ62: =BQ60*BN61 -> 0 | BS62: =BQ62*BR62 -> 0 | BT62: =BQ62*(1-BR62) -> 0 | BZ62: Total pumping costs | CA62: 0 | CB62: 0 | CC62: =BT62-CB62 -> 0 | CJ62: Total pumping costs | CK62: =CK60*CH61 -> 0 | CM62: =CK62*CL62 -> 0 | CN62: =CK62*(1-CL62) -> 0
G63: Total | H63: =SUM(H5:H50)+H62+0.0001 -> 51016.74995 | J63: =SUM(J5:J50)+J62 -> 0 | K63: =SUM(K5:K59)+K62 -> 51016.74985 | Q63: Total | R63: 50424.88759 | S63: 50424.88749 | T63: =K63-S63 -> 591.8623623 | AA63: Total | AB63: =SUM(AB5:AB50)+AB62+0.0001 -> 57577.3534 | AD63: =SUM(AD5:AD50)+AD62 -> 0 | AE63: =SUM(AE5:AE59)+AE62 -> 57577.3533 | AK63: Total | AL63: 26176.6001 | AM63: 26176.6 | AN63: =AE63-AM63 -> 31400.7533 | AU63: Total | AV63: =SUM(AV5:AV50)+AV62+0.0001 -> 55054.59591 | AX63: =SUM(AX5:AX50)+AX62 -> 0 | AY63: =SUM(AY5:AY59)+AY62 -> 55054.59581 | BF63: Total | BG63: 25934.3126 | BH63: 25934.3125 | BI63: =AY63-BH63 -> 29120.28331 | BP63: Total | BQ63: =SUM(BQ5:BQ50)+BQ62+0.0001 -> 88471.77304 | BS63: =SUM(BS5:BS50)+BS62 -> 0 | BT63: =SUM(BT5:BT59)+BT62 -> 88471.77294 | BZ63: Total | CA63: 84849.58135 | CB63: 84849.58125 | CC63: =BT63-CB63 -> 3622.191694 | CJ63: Total | CK63: =SUM(CK5:CK50)+CK62+0.0001 -> 3864.6001 | CM63: =SUM(CM5:CM50)+CM62 -> 0 | CN63: =SUM(CN5:CN59)+CN62 -> 3864.6
G64: % of Total | J64: =J63/H63 -> 0 | K64: =K63/H63 -> 0.999999998 | Q64: % of Total | S64: 0.999999998 | AA64: % of Total | AD64: =AD63/AB63 -> 0 | AE64: =AE63/AB63 -> 0.9999999983 | AK64: % of Total | AM64: 0.9999999962 | AU64: % of Total | AX64: =AX63/AV63 -> 0 | AY64: =AY63/AV63 -> 0.9999999982 | BF64: % of Total | BH64: 0.9999999961 | BP64: % of Total | BS64: =BS63/BQ63 -> 0 | BT64: =BT63/BQ63 -> 0.9999999989 | BZ64: % of Total | CB64: 0.9999999988 | CJ64: % of Total | CM64: =CM63/CK63 -> 0 | CN64: =CN63/CK63 -> 0.9999999741

Sheet UG Mine
A1: 4 | B1: Underground Mine Name | C1: Umwelt | G1: UG Mine # | H1: 1 | K1: =H1 -> 1 | M1: Umwelt | Q1: UG Mine # | R1: 1 | U1: Underground Mine Name | V1: Llama | Z1: UG Mine # | AA1: =H1+1 -> 2 | AD1: =AA1 -> 2 | AF1: Underground Mine Name | AG1: Goose Main | AK1: UG Mine # | AL1: =AA1+1 -> 3 | AO1: =AL1 -> 3 | AQ1: Underground Mine Name | AR1: Echo | AV1: UG Mine # | AW1: =AL1+1 -> 4 | AZ1: =AW1 -> 4
B3: ACTIVITY/MATERIAL | C3: Notes | D3: Unit | E3: Qty | F3: Cost Code | G3: Unit Cost | H3: Cost | I3: % Land | J3: Land Cost | K3: Total Cost | M3: Notes | N3: Unit | O3: Qty | P3: Cost Code | Q3: Unit Cost | R3: Total Cost | S3: Difference | U3: ACTIVITY/MATERIAL | V3: Notes | W3: Unit | X3: Qty | Y3: Cost Code | Z3: Unit Cost | AA3: Cost | AB3: % Land | AC3: Land Cost | AD3: Total Cost | AF3: ACTIVITY/MATERIAL | AG3: Notes | AH3: Unit | AI3: Qty | AJ3: Cost Code | AK3: Unit Cost | AL3: Cost | AM3: % Land | AN3: Land Cost | AO3: Total Cost | AQ3: ACTIVITY/MATERIAL | AR3: Notes | AS3: Unit | AT3: Qty | AU3: Cost Code | AV3: Unit Cost | AW3: Cost | AX3: % Land | AY3: Land Cost | AZ3: Total Cost
B4: CONTROL ACCESS | U4: CONTROL ACCESS | AF4: CONTROL ACCESS | AQ4: CONTROL ACCESS
B5: Fence | D5: m | F5: =NA() ->  | G5: =IF(ISNA(F5),0,INDEX(IF(UPPER(RIGHT(F5,1))=Low,UnitCostLow, IF(UPPER(RIGHT(F5,1))=High,UnitCostHigh,UnitCostSpecified)),MATCH(UPPER(LEFT(F5,LEN(F5)-1)),CostCode,0))) -> 0 | H5: =G5*E5 -> 0 | J5: =H5*I5 -> 0 | K5: =H5*(1-I5) -> 0 | N5: m | Q5: 0 | R5: 0 | S5: =K5-R5 -> 0 | U5: Fence | W5: m | Y5: =NA() ->  | Z5: =IF(ISNA(Y5),0,INDEX(IF(UPPER(RIGHT(Y5,1))=Low,UnitCostLow, IF(UPPER(RIGHT(Y5,1))=High,UnitCostHigh,UnitCostSpecified)),MATCH(UPPER(LEFT(Y5,LEN(Y5)-1)),CostCode,0))) -> 0 | AA5: =Z5*X5 -> 0 | AC5: =AA5*AB5 -> 0 | AD5: =AA5*(1-AB5) -> 0 | AF5: Fence | AH5: m | AJ5: =NA() ->  | AK5: =IF(ISNA(AJ5),0,INDEX(IF(UPPER(RIGHT(AJ5,1))=Low,UnitCostLow, IF(UPPER(RIGHT(AJ5,1))=High,UnitCostHigh,UnitCostSpecified)),MATCH(UPPER(LEFT(AJ5,LEN(AJ5)-1)),CostCode,0))) -> 0 | AL5: =AK5*AI5 -> 0 | AN5: =AL5*AM5 -> 0 | AO5: =AL5*(1-AM5) -> 0 | AQ5: Fence | AS5: m | AU5: =NA() ->  | AV5: =IF(ISNA(AU5),0,INDEX(IF(UPPER(RIGHT(AU5,1))=Low,UnitCostLow, IF(UPPER(RIGHT(AU5,1))=High,UnitCostHigh,UnitCostSpecified)),MATCH(UPPER(LEFT(AU5,LEN(AU5)-1)),CostCode,0))) -> 0 | AW5: =AV5*AT5 -> 0 | AY5: =AW5*AX5 -> 0 | AZ5: =AW5*(1-AX5) -> 0
B6: Signs | D6: each | F6: =NA() ->  | G6: 0 | H6: 0 | J6: =H6*I6 -> 0 | K6: 0 | N6: each | Q6: 0 | R6: 0 | S6: =K6-R6 -> 0 | U6: Signs | W6: each | Y6: =NA() ->  | Z6: 0 | AA6: 0 | AC6: =AA6*AB6 -> 0 | AD6: =AA6*(1-AB6) -> 0 | AF6: Signs | AH6: each | AJ6: =NA() ->  | AK6: 0 | AL6: 0 | AN6: =AL6*AM6 -> 0 | AO6: =AL6*(1-AM6) -> 0 | AQ6: Signs | AS6: each | AU6: =NA() ->  | AV6: 0 | AW6: 0 | AY6: =AW6*AX6 -> 0 | AZ6: =AW6*(1-AX6) -> 0
B7: Block roads | D7: m3 | F7: =NA() ->  | G7: 0 | H7: =G7*E7 -> 0 | J7: 0 | K7: 0 | N7: m3 | Q7: 0 | R7: 0 | S7: 0 | U7: Block roads | W7: m3 | Y7: =NA() ->  | Z7: 0 | AA7: =Z7*X7 -> 0 | AC7: 0 | AD7: 0 | AF7: Block roads | AH7: m3 | AJ7: =NA() ->  | AK7: 0 | AL7: =AK7*AI7 -> 0 | AN7: 0 | AO7: 0 | AQ7: Block roads | AS7: m3 | AU7: =NA() ->  | AV7: 0 | AW7: =AV7*AT7 -> 0 | AY7: 0 | AZ7: 0
B8: Berm | D8: m3 | F8: =NA() ->  | G8: 0 | H8: 0 | J8: 0 | K8: 0 | N8: m3 | Q8: 0 | R8: 0 | S8: 0 | U8: Berm | W8: m3 | Y8: =NA() ->  | Z8: 0 | AA8: =Z8*X8 -> 0 | AC8: 0 | AD8: 0 | AF8: Berm | AH8: m3 | AJ8: =NA() ->  | AK8: 0 | AL8: =AK8*AI8 -> 0 | AN8: 0 | AO8: 0 | AQ8: Berm | AS8: m3 | AU8: =NA() ->  | AV8: 0 | AW8: =AV8*AT8 -> 0 | AY8: 0 | AZ8: 0
B9: Backfill Portal (NPAG waste rock plug) | C9: At least 5 m deep into 5x4.5m portal and slope at least 2:1 outside of portal | D9: m3 | E9: ='SBB Comp. Est.'!F38 -> 150 | F9: PORL | G9: 19.1196 | H9: 2867.94 | J9: =H9*I9 -> 0 | K9: 2867.94 | M9: At least 5 m deep into 5x4.5m portal and slope at least 2:1 outside of portal | N9: m3 | O9: 150 | P9: PORL | Q9: 18.8 | R9: 2820 | S9: 47.94 | U9: Backfill Portal (NPAG waste rock plug) | V9: At least 5 m deep into 5x4.5m portal and slope at least 2:1 outside of portal | W9: m3 | X9: ='SBB Comp. Est.'!F40 -> 150 | Y9: PORL | Z9: 19.1196 | AA9: 2867.94 | AC9: =AA9*AB9 -> 0 | AD9: =AA9*(1-AB9) -> 2867.94 | AF9: Backfill Portal (NPAG waste rock plug) | AG9: At least 5 m deep into 5x4.5m portal and slope at least 2:1 outside of portal | AH9: m3 | AI9: ='SBB Comp. Est.'!F42 -> 150 | AJ9: PORL | AK9: 19.1196 | AL9: 2867.94 | AN9: =AL9*AM9 -> 0 | AO9: =AL9*(1-AM9) -> 2867.94 | AQ9: Backfill Portal (NPAG waste rock plug) | AR9: At least 5 m deep into 5x4.5m portal and slope at least 2:1 outside of portal | AS9: m3 | AT9: ='SBB Comp. Est.'!F44 -> 150 | AU9: PORL | AV9: 19.1196 | AW9: 2867.94 | AY9: =AW9*AX9 -> 0 | AZ9: =AW9*(1-AX9) -> 2867.94
B10: Backfill portal #2 | D10: m3 | F10: =NA() ->  | G10: 0 | H10: 0 | J10: 0 | K10: 0 | N10: m3 | Q10: 0 | R10: 0 | S10: 0 | U10: Backfill portal #2 | W10: m3 | Y10: =NA() ->  | Z10: =IF(ISNA(Y10),0,INDEX(IF(UPPER(RIGHT(Y10,1))=Low,UnitCostLow, IF(UPPER(RIGHT(Y10,1))=High,UnitCostHigh,UnitCostSpecified)),MATCH(UPPER(LEFT(Y10,LEN(Y10)-1)),CostCode,0))) -> 0 | AA10: 0 | AC10: =AA10*AB10 -> 0 | AD10: =AA10*(1-AB10) -> 0 | AF10: Backfill portal #2 | AH10: m3 | AJ10: =NA() ->  | AK10: =IF(ISNA(AJ10),0,INDEX(IF(UPPER(RIGHT(AJ10,1))=Low,UnitCostLow, IF(UPPER(RIGHT(AJ10,1))=High,UnitCostHigh,UnitCostSpecified)),MATCH(UPPER(LEFT(AJ10,LEN(AJ10)-1)),CostCode,0))) -> 0 | AL10: 0 | AN10: =AL10*AM10 -> 0 | AO10: =AL10*(1-AM10) -> 0 | AQ10: Backfill portal #2 | AS10: m3 | AU10: =NA() ->  | AV10: =IF(ISNA(AU10),0,INDEX(IF(UPPER(RIGHT(AU10,1))=Low,UnitCostLow, IF(UPPER(RIGHT(AU10,1))=High,UnitCostHigh,UnitCostSpecified)),MATCH(UPPER(LEFT(AU10,LEN(AU10)-1)),CostCode,0))) -> 0 | AW10: 0 | AY10: =AW10*AX10 -> 0 | AZ10: =AW10*(1-AX10) -> 0
B11: Cap raise # 1 | C11: Concrete plug over 4m-dia. vent raise | D11: m3 | E11: 28.3 | F11: SRH | G11: 2168.244 | H11: 61361.3052 | J11: 0 | K11: 61361.3052 | M11: Concrete plug over 4m-dia. vent raise | N11: m3 | O11: 28.3 | P11: SRH | Q11: 2132 | R11: 60335.6 | S11: 1025.7052 | U11: Cap raise # 1 | V11: Concrete plug over 4m-dia. vent raise | W11: LS | X11: 28.3 | Y11: SRH | Z11: 2168.244 | AA11: 61361.3052 | AC11: 0 | AD11: 61361.3052 | AF11: Cap raise # 1 | AG11: Concrete plug over 4m-dia. vent raise | AH11: LS | AI11: 28.3 | AJ11: SRH | AK11: 2168.244 | AL11: 61361.3052 | AN11: 0 | AO11: 61361.3052 | AQ11: Cap raise # 1 | AR11: Concrete plug over 4m-dia. vent raise | AS11: LS | AT11: 28.3 | AU11: SRH | AV11: 2168.244 | AW11: 61361.3052 | AY11: 0 | AZ11: 61361.3052
B12: Cap raise #2 | C12: Concrete plug over 4m-dia. vent raise | D12: m3 | E12: 28.3 | F12: SRH | G12: =IF(ISNA(F12),0,INDEX(IF(UPPER(RIGHT(F12,1))=Low,UnitCostLow, IF(UPPER(RIGHT(F12,1))=High,UnitCostHigh,UnitCostSpecified)),MATCH(UPPER(LEFT(F12,LEN(F12)-1)),CostCode,0))) -> 2168.244 | H12: =G12*E12 -> 61361.3052 | J12: =H12*I12 -> 0 | K12: =H12*(1-I12) -> 61361.3052 | M12: Concrete plug over 4m-dia. vent raise | N12: m3 | O12: 28.3 | P12: SRH | Q12: 2132 | R12: 60335.6 | S12: 1025.7052 | U12: Cap raise #2 | W12: m3 | Y12: =NA() ->  | Z12: =IF(ISNA(Y12),0,INDEX(IF(UPPER(RIGHT(Y12,1))=Low,UnitCostLow, IF(UPPER(RIGHT(Y12,1))=High,UnitCostHigh,UnitCostSpecified)),MATCH(UPPER(LEFT(Y12,LEN(Y12)-1)),CostCode,0))) -> 0 | AA12: 0 | AC12: 0 | AD12: 0 | AF12: Cap raise #2 | AH12: m3 | AJ12: =NA() ->  | AK12: =IF(ISNA(AJ12),0,INDEX(IF(UPPER(RIGHT(AJ12,1))=Low,UnitCostLow, IF(UPPER(RIGHT(AJ12,1))=High,UnitCostHigh,UnitCostSpecified)),MATCH(UPPER(LEFT(AJ12,LEN(AJ12)-1)),CostCode,0))) -> 0 | AL12: 0 | AN12: 0 | AO12: 0 | AQ12: Cap raise #2 | AS12: m3 | AU12: =NA() ->  | AV12: =IF(ISNA(AU12),0,INDEX(IF(UPPER(RIGHT(AU12,1))=Low,UnitCostLow, IF(UPPER(RIGHT(AU12,1))=High,UnitCostHigh,UnitCostSpecified)),MATCH(UPPER(LEFT(AU12,LEN(AU12)-1)),CostCode,0))) -> 0 | AW12: 0 | AY12: 0 | AZ12: 0
B13: Cap shaft #1 | C13: Concrete plug over 4m-dia. fresh air vent | D13: m3 | E13: 28.3 | F13: SRH | G13: 2168.244 | H13: 61361.3052 | J13: 0 | K13: 61361.3052 | M13: Concrete plug over 4m-dia. fresh air vent | N13: m3 | O13: 28.3 | P13: SRH | Q13: 2132 | R13: 60335.6 | S13: 1025.7052 | U13: Cap shaft #1 | W13: m3 | Y13: =NA() ->  | Z13: 0 | AA13: 0 | AC13: 0 | AD13: 0 | AF13: Cap shaft #1 | AH13: m3 | AJ13: =NA() ->  | AK13: 0 | AL13: 0 | AN13: 0 | AO13: 0 | AQ13: Cap shaft #1 | AS13: m3 | AU13: =NA() ->  | AV13: 0 | AW13: 0 | AY13: 0 | AZ13: 0
B14: Cap shaft #2 | D14: m3 | F14: =NA() ->  | G14: 0 | H14: 0 | J14: 0 | K14: 0 | N14: m3 | Q14: 0 | R14: 0 | S14: 0 | U14: Cap shaft #2 | W14: m3 | Y14: =NA() ->  | Z14: 0 | AA14: 0 | AC14: 0 | AD14: 0 | AF14: Cap shaft #2 | AH14: m3 | AJ14: =NA() ->  | AK14: 0 | AL14: 0 | AN14: 0 | AO14: 0 | AQ14: Cap shaft #2 | AS14: m3 | AU14: =NA() ->  | AV14: 0 | AW14: 0 | AY14: 0 | AZ14: 0
B15: Backfill adits | D15: m3 | F15: =NA() ->  | G15: 0 | H15: 0 | J15: =H15*I15 -> 0 | K15: 0 | N15: m3 | Q15: 0 | R15: 0 | S15: 0 | U15: Backfill adits | W15: m3 | Y15: =NA() ->  | Z15: 0 | AA15: 0 | AC15: =AA15*AB15 -> 0 | AD15: =AA15*(1-AB15) -> 0 | AF15: Backfill adits | AH15: m3 | AJ15: =NA() ->  | AK15: 0 | AL15: 0 | AN15: =AL15*AM15 -> 0 | AO15: =AL15*(1-AM15) -> 0 | AQ15: Backfill adits | AS15: m3 | AU15: =NA() ->  | AV15: 0 | AW15: 0 | AY15: =AW15*AX15 -> 0 | AZ15: =AW15*(1-AX15) -> 0
B16: Backfill open stope | D16: m3 | F16: =NA() ->  | G16: 0 | H16: 0 | J16: 0 | K16: 0 | N16: m3 | Q16: 0 | R16: 0 | S16: 0 | U16: Backfill open stope | W16: m3 | Y16: =NA() ->  | Z16: 0 | AA16: 0 | AC16: =AA16*AB16 -> 0 | AD16: =AA16*(1-AB16) -> 0 | AF16: Backfill open stope | AH16: m3 | AJ16: =NA() ->  | AK16: 0 | AL16: 0 | AN16: =AL16*AM16 -> 0 | AO16: =AL16*(1-AM16) -> 0 | AQ16: Backfill open stope | AS16: m3 | AT16: ='SBB Comp. Est.'!F54 -> 3550 | AU16: Sabina | AV16: ='SBB Comp. Est.'!X54 -> 6.102 | AW16: 21662.1 | AY16: =AW16*AX16 -> 0 | AZ16: =AW16*(1-AX16) -> 21662.1
B17: Concrete cap over open stope | D17: m3 | F17: =NA() ->  | G17: 0 | H17: 0 | J17: 0 | K17: 0 | N17: m3 | Q17: 0 | R17: 0 | S17: 0 | U17: Concrete cap over open stope | W17: m3 | Y17: =NA() ->  | Z17: 0 | AA17: 0 | AC17: 0 | AD17: 0 | AF17: Concrete cap over open stope | AH17: m3 | AJ17: =NA() ->  | AK17: 0 | AL17: 0 | AN17: 0 | AO17: 0 | AQ17: Concrete cap over open stope | AS17: m3 | AU17: =NA() ->  | AV17: 0 | AW17: 0 | AY17: 0 | AZ17: 0
B18: Other | F18: =NA() ->  | G18: 0 | H18: 0 | J18: 0 | K18: 0 | Q18: 0 | R18: 0 | S18: 0 | U18: Other | AF18: Other | AQ18: Other | AU18: =NA() ->  | AV18: 0 | AW18: 0 | AY18: 0 | AZ18: 0
B19: REMOVE HAZARDOUS MATERIALS | U19: REMOVE HAZARDOUS MATERIALS | AF19: REMOVE HAZARDOUS MATERIALS | AQ19: REMOVE HAZARDOUS MATERIALS
B20: Remove hazardous materials, U/G labor | C20: Three shifts with loader, incl. operator and fuel | D20: manhour | E20: 30 | F20: load-sL | G20: 177.975 | H20: =G20*E20 -> 5339.25 | J20: =H20*I20 -> 0 | K20: =H20*(1-I20) -> 5339.25 | M20: Two shifts with loader, incl. operator and fuel | N20: manhour | O20: 20 | P20: load-s | Q20: 175 | R20: 3500 | S20: =K20-R20 -> 1839.25 | U20: Remove hazardous materials, U/G labor | V20: Two shifts with loader, incl. operator and fuel | W20: manhour | X20: 20 | Y20: load-sL | Z20: =IF(ISNA(Y20),0,INDEX(IF(UPPER(RIGHT(Y20,1))=Low,UnitCostLow, IF(UPPER(RIGHT(Y20,1))=High,UnitCostHigh,UnitCostSpecified)),MATCH(UPPER(LEFT(Y20,LEN(Y20)-1)),CostCode,0))) -> 177.975 | AA20: =Z20*X20 -> 3559.5 | AC20: =AA20*AB20 -> 0 | AD20: =AA20*(1-AB20) -> 3559.5 | AF20: Remove hazardous materials, U/G labor | AG20: Two shifts with loader, incl. operator and fuel | AH20: manhour | AI20: 20 | AJ20: load-sL | AK20: =IF(ISNA(AJ20),0,INDEX(IF(UPPER(RIGHT(AJ20,1))=Low,UnitCostLow, IF(UPPER(RIGHT(AJ20,1))=High,UnitCostHigh,UnitCostSpecified)),MATCH(UPPER(LEFT(AJ20,LEN(AJ20)-1)),CostCode,0))) -> 177.975 | AL20: =AK20*AI20 -> 3559.5 | AN20: =AL20*AM20 -> 0 | AO20: =AL20*(1-AM20) -> 3559.5 | AQ20: Remove hazardous materials, U/G labor | AR20: One shift with loader, incl. operator and fuel | AS20: manhour | AT20: 10 | AU20: load-sL | AV20: =IF(ISNA(AU20),0,INDEX(IF(UPPER(RIGHT(AU20,1))=Low,UnitCostLow, IF(UPPER(RIGHT(AU20,1))=High,UnitCostHigh,UnitCostSpecified)),MATCH(UPPER(LEFT(AU20,LEN(AU20)-1)),CostCode,0))) -> 177.975 | AW20: =AV20*AT20 -> 1779.75 | AY20: =AW20*AX20 -> 0 | AZ20: =AW20*(1-AX20) -> 1779.75
B21: Remove/decontam. stationary & elect. equip | D21: mandays | F21: =NA() ->  | G21: =IF(ISNA(F21),0,INDEX(IF(UPPER(RIGHT(F21,1))=Low,UnitCostLow, IF(UPPER(RIGHT(F21,1))=High,UnitCostHigh,UnitCostSpecified)),MATCH(UPPER(LEFT(F21,LEN(F21)-1)),CostCode,0))) -> 0 | H21: =G21*E21 -> 0 | J21: =H21*I21 -> 0 | K21: =H21*(1-I21) -> 0 | N21: mandays | Q21: 0 | R21: 0 | S21: 0 | U21: Remove/decontam. stationary & elect. equip | W21: mandays | Y21: =NA() ->  | Z21: =IF(ISNA(Y21),0,INDEX(IF(UPPER(RIGHT(Y21,1))=Low,UnitCostLow, IF(UPPER(RIGHT(Y21,1))=High,UnitCostHigh,UnitCostSpecified)),MATCH(UPPER(LEFT(Y21,LEN(Y21)-1)),CostCode,0))) -> 0 | AA21: =Z21*X21 -> 0 | AC21: =AA21*AB21 -> 0 | AD21: =AA21*(1-AB21) -> 0 | AF21: Remove/decontam. stationary & elect. equip | AH21: mandays | AJ21: =NA() ->  | AK21: =IF(ISNA(AJ21),0,INDEX(IF(UPPER(RIGHT(AJ21,1))=Low,UnitCostLow, IF(UPPER(RIGHT(AJ21,1))=High,UnitCostHigh,UnitCostSpecified)),MATCH(UPPER(LEFT(AJ21,LEN(AJ21)-1)),CostCode,0))) -> 0 | AL21: =AK21*AI21 -> 0 | AN21: =AL21*AM21 -> 0 | AO21: =AL21*(1-AM21) -> 0 | AQ21: Remove/decontam. stationary & elect. equip | AS21: mandays | AU21: =NA() ->  | AV21: =IF(ISNA(AU21),0,INDEX(IF(UPPER(RIGHT(AU21,1))=Low,UnitCostLow, IF(UPPER(RIGHT(AU21,1))=High,UnitCostHigh,UnitCostSpecified)),MATCH(UPPER(LEFT(AU21,LEN(AU21)-1)),CostCode,0))) -> 0 | AW21: =AV21*AT21 -> 0 | AY21: =AW21*AX21 -> 0 | AZ21: =AW21*(1-AX21) -> 0
B22: Remove/decontam. mobile equipment | D22: each | F22: =NA() ->  | G22: =IF(ISNA(F22),0,INDEX(IF(UPPER(RIGHT(F22,1))=Low,UnitCostLow, IF(UPPER(RIGHT(F22,1))=High,UnitCostHigh,UnitCostSpecified)),MATCH(UPPER(LEFT(F22,LEN(F22)-1)),CostCode,0))) -> 0 | H22: =G22*E22 -> 0 | J22: =H22*I22 -> 0 | K22: =H22*(1-I22) -> 0 | N22: each | Q22: 0 | R22: 0 | S22: 0 | U22: Remove/decontam. mobile equipment | W22: each | Y22: =NA() ->  | Z22: =IF(ISNA(Y22),0,INDEX(IF(UPPER(RIGHT(Y22,1))=Low,UnitCostLow, IF(UPPER(RIGHT(Y22,1))=High,UnitCostHigh,UnitCostSpecified)),MATCH(UPPER(LEFT(Y22,LEN(Y22)-1)),CostCode,0))) -> 0 | AA22: =Z22*X22 -> 0 | AC22: =AA22*AB22 -> 0 | AD22: =AA22*(1-AB22) -> 0 | AF22: Remove/decontam. mobile equipment | AH22: each | AJ22: =NA() ->  | AK22: =IF(ISNA(AJ22),0,INDEX(IF(UPPER(RIGHT(AJ22,1))=Low,UnitCostLow, IF(UPPER(RIGHT(AJ22,1))=High,UnitCostHigh,UnitCostSpecified)),MATCH(UPPER(LEFT(AJ22,LEN(AJ22)-1)),CostCode,0))) -> 0 | AL22: =AK22*AI22 -> 0 | AN22: =AL22*AM22 -> 0 | AO22: =AL22*(1-AM22) -> 0 | AQ22: Remove/decontam. mobile equipment | AS22: each | AU22: =NA() ->  | AV22: =IF(ISNA(AU22),0,INDEX(IF(UPPER(RIGHT(AU22,1))=Low,UnitCostLow, IF(UPPER(RIGHT(AU22,1))=High,UnitCostHigh,UnitCostSpecified)),MATCH(UPPER(LEFT(AU22,LEN(AU22)-1)),CostCode,0))) -> 0 | AW22: =AV22*AT22 -> 0 | AY22: =AW22*AX22 -> 0 | AZ22: =AW22*(1-AX22) -> 0
B23: Remove misc. haz. mat & explosives | C23: Dispose of up to 1 week's inventory of explosives | D23: kg | E23: 100 | F23: Sabina | G23: =Unit_Costs!F178 -> 50.85 | H23: =G23*E23 -> 5085 | J23: =H23*I23 -> 0 | K23: =H23*(1-I23) -> 5085 | M23: Dispose of up to 1 week's inventory of explosives | N23: kg | O23: 100 | P23: Sabina | Q23: 50 | R23: 5000 | S23: 85 | U23: Remove misc. haz. mat & explosives | V23: Mining will cease before closure | W23: kg | Y23: =NA() ->  | Z23: =IF(ISNA(Y23),0,INDEX(IF(UPPER(RIGHT(Y23,1))=Low,UnitCostLow, IF(UPPER(RIGHT(Y23,1))=High,UnitCostHigh,UnitCostSpecified)),MATCH(UPPER(LEFT(Y23,LEN(Y23)-1)),CostCode,0))) -> 0 | AA23: =Z23*X23 -> 0 | AC23: =AA23*AB23 -> 0 | AD23: =AA23*(1-AB23) -> 0 | AF23: Remove misc. haz. mat & explosives | AG23: Mining will cease before closure | AH23: kg | AJ23: =NA() ->  | AK23: =IF(ISNA(AJ23),0,INDEX(IF(UPPER(RIGHT(AJ23,1))=Low,UnitCostLow, IF(UPPER(RIGHT(AJ23,1))=High,UnitCostHigh,UnitCostSpecified)),MATCH(UPPER(LEFT(AJ23,LEN(AJ23)-1)),CostCode,0))) -> 0 | AL23: =AK23*AI23 -> 0 | AN23: =AL23*AM23 -> 0 | AO23: =AL23*(1-AM23) -> 0 | AQ23: Remove misc. haz. mat & explosives | AR23: Mining will cease before closure | AS23: kg | AU23: =NA() ->  | AV23: =IF(ISNA(AU23),0,INDEX(IF(UPPER(RIGHT(AU23,1))=Low,UnitCostLow, IF(UPPER(RIGHT(AU23,1))=High,UnitCostHigh,UnitCostSpecified)),MATCH(UPPER(LEFT(AU23,LEN(AU23)-1)),CostCode,0))) -> 0 | AW23: =AV23*AT23 -> 0 | AY23: =AW23*AX23 -> 0 | AZ23: =AW23*(1-AX23) -> 0
B24: Decommission Pipeline | C24: Clean Umwelt UG to SWP pipeline, decommission and landfill | D24: m | E24: ='SBB Comp. Est.'!$F$27 -> 1662 | F24: Sabina | G24: ='SBB Comp. Est.'!X27 -> 10.17 | H24: =G24*E24 -> 16902.54 | J24: =H24*I24 -> 0 | K24: =H24*(1-I24) -> 16902.54 | M24: Clean Umwelt UG to SWP pipeline, decommission and landfill | N24: m | O24: 1200 | P24: Sabina | Q24: 10 | R24: 12000 | S24: 4902.54 | U24: Decommission Pipeline | V24: Clean Llama UG to SWP pipeline, decommission and landfill | W24: m | X24: ='SBB Comp. Est.'!F36 -> 2700 | Y24: Sabina | Z24: ='SBB Comp. Est.'!X36 -> 10.17 | AA24: =Z24*X24 -> 27459 | AC24: =AA24*AB24 -> 0 | AD24: =AA24*(1-AB24) -> 27459 | AF24: Decommission WTP - Goose Lake Pipeline | AG24: In Water Management tab | AH24: m | AJ24: =NA() ->  | AK24: =IF(ISNA(AJ24),0,INDEX(IF(UPPER(RIGHT(AJ24,1))=Low,UnitCostLow, IF(UPPER(RIGHT(AJ24,1))=High,UnitCostHigh,UnitCostSpecified)),MATCH(UPPER(LEFT(AJ24,LEN(AJ24)-1)),CostCode,0))) -> 0 | AL24: =AK24*AI24 -> 0 | AN24: =AL24*AM24 -> 0 | AO24: =AL24*(1-AM24) -> 0 | AQ24: Decommission Pipeline | AS24: m | AU24: =NA() ->  | AV24: =IF(ISNA(AU24),0,INDEX(IF(UPPER(RIGHT(AU24,1))=Low,UnitCostLow, IF(UPPER(RIGHT(AU24,1))=High,UnitCostHigh,UnitCostSpecified)),MATCH(UPPER(LEFT(AU24,LEN(AU24)-1)),CostCode,0))) -> 0 | AW24: =AV24*AT24 -> 0 | AY24: =AW24*AX24 -> 0 | AZ24: =AW24*(1-AX24) -> 0
B25: INSTALL BULKHEADS | U25: INSTALL BULKHEADS | AF25: INSTALL BULKHEADS | AQ25: INSTALL BULKHEADS
B26: Bulkheads to control water flow | D26: each | F26: =NA() ->  | G26: =IF(ISNA(F26),0,INDEX(IF(UPPER(RIGHT(F26,1))=Low,UnitCostLow, IF(UPPER(RIGHT(F26,1))=High,UnitCostHigh,UnitCostSpecified)),MATCH(UPPER(LEFT(F26,LEN(F26)-1)),CostCode,0))) -> 0 | H26: =G26*E26 -> 0 | J26: =H26*I26 -> 0 | K26: =H26*(1-I26) -> 0 | N26: each | Q26: 0 | R26: 0 | S26: =K26-R26 -> 0 | U26: Bulkheads to control water flow | W26: each | Y26: =NA() ->  | Z26: =IF(ISNA(Y26),0,INDEX(IF(UPPER(RIGHT(Y26,1))=Low,UnitCostLow, IF(UPPER(RIGHT(Y26,1))=High,UnitCostHigh,UnitCostSpecified)),MATCH(UPPER(LEFT(Y26,LEN(Y26)-1)),CostCode,0))) -> 0 | AA26: =Z26*X26 -> 0 | AC26: =AA26*AB26 -> 0 | AD26: =AA26*(1-AB26) -> 0 | AF26: Bulkheads to control water flow | AH26: each | AJ26: =NA() ->  | AK26: =IF(ISNA(AJ26),0,INDEX(IF(UPPER(RIGHT(AJ26,1))=Low,UnitCostLow, IF(UPPER(RIGHT(AJ26,1))=High,UnitCostHigh,UnitCostSpecified)),MATCH(UPPER(LEFT(AJ26,LEN(AJ26)-1)),CostCode,0))) -> 0 | AL26: =AK26*AI26 -> 0 | AN26: =AL26*AM26 -> 0 | AO26: =AL26*(1-AM26) -> 0 | AQ26: Bulkheads to control water flow | AS26: each | AU26: =NA() ->  | AV26: =IF(ISNA(AU26),0,INDEX(IF(UPPER(RIGHT(AU26,1))=Low,UnitCostLow, IF(UPPER(RIGHT(AU26,1))=High,UnitCostHigh,UnitCostSpecified)),MATCH(UPPER(LEFT(AU26,LEN(AU26)-1)),CostCode,0))) -> 0 | AW26: =AV26*AT26 -> 0 | AY26: =AW26*AX26 -> 0 | AZ26: =AW26*(1-AX26) -> 0
B27: Grout bulkhead | D27: m3 | F27: =NA() ->  | G27: =IF(ISNA(F27),0,INDEX(IF(UPPER(RIGHT(F27,1))=Low,UnitCostLow, IF(UPPER(RIGHT(F27,1))=High,UnitCostHigh,UnitCostSpecified)),MATCH(UPPER(LEFT(F27,LEN(F27)-1)),CostCode,0))) -> 0 | H27: =G27*E27 -> 0 | J27: =H27*I27 -> 0 | K27: =H27*(1-I27) -> 0 | N27: m3 | Q27: 0 | R27: 0 | S27: 0 | U27: Grout bulkhead | W27: m3 | Y27: =NA() ->  | Z27: =IF(ISNA(Y27),0,INDEX(IF(UPPER(RIGHT(Y27,1))=Low,UnitCostLow, IF(UPPER(RIGHT(Y27,1))=High,UnitCostHigh,UnitCostSpecified)),MATCH(UPPER(LEFT(Y27,LEN(Y27)-1)),CostCode,0))) -> 0 | AA27: =Z27*X27 -> 0 | AC27: =AA27*AB27 -> 0 | AD27: =AA27*(1-AB27) -> 0 | AF27: Grout bulkhead | AH27: m3 | AJ27: =NA() ->  | AK27: =IF(ISNA(AJ27),0,INDEX(IF(UPPER(RIGHT(AJ27,1))=Low,UnitCostLow, IF(UPPER(RIGHT(AJ27,1))=High,UnitCostHigh,UnitCostSpecified)),MATCH(UPPER(LEFT(AJ27,LEN(AJ27)-1)),CostCode,0))) -> 0 | AL27: =AK27*AI27 -> 0 | AN27: =AL27*AM27 -> 0 | AO27: =AL27*(1-AM27) -> 0 | AQ27: Grout bulkhead | AS27: m3 | AU27: =NA() ->  | AV27: =IF(ISNA(AU27),0,INDEX(IF(UPPER(RIGHT(AU27,1))=Low,UnitCostLow, IF(UPPER(RIGHT(AU27,1))=High,UnitCostHigh,UnitCostSpecified)),MATCH(UPPER(LEFT(AU27,LEN(AU27)-1)),CostCode,0))) -> 0 | AW27: =AV27*AT27 -> 0 | AY27: =AW27*AX27 -> 0 | AZ27: =AW27*(1-AX27) -> 0
B28: FLOOD MINE | U28: FLOOD MINE | AF28: FLOOD MINE | AQ28: FLOOD MINE
B29: Supply/install pump | C29: UG mine is expected to be flooded in Year 10 and active flooding will take about a year, relocation of pipelines and flooding will occur as part of operations but cost is provided as a conservative approach | D29: each | F29: =NA() ->  | G29: =IF(ISNA(F29),0,INDEX(IF(UPPER(RIGHT(F29,1))=Low,UnitCostLow, IF(UPPER(RIGHT(F29,1))=High,UnitCostHigh,UnitCostSpecified)),MATCH(UPPER(LEFT(F29,LEN(F29)-1)),CostCode,0))) -> 0 | H29: =G29*E29 -> 0 | J29: 0 | K29: =H29*(1-I29) -> 0 | M29: UG mine is expected to be flooded in Year 10 and active flooding will take about a year, relocation of pipelines and flooding will occur as part of operations but cost is provided as a conservative approach | N29: each | Q29: 0 | R29: 0 | S29: =K29-R29 -> 0 | U29: Supply/install pump | V29: UG mine is expected to be flooded in Year 5 and active flooding will take about a year, relocation of pipelines and flooding will occur as part of operations | W29: each | Y29: =NA() ->  | Z29: =IF(ISNA(Y29),0,INDEX(IF(UPPER(RIGHT(Y29,1))=Low,UnitCostLow, IF(UPPER(RIGHT(Y29,1))=High,UnitCostHigh,UnitCostSpecified)),MATCH(UPPER(LEFT(Y29,LEN(Y29)-1)),CostCode,0))) -> 0 | AA29: =Z29*X29 -> 0 | AC29: =AA29*AB29 -> 0 | AD29: =AA29*(1-AB29) -> 0 | AF29: Supply/install pump | AG29: UG mine is expected to be flooded in Year 10 and active flooding will take about a year, relocation of pipelines and flooding will occur as progressive reclamation but cost is provided as a conservative approach | AH29: each | AJ29: =NA() ->  | AK29: =IF(ISNA(AJ29),0,INDEX(IF(UPPER(RIGHT(AJ29,1))=Low,UnitCostLow, IF(UPPER(RIGHT(AJ29,1))=High,UnitCostHigh,UnitCostSpecified)),MATCH(UPPER(LEFT(AJ29,LEN(AJ29)-1)),CostCode,0))) -> 0 | AL29: =AK29*AI29 -> 0 | AN29: =AL29*AM29 -> 0 | AO29: =AL29*(1-AM29) -> 0 | AQ29: Supply/install pump | AR29: Passive flooding of Echo UG in Year 10, complete flooding is expected to occur within a few months. | AS29: each | AU29: =NA() ->  | AV29: =IF(ISNA(AU29),0,INDEX(IF(UPPER(RIGHT(AU29,1))=Low,UnitCostLow, IF(UPPER(RIGHT(AU29,1))=High,UnitCostHigh,UnitCostSpecified)),MATCH(UPPER(LEFT(AU29,LEN(AU29)-1)),CostCode,0))) -> 0 | AW29: =AV29*AT29 -> 0 | AY29: =AW29*AX29 -> 0 | AZ29: =AW29*(1-AX29) -> 0
B30: Relocate Pipeline | C30: Move SWP-Llama UG pipeline discharge to Umwelt UG | D30: m | E30: ='SBB Comp. Est.'!F25 -> 800 | F30: Sabina | G30: ='SBB Comp. Est.'!X25 -> 10.17 | H30: =G30*E30 -> 8136 | J30: =H30*I30 -> 0 | K30: =H30*(1-I30) -> 8136 | M30: Move SWP-Llama UG pipeline discharge to Umwelt UG | N30: m | O30: 800 | P30: Sabina | Q30: 10 | R30: 8000 | S30: 136 | U30: Supply/install piping system | W30: m | Y30: =NA() ->  | Z30: =IF(ISNA(Y30),0,INDEX(IF(UPPER(RIGHT(Y30,1))=Low,UnitCostLow, IF(UPPER(RIGHT(Y30,1))=High,UnitCostHigh,UnitCostSpecified)),MATCH(UPPER(LEFT(Y30,LEN(Y30)-1)),CostCode,0))) -> 0 | AA30: =Z30*X30 -> 0 | AC30: =AA30*AB30 -> 0 | AD30: =AA30*(1-AB30) -> 0 | AF30: Supply/install piping system | AG30: Adjust pipe line to route to Goose UG in Year 10 | AH30: m | AI30: ='SBB Comp. Est.'!F30 -> 4500 | AJ30: Sabina | AK30: ='SBB Comp. Est.'!X30 -> 12.995 | AL30: 58477.5 | AN30: 0 | AO30: 58477.5 | AQ30: Supply/install piping system | AS30: each | AU30: =NA() ->  | AV30: 0 | AW30: =AV30*AT30 -> 0 | AY30: =AW30*AX30 -> 0 | AZ30: =AW30*(1-AX30) -> 0
B31: Operate pumps to flood workings | C31: Accounts for Umwelt Underground Extension | D31: m3 | E31: ='SBB Comp. Est.'!F26 -> 1071225 | F31: Sabina | G31: ='SBB Comp. Est.'!X26 -> 0.1358392439 | H31: =G31*E31 -> 145514.394 | J31: 0 | K31: =H31*(1-I31) -> 145514.394 | N31: m3 | O31: 763134 | P31: Sabina | Q31: 0.1290464584 | R31: 98479.74 | S31: 47034.654 | U31: Operate pumps to flood workings | W31: m3 | Y31: =NA() ->  | Z31: =IF(ISNA(Y31),0,INDEX(IF(UPPER(RIGHT(Y31,1))=Low,UnitCostLow, IF(UPPER(RIGHT(Y31,1))=High,UnitCostHigh,UnitCostSpecified)),MATCH(UPPER(LEFT(Y31,LEN(Y31)-1)),CostCode,0))) -> 0 | AA31: =Z31*X31 -> 0 | AC31: 0 | AD31: 0 | AF31: Operate pumps to flood workings | AH31: m3 | AI31: ='SBB Comp. Est.'!F31 -> 391630 | AJ31: Sabina | AK31: ='SBB Comp. Est.'!X29 -> 0.135708339 | AL31: 53147.45679 | AN31: 0 | AO31: 53147.45679 | AQ31: Operate pumps to flood workings | AS31: m3 | AU31: =NA() ->  | AV31: 0 | AW31: 0 | AY31: 0 | AZ31: 0
B32: Decommission of pipeline | F32: =NA() ->  | G32: =IF(ISNA(F32),0,INDEX(IF(UPPER(RIGHT(F32,1))=Low,UnitCostLow, IF(UPPER(RIGHT(F32,1))=High,UnitCostHigh,UnitCostSpecified)),MATCH(UPPER(LEFT(F32,LEN(F32)-1)),CostCode,0))) -> 0 | H32: =G32*E32 -> 0 | J32: 0 | K32: =H32*(1-I32) -> 0 | Q32: 0 | R32: 0 | S32: 0 | U32: Decommission of pipelines | Y32: =NA() ->  | Z32: =IF(ISNA(Y32),0,INDEX(IF(UPPER(RIGHT(Y32,1))=Low,UnitCostLow, IF(UPPER(RIGHT(Y32,1))=High,UnitCostHigh,UnitCostSpecified)),MATCH(UPPER(LEFT(Y32,LEN(Y32)-1)),CostCode,0))) -> 0 | AA32: =Z32*X32 -> 0 | AC32: =AA32*AB32 -> 0 | AD32: =AA32*(1-AB32) -> 0 | AF32: Decommission SWP to Goose UG pipeline | AH32: m | AI32: ='SBB Comp. Est.'!F32 -> 10800 | AJ32: Sabina | AK32: ='SBB Comp. Est.'!X32 -> 10.17 | AL32: 109836 | AN32: 0 | AO32: 109836 | AQ32: Decommission | AU32: =NA() ->  | AV32: 0 | AW32: 0 | AY32: 0 | AZ32: 0
B33: Other | F33: =NA() ->  | G33: =IF(ISNA(F33),0,INDEX(IF(UPPER(RIGHT(F33,1))=Low,UnitCostLow, IF(UPPER(RIGHT(F33,1))=High,UnitCostHigh,UnitCostSpecified)),MATCH(UPPER(LEFT(F33,LEN(F33)-1)),CostCode,0))) -> 0 | H33: =G33*E33 -> 0 | J33: 0 | K33: =H33*(1-I33) -> 0 | Q33: 0 | R33: 0 | S33: 0 | U33: Other | Y33: =NA() ->  | Z33: =IF(ISNA(Y33),0,INDEX(IF(UPPER(RIGHT(Y33,1))=Low,UnitCostLow, IF(UPPER(RIGHT(Y33,1))=High,UnitCostHigh,UnitCostSpecified)),MATCH(UPPER(LEFT(Y33,LEN(Y33)-1)),CostCode,0))) -> 0 | AA33: =Z33*X33 -> 0 | AC33: 0 | AD33: 0 | AF33: Other | AJ33: =NA() ->  | AK33: =IF(ISNA(AJ33),0,INDEX(IF(UPPER(RIGHT(AJ33,1))=Low,UnitCostLow, IF(UPPER(RIGHT(AJ33,1))=High,UnitCostHigh,UnitCostSpecified)),MATCH(UPPER(LEFT(AJ33,LEN(AJ33)-1)),CostCode,0))) -> 0 | AL33: 0 | AN33: 0 | AO33: 0 | AQ33: Other | AU33: =NA() ->  | AV33: 0 | AW33: =AV33*AT33 -> 0 | AY33: 0 | AZ33: 0
B34: INSTALL GROUNDWATER COLLECTION SYSTEM | U34: INSTALL GROUNDWATER COLLECTION SYSTEM | AF34: INSTALL GROUNDWATER COLLECTION SYSTEM | AQ34: INSTALL GROUNDWATER COLLECTION SYSTEM
B35: Excavate/install sumps | D35: m2 | F35: =NA() ->  | G35: =IF(ISNA(F35),0,INDEX(IF(UPPER(RIGHT(F35,1))=Low,UnitCostLow, IF(UPPER(RIGHT(F35,1))=High,UnitCostHigh,UnitCostSpecified)),MATCH(UPPER(LEFT(F35,LEN(F35)-1)),CostCode,0))) -> 0 | H35: =G35*E35 -> 0 | J35: =H35*I35 -> 0 | K35: =+H35*(1-I35) -> 0 | N35: m2 | Q35: 0 | R35: 0 | S35: =K35-R35 -> 0 | U35: Excavate/install sumps | W35: m2 | Y35: =NA() ->  | Z35: =IF(ISNA(Y35),0,INDEX(IF(UPPER(RIGHT(Y35,1))=Low,UnitCostLow, IF(UPPER(RIGHT(Y35,1))=High,UnitCostHigh,UnitCostSpecified)),MATCH(UPPER(LEFT(Y35,LEN(Y35)-1)),CostCode,0))) -> 0 | AA35: =Z35*X35 -> 0 | AC35: =AA35*AB35 -> 0 | AD35: =+AA35*(1-AB35) -> 0 | AF35: Excavate/install sumps | AH35: m2 | AJ35: =NA() ->  | AK35: =IF(ISNA(AJ35),0,INDEX(IF(UPPER(RIGHT(AJ35,1))=Low,UnitCostLow, IF(UPPER(RIGHT(AJ35,1))=High,UnitCostHigh,UnitCostSpecified)),MATCH(UPPER(LEFT(AJ35,LEN(AJ35)-1)),CostCode,0))) -> 0 | AL35: =AK35*AI35 -> 0 | AN35: =AL35*AM35 -> 0 | AO35: =+AL35*(1-AM35) -> 0 | AQ35: Excavate/install sumps | AS35: m2 | AU35: =NA() ->  | AV35: =IF(ISNA(AU35),0,INDEX(IF(UPPER(RIGHT(AU35,1))=Low,UnitCostLow, IF(UPPER(RIGHT(AU35,1))=High,UnitCostHigh,UnitCostSpecified)),MATCH(UPPER(LEFT(AU35,LEN(AU35)-1)),CostCode,0))) -> 0 | AW35: =AV35*AT35 -> 0 | AY35: =AW35*AX35 -> 0 | AZ35: =+AW35*(1-AX35) -> 0
B36: Install pumping wells | D36: m3 | F36: =NA() ->  | G36: 0 | H36: 0 | J36: 0 | K36: =+H36*(1-I36) -> 0 | N36: m3 | Q36: 0 | R36: 0 | S36: 0 | U36: Install pumping wells | W36: m3 | Y36: =NA() ->  | Z36: 0 | AA36: 0 | AC36: 0 | AD36: 0 | AF36: Install pumping wells | AH36: m3 | AJ36: =NA() ->  | AK36: 0 | AL36: 0 | AN36: 0 | AO36: 0 | AQ36: Install pumping wells | AS36: m3 | AU36: =NA() ->  | AV36: 0 | AW36: 0 | AY36: 0 | AZ36: 0
B37: Install pumps/pipelines/power supply | D37: LS | F37: =NA() ->  | G37: 0 | H37: 0 | J37: 0 | K37: =+H37*(1-I37) -> 0 | N37: LS | Q37: 0 | R37: 0 | S37: 0 | U37: Install pumps/pipelines/power supply | W37: LS | Y37: =NA() ->  | Z37: 0 | AA37: 0 | AC37: 0 | AD37: 0 | AF37: Install pumps/pipelines/power supply | AH37: LS | AJ37: =NA() ->  | AK37: 0 | AL37: 0 | AN37: 0 | AO37: 0 | AQ37: Install pumps/pipelines/power supply | AS37: LS | AU37: =NA() ->  | AV37: 0 | AW37: 0 | AY37: 0 | AZ37: 0
B38: SPECIALIZED ITEMS | U38: SPECIALIZED ITEMS | AF38: SPECIALIZED ITEMS | AQ38: SPECIALIZED ITEMS
B39: Install water quality monitoring pipes | D39: each | F39: =NA() ->  | G39: =IF(ISNA(F39),0,INDEX(IF(UPPER(RIGHT(F39,1))=Low,UnitCostLow, IF(UPPER(RIGHT(F39,1))=High,UnitCostHigh,UnitCostSpecified)),MATCH(UPPER(LEFT(F39,LEN(F39)-1)),CostCode,0))) -> 0 | H39: =G39*E39 -> 0 | J39: =H39*I39 -> 0 | K39: =H39*(1-I39) -> 0 | N39: each | Q39: 0 | R39: 0 | S39: =K39-R39 -> 0 | U39: Install water quality monitoring pipes | W39: each | Y39: =NA() ->  | Z39: =IF(ISNA(Y39),0,INDEX(IF(UPPER(RIGHT(Y39,1))=Low,UnitCostLow, IF(UPPER(RIGHT(Y39,1))=High,UnitCostHigh,UnitCostSpecified)),MATCH(UPPER(LEFT(Y39,LEN(Y39)-1)),CostCode,0))) -> 0 | AA39: =Z39*X39 -> 0 | AC39: =AA39*AB39 -> 0 | AD39: =AA39*(1-AB39) -> 0 | AF39: Install water quality monitoring pipes | AH39: each | AJ39: =NA() ->  | AK39: =IF(ISNA(AJ39),0,INDEX(IF(UPPER(RIGHT(AJ39,1))=Low,UnitCostLow, IF(UPPER(RIGHT(AJ39,1))=High,UnitCostHigh,UnitCostSpecified)),MATCH(UPPER(LEFT(AJ39,LEN(AJ39)-1)),CostCode,0))) -> 0 | AL39: =AK39*AI39 -> 0 | AN39: =AL39*AM39 -> 0 | AO39: =AL39*(1-AM39) -> 0 | AQ39: Install water quality monitoring pipes | AS39: each | AU39: =NA() ->  | AV39: =IF(ISNA(AU39),0,INDEX(IF(UPPER(RIGHT(AU39,1))=Low,UnitCostLow, IF(UPPER(RIGHT(AU39,1))=High,UnitCostHigh,UnitCostSpecified)),MATCH(UPPER(LEFT(AU39,LEN(AU39)-1)),CostCode,0))) -> 0 | AW39: =AV39*AT39 -> 0 | AY39: =AW39*AX39 -> 0 | AZ39: =AW39*(1-AX39) -> 0
B40: Install permanent pumping system | D40: each | F40: =NA() ->  | G40: 0 | H40: =G40*E40 -> 0 | J40: =H40*I40 -> 0 | K40: =H40*(1-I40) -> 0 | N40: each | Q40: 0 | R40: 0 | S40: 0 | U40: Install permanent pumping system | W40: each | Y40: =NA() ->  | Z40: 0 | AA40: =Z40*X40 -> 0 | AC40: =AA40*AB40 -> 0 | AD40: 0 | AF40: Install permanent pumping system | AH40: each | AJ40: =NA() ->  | AK40: 0 | AL40: =AK40*AI40 -> 0 | AN40: =AL40*AM40 -> 0 | AO40: 0 | AQ40: Install permanent pumping system | AS40: each | AU40: =NA() ->  | AV40: 0 | AW40: =AV40*AT40 -> 0 | AY40: =AW40*AX40 -> 0 | AZ40: 0
B41: Assess underground stability | C41: Rock mechanics inspection before closure | D41: each | E41: 1 | F41: Sabina | G41: =Unit_Costs!F179 -> 10170 | H41: =G41*E41 -> 10170 | J41: =H41*I41 -> 0 | K41: =H41*(1-I41) -> 10170 | M41: Rock mechanics inspection before closure | N41: each | O41: 1 | P41: Sabina | Q41: 10000 | R41: 10000 | S41: 170 | U41: Assess underground stability | V41: Rock mechanics inspection before closure | W41: each | X41: 1 | Y41: Sabina | Z41: =Unit_Costs!F179 -> 10170 | AA41: =Z41*X41 -> 10170 | AC41: =AA41*AB41 -> 0 | AD41: 10170 | AF41: Other | AJ41: =NA() ->  | AK41: =IF(ISNA(AJ41),0,INDEX(IF(UPPER(RIGHT(AJ41,1))=Low,UnitCostLow, IF(UPPER(RIGHT(AJ41,1))=High,UnitCostHigh,UnitCostSpecified)),MATCH(UPPER(LEFT(AJ41,LEN(AJ41)-1)),CostCode,0))) -> 0 | AL41: =AK41*AI41 -> 0 | AN41: =AL41*AM41 -> 0 | AO41: 0 | AQ41: Assess underground stability | AR41: Rock mechanics inspection before closure | AS41: each | AT41: 1 | AU41: Sabina | AV41: =Unit_Costs!F179 -> 10170 | AW41: =AV41*AT41 -> 10170 | AY41: =AW41*AX41 -> 0 | AZ41: 10170
G42: Total | H42: =SUM(H5:H41)+0.0001 -> 378099.0397 | J42: =SUM(J5:J41) -> 0 | K42: =SUM(K5:K41) -> 378099.0396 | Q42: Total | R42: 320806.5401 | S42: =H42-R42 -> 57292.4996 | Z42: Total | AA42: =SUM(AA5:AA41)+0.0001 -> 105417.7453 | AC42: =SUM(AC5:AC41) -> 0 | AD42: =SUM(AD5:AD41) -> 105417.7452 | AK42: Total | AL42: =SUM(AL5:AL41)+0.0001 -> 289249.7021 | AN42: =SUM(AN5:AN41) -> 0 | AO42: =SUM(AO5:AO41) -> 289249.702 | AV42: Total | AW42: =SUM(AW5:AW41)+0.0001 -> 97841.0953 | AY42: =SUM(AY5:AY41) -> 0 | AZ42: =SUM(AZ5:AZ41) -> 97841.0952
G43: % of Total | J43: =J42/H42 -> 0 | K43: =K42/H42 -> 0.9999999997 | Q43: % of Total | S43: 0 | Z43: % of Total | AC43: =AC42/AA42 -> 0 | AD43: =AD42/AA42 -> 0.9999999991 | AK43: % of Total | AN43: =AN42/AL42 -> 0 | AO43: =AO42/AL42 -> 0.9999999997 | AV43: % of Total | AY43: =AY42/AW42 -> 0 | AZ43: =AZ42/AW42 -> 0.999999999

Sheet Tailings
A1: 1 | B1: Tailings Impoundment Name: | C1: TSF | G1: Pond # | H1: 1 | M1: TSF | Q1: Pond # | R1: 1
B3: ACTIVITY/MATERIAL | C3: Notes | D3: Units | E3: Quantity | F3: Cost Code | G3: Unit Cost | H3: Cost | I3: % Land | J3: Land Cost | K3: Total Cost | M3: Notes | N3: Units | O3: Quantity | P3: Cost Code | Q3: Unit Cost | R3: Cost | S3: % Land | T3: Land Cost | U3: Total Cost | V3: Difference
B4: CONTROL ACCESS
B5: Fence | D5: m | F5: =NA() ->  | G5: =IF(ISNA(F5),0,INDEX(IF(UPPER(RIGHT(F5,1))=Low,UnitCostLow, IF(UPPER(RIGHT(F5,1))=High,UnitCostHigh,UnitCostSpecified)),MATCH(UPPER(LEFT(F5,LEN(F5)-1)),CostCode,0))) -> 0 | H5: =G5*E5 -> 0 | J5: =H5*I5 -> 0 | K5: =+H5*(1-I5) -> 0 | N5: m | Q5: 0 | R5: 0 | T5: 0 | U5: 0 | V5: =K5-U5 -> 0
B6: Signs | D6: each | F6: =NA() ->  | G6: 0 | H6: 0 | J6: =H6*I6 -> 0 | K6: =+H6*(1-I6) -> 0 | N6: each | Q6: 0 | R6: 0 | T6: 0 | U6: 0 | V6: =K6-U6 -> 0
B7: Berm | D7: m3 | F7: =NA() ->  | G7: 0 | H7: 0 | J7: 0 | K7: 0 | N7: m3 | Q7: 0 | R7: 0 | T7: 0 | U7: 0 | V7: 0
B8: Block roads | D8: m3 | F8: =NA() ->  | G8: 0 | H8: 0 | J8: 0 | K8: 0 | N8: m3 | Q8: 0 | R8: 0 | T8: 0 | U8: 0 | V8: 0
B9: Other | F9: =NA() ->  | G9: 0 | H9: 0 | J9: 0 | K9: 0 | Q9: 0 | R9: 0 | T9: 0 | U9: 0 | V9: 0
B10: STABILIZE EMBANKMENT(S)
B11: Toe buttress, drainage layer | D11: m3 | F11: =NA() ->  | G11: 0 | H11: =G11*E11 -> 0 | J11: 0 | K11: 0 | N11: m3 | Q11: 0 | R11: 0 | T11: 0 | U11: 0 | V11: =K11-U11 -> 0
B12: Toe buttress, bulk fill | D12: m3 | F12: =NA() ->  | G12: 0 | H12: 0 | J12: 0 | K12: 0 | N12: m3 | Q12: 0 | R12: 0 | T12: 0 | U12: 0 | V12: 0
B13: Rip rap | D13: m3 | F13: =NA() ->  | G13: 0 | H13: 0 | J13: 0 | K13: 0 | N13: m3 | Q13: 0 | R13: 0 | T13: 0 | U13: 0 | V13: 0
B14: Vegetate | D14: ha | F14: =NA() ->  | G14: 0 | H14: 0 | J14: 0 | K14: 0 | N14: ha | Q14: 0 | R14: 0 | T14: 0 | U14: 0 | V14: 0
B15: Raise crest | D15: m3 | F15: =NA() ->  | G15: 0 | H15: 0 | J15: 0 | K15: 0 | N15: m3 | Q15: 0 | R15: 0 | T15: 0 | U15: 0 | V15: 0
B16: Flatten slopes | D16: m3 | F16: =NA() ->  | G16: 0 | H16: 0 | J16: 0 | K16: 0 | N16: m3 | Q16: 0 | R16: 0 | T16: 0 | U16: 0 | V16: 0
B17: Other | F17: =NA() ->  | G17: 0 | H17: 0 | J17: 0 | K17: 0 | Q17: 0 | R17: 0 | T17: 0 | U17: 0 | V17: 0
B18: COVER TAILINGS
B19: Grade/shape tailings surface | D19: m3 | F19: =NA() ->  | G19: =IF(ISNA(F19),0,INDEX(IF(UPPER(RIGHT(F19,1))=Low,UnitCostLow, IF(UPPER(RIGHT(F19,1))=High,UnitCostHigh,UnitCostSpecified)),MATCH(UPPER(LEFT(F19,LEN(F19)-1)),CostCode,0))) -> 0 | H19: =G19*E19 -> 0 | J19: =H19*I19 -> 0 | K19: =+H19*(1-I19) -> 0 | N19: m3 | Q19: 0 | R19: 0 | T19: 0 | U19: 0 | V19: =K19-U19 -> 0
B20: Liner bedding | D20: m3 | F20: =NA() ->  | G20: =IF(ISNA(F20),0,INDEX(IF(UPPER(RIGHT(F20,1))=Low,UnitCostLow, IF(UPPER(RIGHT(F20,1))=High,UnitCostHigh,UnitCostSpecified)),MATCH(UPPER(LEFT(F20,LEN(F20)-1)),CostCode,0))) -> 0 | H20: =G20*E20 -> 0 | J20: =H20*I20 -> 0 | K20: =+H20*(1-I20) -> 0 | N20: m3 | Q20: 0 | R20: 0 | T20: 0 | U20: 0 | V20: 0
B21: Subgrade preparation - compact | D21: m2 | F21: =NA() ->  | G21: =IF(ISNA(F21),0,INDEX(IF(UPPER(RIGHT(F21,1))=Low,UnitCostLow, IF(UPPER(RIGHT(F21,1))=High,UnitCostHigh,UnitCostSpecified)),MATCH(UPPER(LEFT(F21,LEN(F21)-1)),CostCode,0))) -> 0 | H21: =G21*E21 -> 0 | J21: =H21*I21 -> 0 | K21: =+H21*(1-I21) -> 0 | N21: m2 | Q21: 0 | R21: 0 | T21: 0 | U21: 0 | V21: 0
B22: Supply geotextile/geosynthetic | D22: m2 | F22: =NA() ->  | G22: =IF(ISNA(F22),0,INDEX(IF(UPPER(RIGHT(F22,1))=Low,UnitCostLow, IF(UPPER(RIGHT(F22,1))=High,UnitCostHigh,UnitCostSpecified)),MATCH(UPPER(LEFT(F22,LEN(F22)-1)),CostCode,0))) -> 0 | H22: 0 | J22: 0 | K22: 0 | N22: m2 | Q22: 0 | R22: 0 | T22: 0 | U22: 0 | V22: 0
B23: Install geotextile/geosynthetic | D23: m2 | F23: =NA() ->  | G23: =IF(ISNA(F23),0,INDEX(IF(UPPER(RIGHT(F23,1))=Low,UnitCostLow, IF(UPPER(RIGHT(F23,1))=High,UnitCostHigh,UnitCostSpecified)),MATCH(UPPER(LEFT(F23,LEN(F23)-1)),CostCode,0))) -> 0 | H23: =G23*E23 -> 0 | J23: =H23*I23 -> 0 | K23: =+H23*(1-I23) -> 0 | N23: m2 | Q23: 0 | R23: 0 | T23: 0 | U23: 0 | V23: 0
B24: Soil cover | D24: m3 | F24: =NA() ->  | G24: =IF(ISNA(F24),0,INDEX(IF(UPPER(RIGHT(F24,1))=Low,UnitCostLow, IF(UPPER(RIGHT(F24,1))=High,UnitCostHigh,UnitCostSpecified)),MATCH(UPPER(LEFT(F24,LEN(F24)-1)),CostCode,0))) -> 0 | H24: 0 | J24: 0 | K24: 0 | N24: m3 | Q24: 0 | R24: 0 | T24: 0 | U24: 0 | V24: 0
B25: Rock cover | C25: Included in the quantity for waste rock pile cover (5m of NPAG). See Rock Pile tab. | D25: m3 | F25: =NA() ->  | G25: =IF(ISNA(F25),0,INDEX(IF(UPPER(RIGHT(F25,1))=Low,UnitCostLow, IF(UPPER(RIGHT(F25,1))=High,UnitCostHigh,UnitCostSpecified)),MATCH(UPPER(LEFT(F25,LEN(F25)-1)),CostCode,0))) -> 0 | H25: =G25*E25 -> 0 | J25: =H25*I25 -> 0 | K25: =+H25*(1-I25) -> 0 | M25: Included in the quantity for waste rock pile cover (5m of NPAG). See Rock Pile tab. | N25: m3 | Q25: 0 | R25: 0 | T25: 0 | U25: 0 | V25: 0
B26: TSF WRSA Pond Sediment Removal | C26: Assumed 0.5 m of sediments in pond basin (66 ha) to be removed and placed in TSF WRSA | D26: m3 | E26: =66*10000*0.5 -> 330000 | F26: SBTH | G26: 3.7629 | H26: =G26*E26 -> 1241757 | J26: =H26*I26 -> 0 | K26: =+H26*(1-I26) -> 1241757 | M26: assumed 0.5 m of sediments in pond basin (26 ha) to be removed and placed in TSF WRSA | N26: m3 | O26: 13000 | P26: SBTH | Q26: 3.7 | R26: 48100 | T26: 0 | U26: 48100 | V26: 1193657
B27: Vegetate | C27: TSF WRSA Pond | D27: ha | E27: 66 | F27: VHFL | G27: 4068 | H27: 268488 | J27: 0 | K27: 268488 | M27: TSF WRSA Pond | N27: ha | O27: 20 | P27: VHFL | Q27: 4000 | R27: 80000 | T27: 0 | U27: 80000 | V27: 188488
B28: Other | F28: =NA() ->  | G28: 0 | H28: =G28*E28 -> 0 | J28: =H28*I28 -> 0 | K28: =+H28*(1-I28) -> 0 | Q28: 0 | R28: 0 | T28: 0 | U28: 0 | V28: 0
B29: BURY PAG ROCK
B30: Relocate PAG rock | D30: m3 | F30: =NA() ->  | G30: 0 | H30: =G30*E30 -> 0 | J30: 0 | K30: 0 | N30: m3 | Q30: 0 | R30: 0 | T30: 0 | U30: 0 | V30: =K30-U30 -> 0
B31: Place cover over PAG rock | D31: m3 | F31: =NA() ->  | G31: 0 | H31: =G31*E31 -> 0 | J31: 0 | K31: 0 | N31: m3 | Q31: 0 | R31: 0 | T31: 0 | U31: 0 | V31: 0
B32: Raise crest of dam | D32: m3 | F32: =NA() ->  | G32: 0 | H32: =G32*E32 -> 0 | J32: 0 | K32: 0 | N32: m3 | Q32: 0 | R32: 0 | T32: 0 | U32: 0 | V32: 0
B33: Other | F33: =NA() ->  | G33: 0 | H33: =G33*E33 -> 0 | J33: 0 | K33: 0 | Q33: 0 | R33: 0 | T33: 0 | U33: 0 | V33: 0
B34: STABILIZE DECANT SYSTEM
B35: Excavate and replace | D35: m3 | F35: =NA() ->  | G35: =IF(ISNA(F35),0,INDEX(IF(UPPER(RIGHT(F35,1))=Low,UnitCostLow, IF(UPPER(RIGHT(F35,1))=High,UnitCostHigh,UnitCostSpecified)),MATCH(UPPER(LEFT(F35,LEN(F35)-1)),CostCode,0))) -> 0 | H35: =G35*E35 -> 0 | J35: =H35*I35 -> 0 | K35: =+H35*(1-I35) -> 0 | N35: m3 | Q35: 0 | R35: 0 | T35: 0 | U35: 0 | V35: =K35-U35 -> 0
B36: Plug/backfill with concrete or clay | D36: m3 | F36: =NA() ->  | G36: =IF(ISNA(F36),0,INDEX(IF(UPPER(RIGHT(F36,1))=Low,UnitCostLow, IF(UPPER(RIGHT(F36,1))=High,UnitCostHigh,UnitCostSpecified)),MATCH(UPPER(LEFT(F36,LEN(F36)-1)),CostCode,0))) -> 0 | H36: =G36*E36 -> 0 | J36: =H36*I36 -> 0 | K36: =+H36*(1-I36) -> 0 | N36: m3 | Q36: 0 | R36: 0 | T36: 0 | U36: 0 | V36: 0
B37: Other | F37: =NA() ->  | G37: =IF(ISNA(F37),0,INDEX(IF(UPPER(RIGHT(F37,1))=Low,UnitCostLow, IF(UPPER(RIGHT(F37,1))=High,UnitCostHigh,UnitCostSpecified)),MATCH(UPPER(LEFT(F37,LEN(F37)-1)),CostCode,0))) -> 0 | H37: =G37*E37 -> 0 | J37: =H37*I37 -> 0 | K37: =+H37*(1-I37) -> 0 | Q37: 0 | R37: 0 | T37: 0 | U37: 0 | V37: 0
B38: REMOVE TAILINGS DISCHARGE
B39: Cyclones | D39: m3 | F39: =NA() ->  | G39: =IF(ISNA(F39),0,INDEX(IF(UPPER(RIGHT(F39,1))=Low,UnitCostLow, IF(UPPER(RIGHT(F39,1))=High,UnitCostHigh,UnitCostSpecified)),MATCH(UPPER(LEFT(F39,LEN(F39)-1)),CostCode,0))) -> 0 | H39: =G39*E39 -> 0 | J39: =H39*I39 -> 0 | K39: =+H39*(1-I39) -> 0 | N39: m3 | Q39: 0 | R39: 0 | T39: 0 | U39: 0 | V39: =K39-U39 -> 0
B40: Pipe | D40: m3 | F40: =NA() ->  | G40: =IF(ISNA(F40),0,INDEX(IF(UPPER(RIGHT(F40,1))=Low,UnitCostLow, IF(UPPER(RIGHT(F40,1))=High,UnitCostHigh,UnitCostSpecified)),MATCH(UPPER(LEFT(F40,LEN(F40)-1)),CostCode,0))) -> 0 | H40: =G40*E40 -> 0 | J40: =H40*I40 -> 0 | K40: =+H40*(1-I40) -> 0 | N40: m3 | Q40: 0 | R40: 0 | T40: 0 | U40: 0 | V40: 0
B41: Remove reclaim barge | D41: allow | F41: =NA() ->  | G41: =IF(ISNA(F41),0,INDEX(IF(UPPER(RIGHT(F41,1))=Low,UnitCostLow, IF(UPPER(RIGHT(F41,1))=High,UnitCostHigh,UnitCostSpecified)),MATCH(UPPER(LEFT(F41,LEN(F41)-1)),CostCode,0))) -> 0 | H41: =G41*E41 -> 0 | J41: =H41*I41 -> 0 | K41: =+H41*(1-I41) -> 0 | N41: allow | Q41: 0 | R41: 0 | T41: 0 | U41: 0 | V41: 0
B42: CONSTRUCT DIVERSION DITCHES
B43: Excavate ditches -soil | D43: m3 | F43: =NA() ->  | G43: =IF(ISNA(F43),0,INDEX(IF(UPPER(RIGHT(F43,1))=Low,UnitCostLow, IF(UPPER(RIGHT(F43,1))=High,UnitCostHigh,UnitCostSpecified)),MATCH(UPPER(LEFT(F43,LEN(F43)-1)),CostCode,0))) -> 0 | H43: =G43*E43 -> 0 | J43: =H43*I43 -> 0 | K43: =+H43*(1-I43) -> 0 | N43: m3 | Q43: 0 | R43: 0 | T43: 0 | U43: 0 | V43: =K43-U43 -> 0
B44: Excavate ditches -rock | D44: m3 | F44: =NA() ->  | G44: =IF(ISNA(F44),0,INDEX(IF(UPPER(RIGHT(F44,1))=Low,UnitCostLow, IF(UPPER(RIGHT(F44,1))=High,UnitCostHigh,UnitCostSpecified)),MATCH(UPPER(LEFT(F44,LEN(F44)-1)),CostCode,0))) -> 0 | H44: =G44*E44 -> 0 | J44: 0 | K44: 0 | N44: m3 | Q44: 0 | R44: 0 | T44: 0 | U44: 0 | V44: 0
B45: Rip rap in channel base (liner) | D45: m2 | F45: =NA() ->  | G45: =IF(ISNA(F45),0,INDEX(IF(UPPER(RIGHT(F45,1))=Low,UnitCostLow, IF(UPPER(RIGHT(F45,1))=High,UnitCostHigh,UnitCostSpecified)),MATCH(UPPER(LEFT(F45,LEN(F45)-1)),CostCode,0))) -> 0 | H45: =G45*E45 -> 0 | J45: 0 | K45: 0 | N45: m2 | Q45: 0 | R45: 0 | T45: 0 | U45: 0 | V45: 0
B46: FLOOD TAILINGS
B47: Doze tailings to final contour | D47: m3 | F47: =NA() ->  | G47: 0 | H47: =G47*E47 -> 0 | J47: 0 | K47: 0 | N47: m3 | Q47: 0 | R47: 0 | T47: 0 | U47: 0 | V47: =K47-U47 -> 0
B48: Raise crest of dam | D48: m3 | F48: =NA() ->  | G48: 0 | H48: =G48*E48 -> 0 | J48: 0 | K48: 0 | N48: m3 | Q48: 0 | R48: 0 | T48: 0 | U48: 0 | V48: 0
B49: Other | F49: =NA() ->  | G49: 0 | H49: =G49*E49 -> 0 | J49: 0 | K49: 0 | Q49: 0 | R49: 0 | T49: 0 | U49: 0 | V49: 0
B50: UPGRADE SPILLWAY
B51: Excavate channel on TSF | C51: Breach west end of dam to existing drainage reporting to Goose Main Pit; 100 m channel. | D51: m3 | E51: ='SBB Comp. Est.'!F82 -> 11000 | F51: Sabina | G51: ='SBB Comp. Est.'!X82 -> 7.4241 | H51: =G51*E51 -> 81665.1 | J51: 0 | K51: 81665.1 | M51: Breach west end of dam to existing drainage reporting to Goose Main Pit; 100 m channel. | N51: m3 | O51: 11000 | P51: Sabina | Q51: 7.3 | R51: 80300 | T51: 0 | U51: 80300 | V51: =K51-U51 -> 1365.1
B52: Excavate channel, soil | D52: m3 | F52: =NA() ->  | G52: 0 | H52: =G52*E52 -> 0 | J52: 0 | K52: 0 | N52: m3 | Q52: 0 | R52: 0 | T52: 0 | U52: 0 | V52: 0
B53: Concrete | D53: m3 | F53: =NA() ->  | G53: 0 | H53: =G53*E53 -> 0 | J53: 0 | K53: 0 | N53: m3 | Q53: 0 | R53: 0 | T53: 0 | U53: 0 | V53: 0
B54: Rip rap | D54: m3 | E54: 7000 | F54: RR1H | G54: =IF(ISNA(F54),0,INDEX(IF(UPPER(RIGHT(F54,1))=Low,UnitCostLow, IF(UPPER(RIGHT(F54,1))=High,UnitCostHigh,UnitCostSpecified)),MATCH(UPPER(LEFT(F54,LEN(F54)-1)),CostCode,0))) -> 18.05175 | H54: =G54*E54 -> 126362.25 | J54: =H54*I54 -> 0 | K54: =+H54*(1-I54) -> 126362.25 | N54: m3 | O54: 7000 | P54: RR1H | Q54: 17.75 | R54: 124250 | T54: 0 | U54: 124250 | V54: 2112.25
B55: Other | C55: Geotextile | D55: m2 | E55: 2860 | F55: GSTL | G55: 3.49848 | H55: =G55*E55 -> 10005.6528 | J55: 0 | K55: 10005.6528 | M55: Geotextile | N55: m2 | O55: 2860 | P55: GSTL | Q55: 3.44 | R55: 9838.4 | T55: 0 | U55: 9838.4 | V55: 167.2528
B56: CONSTRUCT SEEPAGE COLLECTION POND
B57: Excavate seepage collection pond | D57: m3 | F57: =NA() ->  | G57: =IF(ISNA(F57),0,INDEX(IF(UPPER(RIGHT(F57,1))=Low,UnitCostLow, IF(UPPER(RIGHT(F57,1))=High,UnitCostHigh,UnitCostSpecified)),MATCH(UPPER(LEFT(F57,LEN(F57)-1)),CostCode,0))) -> 0 | H57: =G57*E57 -> 0 | J57: =H57*I57 -> 0 | K57: =+H57*(1-I57) -> 0 | N57: m3 | Q57: 0 | R57: 0 | T57: 0 | U57: 0 | V57: =K57-U57 -> 0
B58: Doze & spread excavated material | D58: m3 | F58: =NA() ->  | G58: 0 | H58: 0 | J58: 0 | K58: 0 | N58: m3 | Q58: 0 | R58: 0 | T58: 0 | U58: 0 | V58: 0
B59: Vegetate spread material | D59: ha | F59: =NA() ->  | G59: 0 | H59: 0 | J59: 0 | K59: 0 | N59: ha | Q59: 0 | R59: 0 | T59: 0 | U59: 0 | V59: 0
B60: Bedding layer | D60: m3 | F60: =NA() ->  | G60: 0 | H60: 0 | J60: 0 | K60: 0 | N60: m3 | Q60: 0 | R60: 0 | T60: 0 | U60: 0 | V60: 0
B61: Supply geomembrane | D61: m2 | F61: =NA() ->  | G61: 0 | H61: 0 | J61: 0 | K61: 0 | N61: m2 | Q61: 0 | R61: 0 | T61: 0 | U61: 0 | V61: 0
B62: Install geomembrane | D62: m2 | F62: =NA() ->  | G62: 0 | H62: 0 | J62: 0 | K62: 0 | N62: m2 | Q62: 0 | R62: 0 | T62: 0 | U62: 0 | V62: 0
B63: Erosion protection layer | D63: m3 | F63: =NA() ->  | G63: 0 | H63: 0 | J63: 0 | K63: 0 | N63: m3 | Q63: 0 | R63: 0 | T63: 0 | U63: 0 | V63: 0
B64: Breach seepage diversion berm | D64: m3 | E64: ='SBB Comp. Est.'!F83 -> 285 | F64: Sabina | G64: ='SBB Comp. Est.'!X83 -> 7.4241 | H64: =G64*E64 -> 2115.8685 | J64: =H64*I64 -> 0 | K64: =+H64*(1-I64) -> 2115.8685 | N64: m3 | O64: 285 | P64: Sabina | Q64: 7.3 | R64: 2080.5 | T64: 0 | U64: 2080.5 | V64: 35.3685
B65: INSTALL GROUNDWATER COLLECTION SYSTEM
B66: Excavate/install sumps | D66: m3 | F66: =NA() ->  | G66: =IF(ISNA(F66),0,INDEX(IF(UPPER(RIGHT(F66,1))=Low,UnitCostLow, IF(UPPER(RIGHT(F66,1))=High,UnitCostHigh,UnitCostSpecified)),MATCH(UPPER(LEFT(F66,LEN(F66)-1)),CostCode,0))) -> 0 | H66: =G66*E66 -> 0 | J66: =H66*I66 -> 0 | K66: =+H66*(1-I66) -> 0 | N66: m3 | Q66: 0 | R66: 0 | T66: 0 | U66: 0 | V66: =K66-U66 -> 0
B67: Install pumping wells | D67: m3 | F67: =NA() ->  | G67: 0 | H67: 0 | J67: 0 | K67: 0 | N67: m3 | Q67: 0 | R67: 0 | T67: 0 | U67: 0 | V67: 0
B68: Install pumps/pipelines/power supply | D68: LS | F68: =NA() ->  | G68: 0 | H68: 0 | J68: 0 | K68: 0 | N68: LS | Q68: 0 | R68: 0 | T68: 0 | U68: 0 | V68: 0
B69: SPECIALIZED ITEMS
B70: Install permanent instrumentation, supply & technician | D70: each | F70: =NA() ->  | G70: 0 | H70: =G70*E70 -> 0 | J70: =H70*I70 -> 0 | K70: =+H70*(1-I70) -> 0 | N70: each | Q70: 0 | R70: 0 | T70: 0 | U70: 0 | V70: =K70-U70 -> 0
B71: Install permanent instrumentation, drilling | D71: each | F71: =NA() ->  | G71: =IF(ISNA(F71),0,INDEX(IF(UPPER(RIGHT(F71,1))=Low,UnitCostLow, IF(UPPER(RIGHT(F71,1))=High,UnitCostHigh,UnitCostSpecified)),MATCH(UPPER(LEFT(F71,LEN(F71)-1)),CostCode,0))) -> 0 | H71: =G71*E71 -> 0 | K71: =+H71*(1-I71) -> 0 | N71: each | Q71: 0 | R71: 0 | U71: 0 | V71: 0
B72: TREAT SEEPAGE - see "Water Management" and "Water Treatment"
B73: TREAT SUPERNATANT
B74: Pump water (to pit, U/G) | D74: m3 | F74: =NA() ->  | G74: =IF(ISNA(F74),0,INDEX(IF(UPPER(RIGHT(F74,1))=Low,UnitCostLow, IF(UPPER(RIGHT(F74,1))=High,UnitCostHigh,UnitCostSpecified)),MATCH(UPPER(LEFT(F74,LEN(F74)-1)),CostCode,0))) -> 0 | H74: =G74*E74 -> 0 | J74: =H74*I74 -> 0 | K74: =+H74*(1-I74) -> 0 | N74: m3 | Q74: 0 | R74: 0 | T74: 0 | U74: 0 | V74: =K74-U74 -> 0
B75: Equipment maintenance and parts | D75: allow | F75: =NA() ->  | G75: =IF(ISNA(F75),0,INDEX(IF(UPPER(RIGHT(F75,1))=Low,UnitCostLow, IF(UPPER(RIGHT(F75,1))=High,UnitCostHigh,UnitCostSpecified)),MATCH(UPPER(LEFT(F75,LEN(F75)-1)),CostCode,0))) -> 0 | H75: =G75*E75 -> 0 | J75: =H75*I75 -> 0 | K75: =+H75*(1-I75) -> 0 | N75: allow | Q75: 0 | R75: 0 | T75: 0 | U75: 0 | V75: 0
B76: Supply reagents | D76: tonne | F76: =NA() ->  | G76: =IF(ISNA(F76),0,INDEX(IF(UPPER(RIGHT(F76,1))=Low,UnitCostLow, IF(UPPER(RIGHT(F76,1))=High,UnitCostHigh,UnitCostSpecified)),MATCH(UPPER(LEFT(F76,LEN(F76)-1)),CostCode,0))) -> 0 | H76: =G76*E76 -> 0 | J76: =H76*I76 -> 0 | K76: =+H76*(1-I76) -> 0 | N76: tonne | Q76: 0 | R76: 0 | T76: 0 | U76: 0 | V76: 0
G77: Annual treatment costs | H77: =SUM(H74:H76)+0.0001 -> 0.0001 | Q77: Annual treatment costs | R77: 0.0001 | V77: =K77-U77 -> 0
B78: Number of years of treatment | D78: years | E78: 0 | N78: years | O78: 0
G79: Total treatment costs | H79: =H77*E78 -> 0 | K79: =H79 -> 0 | Q79: Total treatment costs | R79: 0 | U79: 0 | V79: =K79-U79 -> 0
G80: Total | H80: =SUM(H5:H71)+H79+0.0001 -> 1730393.871 | J80: =SUM(J5:J71)+J79 -> 0 | K80: =SUM(K5:K71)+K79 -> 1730393.871 | Q80: Total | R80: 344568.9001 | T80: 0 | U80: 344568.9 | V80: =K80-U80 -> 1385824.971
G81: % of Total | J81: =J80/H80 -> 0 | K81: =K80/H80 -> 0.9999999999 | Q81: % of Total | T81: 0 | U81: 0.9999999997
B82: * for construction of passive treatment system refer to "Water Management"

Sheet Rock Pile
A1: 1 | B1: Rock Pile Name: | C1: Umwelt, Llama, Goose Main, and Echo | M1: Umwelt, Llama, Echo and TSF
B3: ACTIVITY/MATERIAL | C3: Notes | D3: Units | E3: Quantity | F3: Cost Code | G3: Unit Cost | H3: Cost | I3: % Land | J3: Land Cost | K3: Total Cost | M3: Notes | N3: Units | O3: Quantity | P3: Cost Code | Q3: Unit Cost | R3: Cost | S3: % Land | T3: Land Cost | U3: Total Cost | V3: Difference
B4: STABILIZE SLOPES
B5: Flatten slopes with dozer | D5: m3 | F5: =NA() ->  | G5: =IF(ISNA(F5),0,INDEX(IF(UPPER(RIGHT(F5,1))=Low,UnitCostLow, IF(UPPER(RIGHT(F5,1))=High,UnitCostHigh,UnitCostSpecified)),MATCH(UPPER(LEFT(F5,LEN(F5)-1)),CostCode,0))) -> 0 | H5: =G5*E5 -> 0 | J5: =H5*I5 -> 0 | K5: =+H5*(1-I5) -> 0 | N5: m3 | Q5: 0 | R5: 0 | T5: 0 | U5: 0 | V5: =K5-U5 -> 0
B6: Flatten "bubble dump" areas | D6: m3 | F6: =NA() ->  | G6: 0 | H6: 0 | J6: 0 | K6: 0 | N6: m3 | Q6: 0 | R6: 0 | T6: 0 | U6: 0 | V6: =K6-U6 -> 0
B7: Divert runon, ditch mat'l A | D7: m3 | F7: =NA() ->  | G7: 0 | H7: 0 | J7: 0 | K7: 0 | N7: m3 | Q7: 0 | R7: 0 | T7: 0 | U7: 0 | V7: 0
B8: Divert runon, ditch mat'l B | D8: m3 | F8: =NA() ->  | G8: 0 | H8: 0 | J8: 0 | K8: 0 | N8: m3 | Q8: 0 | R8: 0 | T8: 0 | U8: 0 | V8: 0
B9: Toe buttress, drain mat'l | D9: m3 | F9: =NA() ->  | G9: 0 | H9: 0 | J9: 0 | K9: 0 | N9: m3 | Q9: 0 | R9: 0 | T9: 0 | U9: 0 | V9: 0
B10: Toe buttress, fill mat'l A | D10: m3 | F10: =NA() ->  | G10: 0 | H10: 0 | J10: 0 | K10: 0 | N10: m3 | Q10: 0 | R10: 0 | T10: 0 | U10: 0 | V10: 0
B11: Toe buttress, fill mat'l B | D11: m3 | F11: =NA() ->  | G11: 0 | H11: 0 | J11: 0 | K11: 0 | N11: m3 | Q11: 0 | R11: 0 | T11: 0 | U11: 0 | V11: 0
B12: Other | F12: =NA() ->  | G12: 0 | H12: 0 | J12: 0 | K12: 0 | Q12: 0 | R12: 0 | T12: 0 | U12: 0 | V12: 0
B13: COVER ROCK PILE
B14: Subgrade preparation - doze surface | D14: m3 | F14: =NA() ->  | G14: =IF(ISNA(F14),0,INDEX(IF(UPPER(RIGHT(F14,1))=Low,UnitCostLow, IF(UPPER(RIGHT(F14,1))=High,UnitCostHigh,UnitCostSpecified)),MATCH(UPPER(LEFT(F14,LEN(F14)-1)),CostCode,0))) -> 0 | H14: =G14*E14 -> 0 | J14: =H14*I14 -> 0 | K14: =+H14*(1-I14) -> 0 | N14: m3 | Q14: 0 | R14: 0 | T14: 0 | U14: 0 | V14: =K14-U14 -> 0
B15: Soil cover - excavate,haul,spread&compact | D15: m3 | F15: =NA() ->  | G15: 0 | H15: 0 | J15: 0 | K15: 0 | N15: m3 | Q15: 0 | R15: 0 | T15: 0 | U15: 0 | V15: 0
B16: Rock cover - excavate, haul & spread | C16: Cover 3 rock piles: Umwelt, Llama, and Goose Main (on the TSF). Note majority of WRSAs will be covered progressively by direct hauling NPAG during mining and will be completed by Year 6 in Operations. Maximum PAG Exposure occurs in Year 2 for 51.4 ha; 5 m cover convers this area to 2.572 Mm3. | D16: m3 | E16: 2572000 | F16: RBSS | G16: 7.119 | H16: =G16*E16 -> 18310068 | J16: =H16*I16 -> 0 | K16: =+H16*(1-I16) -> 18310068 | M16: Cover 4 rock piles: Umwelt, Llama, Echo and TSF. Note all WRSAs will be covered progressively by direct hauling NPAG during mining and will be completed by Year 6 in Operations. However, Sabina has included an allotment volume sufficient to cover 48 ha of waste rock (5m thick) or 67 ha of tailings (3.5m thick). | N16: m3 | O16: 2400000 | P16: RR3L | Q16: 7 | R16: 16800000 | T16: 0 | U16: 16800000 | V16: 1510068
B17: Excavate downslope drainage channel & chute | D17: m3 | F17: =NA() ->  | G17: 0 | H17: 0 | J17: 0 | K17: 0 | N17: m3 | Q17: 0 | R17: 0 | T17: 0 | U17: 0 | V17: 0
B18: Rip rap drainage channel and chute | D18: m3 | F18: =NA() ->  | G18: 0 | H18: 0 | J18: 0 | K18: 0 | N18: m3 | Q18: 0 | R18: 0 | T18: 0 | U18: 0 | V18: 0
B19: Vegetate | D19: ha | F19: =NA() ->  | G19: 0 | H19: 0 | J19: 0 | K19: 0 | N19: ha | Q19: 0 | R19: 0 | T19: 0 | U19: 0 | V19: 0
B20: Other | F20: =NA() ->  | G20: 0 | H20: 0 | J20: 0 | K20: 0 | Q20: 0 | R20: 0 | T20: 0 | U20: 0 | V20: 0
B21: VERY LOW PERMEABILITY COVER (in addition to above)
B22: Liner subgrade preparation - compact | D22: m2 | F22: =NA() ->  | G22: =IF(ISNA(F22),0,INDEX(IF(UPPER(RIGHT(F22,1))=Low,UnitCostLow, IF(UPPER(RIGHT(F22,1))=High,UnitCostHigh,UnitCostSpecified)),MATCH(UPPER(LEFT(F22,LEN(F22)-1)),CostCode,0))) -> 0 | H22: =G22*E22 -> 0 | J22: =H22*I22 -> 0 | K22: =+H22*(1-I22) -> 0 | N22: m2 | Q22: 0 | R22: 0 | T22: 0 | U22: 0 | V22: =K22-U22 -> 0
B23: Supply geomembrane | D23: m2 | F23: =NA() ->  | G23: =IF(ISNA(F23),0,INDEX(IF(UPPER(RIGHT(F23,1))=Low,UnitCostLow, IF(UPPER(RIGHT(F23,1))=High,UnitCostHigh,UnitCostSpecified)),MATCH(UPPER(LEFT(F23,LEN(F23)-1)),CostCode,0))) -> 0 | H23: =G23*E23 -> 0 | J23: 0 | K23: 0 | N23: m2 | Q23: 0 | R23: 0 | T23: 0 | U23: 0 | V23: 0
B24: Install geomembrane | D24: m2 | F24: =NA() ->  | G24: =IF(ISNA(F24),0,INDEX(IF(UPPER(RIGHT(F24,1))=Low,UnitCostLow, IF(UPPER(RIGHT(F24,1))=High,UnitCostHigh,UnitCostSpecified)),MATCH(UPPER(LEFT(F24,LEN(F24)-1)),CostCode,0))) -> 0 | H24: =G24*E24 -> 0 | J24: 0 | K24: 0 | N24: m2 | Q24: 0 | R24: 0 | T24: 0 | U24: 0 | V24: 0
B25: Protective cover - excavate,haul,spread&compact | D25: m3 | F25: =NA() ->  | G25: 0 | H25: 0 | J25: 0 | K25: 0 | N25: m3 | Q25: 0 | R25: 0 | T25: 0 | U25: 0 | V25: 0
B26: Vegetate | D26: ha | F26: =NA() ->  | G26: 0 | H26: 0 | J26: 0 | K26: 0 | N26: ha | Q26: 0 | R26: 0 | T26: 0 | U26: 0 | V26: 0
B27: Install infiltration/seepage instrumentation | D27: allow | F27: =NA() ->  | G27: 0 | H27: 0 | J27: 0 | K27: 0 | N27: allow | Q27: 0 | R27: 0 | T27: 0 | U27: 0 | V27: 0
B28: CONSTRUCT DIVERSION DITCHES
B29: Excavate ditches -soil | D29: m3 | F29: =NA() ->  | G29: =IF(ISNA(F29),0,INDEX(IF(UPPER(RIGHT(F29,1))=Low,UnitCostLow, IF(UPPER(RIGHT(F29,1))=High,UnitCostHigh,UnitCostSpecified)),MATCH(UPPER(LEFT(F29,LEN(F29)-1)),CostCode,0))) -> 0 | H29: =G29*E29 -> 0 | J29: =H29*I29 -> 0 | K29: =+H29*(1-I29) -> 0 | N29: m3 | Q29: 0 | R29: 0 | T29: 0 | U29: 0 | V29: =K29-U29 -> 0
B30: Excavate ditches -rock | D30: m3 | F30: =NA() ->  | G30: =IF(ISNA(F30),0,INDEX(IF(UPPER(RIGHT(F30,1))=Low,UnitCostLow, IF(UPPER(RIGHT(F30,1))=High,UnitCostHigh,UnitCostSpecified)),MATCH(UPPER(LEFT(F30,LEN(F30)-1)),CostCode,0))) -> 0 | H30: 0 | J30: 0 | K30: 0 | N30: m3 | Q30: 0 | R30: 0 | T30: 0 | U30: 0 | V30: 0
B31: Rip rap in channel base | D31: m3 | F31: =NA() ->  | G31: =IF(ISNA(F31),0,INDEX(IF(UPPER(RIGHT(F31,1))=Low,UnitCostLow, IF(UPPER(RIGHT(F31,1))=High,UnitCostHigh,UnitCostSpecified)),MATCH(UPPER(LEFT(F31,LEN(F31)-1)),CostCode,0))) -> 0 | H31: 0 | J31: 0 | K31: 0 | N31: m3 | Q31: 0 | R31: 0 | T31: 0 | U31: 0 | V31: 0
B32: CONSTRUCT SEEPAGE COLLECTION POND
B33: Excavate seepage collection pond | C33: See Water Management tab for berm breaching | D33: m3 | F33: =NA() ->  | G33: 0 | H33: 0 | J33: =H33*I33 -> 0 | K33: =+H33*(1-I33) -> 0 | M33: See Water Management tab for berm breaching | N33: m3 | Q33: 0 | R33: 0 | T33: 0 | U33: 0 | V33: =K33-U33 -> 0
B34: Doze & spread excavated material | D34: m3 | F34: =NA() ->  | G34: 0 | H34: 0 | J34: 0 | K34: 0 | N34: m3 | Q34: 0 | R34: 0 | T34: 0 | U34: 0 | V34: 0
B35: Vegetate spread material | D35: ha | F35: =NA() ->  | G35: 0 | H35: 0 | J35: 0 | K35: 0 | N35: ha | Q35: 0 | R35: 0 | T35: 0 | U35: 0 | V35: 0
B36: Bedding layer | D36: m3 | F36: =NA() ->  | G36: 0 | H36: 0 | J36: 0 | K36: 0 | N36: m3 | Q36: 0 | R36: 0 | T36: 0 | U36: 0 | V36: 0
B37: Supply geomembrane | D37: m2 | F37: =NA() ->  | G37: 0 | H37: 0 | J37: 0 | K37: 0 | N37: m2 | Q37: 0 | R37: 0 | T37: 0 | U37: 0 | V37: 0
B38: Install geomembrane | D38: m2 | F38: =NA() ->  | G38: 0 | H38: 0 | J38: 0 | K38: 0 | N38: m2 | Q38: 0 | R38: 0 | T38: 0 | U38: 0 | V38: 0
B39: Erosion protection layer | D39: m3 | F39: =NA() ->  | G39: 0 | H39: 0 | J39: 0 | K39: 0 | N39: m3 | Q39: 0 | R39: 0 | T39: 0 | U39: 0 | V39: 0
B40: INSTALL GROUNDWATER COLLECTION SYSTEM
B41: Excavate/install sumps | D41: m3 | F41: =NA() ->  | G41: =IF(ISNA(F41),0,INDEX(IF(UPPER(RIGHT(F41,1))=Low,UnitCostLow, IF(UPPER(RIGHT(F41,1))=High,UnitCostHigh,UnitCostSpecified)),MATCH(UPPER(LEFT(F41,LEN(F41)-1)),CostCode,0))) -> 0 | H41: =G41*E41 -> 0 | J41: =H41*I41 -> 0 | K41: =+H41*(1-I41) -> 0 | N41: m3 | Q41: 0 | R41: 0 | T41: 0 | U41: 0 | V41: =K41-U41 -> 0
B42: Install pumping wells | D42: m3 | F42: =NA() ->  | G42: 0 | H42: 0 | J42: 0 | K42: 0 | N42: m3 | Q42: 0 | R42: 0 | T42: 0 | U42: 0 | V42: 0
B43: Install pumps/pipelines/power supply | D43: allow | F43: =NA() ->  | G43: 0 | H43: 0 | J43: 0 | K43: 0 | N43: allow | Q43: 0 | R43: 0 | T43: 0 | U43: 0 | V43: 0
B44: RELOCATE DUMPS
B45: Load, haul, dump or doze | D45: m3 | F45: =NA() ->  | G45: =IF(ISNA(F45),0,INDEX(IF(UPPER(RIGHT(F45,1))=Low,UnitCostLow, IF(UPPER(RIGHT(F45,1))=High,UnitCostHigh,UnitCostSpecified)),MATCH(UPPER(LEFT(F45,LEN(F45)-1)),CostCode,0))) -> 0 | H45: =G45*E45 -> 0 | J45: =H45*I45 -> 0 | K45: =+H45*(1-I45) -> 0 | N45: m3 | Q45: 0 | R45: 0 | T45: 0 | U45: 0 | V45: =K45-U45 -> 0
B46: Add lime | D46: tonne | F46: =NA() ->  | G46: =IF(ISNA(F46),0,INDEX(IF(UPPER(RIGHT(F46,1))=Low,UnitCostLow, IF(UPPER(RIGHT(F46,1))=High,UnitCostHigh,UnitCostSpecified)),MATCH(UPPER(LEFT(F46,LEN(F46)-1)),CostCode,0))) -> 0 | H46: =G46*E46 -> 0 | J46: =H46*I46 -> 0 | K46: =+H46*(1-I46) -> 0 | N46: tonne | Q46: 0 | R46: 0 | T46: 0 | U46: 0 | V46: 0
B47: Contour reclaimed area | D47: ha | F47: =NA() ->  | G47: =IF(ISNA(F47),0,INDEX(IF(UPPER(RIGHT(F47,1))=Low,UnitCostLow, IF(UPPER(RIGHT(F47,1))=High,UnitCostHigh,UnitCostSpecified)),MATCH(UPPER(LEFT(F47,LEN(F47)-1)),CostCode,0))) -> 0 | H47: =G47*E47 -> 0 | J47: =H47*I47 -> 0 | K47: =+H47*(1-I47) -> 0 | N47: ha | Q47: 0 | R47: 0 | T47: 0 | U47: 0 | V47: 0
B48: Other | F48: =NA() ->  | G48: =IF(ISNA(F48),0,INDEX(IF(UPPER(RIGHT(F48,1))=Low,UnitCostLow, IF(UPPER(RIGHT(F48,1))=High,UnitCostHigh,UnitCostSpecified)),MATCH(UPPER(LEFT(F48,LEN(F48)-1)),CostCode,0))) -> 0 | H48: =G48*E48 -> 0 | J48: =H48*I48 -> 0 | K48: =+H48*(1-I48) -> 0 | Q48: 0 | R48: 0 | T48: 0 | U48: 0 | V48: 0
B49: SPECIALIZED ITEMS
B50: Install ground temperature monitoring cables | C50: Will be installed during Operations to meet operational monitoring commitments | D50: each | F50: =NA() ->  | G50: =IF(ISNA(F50),0,INDEX(IF(UPPER(RIGHT(F50,1))=Low,UnitCostLow, IF(UPPER(RIGHT(F50,1))=High,UnitCostHigh,UnitCostSpecified)),MATCH(UPPER(LEFT(F50,LEN(F50)-1)),CostCode,0))) -> 0 | H50: =G50*E50 -> 0 | J50: =H50*I50 -> 0 | K50: =+H50*(1-I50) -> 0 | M50: Will be installed during Operations to meet operational monitoring commitments | N50: each | Q50: 0 | R50: 0 | T50: 0 | U50: 0 | V50: =K50-U50 -> 0
B51: Install permanent instrumentation, drilling | D51: each | F51: =NA() ->  | G51: =IF(ISNA(F51),0,INDEX(IF(UPPER(RIGHT(F51,1))=Low,UnitCostLow, IF(UPPER(RIGHT(F51,1))=High,UnitCostHigh,UnitCostSpecified)),MATCH(UPPER(LEFT(F51,LEN(F51)-1)),CostCode,0))) -> 0 | H51: =G51*E51 -> 0 | J51: =H51*I51 -> 0 | K51: =+H51*(1-I51) -> 0 | N51: each | Q51: 0 | R51: 0 | T51: 0 | U51: 0 | V51: 0
B52: TREAT ROCK PILE SEEPAGE - see "Water Management"
B53: HEAP LEACH SEEPAGE TREATMENT - Cyanide Detox
B54: Cyanide destruction water treatment pumping | D54: m3 | F54: =NA() ->  | G54: =IF(ISNA(F54),0,INDEX(IF(UPPER(RIGHT(F54,1))=Low,UnitCostLow, IF(UPPER(RIGHT(F54,1))=High,UnitCostHigh,UnitCostSpecified)),MATCH(UPPER(LEFT(F54,LEN(F54)-1)),CostCode,0))) -> 0 | H54: =G54*E54 -> 0 | J54: =H54*I54 -> 0 | K54: =+H54*(1-I54) -> 0 | N54: m3 | Q54: 0 | R54: 0 | T54: 0 | U54: 0 | V54: =K54-U54 -> 0
B55: Reagents | D55: tonnes | F55: =NA() ->  | G55: =IF(ISNA(F55),0,INDEX(IF(UPPER(RIGHT(F55,1))=Low,UnitCostLow, IF(UPPER(RIGHT(F55,1))=High,UnitCostHigh,UnitCostSpecified)),MATCH(UPPER(LEFT(F55,LEN(F55)-1)),CostCode,0))) -> 0 | H55: =G55*E55 -> 0 | J55: =H55*I55 -> 0 | K55: =+H55*(1-I55) -> 0 | N55: tonnes | Q55: 0 | R55: 0 | T55: 0 | U55: 0 | V55: 0
B56: Electrician/mechanic to maintain treatment plant | D56: allow | F56: =NA() ->  | G56: =IF(ISNA(F56),0,INDEX(IF(UPPER(RIGHT(F56,1))=Low,UnitCostLow, IF(UPPER(RIGHT(F56,1))=High,UnitCostHigh,UnitCostSpecified)),MATCH(UPPER(LEFT(F56,LEN(F56)-1)),CostCode,0))) -> 0 | H56: =G56*E56 -> 0 | J56: =H56*I56 -> 0 | K56: =+H56*(1-I56) -> 0 | N56: allow | Q56: 0 | R56: 0 | T56: 0 | U56: 0 | V56: 0
B57: Equipment maintenance and parts | D57: allow | F57: =NA() ->  | G57: =IF(ISNA(F57),0,INDEX(IF(UPPER(RIGHT(F57,1))=Low,UnitCostLow, IF(UPPER(RIGHT(F57,1))=High,UnitCostHigh,UnitCostSpecified)),MATCH(UPPER(LEFT(F57,LEN(F57)-1)),CostCode,0))) -> 0 | H57: =G57*E57 -> 0 | J57: =H57*I57 -> 0 | K57: =+H57*(1-I57) -> 0 | N57: allow | Q57: 0 | R57: 0 | T57: 0 | U57: 0 | V57: 0
G58: Annual treatment costs | H58: =SUM(H54:H57)+0.0001 -> 0.0001 | Q58: Annual treatment costs | R58: 0.0001 | V58: =K58-U58 -> 0
B59: Number of years of treatment | D59: years | E59: 0 | N59: years | O59: 0
G60: Total treatment costs | H60: =H58*E59 -> 0 | K60: =H60 -> 0 | Q60: Total treatment costs | R60: 0 | U60: 0 | V60: =K60-U60 -> 0
B61: HEAP LEACH SEEPAGE TREATMENT - ARD/ML
B62: Upgrade/modify pumping system - report to WTP | D62: allow | F62: =NA() ->  | G62: =IF(ISNA(F62),0,INDEX(IF(UPPER(RIGHT(F62,1))=Low,UnitCostLow, IF(UPPER(RIGHT(F62,1))=High,UnitCostHigh,UnitCostSpecified)),MATCH(UPPER(LEFT(F62,LEN(F62)-1)),CostCode,0))) -> 0 | H62: =G62*E62 -> 0 | K62: =H62 -> 0 | N62: allow | Q62: 0 | R62: 0 | U62: 0 | V62: =K62-U62 -> 0
G63: Total | H63: =SUM(H5:H51)+H60+H62+0.0001 -> 18310068 | J63: =SUM(J5:J51)+J60+J62 -> 0 | K63: =SUM(K5:K51)+K60+K62 -> 18310068 | Q63: Total | R63: 16800000 | T63: 0 | U63: 16800000 | V63: =K63-U63 -> 1510068
G64: % of Total | J64: =J63/H63 -> 0 | K64: =K63/H63 -> 1 | Q64: % of Total | T64: 0 | U64: 1
B66: * For construction of passive treatment system refer to "Water Management".

Sheet Bldgs & Equip
A1: 1 | B1: Building / Equip Name: | G1: Bldg / Equip #: | H1: 1 | Q1: Bldg / Equip #: | R1: 1
B3: ACTIVITY/MATERIAL | C3: Notes | D3: Units | E3: Quantity | F3: Cost Code | G3: Unit Cost | H3: Cost | I3: % Land | J3: Land Cost | K3: Total Cost | M3: Notes | N3: Units | O3: Quantity | P3: Cost Code | Q3: Unit Cost | R3: Cost | S3: % Land | T3: Land Cost | U3: Total Cost | V3: Difference
B4: DISPOSE MOBILE EQUIPMENT
B5: Decontaminate and ship off-site | D5: allow | F5: =NA() ->  | G5: =IF(ISNA(F5),0,INDEX(IF(UPPER(RIGHT(F5,1))=Low,UnitCostLow, IF(UPPER(RIGHT(F5,1))=High,UnitCostHigh,UnitCostSpecified)),MATCH(UPPER(LEFT(F5,LEN(F5)-1)),CostCode,0))) -> 0 | H5: =G5*E5 -> 0 | J5: =H5*I5 -> 0 | K5: =+H5*(1-I5) -> 0 | N5: allow | Q5: 0 | R5: 0 | T5: 0 | U5: 0 | V5: =H5-R5 -> 0
B6: Decontaminate and dispose on-site | C6: Drive or transport to landfill; drain fluids; NPAG cover cost below | D6: allow | E6: 1 | F6: Sabina | G6: =Unit_Costs!F180 -> 20340 | H6: =G6*E6 -> 20340 | J6: =H6*I6 -> 0 | K6: =+H6*(1-I6) -> 20340 | M6: Drive or transport to landfill; drain fluids; NPAG cover cost below | N6: allow | O6: 1 | P6: Sabina | Q6: 20000 | R6: 20000 | T6: 0 | U6: 20000 | V6: =H6-R6 -> 340
B7: Other | F7: =NA() ->  | G7: =IF(ISNA(F7),0,INDEX(IF(UPPER(RIGHT(F7,1))=Low,UnitCostLow, IF(UPPER(RIGHT(F7,1))=High,UnitCostHigh,UnitCostSpecified)),MATCH(UPPER(LEFT(F7,LEN(F7)-1)),CostCode,0))) -> 0 | H7: =G7*E7 -> 0 | J7: 0 | K7: 0 | Q7: 0 | R7: 0 | T7: 0 | U7: 0 | V7: =H7-R7 -> 0
B8: REMOVE BUILDINGS - see note below
B9: Accommodation Complex | C9: Goose Admin: Kitchen/camp. Landfill building materials and pad. | D9: m2 | E9: ='SBB Comp. Est.'!F96 -> 1980 | F9: BRS1L | G9: =IF(ISNA(F9),0,INDEX(IF(UPPER(RIGHT(F9,1))=Low,UnitCostLow, IF(UPPER(RIGHT(F9,1))=High,UnitCostHigh,UnitCostSpecified)),MATCH(UPPER(LEFT(F9,LEN(F9)-1)),CostCode,0))) -> 45.765 | H9: =G9*E9 -> 90614.7 | J9: 0 | K9: 90614.7 | M9: Goose Admin: Kitchen/camp. Landfill building materials and pad | N9: m2 | O9: 1980 | P9: BRS1L | Q9: 45 | R9: 89100 | T9: 0 | U9: 89100 | V9: =H9-R9 -> 1514.7
B10: Process Facilities | D10: m2 | E10: ='SBB Comp. Est.'!F89 -> 6464 | F10: BRS1H | G10: 66.105 | H10: 427302.72 | J10: 0 | K10: 427302.72 | N10: m2 | O10: 6464 | P10: BRS1H | Q10: 65 | R10: 420160 | T10: 0 | U10: 420160 | V10: 7142.72
B11: Crusher | D11: m2 | E11: ='SBB Comp. Est.'!F90 -> 1630 | F11: BRS1H | G11: 66.105 | H11: =G11*E11 -> 107751.15 | J11: =H11*I11 -> 0 | K11: =+H11*(1-I11) -> 107751.15 | N11: m2 | O11: 1630 | P11: BRS1H | Q11: 65 | R11: 105950 | T11: 0 | U11: 105950 | V11: 1801.15
B12: Power plant | D12: m2 | E12: ='SBB Comp. Est.'!F91 -> 2040 | F12: BRS1H | G12: 66.105 | H12: 134854.2 | J12: 0 | K12: 134854.2 | N12: m2 | O12: 2040 | P12: BRS1H | Q12: 65 | R12: 132600 | T12: 0 | U12: 132600 | V12: 2254.2
B13: Emergency power plant | D13: m2 | E13: ='SBB Comp. Est.'!F92 -> 300 | F13: BRS1H | G13: 66.105 | H13: 19831.5 | J13: 0 | K13: 19831.5 | N13: m2 | O13: 300 | P13: BRS1H | Q13: 65 | R13: 19500 | T13: 0 | U13: 19500 | V13: 331.5
B14: Truck Shop/Office | C14: Goose Admin building | D14: m2 | E14: ='SBB Comp. Est.'!F95 -> 2349.45 | F14: BRS1L | G14: 45.765 | H14: 107522.5792 | J14: 0 | K14: 107522.5792 | M14: Goose Admin building | N14: m2 | O14: 2349.45 | P14: BRS1L | Q14: 45 | R14: 105725.25 | T14: 0 | U14: 105725.25 | V14: 1797.32925
B15: Cold storage | C15: Goose Admin building | D15: m2 | E15: ='SBB Comp. Est.'!F97 -> 840 | F15: BRS1L | G15: 45.765 | H15: 38442.6 | J15: 0 | K15: 38442.6 | M15: Goose Admin building | N15: m2 | O15: 840 | P15: BRS1L | Q15: 45 | R15: 37800 | T15: 0 | U15: 37800 | V15: 642.6
B16: Storage Facilities | C16: Waste oil storage Goose Site | D16: Lot | E16: ='SBB Comp. Est.'!F98 -> 1 | F16: Sabina | G16: ='SBB Comp. Est.'!X98 -> 44070 | H16: =G16*E16 -> 44070 | J16: =H16*I16 -> 0 | K16: =+H16*(1-I16) -> 44070 | M16: Waste oil storage Goose Site | N16: Lot | O16: 1 | P16: Sabina | Q16: 43333.33333 | R16: 43333.33333 | T16: 0 | U16: 43333.33333 | V16: 736.6666667
B17: Storage Facility | C17: Goose freight storage | D17: Lot | E17: ='SBB Comp. Est.'!F99 -> 1 | F17: Sabina | G17: ='SBB Comp. Est.'!X99 -> 19577.25 | H17: 19577.25 | J17: 0 | K17: 19577.25 | M17: Goose freight storage | N17: Lot | O17: 1 | P17: Sabina | Q17: 19250 | R17: 19250 | T17: 0 | U17: 19250 | V17: 327.25
B18: Water and Wastewater Treatment Facilities | C18: Water treatment plant Goose Building | D18: m2 | E18: 647 | F18: BRS1L | G18: =IF(ISNA(F18),0,INDEX(IF(UPPER(RIGHT(F18,1))=Low,UnitCostLow, IF(UPPER(RIGHT(F18,1))=High,UnitCostHigh,UnitCostSpecified)),MATCH(UPPER(LEFT(F18,LEN(F18)-1)),CostCode,0))) -> 45.765 | H18: 29609.955 | J18: 0 | K18: 29609.955 | M18: Water treatment plant Goose Building | N18: m2 | O18: 647 | P18: BRS1L | Q18: 45 | R18: 29115 | T18: 0 | U18: 29115 | V18: 494.955
B19: Sewage Treatment Plant | C19: Remove hazardous materials and dispose of at licensed facility, landfill building materials | D19: Lot | E19: ='SBB Comp. Est.'!F101 -> 1 | F19: Sabina | G19: ='SBB Comp. Est.'!X101 -> 11746.35 | H19: 11746.35 | J19: 0 | K19: 11746.35 | M19: Remove hazardous materials and dispose of at licensed facility, landfill building materials | N19: Lot | O19: 1 | P19: Sabina | Q19: 11550 | R19: 11550 | T19: 0 | U19: 11550 | V19: 196.35
B20: Fuel Tanks | C20: Fuel storage and distribution Goose facility | D20: Lot | E20: ='SBB Comp. Est.'!F93 -> 1 | F20: Sabina | G20: ='SBB Comp. Est.'!X93 -> 156618 | H20: =G20*E20 -> 156618 | J20: =H20*I20 -> 0 | K20: =+H20*(1-I20) -> 156618 | M20: Fuel storage and distribution Goose facility | N20: Lot | O20: 1 | P20: Sabina | Q20: 154000 | R20: 154000 | T20: 0 | U20: 154000 | V20: 2618
B21: Offices, Repair, Lab, Warehouse | C21: MLA infrastructure Port Office | D21: Units | E21: ='SBB Comp. Est.'!F103 -> 5 | F21: Sabina | G21: ='SBB Comp. Est.'!X103 -> 2379.78 | H21: 11898.9 | J21: =H21*I21 -> 0 | K21: =+H21*(1-I21) -> 11898.9 | M21: MLA infrastructure Port Office | N21: Units | O21: 5 | P21: Sabina | Q21: 2340 | R21: 11700 | T21: 0 | U21: 11700 | V21: 198.9
B22: Pipeline | C22: MLA Infrastructure | D22: m | E22: ='SBB Comp. Est.'!F104 -> 10000 | F22: Sabina | G22: ='SBB Comp. Est.'!X104 -> 10.17 | H22: 101700 | J22: =H22*I22 -> 0 | K22: =+H22*(1-I22) -> 101700 | M22: MLA Infrastructure | N22: m | O22: 10000 | P22: Sabina | Q22: 10 | R22: 100000 | T22: 0 | U22: 100000 | V22: 1700
B23: Warehouse, Shops and Others | C23: MLA Infrastructure. Includes: Incinerator and waste management, Warehouses, Genset, Maintenance shop, water storage, WTP/STP, camp/office, freight storage area, waste area, MLA Fuel Storage Area. Cost includes grade and contour pads, disposal at designated areas, remove hazard material when applicable. Additional Cost included for MLA Fuel Transfer Area tank and liner removal. | D23: LS | E23: 1 | F23: Sabina | G23: ='SBB Comp. Est.'!X105+'SBB Comp. Est.'!X106+'SBB Comp. Est.'!X107+'SBB Comp. Est.'!X108+'SBB Comp. Est.'!X109+'SBB Comp. Est.'!X110+'SBB Comp. Est.'!X111+'SBB Comp. Est.'!X112+'SBB Comp. Est.'!X113+'SBB Comp. Est.'!X114 -> 330636.87 | H23: 330636.87 | J23: 0 | K23: 330636.87 | M23: MLA Infrastructure. Includes: Incinerator and waste management, Warehouses, Genset, Maintenance shop, water storage, WTP/STP, camp/office, freight storage area, waste area, fuel storage. Cost includes grade and contour pads, disposal at designated areas, remove hazard material when applicable. | N23: LS | O23: 1 | P23: Sabina | Q23: 308683.3333 | R23: 308683.3333 | T23: 0 | U23: 308683.3333 | V23: 21953.53667
B24: Freshwater intakes | C24: pipes will be capped at substrate and left in place. | D24: m2 | F24: =NA() ->  | G24: =IF(ISNA(F24),0,INDEX(IF(UPPER(RIGHT(F24,1))=Low,UnitCostLow, IF(UPPER(RIGHT(F24,1))=High,UnitCostHigh,UnitCostSpecified)),MATCH(UPPER(LEFT(F24,LEN(F24)-1)),CostCode,0))) -> 0 | H24: 0 | J24: 0 | K24: 0 | M24: pipes will be capped at substrate and left in place. | N24: m2 | Q24: 0 | R24: 0 | T24: 0 | U24: 0 | V24: 0
B25: Reclaim pumps | D25: m2 | F25: =NA() ->  | G25: 0 | H25: 0 | J25: 0 | K25: 0 | N25: m2 | Q25: 0 | R25: 0 | T25: 0 | U25: 0 | V25: 0
B26: Outfall & Diffuser | D26: m2 | F26: =NA() ->  | G26: 0 | H26: 0 | J26: 0 | K26: 0 | N26: m2 | Q26: 0 | R26: 0 | T26: 0 | U26: 0 | V26: 0
B27: Airstrip lighting, navigation, electrician | C27: Accounts for Goose 6,000-ft airstrip | D27: manhours | E27: 24 | F27: elecH | G27: =IF(ISNA(F27),0,INDEX(IF(UPPER(RIGHT(F27,1))=Low,UnitCostLow, IF(UPPER(RIGHT(F27,1))=High,UnitCostHigh,UnitCostSpecified)),MATCH(UPPER(LEFT(F27,LEN(F27)-1)),CostCode,0))) -> 96.615 | H27: 2318.76 | J27: 0 | K27: 2318.76 | N27: manhours | O27: 20 | P27: elecH | Q27: 95 | R27: 1900 | T27: 0 | U27: 1900 | V27: 418.76
B28: Airstrip lighting, navigation, mechanical | C28: Accounts for Goose 6,000-ft airstrip | D28: manhours | E28: 24 | F28: mechH | G28: =IF(ISNA(F28),0,INDEX(IF(UPPER(RIGHT(F28,1))=Low,UnitCostLow, IF(UPPER(RIGHT(F28,1))=High,UnitCostHigh,UnitCostSpecified)),MATCH(UPPER(LEFT(F28,LEN(F28)-1)),CostCode,0))) -> 74.08845 | H28: 1778.1228 | J28: 0 | K28: 1778.1228 | N28: manhours | O28: 20 | P28: mechH | Q28: 72.85 | R28: 1457 | T28: 0 | U28: 1457 | V28: 321.1228
B29: Break foundation slabs | D29: m2 | F29: =NA() ->  | G29: =IF(ISNA(F29),0,INDEX(IF(UPPER(RIGHT(F29,1))=Low,UnitCostLow, IF(UPPER(RIGHT(F29,1))=High,UnitCostHigh,UnitCostSpecified)),MATCH(UPPER(LEFT(F29,LEN(F29)-1)),CostCode,0))) -> 0 | H29: =G29*E29 -> 0 | J29: =H29*I29 -> 0 | K29: =+H29*(1-I29) -> 0 | N29: m2 | Q29: 0 | R29: 0 | T29: 0 | U29: 0 | V29: 0
B30: Consolidate & dump boneyard debris | D30: m3 | F30: =NA() ->  | G30: 0 | H30: 0 | J30: 0 | K30: 0 | N30: m3 | Q30: 0 | R30: 0 | T30: 0 | U30: 0 | V30: 0
B31: Other | C31: Remove Buildings - WIR Service/Emergency Camps, total of 3 1-ha area for 3 camps; assume all structures will be sprung structures. | D31: LS | E31: 3 | F31: Sabina | G31: =Unit_Costs!F181 -> 75000 | H31: 225000 | J31: 0 | K31: 225000 | Q31: 0 | R31: 0 | T31: 0 | U31: 0 | V31: 225000
B32: LANDFILL FOR DEMOLITION WASTE
B33: Place rock cover | D33: m3 | E33: ='SBB Comp. Est.'!F59 -> 25000 | F33: RR3L | G33: 7.119 | H33: =G33*E33 -> 177975 | J33: =H33*I33 -> 0 | K33: =+H33*(1-I33) -> 177975 | N33: m3 | O33: 25000 | P33: RR3L | Q33: 7 | R33: 175000 | T33: 0 | U33: 175000 | V33: =H33-R33 -> 2975
B34: Place soil cover | D34: m3 | F34: =NA() ->  | G34: =IF(ISNA(F34),0,INDEX(IF(UPPER(RIGHT(F34,1))=Low,UnitCostLow, IF(UPPER(RIGHT(F34,1))=High,UnitCostHigh,UnitCostSpecified)),MATCH(UPPER(LEFT(F34,LEN(F34)-1)),CostCode,0))) -> 0 | H34: =G34*E34 -> 0 | J34: 0 | K34: =+H34*(1-I34) -> 0 | N34: m3 | Q34: 0 | R34: 0 | T34: 0 | U34: 0 | V34: =H34-R34 -> 0
B35: Vegetate | D35: ha | F35: =NA() ->  | G35: =IF(ISNA(F35),0,INDEX(IF(UPPER(RIGHT(F35,1))=Low,UnitCostLow, IF(UPPER(RIGHT(F35,1))=High,UnitCostHigh,UnitCostSpecified)),MATCH(UPPER(LEFT(F35,LEN(F35)-1)),CostCode,0))) -> 0 | H35: =G35*E35 -> 0 | J35: 0 | K35: 0 | N35: ha | Q35: 0 | R35: 0 | T35: 0 | U35: 0 | V35: =H35-R35 -> 0
B36: GRADE AND CONTOUR PADS
B37: Accommodation Complex | C37: Goose Admin: Kitchen/camp. no concrete foundation | D37: ha | E37: =ROUNDUP(E9/10000,1) -> 0.2 | F37: SCFYL | G37: =IF(ISNA(F37),0,INDEX(IF(UPPER(RIGHT(F37,1))=Low,UnitCostLow, IF(UPPER(RIGHT(F37,1))=High,UnitCostHigh,UnitCostSpecified)),MATCH(UPPER(LEFT(F37,LEN(F37)-1)),CostCode,0))) -> 4373.1 | H37: =G37*E37 -> 874.62 | J37: 0 | K37: 874.62 | M37: Goose Admin: Kitchen/camp. no concrete foundation | N37: ha | O37: 0.2 | P37: SCFYL | Q37: 4300 | R37: 860 | T37: 0 | U37: 860 | V37: =H37-R37 -> 14.62
B38: Process Facilities | C38: concrete foundation demolished to ground level | D38: m2 | E38: =E10 -> 6464 | F38: BRCS | G38: 6.102 | H38: 39443.328 | J38: 0 | K38: 39443.328 | M38: concrete foundation demolished to ground level | N38: m2 | O38: 6464 | P38: BRCS | Q38: 6 | R38: 38784 | T38: 0 | U38: 38784 | V38: 659.328
B39: Crusher | C39: concrete foundation demolished to ground level | D39: m2 | E39: 1630 | F39: BRCS | G39: 6.102 | H39: 9946.26 | J39: 0 | K39: 9946.26 | M39: concrete foundation demolished to ground level | N39: m2 | O39: 1630 | P39: BRCS | Q39: 6 | R39: 9780 | T39: 0 | U39: 9780 | V39: 166.26
B40: Power plant | C40: no concrete foundation | D40: ha | E40: =ROUNDUP(E12/10000,1) -> 0.3 | F40: SCFYL | G40: 4373.1 | H40: 1311.93 | J40: 0 | K40: 1311.93 | M40: no concrete foundation | N40: ha | O40: 0.3 | P40: SCFYL | Q40: 4300 | R40: 1290 | T40: 0 | U40: 1290 | V40: 21.93
B41: Emergency power plant | C41: no concrete foundation | D41: ha | E41: =ROUNDUP(E13/10000,1) -> 0.1 | F41: SCFYL | G41: 4373.1 | H41: 437.31 | J41: 0 | K41: 437.31 | M41: no concrete foundation | N41: ha | O41: 0.1 | P41: SCFYL | Q41: 4300 | R41: 430 | T41: 0 | U41: 430 | V41: 7.31
B42: Truck Shop/Office | C42: concrete foundation demolished to ground level | D42: m2 | E42: 2349.45 | F42: BRCS | G42: =IF(ISNA(F42),0,INDEX(IF(UPPER(RIGHT(F42,1))=Low,UnitCostLow, IF(UPPER(RIGHT(F42,1))=High,UnitCostHigh,UnitCostSpecified)),MATCH(UPPER(LEFT(F42,LEN(F42)-1)),CostCode,0))) -> 6.102 | H42: =G42*E42 -> 14336.3439 | J42: =H42*I42 -> 0 | K42: =+H42*(1-I42) -> 14336.3439 | M42: concrete foundation demolished to ground level | N42: m2 | O42: 2349.45 | P42: BRCS | Q42: 6 | R42: 14096.7 | T42: 0 | U42: 14096.7 | V42: 239.6439
B43: Cold storage | C43: no concrete foundation | D43: ha | E43: =ROUNDUP(E15/10000,1) -> 0.1 | F43: SCFYL | G43: 4373.1 | H43: 437.31 | J43: 0 | K43: 437.31 | M43: no concrete foundation | N43: ha | O43: 0.1 | P43: SCFYL | Q43: 4300 | R43: 430 | T43: 0 | U43: 430 | V43: 7.31
B44: Water and Wastewater Treatment Facilities | C44: no concrete foundation | D44: ha | E44: =ROUNDUP(E18/10000,1) -> 0.1 | F44: SCFYL | G44: 4373.1 | H44: 437.31 | J44: 0 | K44: 437.31 | M44: no concrete foundation | N44: ha | O44: 0.1 | P44: SCFYL | Q44: 4300 | R44: 430 | T44: 0 | U44: 430 | V44: 7.31
B45: Sewage Treatment Plant | C45: no concrete foundation | D45: m2 | E45: =ROUNDUP(13.7*2.4,0) -> 33 | F45: BRCS | G45: =IF(ISNA(F45),0,INDEX(IF(UPPER(RIGHT(F45,1))=Low,UnitCostLow, IF(UPPER(RIGHT(F45,1))=High,UnitCostHigh,UnitCostSpecified)),MATCH(UPPER(LEFT(F45,LEN(F45)-1)),CostCode,0))) -> 6.102 | H45: =G45*E45 -> 201.366 | J45: =H45*I45 -> 0 | K45: =+H45*(1-I45) -> 201.366 | M45: no concrete foundation | N45: m2 | O45: 33 | P45: BRCS | Q45: 6 | R45: 198 | T45: 0 | U45: 198 | V45: 3.366
B46: Fuel Tanks | C46: Fuel storage and distribution Goose facility; no concrete foundation | D46: ha | E46: 2.2 | F46: SCFYL | G46: 4373.1 | H46: 9620.82 | J46: 0 | K46: 9620.82 | M46: Fuel storage and distribution Goose facility; no concrete foundation | N46: ha | O46: 2.2 | P46: SCFYL | Q46: 4300 | R46: 9460 | T46: 0 | U46: 9460 | V46: 160.82
B47: Warehouse, Shops and Other | C47: MLA, includes all storage/laydown pads, Fuel Tank areas, airstrip, shoreline pads, and camp area | D47: ha | E47: 20 | F47: SCFYL | G47: 4373.1 | H47: 87462 | J47: 0 | K47: 87462 | M47: MLA, includes all storage/laydown, Fuel Tanks and camp area | N47: ha | O47: 20 | P47: SCFYL | Q47: 4300 | R47: 86000 | T47: 0 | U47: 86000 | V47: 1462
B48: Place rock cover | D48: m3 | F48: =NA() ->  | G48: 0 | H48: 0 | J48: 0 | K48: 0 | N48: m3 | Q48: 0 | R48: 0 | T48: 0 | U48: 0 | V48: 0
B49: Vegetate | D49: ha | F49: =NA() ->  | G49: 0 | H49: 0 | J49: 0 | K49: 0 | N49: ha | Q49: 0 | R49: 0 | T49: 0 | U49: 0 | V49: 0
B50: PUNCTURE LINED SUMPS
B51: Puncture liner and place soil cover | D51: m3 | F51: =NA() ->  | G51: =IF(ISNA(F51),0,INDEX(IF(UPPER(RIGHT(F51,1))=Low,UnitCostLow, IF(UPPER(RIGHT(F51,1))=High,UnitCostHigh,UnitCostSpecified)),MATCH(UPPER(LEFT(F51,LEN(F51)-1)),CostCode,0))) -> 0 | H51: =G51*E51 -> 0 | J51: =H51*I51 -> 0 | K51: =+H51*(1-I51) -> 0 | N51: m3 | Q51: 0 | R51: 0 | T51: 0 | U51: 0 | V51: =H51-R51 -> 0
B52: RECLAIM ROADS
B53: Restore drainage, remove culverts haul road | C53: Restore drainage including culverts at Goose Property; no culverts at MLA. Roads will remain intact to facilitate long-term access. | D53: m3 | E53: ='SBB Comp. Est.'!F122 -> 1488 | F53: Sabina | G53: ='SBB Comp. Est.'!X122 -> 11.187 | H53: =G53*E53 -> 16646.256 | J53: 0 | K53: 16646.256 | M53: Restore drainage including culverts; Roads will remain intact to facilitate long-term access. | N53: m3 | O53: 1488 | P53: Sabina | Q53: 11 | R53: 16368 | T53: 0 | U53: 16368 | V53: =H53-R53 -> 278.256
B54: Remove bridges | D54: each | F54: =NA() ->  | G54: =IF(ISNA(F54),0,INDEX(IF(UPPER(RIGHT(F54,1))=Low,UnitCostLow, IF(UPPER(RIGHT(F54,1))=High,UnitCostHigh,UnitCostSpecified)),MATCH(UPPER(LEFT(F54,LEN(F54)-1)),CostCode,0))) -> 0 | H54: 0 | J54: 0 | K54: 0 | N54: each | Q54: 0 | R54: 0 | T54: 0 | U54: 0 | V54: 0
B55: Scarify and install water breaks | D55: ha | F55: =NA() ->  | G55: 0 | H55: 0 | J55: 0 | K55: 0 | N55: ha | Q55: 0 | R55: 0 | T55: 0 | U55: 0 | V55: 0
B56: Restore drainage airstrip | C56: Accounts for Goose 6,000ft by 200ft airstrip dimensions | D56: m3 | E56: ='SBB Comp. Est.'!F125 -> 1360 | F56: Sabina | G56: ='SBB Comp. Est.'!X125 -> 12.204 | H56: 16597.44 | J56: 0 | K56: 16597.44 | N56: m3 | O56: 1020 | P56: Sabina | Q56: 12 | R56: 12240 | T56: 0 | U56: 12240 | V56: 4357.44
B57: Scarify airstrip area | C57: Accounts for Goose 6,000ft by 200ft airstrip (1,829 m x 61 m = 11.2 ha) | D57: ha | E57: 11.2 | F57: SCFYL | G57: 4373.1 | H57: 48978.72 | J57: 0 | K57: 48978.72 | N57: ha | Q57: 0 | R57: 0 | T57: 0 | U57: 0 | V57: 48978.72
B58: Scarify Winter Ice Roads & WIR Camps | C58: Fill sections on land - 15 km x 10 m wide = 15.0 ha; plus 3 ha for WIR Service/Emergency Camps (1 ha/camp x 3) | D58: ha | E58: =8+7+3 -> 18 | F58: SCFYH | G58: =IF(ISNA(F58),0,INDEX(IF(UPPER(RIGHT(F58,1))=Low,UnitCostLow, IF(UPPER(RIGHT(F58,1))=High,UnitCostHigh,UnitCostSpecified)),MATCH(UPPER(LEFT(F58,LEN(F58)-1)),CostCode,0))) -> 6132.51 | H58: =G58*E58 -> 110385.18 | J58: =H58*I58 -> 0 | K58: =+H58*(1-I58) -> 110385.18 | M58: Fill sections on land - 8 km x 10 m wide = 8.0 ha | N58: ha | O58: 8 | P58: SCFYH | Q58: 6030 | R58: 48240 | T58: 0 | U58: 48240 | V58: 62145.18
B59: Vegetate - Subbase & WIR Camps | C59: Potential vegetation of roads to include 18 ha of scarified subbase and camps, plus a nominal area of 3 ha for spill or other road remediation area. | D59: ha | E59: =11+7+3 -> 21 | F59: VHFL | G59: 4068 | H59: 85428 | J59: =H59*I59 -> 0 | K59: 85428 | M59: Potential vegetation of roads to include 8 ha of scarified WIR and nominal area of 3 ha for spill or other road remediation area. | N59: ha | O59: 11 | P59: VHFL | Q59: 4000 | R59: 44000 | T59: 0 | U59: 44000 | V59: 41428
B60: Other | F60: =NA() ->  | G60: 0 | H60: 0 | J60: =H60*I60 -> 0 | K60: 0 | Q60: 0 | R60: 0 | T60: 0 | U60: 0 | V60: 0
B61: SPECIALIZED ITEMS
B62: Dispose of misc. debris and laydown area refuse | F62: =NA() ->  | G62: =IF(ISNA(F62),0,INDEX(IF(UPPER(RIGHT(F62,1))=Low,UnitCostLow, IF(UPPER(RIGHT(F62,1))=High,UnitCostHigh,UnitCostSpecified)),MATCH(UPPER(LEFT(F62,LEN(F62)-1)),CostCode,0))) -> 0 | H62: =G62*E62 -> 0 | J62: =H62*I62 -> 0 | K62: 0 | Q62: 0 | R62: 0 | T62: 0 | U62: 0 | V62: =H62-R62 -> 0
G63: Total | H63: =SUM(H5:H62)+0.0001 -> 2502132.851 | J63: =SUM(J5:J62) -> 0 | K63: =SUM(K5:K62) -> 2502132.851 | Q63: Total | R63: 2069430.617 | T63: 0 | U63: 2069430.617 | V63: =H63-R63 -> 432702.2343
G64: % of Total | J64: =J63/H63 -> 0 | K64: =K63/H63 -> 1 | Q64: % of Total | T64: 0 | U64: 1
B68: Note: Unit costs are based on 3m high, single story building. Scale larger building areas accordingly. E.g. 10m high building multiply area by 3.3 (10/3)

Sheet Chemicals
A1: 1 | B1: Chemicals/Soil Area Name:
B3: Note: The procedures, equipment and packaging for clean up and removal of chemicals or contaminated soils are highly dependent on the nature of the chemicals and their existing state of containment. Government guidelines should be consulted on an individual chemical basis. Any estimate made here should be considered very rough unless specific evaluations have been conducted.
B4: ACTIVITY/MATERIAL | C4: Notes | D4: Units | E4: Quantity | F4: Cost Code | G4: Unit Cost | H4: Cost | I4: % Land | J4: Land Cost | K4: Total Cost | M4: Notes | N4: Units | O4: Quantity | P4: Cost Code | Q4: Unit Cost | R4: Cost | S4: % Land | T4: Land Cost | U4: Total Cost | V4: Difference
B5: HAZARDOUS MATERIALS AUDIT
B6: Hazardous materials audit | D6: mandays | F6: =NA() ->  | G6: =IF(ISNA(F6),0,INDEX(IF(UPPER(RIGHT(F6,1))=Low,UnitCostLow, IF(UPPER(RIGHT(F6,1))=High,UnitCostHigh,UnitCostSpecified)),MATCH(UPPER(LEFT(F6,LEN(F6)-1)),CostCode,0))) -> 0 | H6: =G6*E6 -> 0 | J6: =H6*I6 -> 0 | K6: =+H6*(1-I6) -> 0 | N6: mandays | Q6: 0 | R6: 0 | T6: 0 | U6: 0 | V6: =K6-U6 -> 0
B7: Phase 1 audit | D7: each | E7: 1 | F7: CS1L | G7: =IF(ISNA(F7),0,INDEX(IF(UPPER(RIGHT(F7,1))=Low,UnitCostLow, IF(UPPER(RIGHT(F7,1))=High,UnitCostHigh,UnitCostSpecified)),MATCH(UPPER(LEFT(F7,LEN(F7)-1)),CostCode,0))) -> 7627.5 | H7: =G7*E7 -> 7627.5 | J7: =H7*I7 -> 0 | K7: =+H7*(1-I7) -> 7627.5 | N7: each | O7: 1 | P7: CS1L | Q7: 7500 | R7: 7500 | T7: 0 | U7: 7500 | V7: =K7-U7 -> 127.5
B8: Phase 2 audit | D8: each | E8: 1 | F8: CS2L | G8: =IF(ISNA(F8),0,INDEX(IF(UPPER(RIGHT(F8,1))=Low,UnitCostLow, IF(UPPER(RIGHT(F8,1))=High,UnitCostHigh,UnitCostSpecified)),MATCH(UPPER(LEFT(F8,LEN(F8)-1)),CostCode,0))) -> 50850 | H8: 50850 | J8: 0 | K8: 50850 | N8: each | O8: 1 | P8: CS2L | Q8: 50000 | R8: 50000 | T8: 0 | U8: 50000 | V8: 850
B9: BUILDING DECONTAMINATION & CONSOLIDATION OF HAZARDOUS MATERIALS
B10: Environmental technician/coordinator | D10: mandays | F10: =NA() ->  | G10: =IF(ISNA(F10),0,INDEX(IF(UPPER(RIGHT(F10,1))=Low,UnitCostLow, IF(UPPER(RIGHT(F10,1))=High,UnitCostHigh,UnitCostSpecified)),MATCH(UPPER(LEFT(F10,LEN(F10)-1)),CostCode,0))) -> 0 | H10: =G10*E10 -> 0 | J10: =H10*I10 -> 0 | K10: =+H10*(1-I10) -> 0 | N10: mandays | Q10: 0 | R10: 0 | T10: 0 | U10: 0 | V10: =K10-U10 -> 0
B11: Decontaminate: oil, fuel | D11: mandays | F11: =NA() ->  | G11: =IF(ISNA(F11),0,INDEX(IF(UPPER(RIGHT(F11,1))=Low,UnitCostLow, IF(UPPER(RIGHT(F11,1))=High,UnitCostHigh,UnitCostSpecified)),MATCH(UPPER(LEFT(F11,LEN(F11)-1)),CostCode,0))) -> 0 | H11: 0 | J11: 0 | K11: 0 | N11: mandays | Q11: 0 | R11: 0 | T11: 0 | U11: 0 | V11: 0
B12: Decontaminate maintenance shop | D12: mandays | F12: =NA() ->  | G12: =IF(ISNA(F12),0,INDEX(IF(UPPER(RIGHT(F12,1))=Low,UnitCostLow, IF(UPPER(RIGHT(F12,1))=High,UnitCostHigh,UnitCostSpecified)),MATCH(UPPER(LEFT(F12,LEN(F12)-1)),CostCode,0))) -> 0 | H12: 0 | J12: 0 | K12: 0 | N12: mandays | Q12: 0 | R12: 0 | T12: 0 | U12: 0 | V12: 0
B13: Decontaminate power plant | D13: mandays | F13: =NA() ->  | G13: 0 | H13: 0 | J13: 0 | K13: 0 | N13: mandays | Q13: 0 | R13: 0 | T13: 0 | U13: 0 | V13: 0
B14: Decontaminate bulk fuel storage | D14: mandays | F14: =NA() ->  | G14: 0 | H14: 0 | J14: 0 | K14: 0 | N14: mandays | Q14: 0 | R14: 0 | T14: 0 | U14: 0 | V14: 0
B15: Decontaminate ANFO plant | D15: mandays | F15: =NA() ->  | G15: 0 | H15: 0 | J15: 0 | K15: 0 | N15: mandays | Q15: 0 | R15: 0 | T15: 0 | U15: 0 | V15: 0
B16: Decontaminate offices/warehouse/accom | D16: mandays | F16: =NA() ->  | G16: 0 | H16: 0 | J16: 0 | K16: 0 | N16: mandays | Q16: 0 | R16: 0 | T16: 0 | U16: 0 | V16: 0
B17: Removal of asbestos siding on buildings | D17: m2 | F17: =NA() ->  | G17: 0 | H17: 0 | J17: 0 | K17: 0 | N17: m2 | Q17: 0 | R17: 0 | T17: 0 | U17: 0 | V17: 0
B18: Removal of friable asbestos on equipment | D18: m2 | F18: =NA() ->  | G18: 0 | H18: 0 | J18: 0 | K18: 0 | N18: m2 | Q18: 0 | R18: 0 | T18: 0 | U18: 0 | V18: 0
B19: Other | F19: =NA() ->  | G19: 0 | H19: 0 | J19: 0 | K19: 0 | Q19: 0 | R19: 0 | T19: 0 | U19: 0 | V19: 0
B20: HAZARDOUS MATERIALS REMOVAL
B21: Waste oils | C21: Consume in a waste oil burner on-site | D21: litre | E21: 10000 | F21: ORL | G21: =IF(ISNA(F21),0,INDEX(IF(UPPER(RIGHT(F21,1))=Low,UnitCostLow, IF(UPPER(RIGHT(F21,1))=High,UnitCostHigh,UnitCostSpecified)),MATCH(UPPER(LEFT(F21,LEN(F21)-1)),CostCode,0))) -> 0.43731 | H21: =G21*E21 -> 4373.1 | J21: =H21*I21 -> 0 | K21: =+H21*(1-I21) -> 4373.1 | M21: Consume in a waste oil burner on-site | N21: litre | O21: 10000 | P21: ORL | Q21: 0.43 | R21: 4300 | T21: 0 | U21: 4300 | V21: =K21-U21 -> 73.1
B22: Waste fuel | C22: Consume on-site to power an incinerator, or in a waste oil burner | D22: litre | E22: 250000 | F22: ORL | G22: 0.43731 | H22: 109327.5 | J22: 0 | K22: 109327.5 | M22: Consume on-site to power an incinerator, or in a waste oil burner | N22: litre | O22: 250000 | P22: ORL | Q22: 0.43 | R22: 107500 | T22: 0 | U22: 107500 | V22: 1827.5
B23: Waste batteries | C23: Assumed 10 20-kg batteries generated in the final year of closure | D23: kg | E23: 200 | F23: PCRH | G23: 2.5425 | H23: 508.5 | J23: 0 | K23: 508.5 | M23: Assumed 10 20-kg batteries generated in the final year of closure | N23: kg | O23: 200 | P23: PCRH | Q23: 2.5 | R23: 500 | T23: 0 | U23: 500 | V23: 8.5
B24: Assay & environmental lab reagents | D24: kg | E24: 500 | F24: PCRH | G24: 2.5425 | H24: 1271.25 | J24: 0 | K24: 1271.25 | N24: kg | O24: 500 | P24: PCRH | Q24: 2.5 | R24: 1250 | T24: 0 | U24: 1250 | V24: 21.25
B25: Machine shop paints, solvents etc. | D25: litre | E25: 200 | F25: PCRH | G25: 2.5425 | H25: 508.5 | J25: 0 | K25: 508.5 | N25: litre | O25: 200 | P25: PCRH | Q25: 2.5 | R25: 500 | T25: 0 | U25: 500 | V25: 8.5
B26: Glycol | D26: litre | E26: 5000 | F26: PCRH | G26: 2.5425 | H26: 12712.5 | J26: =H26*I26 -> 0 | K26: =+H26*(1-I26) -> 12712.5 | N26: litre | O26: 5000 | P26: PCRH | Q26: 2.5 | R26: 12500 | T26: 0 | U26: 12500 | V26: 212.5
B27: Process reagents | D27: kg | E27: 130000 | F27: PCRH | G27: =IF(ISNA(F27),0,INDEX(IF(UPPER(RIGHT(F27,1))=Low,UnitCostLow, IF(UPPER(RIGHT(F27,1))=High,UnitCostHigh,UnitCostSpecified)),MATCH(UPPER(LEFT(F27,LEN(F27)-1)),CostCode,0))) -> 2.5425 | H27: =G27*E27 -> 330525 | J27: =H27*I27 -> 0 | K27: =+H27*(1-I27) -> 330525 | N27: kg | O27: 130000 | P27: PCRH | Q27: 2.5 | R27: 325000 | T27: 0 | U27: 325000 | V27: 5525
B28: WTP sludge from Water Treatment | C28: All sludge created and disposed during Operations. In Year 2 (Max PAG Exposure), 3 years of sludge disposal included (9,000 kg over 3 seasons). | D28: kg | E28: =3000*3 -> 9000 | F28: PCRH | G28: =IF(ISNA(F28),0,INDEX(IF(UPPER(RIGHT(F28,1))=Low,UnitCostLow, IF(UPPER(RIGHT(F28,1))=High,UnitCostHigh,UnitCostSpecified)),MATCH(UPPER(LEFT(F28,LEN(F28)-1)),CostCode,0))) -> 2.5425 | H28: =G28*E28 -> 22882.5 | J28: =H28*I28 -> 0 | K28: =+H28*(1-I28) -> 22882.5 | M28: Assumes off-site disposal for 7 years of treatment. If sludge passes leach tests, will consider on-site disposal. | N28: kg | O28: 21000 | P28: PCRH | Q28: 2.5 | R28: 52500 | T28: 0 | U28: 52500 | V28: -29617.5
B29: Nuclear sources | D29: allow | F29: =NA() ->  | G29: =IF(ISNA(F29),0,INDEX(IF(UPPER(RIGHT(F29,1))=Low,UnitCostLow, IF(UPPER(RIGHT(F29,1))=High,UnitCostHigh,UnitCostSpecified)),MATCH(UPPER(LEFT(F29,LEN(F29)-1)),CostCode,0))) -> 0 | H29: 0 | J29: =H29*I29 -> 0 | K29: =+H29*(1-I29) -> 0 | N29: allow | Q29: 0 | R29: 0 | T29: 0 | U29: 0 | V29: 0
B30: Mobile Equipment | C30: Remove hazardous waste from equipment not being salvaged, clean, landfill equipment | D30: each | E30: ='SBB Comp. Est.'!F22 -> 41 | F30: Sabina | G30: ='SBB Comp. Est.'!X22 -> 2318.76 | H30: =G30*E30 -> 95069.16 | J30: =H30*I30 -> 0 | K30: =+H30*(1-I30) -> 95069.16 | M30: Remove hazardous waste from equipment not being salvaged, clean, landfill equipment | N30: each | O30: 41 | P30: Sabina | Q30: 2280 | R30: 93480 | T30: 0 | U30: 93480 | V30: 1589.16
B31: HAZARDOUS MATERIALS
B32: Transportation to disposal facility | C32: Included in hazardous materials removal cost | D32: allow | F32: =NA() ->  | G32: =IF(ISNA(F32),0,INDEX(IF(UPPER(RIGHT(F32,1))=Low,UnitCostLow, IF(UPPER(RIGHT(F32,1))=High,UnitCostHigh,UnitCostSpecified)),MATCH(UPPER(LEFT(F32,LEN(F32)-1)),CostCode,0))) -> 0 | H32: =G32*E32 -> 0 | J32: =H32*I32 -> 0 | K32: =+H32*(1-I32) -> 0 | M32: Included in hazardous materials removal cost | N32: allow | Q32: 0 | R32: 0 | T32: 0 | U32: 0 | V32: =K32-U32 -> 0
B33: Disposal fees | C33: Included in hazardous materials removal cost | D33: allow | F33: =NA() ->  | G33: =IF(ISNA(F33),0,INDEX(IF(UPPER(RIGHT(F33,1))=Low,UnitCostLow, IF(UPPER(RIGHT(F33,1))=High,UnitCostHigh,UnitCostSpecified)),MATCH(UPPER(LEFT(F33,LEN(F33)-1)),CostCode,0))) -> 0 | H33: =G33*E33 -> 0 | J33: =H33*I33 -> 0 | K33: =+H33*(1-I33) -> 0 | M33: Included in hazardous materials removal cost | N33: allow | Q33: 0 | R33: 0 | T33: 0 | U33: 0 | V33: 0
B34: Other | F34: =NA() ->  | G34: =IF(ISNA(F34),0,INDEX(IF(UPPER(RIGHT(F34,1))=Low,UnitCostLow, IF(UPPER(RIGHT(F34,1))=High,UnitCostHigh,UnitCostSpecified)),MATCH(UPPER(LEFT(F34,LEN(F34)-1)),CostCode,0))) -> 0 | H34: =G34*E34 -> 0 | J34: =H34*I34 -> 0 | K34: =+H34*(1-I34) -> 0 | Q34: 0 | R34: 0 | T34: 0 | U34: 0 | V34: 0
B35: CONTAMINATED SOILS
B36: Contam. soil investigation - Phase 1 | D36: LS | E36: 1 | F36: Sabina | G36: =Unit_Costs!F182 -> 7627.5 | H36: =G36*E36 -> 7627.5 | J36: =H36*I36 -> 0 | K36: =+H36*(1-I36) -> 7627.5 | N36: LS | O36: 1 | P36: BGC | Q36: 7500 | R36: 7500 | T36: 0 | U36: 7500 | V36: =K36-U36 -> 127.5
B37: Contam. soil investigation - Phase 2 | D37: LS | E37: 1 | F37: Sabina | G37: ='SBB Comp. Est.'!X136 -> 50850 | H37: 50850 | J37: 0 | K37: 50850 | N37: LS | O37: 1 | P37: Sabina | Q37: 50000 | R37: 50000 | T37: 0 | U37: 50000 | V37: 850
B38: CONTAMINATED SOIL REMOVAL
B39: Excavate and transport to onsite facility | D39: m3 | E39: ='SBB Comp. Est.'!F138 -> 10000 | F39: SB1H | G39: =IF(ISNA(F39),0,INDEX(IF(UPPER(RIGHT(F39,1))=Low,UnitCostLow, IF(UPPER(RIGHT(F39,1))=High,UnitCostHigh,UnitCostSpecified)),MATCH(UPPER(LEFT(F39,LEN(F39)-1)),CostCode,0))) -> 6.0003 | H39: =G39*E39 -> 60003 | J39: =H39*I39 -> 0 | K39: =+H39*(1-I39) -> 60003 | N39: m3 | O39: 10000 | P39: SB1H | Q39: 5.9 | R39: 59000 | T39: 0 | U39: 59000 | V39: =K39-U39 -> 1003
B40: Manage hydrocarbon remediation at facility | D40: m3 | E40: 10000 | F40: CSRL | G40: =IF(ISNA(F40),0,INDEX(IF(UPPER(RIGHT(F40,1))=Low,UnitCostLow, IF(UPPER(RIGHT(F40,1))=High,UnitCostHigh,UnitCostSpecified)),MATCH(UPPER(LEFT(F40,LEN(F40)-1)),CostCode,0))) -> 47.799 | H40: 477990 | J40: 0 | K40: 477990 | N40: m3 | O40: 10000 | P40: CSRL | Q40: 47 | R40: 470000 | T40: 0 | U40: 470000 | V40: 7990
B41: Reagents/stabilizing agent | D41: m2 | F41: =NA() ->  | G41: =IF(ISNA(F41),0,INDEX(IF(UPPER(RIGHT(F41,1))=Low,UnitCostLow, IF(UPPER(RIGHT(F41,1))=High,UnitCostHigh,UnitCostSpecified)),MATCH(UPPER(LEFT(F41,LEN(F41)-1)),CostCode,0))) -> 0 | H41: =G41*E41 -> 0 | J41: =H41*I41 -> 0 | K41: =+H41*(1-I41) -> 0 | N41: m2 | Q41: 0 | R41: 0 | T41: 0 | U41: 0 | V41: 0
B42: Excavate and transport to offsite facility | D42: m3 | F42: =NA() ->  | G42: =IF(ISNA(F42),0,INDEX(IF(UPPER(RIGHT(F42,1))=Low,UnitCostLow, IF(UPPER(RIGHT(F42,1))=High,UnitCostHigh,UnitCostSpecified)),MATCH(UPPER(LEFT(F42,LEN(F42)-1)),CostCode,0))) -> 0 | H42: 0 | J42: 0 | K42: 0 | N42: m3 | Q42: 0 | R42: 0 | T42: 0 | U42: 0 | V42: 0
B43: Contour decontaminated area | C43: Decommission 2 landfarms and confirmation soil sampling; estimated 6,000m3 at each of Goose and MLA sites. | D43: m3 | E43: 12000 | F43: SB1L | G43: =IF(ISNA(F43),0,INDEX(IF(UPPER(RIGHT(F43,1))=Low,UnitCostLow, IF(UPPER(RIGHT(F43,1))=High,UnitCostHigh,UnitCostSpecified)),MATCH(UPPER(LEFT(F43,LEN(F43)-1)),CostCode,0))) -> 4.3731 | H43: 52477.2 | J43: =H43*I43 -> 0 | K43: =+H43*(1-I43) -> 52477.2 | M43: Decommission 2 landfarms and confirmation soil sampling; estimated 6,000m3 at each of Goose and MLA sites. | N43: m3 | O43: 12000 | P43: SB1L | Q43: 4.3 | R43: 51600 | T43: 0 | U43: 51600 | V43: 877.2
B44: CONTAMINATED SOIL VERY LOW PERMEABILITY COVER
B45: Supply geomembrane, HDPE, ES3, GCL | D45: m2 | F45: =NA() ->  | G45: =IF(ISNA(F45),0,INDEX(IF(UPPER(RIGHT(F45,1))=Low,UnitCostLow, IF(UPPER(RIGHT(F45,1))=High,UnitCostHigh,UnitCostSpecified)),MATCH(UPPER(LEFT(F45,LEN(F45)-1)),CostCode,0))) -> 0 | H45: =G45*E45 -> 0 | J45: =H45*I45 -> 0 | K45: =+H45*(1-I45) -> 0 | N45: m2 | Q45: 0 | R45: 0 | T45: 0 | U45: 0 | V45: =K45-U45 -> 0
B46: Upper and lower bedding layers | D46: m3 | F46: =NA() ->  | G46: 0 | H46: 0 | J46: 0 | K46: 0 | N46: m3 | Q46: 0 | R46: 0 | T46: 0 | U46: 0 | V46: 0
B47: Install geomembrane, HDPE, ES3, GCL | D47: m2 | F47: =NA() ->  | G47: 0 | H47: 0 | J47: 0 | K47: 0 | N47: m2 | Q47: 0 | R47: 0 | T47: 0 | U47: 0 | V47: 0
B48: Erosion protection layer | D48: m3 | F48: =NA() ->  | G48: 0 | H48: 0 | J48: 0 | K48: 0 | N48: m3 | Q48: 0 | R48: 0 | T48: 0 | U48: 0 | V48: 0
B49: Vegetate | D49: m2 | F49: =NA() ->  | G49: 0 | H49: 0 | J49: 0 | K49: 0 | N49: m2 | Q49: 0 | R49: 0 | T49: 0 | U49: 0 | V49: 0
B50: Install infiltration/seepage instrumentation | D50: allow | F50: =NA() ->  | G50: 0 | H50: 0 | J50: =H50*I50 -> 0 | K50: =+H50*(1-I50) -> 0 | N50: allow | Q50: 0 | R50: 0 | T50: 0 | U50: 0 | V50: 0
B51: Other | C51: Operate 2 landfarms: 1 at Goose, 1 at MLA | D51: allow | E51: 2 | F51: Sabina | G51: =Unit_Costs!F183 -> 50850 | H51: 101700 | J51: =H51*I51 -> 0 | K51: =+H51*(1-I51) -> 101700 | M51: Operate 2 landfarms: 1 at Goose, 1 at MLA | N51: allow | O51: 2 | P51: Sabina | Q51: 50000 | R51: 100000 | T51: 0 | U51: 100000 | V51: 1700
B52: OTHER
F53: =NA() ->  | G53: =IF(ISNA(F53),0,INDEX(IF(UPPER(RIGHT(F53,1))=Low,UnitCostLow, IF(UPPER(RIGHT(F53,1))=High,UnitCostHigh,UnitCostSpecified)),MATCH(UPPER(LEFT(F53,LEN(F53)-1)),CostCode,0))) -> 0 | H53: =G53*E53 -> 0 | J53: =H53*I53 -> 0 | K53: =+H53*(1-I53) -> 0 | Q53: 0 | R53: 0 | T53: 0 | U53: 0 | V53: =K53-U53 -> 0
G54: Total | H54: =SUM(H6:H53)+0.0001 -> 1386303.21 | J54: =SUM(J6:J53) -> 0 | K54: =SUM(K6:K53) -> 1386303.21 | Q54: Total | R54: 1393130 | T54: 0 | U54: 1393130 | V54: =K54-U54 -> -6826.79
G55: % of Total | J55: =J54/H54 -> 0 | K55: =K54/H54 -> 0.9999999999 | Q55: % of Total | T55: 0 | U55: 0.9999999999 | V55: =K55-U55 -> -3.53495011e-13

Sheet Water Management
A1: 1 | B1: Capital Expenditures and Short Term Water Treatment identified in 'Instructions' worksheet
B3: ACTIVITY/MATERIAL | C3: Notes | D3: Units | E3: Quantity | F3: Cost Code | G3: Unit Cost | H3: Total Cost | J3: ACTIVITY/MATERIAL | K3: Notes | L3: Units | M3: Quantity | N3: Cost Code | O3: Unit Cost | P3: Total Cost | Q3: Difference
B4: BREACH DYKE EMBANKMENT | J4: BREACH DYKE EMBANKMENT
B5: Breach Llama Lake Diversion Berms | C5: Breached in Year 5 when pit becomes Llama TF; removed. | D5: m3 | E5: 0 | F5: =NA() ->  | G5: ='SBB Comp. Est.'!X62 -> 0 | H5: =G5*E5 -> 0 | J5: Breach Llama Lake Diversion Berms | L5: m3 | M5: 665 | O5: 7.3 | P5: 4854.5 | Q5: =H5-P5 -> -4854.5
B6: Breach Llama WRSA Diversion Berm | C6: Breached in Year 5 when pit becomes Llama TF; removed. | D6: m3 | E6: 0 | F6: =NA() ->  | G6: ='SBB Comp. Est.'!X63 -> 0 | H6: =G6*E6 -> 0 | J6: Breach Llama WRSA Diversion Berm | L6: m3 | M6: 95 | O6: 7.3 | P6: 693.5 | Q6: =H6-P6 -> -693.5
B7: Breach Llama WRSA Containment Dam | C7: Breached in Year 5 when pit becomes Llama TF; removed. | D7: m3 | E7: 0 | F7: =NA() ->  | G7: ='SBB Comp. Est.'!X64 -> 0 | H7: 0 | J7: Breach Llama WRSA Containment Dam | L7: m3 | M7: 95 | O7: 7.3 | P7: 693.5 | Q7: -693.5
B8: Breach Primary Pond Containment Dam | C8: Breach in Year 3 once Umwelt Pit mining complete and starts as Umwelt Reservoir for saline water; Primary Pond will water will gravity flow directly. | D8: m3 | E8: 0 | F8: =NA() ->  | G8: ='SBB Comp. Est.'!X67 -> 0 | H8: =G8*E8 -> 0 | J8: Breach Primary Pond Containment Dam | K8: Breach in Year 2 once Umwelt Pit mining complete and starts as Umwelt Tailings Facility (TF); Primary Pond will water will gravity flow directly. | L8: m3 | M8: 0 | O8: 0 | P8: 0 | Q8: 0
B9: Breach Umwelt WRSA Containment Dam | C9: Berm has been removed from water management design | D9: m3 | E9: 0 | F9: =NA() ->  | G9: ='SBB Comp. Est.'!X68 -> 0 | H9: 0 | J9: Breach Umwelt WRSA Containment Dam | L9: m3 | M9: 120 | O9: 7.3 | P9: 876 | Q9: -876
B10: Breach Umwelt WRSA Diversion Berm | C10: Berm has been removed from water management design | D10: m3 | E10: 0 | F10: =NA() ->  | G10: ='SBB Comp. Est.'!X69 -> 0 | H10: 0 | J10: Breach Umwelt WRSA Diversion Berm | L10: m3 | M10: 95 | O10: 7.3 | P10: 693.5 | Q10: -693.5
B11: Breach Echo WRSA Containment Dam | C11: Not in current mine plan; cost remains to keep Stage in tact. | D11: m3 | E11: ='SBB Comp. Est.'!F73 -> 190 | F11: =NA() ->  | G11: ='SBB Comp. Est.'!X73 -> 7.4241 | H11: 1410.579 | J11: Breach Echo WRSA Containment Dam | L11: m3 | M11: 190 | O11: 7.3 | P11: 1387 | Q11: 23.579
B12: Breach Echo Diversion Berm (East and West) | C12: Not in current mine plan; cost remains to keep Stage in tact. | D12: m3 | E12: ='SBB Comp. Est.'!F74 -> 190 | F12: =NA() ->  | G12: ='SBB Comp. Est.'!X74 -> 7.4241 | H12: 1410.579 | J12: Breach Echo Diversion Berm (East and West) | L12: m3 | M12: 190 | O12: 7.3 | P12: 1387 | Q12: 23.579
B13: Breach Echo WRSA Diversion Berm | C13: Not in current mine plan; cost remains to keep Stage in tact. | D13: m3 | E13: ='SBB Comp. Est.'!F75 -> 95 | F13: =NA() ->  | G13: ='SBB Comp. Est.'!X75 -> 7.4241 | H13: 705.2895 | J13: Breach Echo WRSA Diversion Berm | L13: m3 | M13: 95 | O13: 7.3 | P13: 693.5 | Q13: 11.7895
B14: Breach East Echo Containment Dam | C14: Not in current mine plan; cost remains to keep Stage in tact. | D14: m3 | E14: ='SBB Comp. Est.'!F76 -> 95 | F14: =NA() ->  | G14: ='SBB Comp. Est.'!X76 -> 7.4241 | H14: 705.2895 | J14: Breach East Echo Containment Dam | L14: m3 | M14: 95 | O14: 7.3 | P14: 693.5 | Q14: 11.7895
B15: Breach Goose Main Diversion Berm | C15: Breached in Year 5 when pit becomes Goose Main Reservoir | D15: m3 | E15: 0 | F15: =NA() ->  | G15: ='SBB Comp. Est.'!X80 -> 7.4241 | H15: 0 | J15: Breach Goose Main Diversion Berm | L15: m3 | M15: 95 | O15: 7.3 | P15: 693.5 | Q15: -693.5
B16: Breach Plant Site Pond Containment Dam | D16: m3 | E16: ='SBB Comp. Est.'!F86 -> 215 | F16: =NA() ->  | G16: ='SBB Comp. Est.'!X86 -> 7.4241 | H16: 1596.1815 | J16: Breach Ore Stockpile Diversion Berm and Containment Dam | L16: m3 | M16: 215 | O16: 7.3 | P16: 1569.5 | Q16: 26.6815
B17: Breach SWP Containment Dam | C17: Dewatered to Umwelt Reservoir in Year 3&4; breached in Year 4 of Operations | D17: m3 | E17: 0 | F17: =NA() ->  | G17: ='SBB Comp. Est.'!X33 -> 0 | H17: 0 | J17: Breach SWP Diversion Berms and Containment Dams | L17: m3 | M17: 430 | O17: 8 | P17: 3440 | Q17: -3440
B18: Remove Liner from all berms | C18: Remove liner from all berms - 50% completed during Operations | D18: m2 | E18: =30700*0.5 -> 15350 | F18: Sabina | G18: =Unit_Costs!F184 -> 0.7119 | H18: =G18*E18 -> 10927.665 | J18: Remove Liner from all berms | K18: Remove liner from all berms | L18: m2 | M18: 30700 | N18: Sabina | O18: 0.7 | P18: 21490 | Q18: -10562.335
B19: Contour water intake area | D19: m3 | F19: =NA() ->  | G19: =IF(ISNA(F19),0,INDEX(IF(UPPER(RIGHT(F19,1))=Low,UnitCostLow, IF(UPPER(RIGHT(F19,1))=High,UnitCostHigh,UnitCostSpecified)),MATCH(UPPER(LEFT(F19,LEN(F19)-1)),CostCode,0))) -> 0 | H19: =G19*E19 -> 0 | J19: Contour water intake area | L19: m3 | O19: 0 | P19: 0 | Q19: 0
B20: STABILIZE SEDIMENT PONDS/WATER MANAGEMENT PONDS | J20: STABILIZE SEDIMENT PONDS/WATER MANAGEMENT PONDS
B21: Place soil cover | D21: m3 | F21: =NA() ->  | G21: =IF(ISNA(F21),0,INDEX(IF(UPPER(RIGHT(F21,1))=Low,UnitCostLow, IF(UPPER(RIGHT(F21,1))=High,UnitCostHigh,UnitCostSpecified)),MATCH(UPPER(LEFT(F21,LEN(F21)-1)),CostCode,0))) -> 0 | H21: =G21*E21 -> 0 | J21: Place soil cover | L21: m3 | O21: 0 | P21: 0 | Q21: =H21-P21 -> 0
B22: Doze & spread excavated material | D22: m3 | F22: =NA() ->  | G22: =IF(ISNA(F22),0,INDEX(IF(UPPER(RIGHT(F22,1))=Low,UnitCostLow, IF(UPPER(RIGHT(F22,1))=High,UnitCostHigh,UnitCostSpecified)),MATCH(UPPER(LEFT(F22,LEN(F22)-1)),CostCode,0))) -> 0 | H22: =G22*E22 -> 0 | J22: Doze & spread excavated material | L22: m3 | O22: 0 | P22: 0 | Q22: 0
B23: Vegetate spread material | D23: ha | F23: =NA() ->  | G23: =IF(ISNA(F23),0,INDEX(IF(UPPER(RIGHT(F23,1))=Low,UnitCostLow, IF(UPPER(RIGHT(F23,1))=High,UnitCostHigh,UnitCostSpecified)),MATCH(UPPER(LEFT(F23,LEN(F23)-1)),CostCode,0))) -> 0 | H23: =G23*E23 -> 0 | J23: Vegetate spread material | L23: ha | O23: 0 | P23: 0 | Q23: 0
B24: Rip rap in channel base | D24: each | F24: =NA() ->  | G24: =IF(ISNA(F24),0,INDEX(IF(UPPER(RIGHT(F24,1))=Low,UnitCostLow, IF(UPPER(RIGHT(F24,1))=High,UnitCostHigh,UnitCostSpecified)),MATCH(UPPER(LEFT(F24,LEN(F24)-1)),CostCode,0))) -> 0 | H24: =G24*E24 -> 0 | J24: Rip rap in channel base | L24: each | O24: 0 | P24: 0 | Q24: 0
B25: REDIRECT RUNOFF/CONSTRUCT DIVERSION DITCHES | J25: REDIRECT RUNOFF/CONSTRUCT DIVERSION DITCHES
B26: Excavate ditches -soil | D26: m3 | F26: =NA() ->  | G26: =IF(ISNA(F26),0,INDEX(IF(UPPER(RIGHT(F26,1))=Low,UnitCostLow, IF(UPPER(RIGHT(F26,1))=High,UnitCostHigh,UnitCostSpecified)),MATCH(UPPER(LEFT(F26,LEN(F26)-1)),CostCode,0))) -> 0 | H26: =G26*E26 -> 0 | J26: Excavate ditches -soil | L26: m3 | O26: 0 | P26: 0 | Q26: =H26-P26 -> 0
B27: Excavate ditches -rock | D27: m3 | F27: =NA() ->  | G27: =IF(ISNA(F27),0,INDEX(IF(UPPER(RIGHT(F27,1))=Low,UnitCostLow, IF(UPPER(RIGHT(F27,1))=High,UnitCostHigh,UnitCostSpecified)),MATCH(UPPER(LEFT(F27,LEN(F27)-1)),CostCode,0))) -> 0 | H27: =G27*E27 -> 0 | J27: Excavate ditches -rock | L27: m3 | O27: 0 | P27: 0 | Q27: =H27-P27 -> 0
B28: Stabilize side slopes | D28: m3 | F28: =NA() ->  | G28: =IF(ISNA(F28),0,INDEX(IF(UPPER(RIGHT(F28,1))=Low,UnitCostLow, IF(UPPER(RIGHT(F28,1))=High,UnitCostHigh,UnitCostSpecified)),MATCH(UPPER(LEFT(F28,LEN(F28)-1)),CostCode,0))) -> 0 | H28: =G28*E28 -> 0 | J28: Stabilize side slopes | L28: m3 | O28: 0 | P28: 0 | Q28: 0
B29: Rip rap in channel base | D29: m3 | F29: =NA() ->  | G29: =IF(ISNA(F29),0,INDEX(IF(UPPER(RIGHT(F29,1))=Low,UnitCostLow, IF(UPPER(RIGHT(F29,1))=High,UnitCostHigh,UnitCostSpecified)),MATCH(UPPER(LEFT(F29,LEN(F29)-1)),CostCode,0))) -> 0 | H29: =G29*E29 -> 0 | J29: Rip rap in channel base | L29: m3 | O29: 0 | P29: 0 | Q29: 0
B30: BREACH DITCHES | J30: BREACH DITCHES
B31: Excavate breaches | D31: m3 | F31: =NA() ->  | G31: =IF(ISNA(F31),0,INDEX(IF(UPPER(RIGHT(F31,1))=Low,UnitCostLow, IF(UPPER(RIGHT(F31,1))=High,UnitCostHigh,UnitCostSpecified)),MATCH(UPPER(LEFT(F31,LEN(F31)-1)),CostCode,0))) -> 0 | H31: =G31*E31 -> 0 | J31: Excavate breaches | L31: m3 | O31: 0 | P31: 0 | Q31: =H31-P31 -> 0
B32: Install flow dissipation | D32: m3 | F32: =NA() ->  | G32: =IF(ISNA(F32),0,INDEX(IF(UPPER(RIGHT(F32,1))=Low,UnitCostLow, IF(UPPER(RIGHT(F32,1))=High,UnitCostHigh,UnitCostSpecified)),MATCH(UPPER(LEFT(F32,LEN(F32)-1)),CostCode,0))) -> 0 | H32: =G32*E32 -> 0 | J32: Install flow dissipation | L32: m3 | O32: 0 | P32: 0 | Q32: 0
B33: Vegetate remainder of ditch | D33: m2 | F33: =NA() ->  | G33: =IF(ISNA(F33),0,INDEX(IF(UPPER(RIGHT(F33,1))=Low,UnitCostLow, IF(UPPER(RIGHT(F33,1))=High,UnitCostHigh,UnitCostSpecified)),MATCH(UPPER(LEFT(F33,LEN(F33)-1)),CostCode,0))) -> 0 | H33: =G33*E33 -> 0 | J33: Vegetate remainder of ditch | L33: m2 | O33: 0 | P33: 0 | Q33: 0
B34: DECOMISSION FRESH WATER SUPPLY | J34: DECOMISSION FRESH WATER SUPPLY
B35: Breach embankment | D35: m3 | F35: =NA() ->  | G35: =IF(ISNA(F35),0,INDEX(IF(UPPER(RIGHT(F35,1))=Low,UnitCostLow, IF(UPPER(RIGHT(F35,1))=High,UnitCostHigh,UnitCostSpecified)),MATCH(UPPER(LEFT(F35,LEN(F35)-1)),CostCode,0))) -> 0 | H35: =G35*E35 -> 0 | J35: Breach embankment | L35: m3 | O35: 0 | P35: 0 | Q35: =H35-P35 -> 0
B36: Remove pump | D36: LS | F36: =NA() ->  | G36: =IF(ISNA(F36),0,INDEX(IF(UPPER(RIGHT(F36,1))=Low,UnitCostLow, IF(UPPER(RIGHT(F36,1))=High,UnitCostHigh,UnitCostSpecified)),MATCH(UPPER(LEFT(F36,LEN(F36)-1)),CostCode,0))) -> 0 | H36: =G36*E36 -> 0 | J36: Remove pump | L36: LS | O36: 0 | P36: 0 | Q36: 0
B37: Remove pipelines | D37: m | F37: =NA() ->  | G37: =IF(ISNA(F37),0,INDEX(IF(UPPER(RIGHT(F37,1))=Low,UnitCostLow, IF(UPPER(RIGHT(F37,1))=High,UnitCostHigh,UnitCostSpecified)),MATCH(UPPER(LEFT(F37,LEN(F37)-1)),CostCode,0))) -> 0 | H37: =G37*E37 -> 0 | J37: Remove pipelines | L37: m | O37: 0 | P37: 0 | Q37: 0
B38: DECOMISSION WATER RECLAIM BARGE | J38: DECOMISSION WATER RECLAIM BARGE
B39: Decommission reclaim barge from Llama TF | D39: LS | E39: 1 | F39: Sabina | G39: =Unit_Costs!F185 -> 10170 | H39: =G39*E39 -> 10170 | J39: Decommission reclaim barge from Goose Main TF | L39: LS | M39: 1 | N39: Sabina | O39: 10000 | P39: 10000 | Q39: =H39-P39 -> 170
B40: WATER CONTROL IN RECLAMATION QUARRY | J40: WATER CONTROL IN RECLAMATION QUARRY
B41: Install pumping system | D41: LS | F41: =NA() ->  | G41: =IF(ISNA(F41),0,INDEX(IF(UPPER(RIGHT(F41,1))=Low,UnitCostLow, IF(UPPER(RIGHT(F41,1))=High,UnitCostHigh,UnitCostSpecified)),MATCH(UPPER(LEFT(F41,LEN(F41)-1)),CostCode,0))) -> 0 | H41: =G41*E41 -> 0 | J41: Install pumping system | L41: LS | O41: 0 | P41: 0 | Q41: =H41-P41 -> 0
B42: Remove pumping system | D42: m | F42: =NA() ->  | G42: =IF(ISNA(F42),0,INDEX(IF(UPPER(RIGHT(F42,1))=Low,UnitCostLow, IF(UPPER(RIGHT(F42,1))=High,UnitCostHigh,UnitCostSpecified)),MATCH(UPPER(LEFT(F42,LEN(F42)-1)),CostCode,0))) -> 0 | H42: =G42*E42 -> 0 | J42: Remove pumping system | L42: m | O42: 0 | P42: 0 | Q42: 0
B43: REMOVE PIPELINES | J43: REMOVE PIPELINES
B44: Decommission Llama pump and pipeline | D44: m | E44: ='SBB Comp. Est.'!F65 -> 700 | F44: Sabina | G44: ='SBB Comp. Est.'!X65 -> 18.88714286 | H44: =G44*E44 -> 13221 | J44: Decommission Llama pump and pipeline | L44: m | M44: 700 | N44: Sabina | O44: 18.57142857 | P44: 13000 | Q44: =H44-P44 -> 221
B45: Decommission WTP-Goose Lake pipeline | D45: m | E45: ='SBB Comp. Est.'!F34 -> 1140 | F45: Sabina | G45: ='SBB Comp. Est.'!X34 -> 10.17 | H45: =G45*E45 -> 11593.8 | J45: Decommission WTP-Goose Lake pipeline | L45: m | M45: 1140 | N45: Sabina | O45: 10 | P45: 11400 | Q45: 193.8
B46: Remove Saline Water Pond pump and pipeline | C46: Decommissioned in Year 4 of Operations | D46: m | E46: 0 | F46: Sabina | G46: ='SBB Comp. Est.'!X70 -> 0 | H46: =G46*E46 -> 0 | J46: Remove Saline Water Pond pump and pipeline | L46: m | M46: 950 | N46: Sabina | O46: 17.89473684 | P46: 17000 | Q46: -17000
B47: Remove Primary Pond pump and pipeline | C47: Decommissioned in Year 4 of Operations | D47: m | E47: 0 | F47: Sabina | G47: ='SBB Comp. Est.'!X71 -> 0 | H47: 0 | J47: Remove Primary Pond pump and pipeline | L47: m | M47: 7250 | N47: Sabina | O47: 11.03448276 | P47: 80000 | Q47: -80000
B48: Remove Echo WRSA Pond pump and pipeline | C48: Not in current mine plan; cost remains to keep Stage in tact. | D48: m | E48: ='SBB Comp. Est.'!F77 -> 2400 | F48: Sabina | G48: ='SBB Comp. Est.'!X77 -> 10.17 | H48: 24408 | J48: Remove Echo WRSA Pond pump and pipeline | L48: m | M48: 2400 | N48: Sabina | O48: 10 | P48: 24000 | Q48: 408
B49: Remove Echo NCW pond pump and pipeline | C49: Not in current mine plan; cost remains to keep Stage in tact. | D49: m | E49: ='SBB Comp. Est.'!F78 -> 220 | F49: Sabina | G49: ='SBB Comp. Est.'!X78 -> 24.03818182 | H49: 5288.4 | J49: Remove Echo NCW pond pump and pipeline | L49: m | M49: 220 | N49: Sabina | O49: 23.63636364 | P49: 5200 | Q49: 88.4
B50: Remove Plant Site Pond pump and pipeline | D50: m | E50: ='SBB Comp. Est.'!F85 -> 4550 | F50: Sabina | G50: ='SBB Comp. Est.'!X85 -> 10.17 | H50: 46273.5 | J50: Remove Ore Stockpile pump and pipeline | L50: m | M50: 4550 | N50: Sabina | O50: 10 | P50: 45500 | Q50: 773.5
B51: Decommission WTP pump and pipeline | D51: m | E51: ='SBB Comp. Est.'!F131+'SBB Comp. Est.'!F132 -> 7520 | F51: Sabina | G51: ='SBB Comp. Est.'!X131 -> 11.08074627 | H51: 83327.21194 | J51: Decommission WTP pump and pipeline | L51: m | M51: 7520 | N51: Sabina | O51: 10.89552239 | P51: 81934.32836 | Q51: 1392.883582
B52: Decommission WTP | C52: Two Water Treatment Plants required | D52: LS | E52: 2 | F52: Sabina | G52: ='SBB Comp. Est.'!X133 -> 9915.75 | H52: 19831.5 | J52: Decommission WTP | L52: LS | M52: 1 | N52: Sabina | O52: 19500 | P52: 19500 | Q52: 331.5
B53: Concrete plug deep pipes | D53: m3 | F53: =NA() ->  | G53: =IF(ISNA(F53),0,INDEX(IF(UPPER(RIGHT(F53,1))=Low,UnitCostLow, IF(UPPER(RIGHT(F53,1))=High,UnitCostHigh,UnitCostSpecified)),MATCH(UPPER(LEFT(F53,LEN(F53)-1)),CostCode,0))) -> 0 | H53: =G53*E53 -> 0 | J53: Concrete plug deep pipes | L53: m3 | O53: 0 | P53: 0 | Q53: 0
B54: Other | F54: =NA() ->  | G54: =IF(ISNA(F54),0,INDEX(IF(UPPER(RIGHT(F54,1))=Low,UnitCostLow, IF(UPPER(RIGHT(F54,1))=High,UnitCostHigh,UnitCostSpecified)),MATCH(UPPER(LEFT(F54,LEN(F54)-1)),CostCode,0))) -> 0 | H54: =G54*E54 -> 0 | J54: Other | O54: 0 | P54: 0 | Q54: 0
B55: OPERATE WATER TREATMENT PLANT
B56: Pump from TSF to WTP | C56: No treatment required during Closure; Maximum PAG Exposure in Year 2. Potential Water Treatment in this year at TSF with 2.1 Mm3 over 3 years. | D56: m3 | E56: ='SBB Comp. Est.'!$F$128 -> 2100000 | F56: POCL | G56: =IF(ISNA(F56),0,INDEX(IF(UPPER(RIGHT(F56,1))=Low,UnitCostLow, IF(UPPER(RIGHT(F56,1))=High,UnitCostHigh,UnitCostSpecified)),MATCH(UPPER(LEFT(F56,LEN(F56)-1)),CostCode,0))) -> 0.12204 | H56: =G56*E56 -> 256284 | O56: 0 | P56: 0 | Q56: 256284
B57: Treat water in WTP | D57: m3 | E57: =E56 -> 2100000 | F57: Sabina | G57: =Unit_Costs!F186 -> 0.66105 | H57: =G57*E57 -> 1388205 | O57: 0 | P57: 0 | Q57: 1388205
B58: Pump water out of WTP | D58: m3 | E58: =E56 -> 2100000 | F58: POCL | G58: =IF(ISNA(F58),0,INDEX(IF(UPPER(RIGHT(F58,1))=Low,UnitCostLow, IF(UPPER(RIGHT(F58,1))=High,UnitCostHigh,UnitCostSpecified)),MATCH(UPPER(LEFT(F58,LEN(F58)-1)),CostCode,0))) -> 0.12204 | H58: =G58*E58 -> 256284 | O58: 0 | P58: 0 | Q58: 256284
B59: GROUNDWATER COLLECTION SYSTEM | J59: GROUNDWATER COLLECTION SYSTEM
B60: Excavate/install sumps | D60: m3 | F60: =NA() ->  | G60: =IF(ISNA(F60),0,INDEX(IF(UPPER(RIGHT(F60,1))=Low,UnitCostLow, IF(UPPER(RIGHT(F60,1))=High,UnitCostHigh,UnitCostSpecified)),MATCH(UPPER(LEFT(F60,LEN(F60)-1)),CostCode,0))) -> 0 | H60: =G60*E60 -> 0 | J60: Excavate/install sumps | L60: m3 | O60: 0 | P60: 0 | Q60: =H60-P60 -> 0
B61: Install pumping wells | D61: m3 | F61: =NA() ->  | G61: =IF(ISNA(F61),0,INDEX(IF(UPPER(RIGHT(F61,1))=Low,UnitCostLow, IF(UPPER(RIGHT(F61,1))=High,UnitCostHigh,UnitCostSpecified)),MATCH(UPPER(LEFT(F61,LEN(F61)-1)),CostCode,0))) -> 0 | H61: =G61*E61 -> 0 | J61: Install pumping wells | L61: m3 | O61: 0 | P61: 0 | Q61: 0
B62: Install pumps/pipelines/power supply | D62: LS | F62: =NA() ->  | G62: =IF(ISNA(F62),0,INDEX(IF(UPPER(RIGHT(F62,1))=Low,UnitCostLow, IF(UPPER(RIGHT(F62,1))=High,UnitCostHigh,UnitCostSpecified)),MATCH(UPPER(LEFT(F62,LEN(F62)-1)),CostCode,0))) -> 0 | H62: =G62*E62 -> 0 | J62: Install pumps/pipelines/power supply | L62: LS | O62: 0 | P62: 0 | Q62: 0
B63: CONSTRUCT CONTAMINATED WATER STORAGE POND | J63: CONSTRUCT CONTAMINATED WATER STORAGE POND
B64: Excavate pond | D64: m3 | F64: =NA() ->  | G64: =IF(ISNA(F64),0,INDEX(IF(UPPER(RIGHT(F64,1))=Low,UnitCostLow, IF(UPPER(RIGHT(F64,1))=High,UnitCostHigh,UnitCostSpecified)),MATCH(UPPER(LEFT(F64,LEN(F64)-1)),CostCode,0))) -> 0 | H64: =G64*E64 -> 0 | J64: Excavate pond | L64: m3 | O64: 0 | P64: 0 | Q64: =H64-P64 -> 0
B65: Doze & spread excavated material | D65: m3 | F65: =NA() ->  | G65: 0 | H65: 0 | J65: Doze & spread excavated material | L65: m3 | O65: 0 | P65: 0 | Q65: 0
B66: Vegetate spread material | D66: ha | F66: =NA() ->  | G66: 0 | H66: 0 | J66: Vegetate spread material | L66: ha | O66: 0 | P66: 0 | Q66: 0
B67: Bedding layer | D67: m3 | F67: =NA() ->  | G67: 0 | H67: 0 | J67: Bedding layer | L67: m3 | O67: 0 | P67: 0 | Q67: 0
B68: Supply geomembrane | D68: m2 | F68: =NA() ->  | G68: 0 | H68: 0 | J68: Supply geomembrane | L68: m2 | O68: 0 | P68: 0 | Q68: 0
B69: Install geomembrane | D69: m2 | F69: =NA() ->  | G69: 0 | H69: 0 | J69: Install geomembrane | L69: m2 | O69: 0 | P69: 0 | Q69: 0
B70: Erosion protection layer | D70: m3 | F70: =NA() ->  | G70: 0 | H70: 0 | J70: Erosion protection layer | L70: m3 | O70: 0 | P70: 0 | Q70: 0
B71: CONSTRUCT PASSIVE TREATMENT SYSTEM (e.g. Constructed Wetland) | J71: CONSTRUCT PASSIVE TREATMENT SYSTEM (e.g. Constructed Wetland)
B72: Construct access roads | D72: km | F72: =NA() ->  | G72: 0 | H72: =G72*E72 -> 0 | J72: Construct access roads | L72: km | O72: 0 | P72: 0 | Q72: =H72-P72 -> 0
B73: Install HDPE piping system from collection pond | D73: m | F73: =NA() ->  | G73: 0 | H73: =G73*E73 -> 0 | J73: Install HDPE piping system from collection pond | L73: m | O73: 0 | P73: 0 | Q73: 0
B74: Inter-cell flow structures | D74: allow | F74: =NA() ->  | G74: 0 | H74: 0 | J74: Inter-cell flow structures | L74: allow | O74: 0 | P74: 0 | Q74: 0
B75: Install liners | D75: m2 | F75: =NA() ->  | G75: 0 | H75: =G75*E75 -> 0 | J75: Install liners | L75: m2 | O75: 0 | P75: 0 | Q75: 0
B76: Install growth media | D76: m3 | F76: =NA() ->  | G76: 0 | H76: 0 | J76: Install growth media | L76: m3 | O76: 0 | P76: 0 | Q76: 0
B77: Wetland vegetation | D77: ha | F77: =NA() ->  | G77: 0 | H77: 0 | J77: Wetland vegetation | L77: ha | O77: 0 | P77: 0 | Q77: 0
B78: CONSTRUCT WATER TREATMENT PLANT | J78: CONSTRUCT WATER TREATMENT PLANT
B79: Build treatment plant | C79: Treatment Plant will be constructed as part of operations | D79: LS | F79: =NA() ->  | G79: =IF(ISNA(F79),0,INDEX(IF(UPPER(RIGHT(F79,1))=Low,UnitCostLow, IF(UPPER(RIGHT(F79,1))=High,UnitCostHigh,UnitCostSpecified)),MATCH(UPPER(LEFT(F79,LEN(F79)-1)),CostCode,0))) -> 0 | H79: =G79*E79 -> 0 | J79: Build treatment plant | K79: Treatment Plant will be constructed as part of operations | L79: LS | O79: 0 | P79: 0 | Q79: =H79-P79 -> 0
B80: Build sludge containment facility | D80: LS | F80: =NA() ->  | G80: =IF(ISNA(F80),0,INDEX(IF(UPPER(RIGHT(F80,1))=Low,UnitCostLow, IF(UPPER(RIGHT(F80,1))=High,UnitCostHigh,UnitCostSpecified)),MATCH(UPPER(LEFT(F80,LEN(F80)-1)),CostCode,0))) -> 0 | H80: =G80*E80 -> 0 | J80: Build sludge containment facility | L80: LS | O80: 0 | P80: 0 | Q80: 0
G81: Total | H81: =SUM(H4:H80)+0.0001 -> 2131641.996 | O81: Total | P81: 346699.3285 | Q81: 1784942.667
B82: For details of long-term/post-closure water treatment see "WATER TREATMENT" Worksheet"; costs included in this tab.

Sheet Water Treatment
A1: 1 | B1: Post Closure Water Treatment - Identified as long term/post-closure in 'Instructions' worksheet
B3: ACTIVITY/MATERIAL | C3: Notes | D3: Units | E3: Quantity | F3: Cost Code | G3: Unit Cost | H3: Total Cost | J3: ACTIVITY/MATERIAL | K3: Notes | L3: Units | M3: Quantity | N3: Cost Code | O3: Unit Cost | P3: Total Cost | Q3: Difference
B4: ADDITION OF REAGENTS TO WTP | J4: ADDITION OF REAGENTS TO WTP
B5: H2O2 | D5: kg | F5: =NA() ->  | G5: =IF(ISNA(F5),0,INDEX(IF(UPPER(RIGHT(F5,1))=Low,UnitCostLow, IF(UPPER(RIGHT(F5,1))=High,UnitCostHigh,UnitCostSpecified)),MATCH(UPPER(LEFT(F5,LEN(F5)-1)),CostCode,0))) -> 0 | H5: =G5*E5 -> 0 | J5: H2O2 | L5: kg | O5: 0 | P5: 0 | Q5: =H5-P5 -> 0
B6: lime | D6: kg | F6: =NA() ->  | G6: 0 | H6: 0 | J6: lime | L6: kg | O6: 0 | P6: 0 | Q6: 0
B7: ferric sulphate | D7: kg | F7: =NA() ->  | G7: 0 | H7: 0 | J7: ferric sulphate | L7: kg | O7: 0 | P7: 0 | Q7: 0
B8: ferrous sulphate | D8: kg | F8: =NA() ->  | G8: 0 | H8: 0 | J8: ferrous sulphate | L8: kg | O8: 0 | P8: 0 | Q8: 0
B9: flocculants | D9: kg | F9: =NA() ->  | G9: 0 | H9: 0 | J9: flocculants | L9: kg | O9: 0 | P9: 0 | Q9: 0
B10: Other | F10: =NA() ->  | G10: 0 | H10: 0 | J10: Other | O10: 0 | P10: 0 | Q10: 0
B11: LABOUR AND SUPPLIES | J11: LABOUR AND SUPPLIES
B12: Annual fuel | D12: litres | F12: =NA() ->  | G12: =IF(ISNA(F12),0,INDEX(IF(UPPER(RIGHT(F12,1))=Low,UnitCostLow, IF(UPPER(RIGHT(F12,1))=High,UnitCostHigh,UnitCostSpecified)),MATCH(UPPER(LEFT(F12,LEN(F12)-1)),CostCode,0))) -> 0 | H12: =G12*E12 -> 0 | J12: Annual fuel | L12: litres | O12: 0 | P12: 0 | Q12: =H12-P12 -> 0
B13: Annual power | D13: kW-h | F13: =NA() ->  | G13: =IF(ISNA(F13),0,INDEX(IF(UPPER(RIGHT(F13,1))=Low,UnitCostLow, IF(UPPER(RIGHT(F13,1))=High,UnitCostHigh,UnitCostSpecified)),MATCH(UPPER(LEFT(F13,LEN(F13)-1)),CostCode,0))) -> 0 | H13: =G13*E13 -> 0 | J13: Annual power | L13: kW-h | O13: 0 | P13: 0 | Q13: 0
B14: Electrician/mechanic to maintain treatment plant | D14: allow | F14: =NA() ->  | G14: 0 | H14: 0 | J14: Electrician/mechanic to maintain treatment plant | L14: allow | O14: 0 | P14: 0 | Q14: 0
B15: Equipment maintenance and parts | D15: allow | F15: =NA() ->  | G15: 0 | H15: 0 | J15: Equipment maintenance and parts | L15: allow | O15: 0 | P15: 0 | Q15: 0
B16: Misc. supplies, hoses, tools | D16: allow | F16: =NA() ->  | G16: 0 | H16: 0 | J16: Misc. supplies, hoses, tools | L16: allow | O16: 0 | P16: 0 | Q16: 0
B17: Communications | D17: allow | F17: =NA() ->  | G17: 0 | H17: 0 | J17: Communications | L17: allow | O17: 0 | P17: 0 | Q17: 0
B18: Other | F18: =NA() ->  | G18: 0 | H18: 0 | J18: Other | O18: 0 | P18: 0 | Q18: 0
B19: WATER MANAGEMENT | J19: WATER MANAGEMENT
B20: Pump from TSF to WTP | C20: Water treament for TSF captured under Water Management Tab. | D20: m3 | F20: =NA() ->  | G20: 0 | H20: 0 | J20: Pump from Goose Main TF to WTP | K20: 7.5 Mm3 for treatment in total | L20: m3 | M20: 1071429 | N20: POCL | O20: 0.12 | P20: 128571.48 | Q20: =H20-P20 -> -128571.48
B21: Treat water in WTP | D21: m3 | F21: =NA() ->  | G21: =Unit_Costs!F186 -> 0.66105 | H21: 0 | J21: Treat water from Goose Main TF in WTP | L21: m3 | M21: 1071429 | N21: Sabina | O21: 0.65 | P21: 696428.85 | Q21: =H21-P21 -> -696428.85
B22: Pump water out of WTP | D22: m3 | F22: =NA() ->  | G22: =IF(ISNA(F22),0,INDEX(IF(UPPER(RIGHT(F22,1))=Low,UnitCostLow, IF(UPPER(RIGHT(F22,1))=High,UnitCostHigh,UnitCostSpecified)),MATCH(UPPER(LEFT(F22,LEN(F22)-1)),CostCode,0))) -> 0 | H22: 0 | J22: Pump from WTP recirc. into Goose Main TF | L22: m3 | M22: 1071429 | N22: POCL | O22: 0.12 | P22: 128571.48 | Q22: =H22-P22 -> -128571.48
B23: WTP WATER SAMPLING AND ANALYSES | J23: WTP WATER SAMPLING AND ANALYSES
B24: Sampling equipment | D24: allow | F24: =NA() ->  | G24: =IF(ISNA(F24),0,INDEX(IF(UPPER(RIGHT(F24,1))=Low,UnitCostLow, IF(UPPER(RIGHT(F24,1))=High,UnitCostHigh,UnitCostSpecified)),MATCH(UPPER(LEFT(F24,LEN(F24)-1)),CostCode,0))) -> 0 | H24: =G24*E24 -> 0 | J24: Sampling equipment | L24: allow | O24: 0 | P24: 0 | Q24: =H24-P24 -> 0
B25: Analyses | D25: allow | F25: =NA() ->  | G25: =IF(ISNA(F25),0,INDEX(IF(UPPER(RIGHT(F25,1))=Low,UnitCostLow, IF(UPPER(RIGHT(F25,1))=High,UnitCostHigh,UnitCostSpecified)),MATCH(UPPER(LEFT(F25,LEN(F25)-1)),CostCode,0))) -> 0 | H25: =G25*E25 -> 0 | J25: Analyses | L25: allow | O25: 0 | P25: 0 | Q25: =H25-P25 -> 0
B26: Shipping to laboratory | D26: allow | F26: =NA() ->  | G26: =IF(ISNA(F26),0,INDEX(IF(UPPER(RIGHT(F26,1))=Low,UnitCostLow, IF(UPPER(RIGHT(F26,1))=High,UnitCostHigh,UnitCostSpecified)),MATCH(UPPER(LEFT(F26,LEN(F26)-1)),CostCode,0))) -> 0 | H26: =G26*E26 -> 0 | J26: Shipping to laboratory | L26: allow | O26: 0 | P26: 0 | Q26: =H26-P26 -> 0
B27: Reporting | D27: allow | F27: =NA() ->  | G27: =IF(ISNA(F27),0,INDEX(IF(UPPER(RIGHT(F27,1))=Low,UnitCostLow, IF(UPPER(RIGHT(F27,1))=High,UnitCostHigh,UnitCostSpecified)),MATCH(UPPER(LEFT(F27,LEN(F27)-1)),CostCode,0))) -> 0 | H27: =G27*E27 -> 0 | J27: Reporting | L27: allow | O27: 0 | P27: 0 | Q27: =H27-P27 -> 0
B28: Other | F28: =NA() ->  | G28: =IF(ISNA(F28),0,INDEX(IF(UPPER(RIGHT(F28,1))=Low,UnitCostLow, IF(UPPER(RIGHT(F28,1))=High,UnitCostHigh,UnitCostSpecified)),MATCH(UPPER(LEFT(F28,LEN(F28)-1)),CostCode,0))) -> 0 | H28: =G28*E28 -> 0 | J28: Other | O28: 0 | P28: 0 | Q28: =H28-P28 -> 0
B29: SITE ACCESS | J29: SITE ACCESS
B30: Road maintenance (incl. snow removal) | D30: allow | F30: =NA() ->  | G30: =IF(ISNA(F30),0,INDEX(IF(UPPER(RIGHT(F30,1))=Low,UnitCostLow, IF(UPPER(RIGHT(F30,1))=High,UnitCostHigh,UnitCostSpecified)),MATCH(UPPER(LEFT(F30,LEN(F30)-1)),CostCode,0))) -> 0 | H30: =G30*E30 -> 0 | J30: Road maintenance (incl. snow removal) | L30: allow | O30: 0 | P30: 0 | Q30: =H30-P30 -> 0
B31: Winter road tariff | D31: allow | F31: =NA() ->  | G31: =IF(ISNA(F31),0,INDEX(IF(UPPER(RIGHT(F31,1))=Low,UnitCostLow, IF(UPPER(RIGHT(F31,1))=High,UnitCostHigh,UnitCostSpecified)),MATCH(UPPER(LEFT(F31,LEN(F31)-1)),CostCode,0))) -> 0 | H31: =G31*E31 -> 0 | J31: Winter road tariff | L31: allow | O31: 0 | P31: 0 | Q31: =H31-P31 -> 0
B32: Truck rental | D32: allow | F32: =NA() ->  | G32: =IF(ISNA(F32),0,INDEX(IF(UPPER(RIGHT(F32,1))=Low,UnitCostLow, IF(UPPER(RIGHT(F32,1))=High,UnitCostHigh,UnitCostSpecified)),MATCH(UPPER(LEFT(F32,LEN(F32)-1)),CostCode,0))) -> 0 | H32: =G32*E32 -> 0 | J32: Truck rental | L32: allow | O32: 0 | P32: 0 | Q32: =H32-P32 -> 0
B33: Air support | D33: allow | F33: =NA() ->  | G33: =IF(ISNA(F33),0,INDEX(IF(UPPER(RIGHT(F33,1))=Low,UnitCostLow, IF(UPPER(RIGHT(F33,1))=High,UnitCostHigh,UnitCostSpecified)),MATCH(UPPER(LEFT(F33,LEN(F33)-1)),CostCode,0))) -> 0 | H33: =G33*E33 -> 0 | J33: Air support | L33: allow | O33: 0 | P33: 0 | Q33: =H33-P33 -> 0
G35: Annual water treatment costs | H35: =(SUM(H5:H33)+0.0001) -> 0.0001 | O35: Annual water treatment costs | P35: 953571.8101 | Q35: =H35-P35 -> -953571.81
B36: Number of years of water treatment | D36: years | E36: 0 | J36: Number of years of water treatment | L36: years | M36: 7
G37: Total | H37: =AnnualTreat1Cost*E36 -> 0 | O37: Total | P37: 6675002.671 | Q37: =H37-P37 -> -6675002.671

Sheet ICM
A1: 1 | B1: Interim Care and Maintenance
B3: ACTIVITY/MATERIAL | C3: Notes | D3: Units | E3: Quantity | F3: Cost Code | G3: Unit Cost | H3: Total Cost
B4: INTERIM CARE & MAINTENANCE
B5: Camp operation | C5: Caretaker and summer personnel | D5: mandays | E5: =180+6*21 -> 306 | F5: Sabina | G5: ='SBB Comp. Est.'!X118 -> 111.87 | H5: =G5*E5 -> 34232.22
B6: On-site staff | C6: Caretaker and summer personnel | D6: manhours | E6: =(180+6*21)*10 -> 3060 | F6: ENVCO | G6: =Unit_Costs!F77 -> 75.42072 | H6: 230787.4032
B7: extra personnel | D7: manmonths | F7: =NA() ->  | G7: =IF(ISNA(F7),0,INDEX(IF(UPPER(RIGHT(F7,1))=Low,UnitCostLow, IF(UPPER(RIGHT(F7,1))=High,UnitCostHigh,UnitCostSpecified)),MATCH(UPPER(LEFT(F7,LEN(F7)-1)),CostCode,0))) -> 0 | H7: 0
B8: -electrician | D8: manmonths | F8: =NA() ->  | G8: =IF(ISNA(F8),0,INDEX(IF(UPPER(RIGHT(F8,1))=Low,UnitCostLow, IF(UPPER(RIGHT(F8,1))=High,UnitCostHigh,UnitCostSpecified)),MATCH(UPPER(LEFT(F8,LEN(F8)-1)),CostCode,0))) -> 0 | H8: =G8*E8 -> 0
B9: -mechanic | D9: manmonths | F9: =NA() ->  | G9: =IF(ISNA(F9),0,INDEX(IF(UPPER(RIGHT(F9,1))=Low,UnitCostLow, IF(UPPER(RIGHT(F9,1))=High,UnitCostHigh,UnitCostSpecified)),MATCH(UPPER(LEFT(F9,LEN(F9)-1)),CostCode,0))) -> 0 | H9: =G9*E9 -> 0
B10: annual fuel | C10: Fuel for vehicles; fuel for pumping included in water treatment cost | D10: litre | E10: 5000 | F10: FCDH | G10: 1.41363 | H10: 7068.15
B11: misc. supplies | D11: allow | E11: 1 | F11: Sabina | G11: =Unit_Costs!F187 -> 20340 | H11: =G11*E11 -> 20340
B12: pick-up truck | D12: each | F12: =NA() ->  | G12: 0 | H12: 0
B13: small dozer | D13: allow | F13: =NA() ->  | G13: 0 | H13: 0
B14: small excavator | D14: allow | F14: =NA() ->  | G14: 0 | H14: 0
B15: snow machine | D15: allow | F15: =NA() ->  | G15: 0 | H15: 0
B16: communications | D16: allow | F16: =NA() ->  | G16: 0 | H16: 0
B17: SNP/AEMP water sampling & reporting | C17: Sampling and lab costs | D17: each | E17: 1 | F17: WSH | G17: 10170 | H17: 10170
B18: geotechnical assessment | C18: Annual geotechnical inspection | D18: each | E18: 1 | F18: RPTH | G18: 20340 | H18: 20340
B19: interim water treatment | C19: Captured under Water Treatment | D19: each | E19: 1 | F19: =NA() ->  | G19: =IF(ISNA(F19),0,INDEX(IF(UPPER(RIGHT(F19,1))=Low,UnitCostLow, IF(UPPER(RIGHT(F19,1))=High,UnitCostHigh,UnitCostSpecified)),MATCH(UPPER(LEFT(F19,LEN(F19)-1)),CostCode,0))) -> 0 | H19: =G19*E19 -> 0
B20: other | D20: each | F20: =NA() ->  | G20: 0 | H20: 0
G21: Annual Interim C&M Cost | H21: =SUM(H5:H20) -> 322937.7732
B22: Number of years of ICM | D22: years | E22: 3 | G22: Total | H22: =H21*E22 -> 968813.3196

Sheet PostClosure
A1: 1 | G1: 0 Years | O1: 7 Years (Year 11 to 17) | W1: 1 Year (Year 13) | AE1: 8 Years (Year 11 to 18) | AN1: 10 Years (Year 13 to 22) | AV1: 13 Years (Year 13 to 25) | BD1: Beyond Post Closure (Long Term 1 to 5, 7, 10, 15, 25) | BK1: Beyond Post Closure (Long Term 1 to 5, 7, 10, 15, 25)
B3: ACTIVITY/MATERIAL - WATER TREATMENT | C3: Notes | D3: Units | E3: Quantity | F3: Cost Code | G3: Unit Cost | H3: Total Cost | J3: Notes | K3: Units | L3: Quantity | M3: Cost Code | N3: Unit Cost | O3: Total Cost | P3: Difference | R3: ACTIVITY/MATERIAL - GEOTECHNICAL INSPECTIONS OF TSF | S3: Notes | T3: Units | U3: Quantity | V3: Cost Code | W3: Unit Cost | X3: Total Cost | Z3: ACTIVITY/MATERIAL - GEOTECHNICAL INSPECTIONS OF TSF | AA3: Notes | AB3: Units | AC3: Quantity | AD3: Cost Code | AE3: Unit Cost | AF3: Total Cost | AG3: Difference | AI3: ACTIVITY/MATERIAL - WEMP and TERRESTRIAL | AJ3: Notes | AK3: Units | AL3: Quantity | AM3: Cost Code | AN3: Unit Cost | AO3: Total Cost | AQ3: ACTIVITY/MATERIAL - Monitoring & Maintenance | AR3: Notes | AS3: Units | AT3: Quantity | AU3: Cost Code | AV3: Unit Cost | AW3: Total Cost | AY3: ACTIVITY/MATERIAL - Long Term Monitoring | AZ3: Notes | BA3: Units | BB3: Quantity | BC3: Cost Code | BD3: Unit Cost | BE3: Total Cost | BG3: Notes | BH3: Units | BI3: Quantity | BJ3: Cost Code | BK3: Unit Cost | BL3: Total Cost
B4: MONITORING & INSPECTIONS | R4: MONITORING & INSPECTIONS | Z4: MONITORING & INSPECTIONS | AI4: MONITORING & INSPECTIONS | AQ4: MONITORING & INSPECTIONS | AY4: MONITORING & INSPECTIONS
B5: Total geotechnical inspections (1 yearly) | D5: year | E5: ='SBB Comp. Est.'!N142/8 -> 0 | F5: =NA() ->  | G5: =IF(ISNA(F5),0,INDEX(IF(UPPER(RIGHT(F5,1))=Low,UnitCostLow, IF(UPPER(RIGHT(F5,1))=High,UnitCostHigh,UnitCostSpecified)),MATCH(UPPER(LEFT(F5,LEN(F5)-1)),CostCode,0))) -> 0 | H5: =G5*E5 -> 0 | K5: year | L5: 0 | N5: 0 | O5: 0 | P5: =H5-O5 -> 0 | R5: Total geotechnical inspections (1 yearly) | S5: Annual inspection of the TSF from Closure until embankment breaching in Year 13 (1 year). | T5: year | U5: ='SBB Comp. Est.'!F142/8 -> 1 | V5: RPTH | W5: =IF(ISNA(V5),0,INDEX(IF(UPPER(RIGHT(V5,1))=Low,UnitCostLow, IF(UPPER(RIGHT(V5,1))=High,UnitCostHigh,UnitCostSpecified)),MATCH(UPPER(LEFT(V5,LEN(V5)-1)),CostCode,0))) -> 20340 | X5: =W5*U5 -> 20340 | Z5: Total geotechnical inspections (1 yearly) | AA5: Annual inspection of the TSF from Closure until embankment breaching in Year 18 (8 years). | AB5: year | AC5: 1 | AD5: RPTH | AE5: 20000 | AF5: 20000 | AG5: =X5-AF5 -> 340 | AI5: Total geotechnical inspections (1 yearly) | AK5: year | AM5: =NA() ->  | AN5: =IF(ISNA(AM5),0,INDEX(IF(UPPER(RIGHT(AM5,1))=Low,UnitCostLow, IF(UPPER(RIGHT(AM5,1))=High,UnitCostHigh,UnitCostSpecified)),MATCH(UPPER(LEFT(AM5,LEN(AM5)-1)),CostCode,0))) -> 0 | AO5: =AN5*AL5 -> 0 | AQ5: Total geotechnical inspections (1 yearly) | AS5: year | AU5: =NA() ->  | AV5: =IF(ISNA(AU5),0,INDEX(IF(UPPER(RIGHT(AU5,1))=Low,UnitCostLow, IF(UPPER(RIGHT(AU5,1))=High,UnitCostHigh,UnitCostSpecified)),MATCH(UPPER(LEFT(AU5,LEN(AU5)-1)),CostCode,0))) -> 0 | AW5: =AV5*AT5 -> 0 | AY5: General Water Sampling and Stability Monitoring | AZ5: long term general monitoring | BA5: year | BB5: 1 | BC5: Sabina | BD5: =Unit_Costs!F189 -> 40680 | BE5: =BD5*BB5 -> 40680 | BG5: long term general monitoring | BH5: year | BI5: 1 | BJ5: Sabina | BK5: =Unit_Costs!M189 -> 0 | BL5: =BK5*BI5 -> 0
B6: Waste Rock Piles | D6: year | F6: =NA() ->  | G6: =IF(ISNA(F6),0,INDEX(IF(UPPER(RIGHT(F6,1))=Low,UnitCostLow, IF(UPPER(RIGHT(F6,1))=High,UnitCostHigh,UnitCostSpecified)),MATCH(UPPER(LEFT(F6,LEN(F6)-1)),CostCode,0))) -> 0 | H6: =G6*E6 -> 0 | K6: year | N6: 0 | O6: 0 | P6: =H6-O6 -> 0 | R6: Waste Rock Piles | T6: year | V6: =NA() ->  | W6: 0 | X6: 0 | Z6: Waste Rock Piles | AB6: year | AE6: 0 | AF6: 0 | AG6: =X6-AF6 -> 0 | AI6: Waste Rock Piles | AK6: year | AM6: =NA() ->  | AN6: =IF(ISNA(AM6),0,INDEX(IF(UPPER(RIGHT(AM6,1))=Low,UnitCostLow, IF(UPPER(RIGHT(AM6,1))=High,UnitCostHigh,UnitCostSpecified)),MATCH(UPPER(LEFT(AM6,LEN(AM6)-1)),CostCode,0))) -> 0 | AO6: =AN6*AL6 -> 0 | AQ6: Waste Rock Piles | AR6: Annual inspection of WR piles from closure to post-closure (13 years) | AS6: year | AT6: ='SBB Comp. Est.'!F143/13 -> 1 | AU6: Sabina | AV6: ='SBB Comp. Est.'!X143 -> 8441.1 | AW6: =AV6*AT6 -> 8441.1 | AY6: Waste Rock Piles | BA6: year | BC6: =NA() ->  | BD6: =IF(ISNA(BC6),0,INDEX(IF(UPPER(RIGHT(BC6,1))=Low,UnitCostLow, IF(UPPER(RIGHT(BC6,1))=High,UnitCostHigh,UnitCostSpecified)),MATCH(UPPER(LEFT(BC6,LEN(BC6)-1)),CostCode,0))) -> 0 | BE6: 0 | BH6: year | BJ6: =NA() ->  | BK6: =IF(ISNA(BJ6),0,INDEX(IF(UPPER(RIGHT(BJ6,1))=Low,UnitCostLow, IF(UPPER(RIGHT(BJ6,1))=High,UnitCostHigh,UnitCostSpecified)),MATCH(UPPER(LEFT(BJ6,LEN(BJ6)-1)),CostCode,0))) -> 0 | BL6: 0
B7: Pit Walls | D7: year | F7: =NA() ->  | G7: 0 | H7: 0 | K7: year | N7: 0 | O7: 0 | P7: 0 | R7: Pit Walls | T7: year | V7: =NA() ->  | W7: 0 | X7: 0 | Z7: Pit Walls | AB7: year | AE7: 0 | AF7: 0 | AG7: 0 | AI7: Pit Walls | AK7: year | AM7: =NA() ->  | AN7: 0 | AO7: 0 | AQ7: Pit Walls | AR7: Annual inspection of pit walls from closure to post-closure (13 years) | AS7: year | AT7: ='SBB Comp. Est.'!F144/13 -> 1 | AU7: Sabina | AV7: ='SBB Comp. Est.'!X144 -> 4068 | AW7: =AV7*AT7 -> 4068 | AY7: Pit Walls | BA7: year | BC7: =NA() ->  | BD7: 0 | BE7: 0 | BH7: year | BJ7: =NA() ->  | BK7: 0 | BL7: 0
B8: WR GTC Monitoring | D8: year | F8: =NA() ->  | G8: 0 | H8: 0 | K8: year | N8: 0 | O8: 0 | P8: 0 | R8: WR GTC Monitoring | T8: year | V8: =NA() ->  | W8: =IF(ISNA(V8),0,INDEX(IF(UPPER(RIGHT(V8,1))=Low,UnitCostLow, IF(UPPER(RIGHT(V8,1))=High,UnitCostHigh,UnitCostSpecified)),MATCH(UPPER(LEFT(V8,LEN(V8)-1)),CostCode,0))) -> 0 | X8: =W8*U8 -> 0 | Z8: WR GTC Monitoring | AB8: year | AE8: 0 | AF8: 0 | AG8: 0 | AI8: WR GTC Monitoring | AK8: year | AM8: =NA() ->  | AN8: 0 | AO8: 0 | AQ8: WR GTC Monitoring | AR8: Umwelt, Llama, and TSF WRSA ground temp cable annual monitoring. No GTCs at Echo WRSA (13 years) | AS8: year | AT8: 1 | AU8: Sabina | AV8: =('SBB Comp. Est.'!X146+'SBB Comp. Est.'!X147+'SBB Comp. Est.'!X148) -> 14644.8 | AW8: =AV8*AT8 -> 14644.8 | AY8: WR GTC Monitoring | BA8: year | BC8: =NA() ->  | BD8: 0 | BE8: 0 | BH8: year | BJ8: =NA() ->  | BK8: 0 | BL8: 0
B9: Survey inspection | D9: each | F9: =NA() ->  | G9: 0 | H9: 0 | K9: each | N9: 0 | O9: 0 | P9: 0 | R9: Survey inspection | T9: each | V9: =NA() ->  | W9: =IF(ISNA(V9),0,INDEX(IF(UPPER(RIGHT(V9,1))=Low,UnitCostLow, IF(UPPER(RIGHT(V9,1))=High,UnitCostHigh,UnitCostSpecified)),MATCH(UPPER(LEFT(V9,LEN(V9)-1)),CostCode,0))) -> 0 | X9: 0 | Z9: Survey inspection | AB9: each | AE9: 0 | AF9: 0 | AG9: 0 | AI9: Survey inspection | AK9: each | AM9: =NA() ->  | AN9: =IF(ISNA(AM9),0,INDEX(IF(UPPER(RIGHT(AM9,1))=Low,UnitCostLow, IF(UPPER(RIGHT(AM9,1))=High,UnitCostHigh,UnitCostSpecified)),MATCH(UPPER(LEFT(AM9,LEN(AM9)-1)),CostCode,0))) -> 0 | AO9: =AN9*AL9 -> 0 | AQ9: Survey inspection | AS9: each | AU9: =NA() ->  | AV9: =IF(ISNA(AU9),0,INDEX(IF(UPPER(RIGHT(AU9,1))=Low,UnitCostLow, IF(UPPER(RIGHT(AU9,1))=High,UnitCostHigh,UnitCostSpecified)),MATCH(UPPER(LEFT(AU9,LEN(AU9)-1)),CostCode,0))) -> 0 | AW9: =AV9*AT9 -> 0 | AY9: Survey inspection | BA9: each | BC9: =NA() ->  | BD9: =IF(ISNA(BC9),0,INDEX(IF(UPPER(RIGHT(BC9,1))=Low,UnitCostLow, IF(UPPER(RIGHT(BC9,1))=High,UnitCostHigh,UnitCostSpecified)),MATCH(UPPER(LEFT(BC9,LEN(BC9)-1)),CostCode,0))) -> 0 | BE9: =BD9*BB9 -> 0 | BH9: each | BJ9: =NA() ->  | BK9: 0 | BL9: 0
B10: Regulatory costs | D10: year | F10: =NA() ->  | G10: 0 | H10: 0 | K10: year | N10: 0 | O10: 0 | P10: 0 | R10: Regulatory costs | T10: year | V10: =NA() ->  | W10: 0 | X10: =W10*U10 -> 0 | Z10: Regulatory costs | AB10: year | AE10: 0 | AF10: 0 | AG10: 0 | AI10: Regulatory costs* | AK10: year | AM10: =NA() ->  | AN10: 0 | AO10: 0 | AQ10: Regulatory costs | AR10: annual reporting, management plans, progress reports (13 years) | AS10: year | AT10: 1 | AU10: Sabina | AV10: =Unit_Costs!F188 -> 25425 | AW10: 25425 | AY10: Regulatory costs | BA10: each | BB10: 1 | BC10: RPTH | BD10: =IF(ISNA(BC10),0,INDEX(IF(UPPER(RIGHT(BC10,1))=Low,UnitCostLow, IF(UPPER(RIGHT(BC10,1))=High,UnitCostHigh,UnitCostSpecified)),MATCH(UPPER(LEFT(BC10,LEN(BC10)-1)),CostCode,0))) -> 20340 | BE10: =BD10*BB10 -> 20340 | BH10: each | BI10: 1 | BJ10: RPTH | BK10: 20340 | BL10: 20340
B11: Site water monitoring | D11: each | F11: =NA() ->  | G11: 0 | H11: 0 | K11: each | N11: 0 | O11: 0 | P11: 0 | R11: Site water monitoring | T11: each | V11: =NA() ->  | W11: 0 | X11: 0 | Z11: Site water monitoring | AB11: each | AE11: 0 | AF11: 0 | AG11: 0 | AI11: Site water monitoring | AK11: each | AM11: =NA() ->  | AN11: 0 | AO11: =AN11*AL11 -> 0 | AQ11: Site water monitoring | AR11: All pits and WR piles closure and post closure monitoring (13 years) | AS11: year | AT11: ='SBB Comp. Est.'!F150/13 -> 1 | AU11: Sabina | AV11: =SUM('SBB Comp. Est.'!X150:X157) -> 9275.04 | AW11: =AV11*AT11 -> 9275.04 | AY11: Site water monitoring | BA11: year | BC11: =NA() ->  | BD11: 0 | BE11: 0 | BH11: year | BJ11: =NA() ->  | BK11: 0 | BL11: 0
B12: - Active closure and flooding | D12: each | F12: =NA() ->  | G12: 0 | H12: 0 | K12: each | N12: 0 | O12: 0 | P12: 0 | R12: - Active closure and flooding | T12: each | V12: =NA() ->  | W12: 0 | X12: 0 | Z12: - Active closure and flooding | AB12: each | AE12: 0 | AF12: 0 | AG12: 0 | AI12: - Active closure and flooding | AK12: each | AM12: =NA() ->  | AN12: =IF(ISNA(AM12),0,INDEX(IF(UPPER(RIGHT(AM12,1))=Low,UnitCostLow, IF(UPPER(RIGHT(AM12,1))=High,UnitCostHigh,UnitCostSpecified)),MATCH(UPPER(LEFT(AM12,LEN(AM12)-1)),CostCode,0))) -> 0 | AO12: 0 | AQ12: - Active closure and flooding | AS12: each | AU12: =NA() ->  | AV12: =IF(ISNA(AU12),0,INDEX(IF(UPPER(RIGHT(AU12,1))=Low,UnitCostLow, IF(UPPER(RIGHT(AU12,1))=High,UnitCostHigh,UnitCostSpecified)),MATCH(UPPER(LEFT(AU12,LEN(AU12)-1)),CostCode,0))) -> 0 | AW12: 0 | AY12: - Active closure and flooding | BA12: each | BC12: =NA() ->  | BD12: =IF(ISNA(BC12),0,INDEX(IF(UPPER(RIGHT(BC12,1))=Low,UnitCostLow, IF(UPPER(RIGHT(BC12,1))=High,UnitCostHigh,UnitCostSpecified)),MATCH(UPPER(LEFT(BC12,LEN(BC12)-1)),CostCode,0))) -> 0 | BE12: =BD12*BB12 -> 0 | BH12: each | BJ12: =NA() ->  | BK12: 0 | BL12: 0
B13: - Post pit flooding | D13: each | F13: =NA() ->  | G13: 0 | H13: 0 | K13: each | N13: 0 | O13: 0 | P13: 0 | R13: - Post pit flooding | T13: each | V13: =NA() ->  | W13: 0 | X13: 0 | Z13: - Post pit flooding | AB13: each | AE13: 0 | AF13: 0 | AG13: 0 | AI13: - Post pit flooding | AK13: each | AM13: =NA() ->  | AN13: 0 | AO13: 0 | AQ13: - Post pit flooding | AS13: each | AU13: =NA() ->  | AV13: 0 | AW13: 0 | AY13: - Post pit flooding | BA13: each | BC13: =NA() ->  | BD13: 0 | BE13: 0 | BH13: each | BJ13: =NA() ->  | BK13: 0 | BL13: 0
B14: Wildlife Effects Monitoring Program (WEMP) | D14: year | F14: =NA() ->  | G14: 0 | H14: 0 | K14: year | N14: 0 | O14: 0 | P14: 0 | R14: Wildlife Effects Monitoring Program (WEMP) | T14: year | V14: =NA() ->  | W14: 0 | X14: =W14*U14 -> 0 | Z14: Wildlife Effects Monitoring Program (WEMP) | AB14: year | AE14: 0 | AF14: 0 | AG14: 0 | AI14: Wildlife Effects Monitoring Program (WEMP) | AJ14: Aquatics - Non-contact water basins (10 years) | AK14: year | AL14: ='SBB Comp. Est.'!F159/10 -> 1 | AM14: Sabina | AN14: ='SBB Comp. Est.'!X159 -> 4881.6 | AO14: =AN14*AL14 -> 4881.6 | AQ14: Wildlife Effects Monitoring Program (WEMP) | AS14: year | AU14: =NA() ->  | AV14: =IF(ISNA(AU14),0,INDEX(IF(UPPER(RIGHT(AU14,1))=Low,UnitCostLow, IF(UPPER(RIGHT(AU14,1))=High,UnitCostHigh,UnitCostSpecified)),MATCH(UPPER(LEFT(AU14,LEN(AU14)-1)),CostCode,0))) -> 0 | AW14: =AV14*AT14 -> 0 | AY14: Wildlife Effects Monitoring Program (WEMP) | BA14: year | BC14: =NA() ->  | BD14: 0 | BE14: 0 | BH14: year | BJ14: =NA() ->  | BK14: 0 | BL14: 0
B15: Terrestrial Animal Monitoring | D15: year | F15: =NA() ->  | G15: 0 | H15: 0 | K15: year | N15: 0 | O15: 0 | P15: 0 | R15: Terrestrial Animal Monitoring | T15: year | V15: =NA() ->  | W15: 0 | X15: 0 | Z15: Terrestrial Animal Monitoring | AB15: year | AE15: 0 | AF15: 0 | AG15: 0 | AI15: Terrestrial Animal Monitoring | AJ15: Terrestrial Animal Monitoring (10 years) | AK15: year | AL15: ='SBB Comp. Est.'!F161/10 -> 1 | AM15: Sabina | AN15: ='SBB Comp. Est.'!X161 -> 24408 | AO15: =AN15*AL15 -> 24408 | AQ15: Terrestrial Animal Monitoring | AS15: year | AU15: =NA() ->  | AV15: 0 | AW15: 0 | AY15: Terrestrial Animal Monitoring | BA15: year | BC15: =NA() ->  | BD15: 0 | BE15: 0 | BH15: year | BJ15: =NA() ->  | BK15: 0 | BL15: 0
B16: Vegetation Monitoring | D16: each | F16: =NA() ->  | G16: 0 | H16: 0 | K16: each | N16: 0 | O16: 0 | P16: 0 | R16: Vegetation Monitoring | T16: each | V16: =NA() ->  | W16: =IF(ISNA(V16),0,INDEX(IF(UPPER(RIGHT(V16,1))=Low,UnitCostLow, IF(UPPER(RIGHT(V16,1))=High,UnitCostHigh,UnitCostSpecified)),MATCH(UPPER(LEFT(V16,LEN(V16)-1)),CostCode,0))) -> 0 | X16: 0 | Z16: Vegetation Monitoring | AB16: each | AE16: 0 | AF16: 0 | AG16: 0 | AI16: Vegetation Monitoring | AK16: each | AM16: =NA() ->  | AN16: =IF(ISNA(AM16),0,INDEX(IF(UPPER(RIGHT(AM16,1))=Low,UnitCostLow, IF(UPPER(RIGHT(AM16,1))=High,UnitCostHigh,UnitCostSpecified)),MATCH(UPPER(LEFT(AM16,LEN(AM16)-1)),CostCode,0))) -> 0 | AO16: 0 | AQ16: Vegetation Monitoring | AS16: each | AU16: =NA() ->  | AV16: =IF(ISNA(AU16),0,INDEX(IF(UPPER(RIGHT(AU16,1))=Low,UnitCostLow, IF(UPPER(RIGHT(AU16,1))=High,UnitCostHigh,UnitCostSpecified)),MATCH(UPPER(LEFT(AU16,LEN(AU16)-1)),CostCode,0))) -> 0 | AW16: 0 | AY16: Vegetation Monitoring | BA16: each | BC16: =NA() ->  | BD16: 0 | BE16: 0 | BH16: each | BJ16: =NA() ->  | BK16: 0 | BL16: 0
B17: Maintain gravel road surface | D17: each | F17: =NA() ->  | G17: 0 | H17: 0 | K17: each | N17: 0 | O17: 0 | P17: 0 | R17: Maintain gravel road surface | T17: each | V17: =NA() ->  | W17: =IF(ISNA(V17),0,INDEX(IF(UPPER(RIGHT(V17,1))=Low,UnitCostLow, IF(UPPER(RIGHT(V17,1))=High,UnitCostHigh,UnitCostSpecified)),MATCH(UPPER(LEFT(V17,LEN(V17)-1)),CostCode,0))) -> 0 | X17: =W17*U17 -> 0 | Z17: Maintain gravel road surface | AB17: each | AE17: 0 | AF17: 0 | AG17: 0 | AI17: Maintain gravel road surface | AK17: year | AM17: =NA() ->  | AN17: 0 | AO17: 0 | AQ17: Maintain gravel road surface | AR17: maintenance from closure to post-closure (13 years) | AS17: year | AT17: ='SBB Comp. Est.'!F121/13 -> 1 | AU17: Sabina | AV17: ='SBB Comp. Est.'!X121 -> 13882.05 | AW17: =AV17*AT17 -> 13882.05 | AY17: Maintain gravel road surface | BA17: year | BC17: =NA() ->  | BD17: 0 | BE17: 0 | BH17: year | BJ17: =NA() ->  | BK17: 0 | BL17: 0
B18: Maintain airstrip surface | D18: each | F18: =NA() ->  | G18: 0 | H18: 0 | K18: each | N18: 0 | O18: 0 | P18: 0 | R18: Maintain airstrip surface | T18: each | V18: =NA() ->  | W18: 0 | X18: 0 | Z18: Maintain airstrip surface | AB18: each | AE18: 0 | AF18: 0 | AG18: 0 | AI18: Maintain airstrip surface | AK18: year | AM18: =NA() ->  | AN18: 0 | AO18: 0 | AQ18: Maintain airstrip surface | AR18: maintenance from closure to post-closure (13 years) | AS18: year | AT18: ='SBB Comp. Est.'!F124/13 -> 1 | AU18: Sabina | AV18: ='SBB Comp. Est.'!X124 -> 3966.3 | AW18: =AV18*AT18 -> 3966.3 | AY18: Maintain airstrip surface | BA18: year | BC18: =NA() ->  | BD18: 0 | BE18: 0 | BH18: year | BJ18: =NA() ->  | BK18: 0 | BL18: 0
B19: Other | F19: =NA() ->  | G19: =IF(ISNA(F19),0,INDEX(IF(UPPER(RIGHT(F19,1))=Low,UnitCostLow, IF(UPPER(RIGHT(F19,1))=High,UnitCostHigh,UnitCostSpecified)),MATCH(UPPER(LEFT(F19,LEN(F19)-1)),CostCode,0))) -> 0 | H19: =G19*E19 -> 0 | N19: 0 | O19: 0 | P19: 0 | R19: Other | V19: =NA() ->  | W19: =IF(ISNA(V19),0,INDEX(IF(UPPER(RIGHT(V19,1))=Low,UnitCostLow, IF(UPPER(RIGHT(V19,1))=High,UnitCostHigh,UnitCostSpecified)),MATCH(UPPER(LEFT(V19,LEN(V19)-1)),CostCode,0))) -> 0 | X19: =W19*U19 -> 0 | Z19: Other | AE19: 0 | AF19: 0 | AG19: 0 | AI19: Other | AM19: =NA() ->  | AN19: =IF(ISNA(AM19),0,INDEX(IF(UPPER(RIGHT(AM19,1))=Low,UnitCostLow, IF(UPPER(RIGHT(AM19,1))=High,UnitCostHigh,UnitCostSpecified)),MATCH(UPPER(LEFT(AM19,LEN(AM19)-1)),CostCode,0))) -> 0 | AO19: =AN19*AL19 -> 0 | AQ19: Other | AU19: =NA() ->  | AV19: =IF(ISNA(AU19),0,INDEX(IF(UPPER(RIGHT(AU19,1))=Low,UnitCostLow, IF(UPPER(RIGHT(AU19,1))=High,UnitCostHigh,UnitCostSpecified)),MATCH(UPPER(LEFT(AU19,LEN(AU19)-1)),CostCode,0))) -> 0 | AW19: =AV19*AT19 -> 0 | AY19: Other - Site Access | AZ19: Float plane access | BA19: each | BB19: 1 | BC19: MWH | BD19: =IF(ISNA(BC19),0,INDEX(IF(UPPER(RIGHT(BC19,1))=Low,UnitCostLow, IF(UPPER(RIGHT(BC19,1))=High,UnitCostHigh,UnitCostSpecified)),MATCH(UPPER(LEFT(BC19,LEN(BC19)-1)),CostCode,0))) -> 9254.7 | BE19: =BD19*BB19 -> 9254.7 | BG19: Float plane access | BH19: each | BI19: 1 | BJ19: MWH | BK19: =IF(ISNA(BJ19),0,INDEX(IF(UPPER(RIGHT(BJ19,1))=Low,UnitCostLow, IF(UPPER(RIGHT(BJ19,1))=High,UnitCostHigh,UnitCostSpecified)),MATCH(UPPER(LEFT(BJ19,LEN(BJ19)-1)),CostCode,0))) -> 9254.7 | BL19: =BK19*BI19 -> 9254.7
B20: COVER MAINTENANCE | R20: COVER MAINTENANCE | Z20: COVER MAINTENANCE | AI20: COVER MAINTENANCE | AQ20: COVER MAINTENANCE | AY20: COVER MAINTENANCE
B21: Repair erosion - infill gullies | D21: allow | F21: =NA() ->  | G21: =IF(ISNA(F21),0,INDEX(IF(UPPER(RIGHT(F21,1))=Low,UnitCostLow, IF(UPPER(RIGHT(F21,1))=High,UnitCostHigh,UnitCostSpecified)),MATCH(UPPER(LEFT(F21,LEN(F21)-1)),CostCode,0))) -> 0 | H21: =G21*E21 -> 0 | K21: allow | N21: 0 | O21: 0 | P21: =H21-O21 -> 0 | R21: Repair erosion - infill gullies | T21: allow | V21: =NA() ->  | W21: 0 | X21: =W21*U21 -> 0 | Z21: Repair erosion - infill gullies | AB21: allow | AE21: 0 | AF21: 0 | AG21: 0 | AI21: Repair erosion - infill gullies | AK21: allow | AM21: =NA() ->  | AN21: =IF(ISNA(AM21),0,INDEX(IF(UPPER(RIGHT(AM21,1))=Low,UnitCostLow, IF(UPPER(RIGHT(AM21,1))=High,UnitCostHigh,UnitCostSpecified)),MATCH(UPPER(LEFT(AM21,LEN(AM21)-1)),CostCode,0))) -> 0 | AO21: =AN21*AL21 -> 0 | AQ21: Repair erosion - infill gullies | AS21: allow | AU21: =NA() ->  | AV21: =IF(ISNA(AU21),0,INDEX(IF(UPPER(RIGHT(AU21,1))=Low,UnitCostLow, IF(UPPER(RIGHT(AU21,1))=High,UnitCostHigh,UnitCostSpecified)),MATCH(UPPER(LEFT(AU21,LEN(AU21)-1)),CostCode,0))) -> 0 | AW21: =AV21*AT21 -> 0 | AY21: Repair erosion - infill gullies | BA21: allow | BC21: =NA() ->  | BD21: =IF(ISNA(BC21),0,INDEX(IF(UPPER(RIGHT(BC21,1))=Low,UnitCostLow, IF(UPPER(RIGHT(BC21,1))=High,UnitCostHigh,UnitCostSpecified)),MATCH(UPPER(LEFT(BC21,LEN(BC21)-1)),CostCode,0))) -> 0 | BE21: =BD21*BB21 -> 0 | BH21: allow | BJ21: =NA() ->  | BK21: =IF(ISNA(BJ21),0,INDEX(IF(UPPER(RIGHT(BJ21,1))=Low,UnitCostLow, IF(UPPER(RIGHT(BJ21,1))=High,UnitCostHigh,UnitCostSpecified)),MATCH(UPPER(LEFT(BJ21,LEN(BJ21)-1)),CostCode,0))) -> 0 | BL21: =BK21*BI21 -> 0
B22: Repair erosion - upgrade diversion ditches | D22: allow | F22: =NA() ->  | G22: 0 | H22: 0 | K22: allow | N22: 0 | O22: 0 | P22: 0 | R22: Repair erosion - upgrade diversion ditches | T22: allow | V22: =NA() ->  | W22: 0 | X22: 0 | Z22: Repair erosion - upgrade diversion ditches | AB22: allow | AE22: 0 | AF22: 0 | AG22: 0 | AI22: Repair erosion - upgrade diversion ditches | AK22: allow | AM22: =NA() ->  | AN22: 0 | AO22: 0 | AQ22: Repair erosion - upgrade diversion ditches | AS22: allow | AU22: =NA() ->  | AV22: 0 | AW22: 0 | AY22: Repair erosion - upgrade diversion ditches | BA22: allow | BC22: =NA() ->  | BD22: 0 | BE22: 0 | BH22: allow | BJ22: =NA() ->  | BK22: 0 | BL22: 0
B23: Remove problem vegetation | D23: allow | F23: =NA() ->  | G23: 0 | H23: 0 | K23: allow | N23: 0 | O23: 0 | P23: 0 | R23: Remove problem vegetation | T23: allow | V23: =NA() ->  | W23: 0 | X23: 0 | Z23: Remove problem vegetation | AB23: allow | AE23: 0 | AF23: 0 | AG23: 0 | AI23: Remove problem vegetation | AK23: allow | AM23: =NA() ->  | AN23: 0 | AO23: 0 | AQ23: Remove problem vegetation | AS23: allow | AU23: =NA() ->  | AV23: 0 | AW23: 0 | AY23: Remove problem vegetation | BA23: allow | BC23: =NA() ->  | BD23: 0 | BE23: 0 | BH23: allow | BJ23: =NA() ->  | BK23: 0 | BL23: 0
B24: Repair animal damage | D24: allow | F24: =NA() ->  | G24: 0 | H24: 0 | K24: allow | N24: 0 | O24: 0 | P24: 0 | R24: Repair animal damage | T24: allow | V24: =NA() ->  | W24: 0 | X24: 0 | Z24: Repair animal damage | AB24: allow | AE24: 0 | AF24: 0 | AG24: 0 | AI24: Repair animal damage | AK24: allow | AM24: =NA() ->  | AN24: 0 | AO24: 0 | AQ24: Repair animal damage | AS24: allow | AU24: =NA() ->  | AV24: 0 | AW24: 0 | AY24: Repair animal damage | BA24: allow | BC24: =NA() ->  | BD24: 0 | BE24: 0 | BH24: allow | BJ24: =NA() ->  | BK24: 0 | BL24: 0
B25: Repair/upgrade access controls | D25: allow | F25: =NA() ->  | G25: 0 | H25: 0 | K25: allow | N25: 0 | O25: 0 | P25: 0 | R25: Repair/upgrade access controls | T25: allow | V25: =NA() ->  | W25: 0 | X25: 0 | Z25: Repair/upgrade access controls | AB25: allow | AE25: 0 | AF25: 0 | AG25: 0 | AI25: Repair/upgrade access controls | AK25: allow | AM25: =NA() ->  | AN25: 0 | AO25: 0 | AQ25: Repair/upgrade access controls | AS25: allow | AU25: =NA() ->  | AV25: 0 | AW25: 0 | AY25: Repair/upgrade access controls | BA25: allow | BC25: =NA() ->  | BD25: 0 | BE25: 0 | BH25: allow | BJ25: =NA() ->  | BK25: 0 | BL25: 0
B26: Other | F26: =NA() ->  | G26: 0 | H26: 0 | N26: 0 | O26: 0 | P26: 0 | R26: Other | V26: =NA() ->  | W26: 0 | X26: 0 | Z26: Other | AE26: 0 | AF26: 0 | AG26: 0 | AI26: Other | AM26: =NA() ->  | AN26: 0 | AO26: 0 | AQ26: Other | AU26: =NA() ->  | AV26: 0 | AW26: 0 | AY26: Other | BC26: =NA() ->  | BD26: 0 | BE26: 0 | BJ26: =NA() ->  | BK26: 0 | BL26: 0
B27: SPILLWAY MAINTENANCE | R27: SPILLWAY MAINTENANCE | Z27: SPILLWAY MAINTENANCE | AI27: SPILLWAY MAINTENANCE | AQ27: SPILLWAY MAINTENANCE | AY27: SPILLWAY MAINTENANCE
B28: Repair erosion | D28: m3 | F28: =NA() ->  | G28: =IF(ISNA(F28),0,INDEX(IF(UPPER(RIGHT(F28,1))=Low,UnitCostLow, IF(UPPER(RIGHT(F28,1))=High,UnitCostHigh,UnitCostSpecified)),MATCH(UPPER(LEFT(F28,LEN(F28)-1)),CostCode,0))) -> 0 | H28: =G28*E28 -> 0 | K28: m3 | N28: 0 | O28: 0 | P28: =H28-O28 -> 0 | R28: Repair erosion | T28: m3 | V28: =NA() ->  | W28: 0 | X28: =W28*U28 -> 0 | Z28: Repair erosion | AB28: m3 | AE28: 0 | AF28: 0 | AG28: 0 | AI28: Repair erosion | AK28: m3 | AM28: =NA() ->  | AN28: =IF(ISNA(AM28),0,INDEX(IF(UPPER(RIGHT(AM28,1))=Low,UnitCostLow, IF(UPPER(RIGHT(AM28,1))=High,UnitCostHigh,UnitCostSpecified)),MATCH(UPPER(LEFT(AM28,LEN(AM28)-1)),CostCode,0))) -> 0 | AO28: =AN28*AL28 -> 0 | AQ28: Repair erosion | AS28: m3 | AU28: =NA() ->  | AV28: =IF(ISNA(AU28),0,INDEX(IF(UPPER(RIGHT(AU28,1))=Low,UnitCostLow, IF(UPPER(RIGHT(AU28,1))=High,UnitCostHigh,UnitCostSpecified)),MATCH(UPPER(LEFT(AU28,LEN(AU28)-1)),CostCode,0))) -> 0 | AW28: =AV28*AT28 -> 0 | AY28: Repair erosion | BA28: m3 | BC28: =NA() ->  | BD28: =IF(ISNA(BC28),0,INDEX(IF(UPPER(RIGHT(BC28,1))=Low,UnitCostLow, IF(UPPER(RIGHT(BC28,1))=High,UnitCostHigh,UnitCostSpecified)),MATCH(UPPER(LEFT(BC28,LEN(BC28)-1)),CostCode,0))) -> 0 | BE28: =BD28*BB28 -> 0 | BH28: m3 | BJ28: =NA() ->  | BK28: =IF(ISNA(BJ28),0,INDEX(IF(UPPER(RIGHT(BJ28,1))=Low,UnitCostLow, IF(UPPER(RIGHT(BJ28,1))=High,UnitCostHigh,UnitCostSpecified)),MATCH(UPPER(LEFT(BJ28,LEN(BJ28)-1)),CostCode,0))) -> 0 | BL28: =BK28*BI28 -> 0
B29: Clear spillway | D29: each | F29: =NA() ->  | G29: 0 | H29: =G29*E29 -> 0 | K29: each | N29: 0 | O29: 0 | P29: 0 | R29: Clear spillway | T29: each | V29: =NA() ->  | W29: 0 | X29: =W29*U29 -> 0 | Z29: Clear spillway | AB29: each | AE29: 0 | AF29: 0 | AG29: 0 | AI29: Clear spillway | AK29: each | AM29: =NA() ->  | AN29: 0 | AO29: =AN29*AL29 -> 0 | AQ29: Clear spillway | AS29: each | AU29: =NA() ->  | AV29: 0 | AW29: =AV29*AT29 -> 0 | AY29: Clear spillway | BA29: each | BC29: =NA() ->  | BD29: 0 | BE29: =BD29*BB29 -> 0 | BH29: each | BJ29: =NA() ->  | BK29: 0 | BL29: =BK29*BI29 -> 0
B30: CWTS MAINTENANCE | R30: CWTS MAINTENANCE | Z30: CWTS MAINTENANCE | AI30: CWTS MAINTENANCE | AQ30: CWTS MAINTENANCE | AY30: CWTS MAINTENANCE
B31: Maintain flow, restore vegetation | D31: allow | F31: =NA() ->  | G31: =IF(ISNA(F31),0,INDEX(IF(UPPER(RIGHT(F31,1))=Low,UnitCostLow, IF(UPPER(RIGHT(F31,1))=High,UnitCostHigh,UnitCostSpecified)),MATCH(UPPER(LEFT(F31,LEN(F31)-1)),CostCode,0))) -> 0 | H31: =G31*E31 -> 0 | K31: allow | N31: 0 | O31: 0 | P31: =H31-O31 -> 0 | R31: Maintain flow, restore vegetation | T31: allow | V31: =NA() ->  | W31: =IF(ISNA(V31),0,INDEX(IF(UPPER(RIGHT(V31,1))=Low,UnitCostLow, IF(UPPER(RIGHT(V31,1))=High,UnitCostHigh,UnitCostSpecified)),MATCH(UPPER(LEFT(V31,LEN(V31)-1)),CostCode,0))) -> 0 | X31: =W31*U31 -> 0 | Z31: Maintain flow, restore vegetation | AB31: allow | AE31: 0 | AF31: 0 | AG31: 0 | AI31: Maintain flow, restore vegetation | AK31: allow | AM31: =NA() ->  | AN31: =IF(ISNA(AM31),0,INDEX(IF(UPPER(RIGHT(AM31,1))=Low,UnitCostLow, IF(UPPER(RIGHT(AM31,1))=High,UnitCostHigh,UnitCostSpecified)),MATCH(UPPER(LEFT(AM31,LEN(AM31)-1)),CostCode,0))) -> 0 | AO31: =AN31*AL31 -> 0 | AQ31: Maintain flow, restore vegetation | AS31: allow | AU31: =NA() ->  | AV31: =IF(ISNA(AU31),0,INDEX(IF(UPPER(RIGHT(AU31,1))=Low,UnitCostLow, IF(UPPER(RIGHT(AU31,1))=High,UnitCostHigh,UnitCostSpecified)),MATCH(UPPER(LEFT(AU31,LEN(AU31)-1)),CostCode,0))) -> 0 | AW31: =AV31*AT31 -> 0 | AY31: Maintain flow, restore vegetation | BA31: allow | BC31: =NA() ->  | BD31: =IF(ISNA(BC31),0,INDEX(IF(UPPER(RIGHT(BC31,1))=Low,UnitCostLow, IF(UPPER(RIGHT(BC31,1))=High,UnitCostHigh,UnitCostSpecified)),MATCH(UPPER(LEFT(BC31,LEN(BC31)-1)),CostCode,0))) -> 0 | BE31: =BD31*BB31 -> 0 | BH31: allow | BJ31: =NA() ->  | BK31: =IF(ISNA(BJ31),0,INDEX(IF(UPPER(RIGHT(BJ31,1))=Low,UnitCostLow, IF(UPPER(RIGHT(BJ31,1))=High,UnitCostHigh,UnitCostSpecified)),MATCH(UPPER(LEFT(BJ31,LEN(BJ31)-1)),CostCode,0))) -> 0 | BL31: =BK31*BI31 -> 0
B32: POST-CLOSURE WATER TREATMENT | R32: POST-CLOSURE WATER TREATMENT | Z32: POST-CLOSURE WATER TREATMENT | AI32: POST-CLOSURE WATER TREATMENT | AQ32: POST-CLOSURE WATER TREATMENT | AY32: POST-CLOSURE WATER TREATMENT
B33: Annual water treatment cost, from "Water Treatment" | C33: TSF Water Treatment for 'Worse Case' Year 2 is captured under Water Management Tab | D33: LS | F33: =NA() ->  | G33: =AnnualTreat1Cost -> 0.0001 | H33: =G33*E33 -> 0 | J33: Treatment for Closure Period (7 years) | K33: LS | L33: 1 | N33: 953571.8101 | O33: 953571.8101 | P33: =H33-O33 -> -953571.8101 | R33: Annual water treatment cost, from "Water Treatment" | T33: LS | V33: =NA() ->  | W33: =IF(ISNA(V33),0,INDEX(IF(UPPER(RIGHT(V33,1))=Low,UnitCostLow, IF(UPPER(RIGHT(V33,1))=High,UnitCostHigh,UnitCostSpecified)),MATCH(UPPER(LEFT(V33,LEN(V33)-1)),CostCode,0))) -> 0 | X33: =W33*U33 -> 0 | Z33: Annual water treatment cost, from "Water Treatment" | AB33: LS | AE33: 0 | AF33: 0 | AG33: 0 | AI33: Annual water treatment cost, from "Water Treatment" | AK33: LS | AM33: =NA() ->  | AN33: 0 | AO33: =AN33*AL33 -> 0 | AQ33: Annual water treatment cost, from "Water Treatment" | AS33: LS | AU33: =NA() ->  | AV33: =IF(ISNA(AU33),0,INDEX(IF(UPPER(RIGHT(AU33,1))=Low,UnitCostLow, IF(UPPER(RIGHT(AU33,1))=High,UnitCostHigh,UnitCostSpecified)),MATCH(UPPER(LEFT(AU33,LEN(AU33)-1)),CostCode,0))) -> 0 | AW33: =AV33*AT33 -> 0 | AY33: Annual water treatment cost, from "Water Treatment" | BA33: LS | BC33: =NA() ->  | BD33: =IF(ISNA(BC33),0,INDEX(IF(UPPER(RIGHT(BC33,1))=Low,UnitCostLow, IF(UPPER(RIGHT(BC33,1))=High,UnitCostHigh,UnitCostSpecified)),MATCH(UPPER(LEFT(BC33,LEN(BC33)-1)),CostCode,0))) -> 0 | BE33: =BD33*BB33 -> 0 | BH33: LS | BJ33: =NA() ->  | BK33: =IF(ISNA(BJ33),0,INDEX(IF(UPPER(RIGHT(BJ33,1))=Low,UnitCostLow, IF(UPPER(RIGHT(BJ33,1))=High,UnitCostHigh,UnitCostSpecified)),MATCH(UPPER(LEFT(BJ33,LEN(BJ33)-1)),CostCode,0))) -> 0 | BL33: =BK33*BI33 -> 0
AG34: 0
B35: Subtotal, Annual post-closure costs | H35: =SUM(H5:H34)+0.0001 -> 0.0001 | O35: 953571.8102 | P35: =H35-O35 -> -953571.8101 | R35: Subtotal, Annual post-closure costs | X35: =SUM(X5:X34)+0.0001 -> 20340.0001 | Z35: Subtotal, Annual post-closure costs | AF35: 20000.0001 | AG35: 340 | AI35: Subtotal, Annual post-closure costs | AO35: =SUM(AO5:AO34)+0.0001 -> 29289.6001 | AQ35: Subtotal, Annual post-closure costs | AW35: =SUM(AW5:AW34)+0.0001 -> 79702.2901 | AY35: Subtotal, Annual post-closure costs | BE35: =SUM(BE5:BE34)+0.0001 -> 70274.7001 | BL35: =SUM(BL5:BL34)+0.0001 -> 29594.7001
B36: Discount rate for calculation of net present value of post-closure cost, % | F36: 0 | M36: 0.03 | R36: Discount rate for calculation of net present value of post-closure cost, % | V36: 0 | Z36: Discount rate for calculation of net present value of post-closure cost, % | AD36: 0.03 | AI36: Discount rate for calculation of net present value of post-closure cost, % | AM36: 0 | AQ36: Discount rate for calculation of net present value of post-closure cost, % | AU36: 0 | AY36: Discount rate for calculation of net present value of post-closure cost, % | BC36: 0 | BJ36: 0.03
B37: Number of years of post-closure activity | F37: 0 | G37: years | M37: 7 | N37: years | R37: Number of years of post-closure activity | V37: 1 | W37: years | Z37: Number of years of post-closure activity | AD37: 8 | AE37: years | AI37: Number of years of post-closure activity | AM37: 10 | AN37: years | AQ37: Number of years of post-closure activity | AU37: 13 | AV37: years | AY37: Number of years of post-closure activity | BC37: See Long Term | BD37: years | BJ37: See Long Term | BK37: years
B38: Present Value of payment stream | H38: =PV(F36,F37,H35)*-1 -> 0 | O38: 5941022.196 | P38: =H38-O38 -> -5941022.196 | R38: Present Value of payment stream | X38: =PV(V36,V37,X35)*-1 -> 20340.0001 | Z38: Present Value of payment stream | AF38: 140393.8445 | AG38: -120053.8444 | AI38: Present Value of payment stream | AO38: =PV(AM36,AM37,AO35)*-1 -> 292896.001 | AQ38: Present Value of payment stream | AW38: =PV(AU36,AU37,AW35)*-1 -> 1036129.771 | AY38: Present Value of payment stream | BE38: ='LongTerm Monitoring'!F49 -> 632472.3009 | BL38: 414626.6916
B40: Combined NPV of payment stream | H40: =X38+AO38+AW38+H38+BE38 -> 1981838.073 | O40: 7568243.195 | P40: =H40-O40 -> -5586405.122

Sheet LongTerm Monitoring
B1: Annual Discount Rate: | D1: 0 | I1: Annual Discount Rate: | K1: 0.03
A2: Project Phase | B2: Annual Discount Rate: | C2: Closure Year | D2: Post-Closure Monitoring Year | E2: Long Term Monitoring (GTCs, physical, water) | H2: Project Phase | I2: Project Year | J2: Closure Year | K2: Post-Closure Monitoring Year | L2: Long Term Monitoring (GTCs, physical, water)
E3: One Time Cost | F3: Yearly Total NPV | L3: One Time Cost | M3: Yearly Total NPV
A4: Operations | B4: 1 | F4: =E4/(1+$D$1)^($C4-1) -> 0 | H4: Operations | I4: 1 | M4: 0
B5: =B4+1 -> 2 | F5: 0 | I5: 2 | M5: 0
B6: =B5+1 -> 3 | F6: 0 | I6: 3 | M6: 0
B7: 4 | F7: 0 | I7: 4 | M7: 0
B8: 5 | F8: 0 | I8: 5 | M8: 0
B9: 6 | F9: 0 | I9: 6 | M9: 0
B10: 7 | F10: 0 | I10: 7 | M10: 0
B11: 8 | F11: 0 | I11: 8 | M11: 0
B12: 9 | F12: 0 | I12: 9 | M12: 0
B13: 10 | F13: 0 | I13: 10 | M13: 0
B14: 11 | F14: 0 | H14: Active Closure | I14: 11 | J14: 1 | M14: 0
B15: 12 | F15: =E15/(1+$D$1)^($C15-1) -> 0 | I15: 12 | J15: 2 | M15: 0
A16: Active Closure | B16: =B15+1 -> 13 | C16: 1 | F16: 0 | H16: Passive Closure | I16: 13 | J16: 3 | M16: 0
B17: 14 | C17: =C16+1 -> 2 | F17: 0 | I17: 14 | J17: 4 | M17: 0
A18: Passive Closure | B18: 15 | C18: =C17+1 -> 3 | F18: 0 | I18: 15 | J18: 5 | M18: 0
B19: 16 | C19: 4 | F19: 0 | I19: 16 | J19: 6 | M19: 0
B20: 17 | C20: 5 | F20: 0 | I20: 17 | J20: 7 | M20: 0
B21: 18 | C21: 6 | F21: 0 | I21: 18 | J21: 8 | M21: 0
B22: 19 | C22: 7 | F22: 0 | H22: Post Closure | I22: 19 | J22: 9 | K22: 1 | L22: 69100.0001 | M22: 54548.17817
B23: 20 | C23: 8 | F23: 0 | I23: 20 | J23: 10 | K23: 2 | L23: 69100.0001 | M23: 52959.39628
A24: Post Closure | B24: 21 | C24: 9 | D24: 1 | E24: =PostClosure!BE$35 -> 70274.7001 | F24: 70274.7001 | I24: 21 | J24: 11 | K24: 3 | L24: 69100.0001 | M24: 51416.88959
B25: 22 | C25: 10 | D25: =D24+1 -> 2 | E25: =PostClosure!BE$35 -> 70274.7001 | F25: 70274.7001 | I25: 22 | J25: 12 | K25: 4 | L25: 69100.0001 | M25: 49919.31029
B26: 23 | C26: 11 | D26: =D25+1 -> 3 | E26: =PostClosure!BE$35 -> 70274.7001 | F26: 70274.7001 | I26: 23 | J26: 13 | K26: 5 | L26: 69100.0001 | M26: 48465.34979
B27: 24 | C27: 12 | D27: 4 | E27: =PostClosure!BE$35 -> 70274.7001 | F27: 70274.7001 | H27: Beyond Post Closure | I27: 24 | J27: 14 | K27: 6 | M27: 0
B28: 25 | C28: 13 | D28: 5 | E28: =PostClosure!BE$35 -> 70274.7001 | F28: 70274.7001 | I28: 25 | J28: 15 | K28: 7 | L28: 69100.0001 | M28: 45683.24045
A29: Beyond Post Closure | B29: 26 | C29: 14 | D29: 6 | F29: 0 | I29: 26 | J29: 16 | K29: 8 | M29: 0
B30: 27 | C30: 15 | D30: 7 | E30: =PostClosure!BE$35 -> 70274.7001 | F30: 70274.7001 | I30: 27 | J30: 17 | K30: 9 | M30: 0
B31: 28 | C31: 16 | D31: 8 | F31: 0 | I31: 28 | J31: 18 | K31: 10 | L31: 69100.0001 | M31: 41806.63647
B32: 29 | C32: 17 | D32: 9 | F32: 0 | I32: 29 | J32: 19 | K32: 11 | M32: 0
B33: 30 | C33: 18 | D33: 10 | E33: =PostClosure!BE$35 -> 70274.7001 | F33: 70274.7001 | I33: 30 | J33: 20 | K33: 12 | M33: 0
B34: 31 | C34: 19 | D34: 11 | F34: 0 | I34: 31 | J34: 21 | K34: 13 | M34: 0
B35: 32 | C35: 20 | D35: 12 | F35: 0 | I35: 32 | J35: 22 | K35: 14 | M35: 0
B36: 33 | C36: 21 | D36: 13 | F36: 0 | I36: 33 | J36: 23 | K36: 15 | L36: 69100.0001 | M36: 36062.77186
B37: 34 | C37: 22 | D37: 14 | F37: 0 | I37: 34 | J37: 24 | K37: 16 | M37: 0
B38: 35 | C38: 23 | D38: 15 | E38: =PostClosure!BE$35 -> 70274.7001 | F38: 70274.7001 | I38: 35 | J38: 25 | K38: 17 | M38: 0
B39: 36 | C39: 24 | D39: 16 | F39: 0 | I39: 36 | J39: 26 | K39: 18 | M39: 0
B40: 37 | C40: 25 | D40: 17 | F40: 0 | I40: 37 | J40: 27 | K40: 19 | M40: 0
B41: 38 | C41: 26 | D41: 18 | F41: 0 | I41: 38 | J41: 28 | K41: 20 | M41: 0
B42: 39 | C42: 27 | D42: 19 | F42: 0 | I42: 39 | J42: 29 | K42: 21 | M42: 0
B43: 40 | C43: 28 | D43: 20 | F43: 0 | I43: 40 | J43: 30 | K43: 22 | M43: 0
B44: 41 | C44: 29 | D44: 21 | F44: 0 | I44: 41 | J44: 31 | K44: 23 | M44: 0
B45: 42 | C45: 30 | D45: 22 | F45: 0 | I45: 42 | J45: 32 | K45: 24 | M45: 0
B46: 43 | C46: 31 | D46: 23 | F46: 0 | I46: 43 | J46: 33 | K46: 25 | L46: 69100.0001 | M46: 26834.0891
B47: 44 | C47: 32 | D47: 24 | F47: 0 | I47: Net Present Value: | M47: 407695.862
B48: 45 | C48: 33 | D48: 25 | E48: =PostClosure!BE$35 -> 70274.7001 | F48: 70274.7001
B49: Net Present Value: | F49: =SUM(F4:F48) -> 632472.3009

Sheet Mobilization
A1: 1 | B1: Mobilization/Demobilization:
B3: ACTIVITY/MATERIAL | C3: Notes | D3: Units | E3: Quantity | F3: Cost Code | G3: Unit Cost | H3: Cost
B4: MOBILIZE HEAVY EQUIPMENT | C4: Assumes mining equipment on abandoned mine site is operable and available.
B5: Light duty vehicles | C5: Purchase pickups and Vans | D5: each | F5: =NA() ->  | G5: =IF(ISNA(F5),0,INDEX(IF(UPPER(RIGHT(F5,1))=Low,UnitCostLow, IF(UPPER(RIGHT(F5,1))=High,UnitCostHigh,UnitCostSpecified)),MATCH(UPPER(LEFT(F5,LEN(F5)-1)),CostCode,0))) -> 0 | H5: =G5*E5 -> 0
B6: Telehandlers | C6: Purchase (standby) | D6: each | F6: =NA() ->  | G6: 0 | H6: 0
B7: Excavators | C7: Purchase (320 Ex) | D7: each | F7: =NA() ->  | G7: 0 | H7: 0
B8: Dump trucks | C8: Purchase 30T | D8: each | F8: =NA() ->  | G8: 0 | H8: 0
B9: Dozers | C9: Purchase (D6T) | D9: each | F9: =NA() ->  | G9: 0 | H9: 0
B10: Grader | C10: Purchase (140M) | D10: each | F10: =NA() ->  | G10: 0 | H10: 0
B11: Demolition shears | C11: For a 320 Exc | D11: each | F11: =NA() ->  | G11: =IF(ISNA(F11),0,INDEX(IF(UPPER(RIGHT(F11,1))=Low,UnitCostLow, IF(UPPER(RIGHT(F11,1))=High,UnitCostHigh,UnitCostSpecified)),MATCH(UPPER(LEFT(F11,LEN(F11)-1)),CostCode,0))) -> 0 | H11: =G11*E11 -> 0
B12: Crane | C12: Purchase | D12: each | F12: =NA() ->  | G12: =IF(ISNA(F12),0,INDEX(IF(UPPER(RIGHT(F12,1))=Low,UnitCostLow, IF(UPPER(RIGHT(F12,1))=High,UnitCostHigh,UnitCostSpecified)),MATCH(UPPER(LEFT(F12,LEN(F12)-1)),CostCode,0))) -> 0 | H12: =G12*E12 -> 0
B13: Loader | C13: Purchase (966 Loader) | D13: each | F13: =NA() ->  | G13: =IF(ISNA(F13),0,INDEX(IF(UPPER(RIGHT(F13,1))=Low,UnitCostLow, IF(UPPER(RIGHT(F13,1))=High,UnitCostHigh,UnitCostSpecified)),MATCH(UPPER(LEFT(F13,LEN(F13)-1)),CostCode,0))) -> 0 | H13: 0
B14: Manlifts | C14: Purchase (standby) | D14: each | F14: =NA() ->  | G14: =IF(ISNA(F14),0,INDEX(IF(UPPER(RIGHT(F14,1))=Low,UnitCostLow, IF(UPPER(RIGHT(F14,1))=High,UnitCostHigh,UnitCostSpecified)),MATCH(UPPER(LEFT(F14,LEN(F14)-1)),CostCode,0))) -> 0 | H14: 0
B15: Small Equipment | D15: LS | F15: =NA() ->  | G15: =IF(ISNA(F15),0,INDEX(IF(UPPER(RIGHT(F15,1))=Low,UnitCostLow, IF(UPPER(RIGHT(F15,1))=High,UnitCostHigh,UnitCostSpecified)),MATCH(UPPER(LEFT(F15,LEN(F15)-1)),CostCode,0))) -> 0 | H15: 0
B16: Compactor | D16: each | F16: =NA() ->  | G16: =IF(ISNA(F16),0,INDEX(IF(UPPER(RIGHT(F16,1))=Low,UnitCostLow, IF(UPPER(RIGHT(F16,1))=High,UnitCostHigh,UnitCostSpecified)),MATCH(UPPER(LEFT(F16,LEN(F16)-1)),CostCode,0))) -> 0 | H16: =G16*E16 -> 0
B17: MOBILIZE MISC. EQUIPMENT | C17: Assumes mining equipment on abandoned mine site is operable and available.
B18: Pump shipping | D18: each | F18: =NA() ->  | G18: =IF(ISNA(F18),0,INDEX(IF(UPPER(RIGHT(F18,1))=Low,UnitCostLow, IF(UPPER(RIGHT(F18,1))=High,UnitCostHigh,UnitCostSpecified)),MATCH(UPPER(LEFT(F18,LEN(F18)-1)),CostCode,0))) -> 0 | H18: =G18*E18 -> 0
B19: Pipe shipping | D19: m | F19: =NA() ->  | G19: =IF(ISNA(F19),0,INDEX(IF(UPPER(RIGHT(F19,1))=Low,UnitCostLow, IF(UPPER(RIGHT(F19,1))=High,UnitCostHigh,UnitCostSpecified)),MATCH(UPPER(LEFT(F19,LEN(F19)-1)),CostCode,0))) -> 0 | H19: =G19*E19 -> 0
B20: Minor tools and equipment | D20: allow | F20: =NA() ->  | G20: =IF(ISNA(F20),0,INDEX(IF(UPPER(RIGHT(F20,1))=Low,UnitCostLow, IF(UPPER(RIGHT(F20,1))=High,UnitCostHigh,UnitCostSpecified)),MATCH(UPPER(LEFT(F20,LEN(F20)-1)),CostCode,0))) -> 0 | H20: =G20*E20 -> 0
B21: Truck tires | D21: allow | F21: =NA() ->  | G21: =IF(ISNA(F21),0,INDEX(IF(UPPER(RIGHT(F21,1))=Low,UnitCostLow, IF(UPPER(RIGHT(F21,1))=High,UnitCostHigh,UnitCostSpecified)),MATCH(UPPER(LEFT(F21,LEN(F21)-1)),CostCode,0))) -> 0 | H21: =G21*E21 -> 0
B22: Other | F22: =NA() ->  | G22: =IF(ISNA(F22),0,INDEX(IF(UPPER(RIGHT(F22,1))=Low,UnitCostLow, IF(UPPER(RIGHT(F22,1))=High,UnitCostHigh,UnitCostSpecified)),MATCH(UPPER(LEFT(F22,LEN(F22)-1)),CostCode,0))) -> 0 | H22: 0
B23: MOBILIZE CAMP
B24: Build 20 Person Camp | C24: Goose Closure Camp | D24: LS | E24: ='SBB Comp. Est.'!F109 -> 1 | F24: Sabina | G24: ='SBB Comp. Est.'!X116 -> 19577.25 | H24: =G24*E24 -> 19577.25
B25: Build 20 Person Power Plant | C25: Goose Closure Camp | D25: LS | E25: ='SBB Comp. Est.'!F110 -> 1 | F25: Sabina | G25: ='SBB Comp. Est.'!X117 -> 19577.25 | H25: 19577.25
B26: Reclamation activities | D26: allow | F26: =NA() ->  | G26: =IF(ISNA(F26),0,INDEX(IF(UPPER(RIGHT(F26,1))=Low,UnitCostLow, IF(UPPER(RIGHT(F26,1))=High,UnitCostHigh,UnitCostSpecified)),MATCH(UPPER(LEFT(F26,LEN(F26)-1)),CostCode,0))) -> 0 | H26: =G26*E26 -> 0
B27: Long term reclamation activities (e.g. pump flooding) | D27: allow | F27: =NA() ->  | G27: =IF(ISNA(F27),0,INDEX(IF(UPPER(RIGHT(F27,1))=Low,UnitCostLow, IF(UPPER(RIGHT(F27,1))=High,UnitCostHigh,UnitCostSpecified)),MATCH(UPPER(LEFT(F27,LEN(F27)-1)),CostCode,0))) -> 0 | H27: =G27*E27 -> 0
B28: WORKER ACCOMODATIONS
B29: Camp operation | D29: mandays | E29: ='SBB Comp. Est.'!F118 -> 12000 | F29: Sabina | G29: ='SBB Comp. Est.'!X118 -> 111.87 | H29: =G29*E29 -> 1342440
B30: Reclamation activities | D30: manmonths | F30: =NA() ->  | G30: =IF(ISNA(F30),0,INDEX(IF(UPPER(RIGHT(F30,1))=Low,UnitCostLow, IF(UPPER(RIGHT(F30,1))=High,UnitCostHigh,UnitCostSpecified)),MATCH(UPPER(LEFT(F30,LEN(F30)-1)),CostCode,0))) -> 0 | H30: =G30*E30 -> 0
B31: Long term reclamation activities (e.g. pump flooding) | D31: manmonths | F31: =NA() ->  | G31: =IF(ISNA(F31),0,INDEX(IF(UPPER(RIGHT(F31,1))=Low,UnitCostLow, IF(UPPER(RIGHT(F31,1))=High,UnitCostHigh,UnitCostSpecified)),MATCH(UPPER(LEFT(F31,LEN(F31)-1)),CostCode,0))) -> 0 | H31: =G31*E31 -> 0
B32: MOBILIZE FUEL
B33: Fuel freight - reclamation activities | D33: litre | F33: =NA() ->  | G33: =IF(ISNA(F33),0,INDEX(IF(UPPER(RIGHT(F33,1))=Low,UnitCostLow, IF(UPPER(RIGHT(F33,1))=High,UnitCostHigh,UnitCostSpecified)),MATCH(UPPER(LEFT(F33,LEN(F33)-1)),CostCode,0))) -> 0 | H33: =G33*E33 -> 0
B34: Fuel freight - long term reclamation activities | D34: litre | F34: =NA() ->  | G34: =IF(ISNA(F34),0,INDEX(IF(UPPER(RIGHT(F34,1))=Low,UnitCostLow, IF(UPPER(RIGHT(F34,1))=High,UnitCostHigh,UnitCostSpecified)),MATCH(UPPER(LEFT(F34,LEN(F34)-1)),CostCode,0))) -> 0 | H34: =G34*E34 -> 0
B35: Oil & Other | D35: litre | F35: =NA() ->  | G35: =IF(ISNA(F35),0,INDEX(IF(UPPER(RIGHT(F35,1))=Low,UnitCostLow, IF(UPPER(RIGHT(F35,1))=High,UnitCostHigh,UnitCostSpecified)),MATCH(UPPER(LEFT(F35,LEN(F35)-1)),CostCode,0))) -> 0 | H35: =G35*E35 -> 0
B36: Fuel freight accommodations | D36: litre | F36: =NA() ->  | G36: =IF(ISNA(F36),0,INDEX(IF(UPPER(RIGHT(F36,1))=Low,UnitCostLow, IF(UPPER(RIGHT(F36,1))=High,UnitCostHigh,UnitCostSpecified)),MATCH(UPPER(LEFT(F36,LEN(F36)-1)),CostCode,0))) -> 0 | H36: =G36*E36 -> 0
B37: GENERAL CONSTRUCTION INDIRECT
B38: Tooling, consumables, office & safety supplies | C38: covered in Summary tab indirects | D38: mandays | F38: =NA() ->  | G38: =IF(ISNA(F38),0,INDEX(IF(UPPER(RIGHT(F38,1))=Low,UnitCostLow, IF(UPPER(RIGHT(F38,1))=High,UnitCostHigh,UnitCostSpecified)),MATCH(UPPER(LEFT(F38,LEN(F38)-1)),CostCode,0))) -> 0 | H38: =G38*E38 -> 0
B39: DEMOBILIZE HEAVY EQUIPMENT
B40: Excavators | D40: km | F40: =NA() ->  | G40: =IF(ISNA(F40),0,INDEX(IF(UPPER(RIGHT(F40,1))=Low,UnitCostLow, IF(UPPER(RIGHT(F40,1))=High,UnitCostHigh,UnitCostSpecified)),MATCH(UPPER(LEFT(F40,LEN(F40)-1)),CostCode,0))) -> 0 | H40: =G40*E40 -> 0
B41: Dump trucks | D41: km | F41: =NA() ->  | G41: =IF(ISNA(F41),0,INDEX(IF(UPPER(RIGHT(F41,1))=Low,UnitCostLow, IF(UPPER(RIGHT(F41,1))=High,UnitCostHigh,UnitCostSpecified)),MATCH(UPPER(LEFT(F41,LEN(F41)-1)),CostCode,0))) -> 0 | H41: 0
B42: Dozers | D42: km | F42: =NA() ->  | G42: 0 | H42: 0
B43: Demolition shears | D43: km | F43: =NA() ->  | G43: 0 | H43: 0
B44: Crane | D44: km | F44: =NA() ->  | G44: 0 | H44: 0
B45: Loader | D45: km | F45: =NA() ->  | G45: =IF(ISNA(F45),0,INDEX(IF(UPPER(RIGHT(F45,1))=Low,UnitCostLow, IF(UPPER(RIGHT(F45,1))=High,UnitCostHigh,UnitCostSpecified)),MATCH(UPPER(LEFT(F45,LEN(F45)-1)),CostCode,0))) -> 0 | H45: =G45*E45 -> 0
B46: Compactor | D46: each | F46: =NA() ->  | G46: =IF(ISNA(F46),0,INDEX(IF(UPPER(RIGHT(F46,1))=Low,UnitCostLow, IF(UPPER(RIGHT(F46,1))=High,UnitCostHigh,UnitCostSpecified)),MATCH(UPPER(LEFT(F46,LEN(F46)-1)),CostCode,0))) -> 0 | H46: =G46*E46 -> 0
B47: Light duty vehicles | D47: km | F47: =NA() ->  | G47: 0 | H47: 0
B48: Other | D48: km | F48: =NA() ->  | G48: 0 | H48: 0
B49: DEMOBILIZE CAMP
B50: Food and Freight | D50: kg | E50: ='SBB Comp. Est.'!F165 -> 27600 | F50: Sabina | G50: ='SBB Comp. Est.'!X165 -> 12.204 | H50: =G50*E50 -> 336830.4
B51: Freight | D51: Lot | E51: ='SBB Comp. Est.'!F166 -> 1 | F51: Sabina | G51: ='SBB Comp. Est.'!X166 -> 508500 | H51: 508500
B52: Mobilization | D52: tonnes | E52: ='SBB Comp. Est.'!F167 -> 500 | F52: Sabina | G52: ='SBB Comp. Est.'!X167 -> 1525.5 | H52: =G52*E52 -> 762750
B53: MOBILZE & DEMOBILIZE WORKERS
B54: Crew travel time - inbound & outbound | C54: 16 manhours per rotation | D54: manhours | E54: =(E55+E56)*16 -> 6864 | F54: lab-sh | G54: =Unit_Costs!G81 -> 50.4432 | H54: =G54*E54 -> 346242.1248
B55: Crew transportation - in& outbound from Yellowknife | C55: 28 day rotations - 12,000 man days - 2/3 | D55: each | E55: ='SBB Comp. Est.'!F172*2/3 -> 286 | F55: Sabina | G55: ='SBB Comp. Est.'!X172 -> 582.1873 | H55: =G55*E55 -> 166505.5678
B56: Crew transportation - in& outbound from south | C56: 28 day rotations - 12,000 man days - 1/3 | D56: each | E56: ='SBB Comp. Est.'!F172*1/3 -> 143 | F56: Sabina | G56: ='SBB Comp. Est.'!X172+550*(1+Unit_Costs!G3) -> 1141.5373 | H56: =G56*E56 -> 163239.8339
B57: WINTER ROAD
B58: Construction and operation | C58: Assumes construction and maintenance of 2-160 km winter ice roads; once during Active Closure and once in approximately Year 18. | D58: km | E58: =160*2 -> 320 | F58: WRCL | G58: =IF(ISNA(F58),0,INDEX(IF(UPPER(RIGHT(F58,1))=Low,UnitCostLow, IF(UPPER(RIGHT(F58,1))=High,UnitCostHigh,UnitCostSpecified)),MATCH(UPPER(LEFT(F58,LEN(F58)-1)),CostCode,0))) -> 2034 | H58: =G58*E58 -> 650880
B59: Limited winter use | D59: km | F59: =NA() ->  | G59: =IF(ISNA(F59),0,INDEX(IF(UPPER(RIGHT(F59,1))=Low,UnitCostLow, IF(UPPER(RIGHT(F59,1))=High,UnitCostHigh,UnitCostSpecified)),MATCH(UPPER(LEFT(F59,LEN(F59)-1)),CostCode,0))) -> 0 | H59: =G59*E59 -> 0
B60: Winter road tariff | D60: km | F60: =NA() ->  | G60: =IF(ISNA(F60),0,INDEX(IF(UPPER(RIGHT(F60,1))=Low,UnitCostLow, IF(UPPER(RIGHT(F60,1))=High,UnitCostHigh,UnitCostSpecified)),MATCH(UPPER(LEFT(F60,LEN(F60)-1)),CostCode,0))) -> 0 | H60: =G60*E60 -> 0
G61: Total | H61: =SUM(H5:H60)+0.0001 -> 4316542.427

Sheet SBB Comp. Est.
A1: Sabina Closure Component Estimating
Y2: INFLATION | Z2: =Unit_Costs!G3 -> 0.017
H3: Labour | M3: Material | O3: Fixed Equipment | Q3: Mobile Equip | S3: Const Equip Use | U3: Other | W3: Total | AH3: Labour | AM3: Material | AO3: Fixed Equipment | AQ3: Mobile Equip | AS3: Const Equip Use | AU3: Other | AW3: Total
A4: Code | B4: Description | C4: NOTES | D4: EQUIPMENT NUMBER | E4: ESTIMATE SOURCE DOCUMENT | F4: Qty | G4: Unit of Measure | H4: Unit Man-hrs | I4: Prod Fact | J4: Total Man-hrs | K4: Unit Cost | L4: Total Cost | M4: Unit Cost | N4: Total Cost | O4: Unit Cost | P4: Total Cost | Q4: Unit Cost | R4: Total Cost | S4: Unit Cost | T4: Total Cost | U4: Unit Cost | V4: Total Cost | W4: Unit Cost | X4: Unit Cost (plus Inflation) | Y4: Total Cost | Z4: Total Cost (plus Inflation) | AB4: Description | AC4: NOTES | AD4: EQUIPMENT NUMBER | AE4: ESTIMATE SOURCE DOCUMENT | AF4: Qty | AG4: Unit of Measure | AH4: Unit Man-hrs | AI4: Prod Fact | AJ4: Total Man-hrs | AK4: Unit Cost | AL4: Total Cost | AM4: Unit Cost | AN4: Total Cost | AO4: Unit Cost | AP4: Total Cost | AQ4: Unit Cost | AR4: Total Cost | AS4: Unit Cost | AT4: Total Cost | AU4: Unit Cost | AV4: Total Cost | AW4: Unit Cost | AX4: Total Cost
B5: Open Pit Closure | AB5: Open Pit Closure
B6: Place Boulder Fence | AB6: Place Boulder Fence
B7: Umwelt Open Pit | C7: Updated for Modification Package | E7: x | F7: 1583 | G7: m | H7: 0.06 | I7: 1 | J7: =F7*H7*I7 -> 94.98 | K7: 95 | L7: =J7*K7 -> 9023.1 | M7: 0 | N7: =F7*M7 -> 0 | O7: 0 | P7: =F7*O7 -> 0 | Q7: 0 | R7: =F7*Q7 -> 0 | S7: 175 | T7: =S7*J7 -> 16621.5 | V7: =$F7*U7 -> 0 | W7: =IF(F7>0,Y7/F7,0) -> 16.2 | X7: =IF($F7>0,Z7/$F7,0) -> 16.4754 | Y7: =L7+N7+P7+R7+T7+V7 -> 25644.6 | Z7: =Y7*(1+$Z$2) -> 26080.5582 | AB7: Umwelt Open Pit | AE7: x | AF7: 1635 | AG7: m | AH7: 0.06 | AI7: 1 | AJ7: =AF7*AH7*AI7 -> 98.1 | AK7: 95 | AL7: =AJ7*AK7 -> 9319.5 | AM7: 0 | AN7: =AF7*AM7 -> 0 | AO7: 0 | AP7: =AF7*AO7 -> 0 | AQ7: 0 | AR7: =AF7*AQ7 -> 0 | AS7: 175 | AT7: =AS7*AJ7 -> 17167.5 | AV7: =$F7*AU7 -> 0 | AW7: =IF(AF7>0,AX7/AF7,0) -> 16.2 | AX7: =AL7+AN7+AP7+AR7+AT7+AV7 -> 26487
B8: Echo open pit | C8: Not in current mine plan; item remains to keep Stage in tact. | E8: x | F8: 750 | G8: m | H8: 0.06 | I8: 1 | J8: =F8*H8*I8 -> 45 | K8: 95 | L8: 4275 | M8: 0 | N8: 0 | O8: 0 | P8: 0 | Q8: 0 | R8: 0 | S8: 175 | T8: =S8*J8 -> 7875 | V8: 0 | W8: 16.2 | X8: =IF($F8>0,Z8/$F8,0) -> 16.4754 | Y8: 12150 | Z8: =Y8*(1+$Z$2) -> 12356.55 | AB8: Echo open pit | AE8: x | AF8: 750 | AG8: m | AH8: 0.06 | AI8: 1 | AJ8: =AF8*AH8*AI8 -> 45 | AK8: 95 | AL8: 4275 | AM8: 0 | AN8: 0 | AO8: 0 | AP8: 0 | AQ8: 0 | AR8: 0 | AS8: 175 | AT8: =AS8*AJ8 -> 7875 | AV8: 0 | AW8: 16.2 | AX8: 12150
B9: Goose open pit | C9: Updated for Modification Package | E9: x | F9: 2340 | G9: m | H9: 0.06 | I9: 1 | J9: 140.4 | K9: 95 | L9: 13338 | M9: 0 | N9: 0 | O9: 0 | P9: 0 | Q9: 0 | R9: 0 | S9: 175 | T9: 24570 | V9: 0 | W9: 16.2 | X9: =IF($F9>0,Z9/$F9,0) -> 16.4754 | Y9: 37908 | Z9: 38552.436 | AB9: Goose open pit | AE9: x | AF9: 1900 | AG9: m | AH9: 0.06 | AI9: 1 | AJ9: 114 | AK9: 95 | AL9: 10830 | AM9: 0 | AN9: 0 | AO9: 0 | AP9: 0 | AQ9: 0 | AR9: 0 | AS9: 175 | AT9: 19950 | AV9: 0 | AW9: 16.2 | AX9: 30780
B10: Llama open pit | C10: Updated for Modification Package; Perimeter only required where pit edge will not abut final flooded lake footprint. (i.e., 600 m total) | E10: x | F10: 600 | G10: m | H10: 0.06 | I10: 1 | J10: =F10*H10*I10 -> 36 | K10: 95 | L10: =J10*K10 -> 3420 | M10: 0 | N10: =F10*M10 -> 0 | O10: 0 | P10: =F10*O10 -> 0 | Q10: 0 | R10: =F10*Q10 -> 0 | S10: 175 | T10: =S10*J10 -> 6300 | V10: =$F10*U10 -> 0 | W10: =IF(F10>0,Y10/F10,0) -> 16.2 | X10: =IF($F10>0,Z10/$F10,0) -> 16.4754 | Y10: =L10+N10+P10+R10+T10+V10 -> 9720 | Z10: 9885.24 | AB10: Llama open pit | AC10: Perimeter needed only where pit edge will not abut the final flooded lake footprint. i.e. 400m length. | AE10: x | AF10: 400 | AG10: m | AH10: 0.06 | AI10: 1 | AJ10: =AF10*AH10*AI10 -> 24 | AK10: 95 | AL10: 2280 | AM10: 0 | AN10: 0 | AO10: 0 | AP10: 0 | AQ10: 0 | AR10: 0 | AS10: 175 | AT10: =AS10*AJ10 -> 4200 | AV10: 0 | AW10: 16.2 | AX10: 6480
B11: Remove Pump and Pipeline | AB11: Remove Pump and Pipeline
B12: Umwelt pit sump | C12: Occurs during Operations | E12: x | F12: 1740 | G12: m | H12: 0.04 | I12: 1 | J12: =F12*H12*I12 -> 69.6 | K12: 95 | L12: =J12*K12 -> 6612 | M12: 0 | N12: =F12*M12 -> 0 | O12: 0 | P12: =F12*O12 -> 0 | Q12: 0 | R12: =F12*Q12 -> 0 | S12: 155 | T12: =S12*J12 -> 10788 | V12: 0 | W12: =IF(F12>0,Y12/F12,0) -> 10 | X12: =IF($F12>0,Z12/$F12,0) -> 10.17 | Y12: =L12+N12+P12+R12+T12+V12 -> 17400 | Z12: =Y12*(1+$Z$2) -> 17695.8 | AB12: Umwelt pit sump | AC12: Occurs during Operations | AE12: x | AF12: 1740 | AG12: m | AH12: 0.04 | AI12: 1 | AJ12: =AF12*AH12*AI12 -> 69.6 | AK12: 95 | AL12: =AJ12*AK12 -> 6612 | AM12: 0 | AN12: =AF12*AM12 -> 0 | AO12: 0 | AP12: =AF12*AO12 -> 0 | AQ12: 0 | AR12: =AF12*AQ12 -> 0 | AS12: 155 | AT12: =AS12*AJ12 -> 10788 | AV12: =$F12*AU12 -> 0 | AW12: =IF(AF12>0,AX12/AF12,0) -> 10 | AX12: =AL12+AN12+AP12+AR12+AT12+AV12 -> 17400
B13: Llama pit sump | C13: Occurs during Closure | E13: x | F13: 2850 | G13: m | H13: 0.04 | I13: 1 | J13: 114 | K13: 95 | L13: 10830 | M13: 0 | N13: 0 | O13: 0 | P13: 0 | Q13: 0 | R13: 0 | S13: 155 | T13: =S13*J13 -> 17670 | V13: 0 | W13: 10 | X13: 10.17 | Y13: 28500 | Z13: 28984.5 | AB13: Llama pit sump | AC13: Occurs during Operations | AE13: x | AF13: 2850 | AG13: m | AH13: 0.04 | AI13: 1 | AJ13: 114 | AK13: 95 | AL13: 10830 | AM13: 0 | AN13: 0 | AO13: 0 | AP13: 0 | AQ13: 0 | AR13: 0 | AS13: 155 | AT13: =AS13*AJ13 -> 17670 | AV13: 0 | AW13: 10 | AX13: 28500
B14: Goose pit sump | C14: Occurs during Operations | E14: x | F14: 4325 | G14: m | H14: 0.04 | I14: 1 | J14: 173 | K14: 95 | L14: 16435 | M14: 0 | N14: 0 | O14: 0 | P14: 0 | Q14: 0 | R14: 0 | S14: 155 | T14: 26815 | V14: 0 | W14: 10 | X14: 10.17 | Y14: 43250 | Z14: 43985.25 | AB14: Goose pit sump | AC14: Occurs during Closure | AE14: x | AF14: 4325 | AG14: m | AH14: 0.04 | AI14: 1 | AJ14: 173 | AK14: 95 | AL14: 16435 | AM14: 0 | AN14: 0 | AO14: 0 | AP14: 0 | AQ14: 0 | AR14: 0 | AS14: 155 | AT14: 26815 | AV14: 0 | AW14: 10 | AX14: 43250
B15: Echo pit sump | C15: Updated for Supplementary Adjustments | E15: x | F15: 2820 | G15: m | H15: 0.04 | I15: 1 | J15: 112.8 | K15: 95 | L15: 10716 | M15: 0 | N15: 0 | O15: 0 | P15: 0 | Q15: 0 | R15: 0 | S15: 155 | T15: 17484 | V15: 0 | W15: 10 | X15: 10.17 | Y15: 28200 | Z15: 28679.4 | AB15: Echo pit sump | AC15: Occurs during Operations | AE15: x | AF15: 820 | AG15: m | AH15: 0.04 | AI15: 1 | AJ15: 32.8 | AK15: 95 | AL15: 3116 | AM15: 0 | AN15: 0 | AO15: 0 | AP15: 0 | AQ15: 0 | AR15: 0 | AS15: 155 | AT15: 5084 | AV15: 0 | AW15: 10 | AX15: 8200
B16: Breech Pits into Receiving Waters | AB16: Breech Pits into Receiving Waters
B17: Umwelt open pit | E17: x | F17: 1200 | G17: m3 | H17: 0.12 | I17: 1 | J17: =F17*H17*I17 -> 144 | L17: =J17*K17 -> 0 | M17: 0 | N17: =F17*M17 -> 0 | O17: 0 | P17: =F17*O17 -> 0 | Q17: 0 | R17: =F17*Q17 -> 0 | S17: 5 | T17: =S17*F17 -> 6000 | V17: 0 | W17: =IF(F17>0,Y17/F17,0) -> 5 | X17: =IF($F17>0,Z17/$F17,0) -> 5.085 | Y17: =L17+N17+P17+R17+T17+V17 -> 6000 | Z17: =Y17*(1+$Z$2) -> 6102 | AB17: Umwelt open pit | AE17: x | AF17: 1200 | AG17: m3 | AH17: 0.12 | AI17: 1 | AJ17: =AF17*AH17*AI17 -> 144 | AL17: =AJ17*AK17 -> 0 | AM17: 0 | AN17: =AF17*AM17 -> 0 | AO17: 0 | AP17: =AF17*AO17 -> 0 | AQ17: 0 | AR17: =AF17*AQ17 -> 0 | AS17: 5 | AT17: =AS17*AF17 -> 6000 | AV17: =$F17*AU17 -> 0 | AW17: =IF(AF17>0,AX17/AF17,0) -> 5 | AX17: =AL17+AN17+AP17+AR17+AT17+AV17 -> 6000
B18: Llama open pit | C18: Natural drainage connection | E18: x | F18: 0 | G18: m3 | H18: 0.12 | I18: 1 | J18: 0 | L18: 0 | M18: 0 | N18: 0 | O18: 0 | P18: 0 | Q18: 0 | R18: 0 | S18: 5 | T18: 0 | V18: 0 | W18: 0 | X18: 0 | Y18: =L18+N18+P18+R18+T18+V18 -> 0 | Z18: 0 | AB18: Llama open pit | AC18: Natural drainage connection | AE18: x | AF18: 0 | AG18: m3 | AH18: 0.12 | AI18: 1 | AJ18: 0 | AL18: 0 | AM18: 0 | AN18: 0 | AO18: 0 | AP18: 0 | AQ18: 0 | AR18: 0 | AS18: 5 | AT18: 0 | AV18: 0 | AW18: 0 | AX18: =AL18+AN18+AP18+AR18+AT18+AV18 -> 0
B19: Echo open pit | C19: Natural drainage connection | E19: x | F19: 0 | G19: m3 | H19: 0.12 | I19: 1 | J19: 0 | L19: 0 | M19: 0 | N19: 0 | O19: 0 | P19: 0 | Q19: 0 | R19: 0 | S19: 5 | T19: 0 | V19: 0 | W19: 0 | X19: 0 | Y19: 0 | Z19: 0 | AB19: Echo open pit | AC19: Natural drainage connection | AE19: x | AF19: 0 | AG19: m3 | AH19: 0.12 | AI19: 1 | AJ19: 0 | AL19: 0 | AM19: 0 | AN19: 0 | AO19: 0 | AP19: 0 | AQ19: 0 | AR19: 0 | AS19: 5 | AT19: 0 | AV19: 0 | AW19: 0 | AX19: 0
B20: Goose open pit | E20: x | F20: 600 | G20: m3 | H20: 0.12 | I20: 1 | J20: 72 | L20: 0 | M20: 0 | N20: 0 | O20: 0 | P20: 0 | Q20: 0 | R20: 0 | S20: 5 | T20: 3000 | V20: 0 | W20: 5 | X20: 5.085 | Y20: 3000 | Z20: 3051 | AB20: Goose open pit | AE20: x | AF20: 600 | AG20: m3 | AH20: 0.12 | AI20: 1 | AJ20: 72 | AL20: 0 | AM20: 0 | AN20: 0 | AO20: 0 | AP20: 0 | AQ20: 0 | AR20: 0 | AS20: 5 | AT20: 3000 | AV20: 0 | AW20: 5 | AX20: 3000
B21: Landfill Mobile Equipment | AB21: Landfill Mobile Equipment
B22: Goose Site Mobile Equipment | E22: x | F22: 41 | G22: units | H22: 24 | I22: 1 | J22: 984 | K22: 95 | L22: 93480 | M22: 0 | N22: 0 | O22: 0 | P22: 0 | Q22: 0 | R22: 0 | S22: 0 | T22: 0 | V22: 0 | W22: 2280 | X22: =IF($F22>0,Z22/$F22,0) -> 2318.76 | Y22: 93480 | Z22: =Y22*(1+$Z$2) -> 95069.16 | AB22: Goose Site Mobile Equipment | AE22: x | AF22: 41 | AG22: units | AH22: 24 | AI22: 1 | AJ22: =AF22*AH22*AI22 -> 984 | AK22: 95 | AL22: =AJ22*AK22 -> 93480 | AM22: 0 | AN22: =AF22*AM22 -> 0 | AO22: 0 | AP22: =AF22*AO22 -> 0 | AQ22: 0 | AR22: =AF22*AQ22 -> 0 | AS22: 0 | AT22: =AS22*AF22 -> 0 | AV22: =$F22*AU22 -> 0 | AW22: =IF(AF22>0,AX22/AF22,0) -> 2280 | AX22: =AL22+AN22+AP22+AR22+AT22+AV22 -> 93480
B23: Underground Closure | AB23: Underground Closure
B24: Saline Water Pond (SWP) / WTP | AB24: Saline Water Pond (SWP) / WTP
B25: Relocate pipeline to Umwelt UG from Llama UG | C25: Not in current mine plan; cost remains to keep Stage in tact. | E25: x | F25: 800 | G25: m | H25: 0.04 | I25: 1 | J25: 32 | K25: 95 | L25: =J25*K25 -> 3040 | M25: 0 | N25: =F25*M25 -> 0 | O25: 0 | P25: =F25*O25 -> 0 | Q25: 0 | R25: =F25*Q25 -> 0 | S25: 155 | T25: =S25*J25 -> 4960 | V25: =$F25*U25 -> 0 | W25: =IF(F25>0,Y25/F25,0) -> 10 | X25: =IF($F25>0,Z25/$F25,0) -> 10.17 | Y25: =L25+N25+P25+R25+T25+V25 -> 8000 | Z25: =Y25*(1+$Z$2) -> 8136 | AB25: Relocate pipeline to Umwelt UG from Llama UG | AE25: x | AF25: 800 | AG25: m | AH25: 0.04 | AI25: 1 | AJ25: 32 | AK25: 95 | AL25: =AJ25*AK25 -> 3040 | AM25: 0 | AN25: =AF25*AM25 -> 0 | AO25: 0 | AP25: =AF25*AO25 -> 0 | AQ25: 0 | AR25: =AF25*AQ25 -> 0 | AS25: 155 | AT25: =AS25*AJ25 -> 4960 | AV25: =$F25*AU25 -> 0 | AW25: =IF(AF25>0,AX25/AF25,0) -> 10 | AX25: =AL25+AN25+AP25+AR25+AT25+AV25 -> 8000
B26: Dewater SWP to Umwelt UG | C26: Accounts for Umwelt Underground (650 m), and Umwelt Underground Extension (650m to 900m) | E26: x | F26: 1071225 | G26: m3 | H26: 1 | I26: 1 | J26: 153 | K26: 95 | L26: =J26*K26 -> 14535 | M26: 0 | N26: =F26*M26 -> 0 | O26: 0 | P26: =F26*O26 -> 0 | Q26: 0 | R26: =F26*Q26 -> 0 | T26: =S26*250 -> 0 | U26: 0.12 | V26: =$F26*U26 -> 128547 | W26: =IF(F26>0,Y26/F26,0) -> 0.133568578 | X26: 0.1358392439 | Y26: =L26+N26+P26+R26+T26+V26 -> 143082 | Z26: 145514.394 | AB26: Dewater SWP to Umwelt UG | AE26: x | AF26: 763134 | AG26: m3 | AH26: 1 | AI26: 1 | AJ26: 153 | AK26: 95 | AL26: =AJ26*AK26 -> 14535 | AM26: 0 | AN26: =AF26*AM26 -> 0 | AO26: 0 | AP26: =AF26*AO26 -> 0 | AQ26: 0 | AR26: =AF26*AQ26 -> 0 | AT26: =AS26*250 -> 0 | AU26: 0.11 | AV26: =$F26*AU26 -> 117834.75 | AW26: =IF(AF26>0,AX26/AF26,0) -> 0.1734554482 | AX26: =AL26+AN26+AP26+AR26+AT26+AV26 -> 132369.75
B27: Decommission SWP to Umwelt UG pipeline | C27: Accounts for Umwelt Underground (650 m), and Umwelt Underground Extension (650m to 900m) | E27: x | F27: =1200+462 -> 1662 | G27: m | H27: 0.04 | I27: 1 | J27: =H27*I27*F27 -> 66.48 | K27: 95 | L27: 6315.6 | M27: 0 | N27: 0 | O27: 0 | P27: 0 | Q27: 0 | R27: 0 | S27: 155 | T27: =S27*J27 -> 10304.4 | V27: 0 | W27: =IF(F27>0,Y27/F27,0) -> 10 | X27: 10.17 | Y27: 16620 | Z27: 16902.54 | AB27: Decommission SWP to Umwelt UG pipeline | AE27: x | AF27: 1200 | AG27: m | AH27: 0.04 | AI27: 1 | AJ27: =AH27*AI27*AF27 -> 48 | AK27: 95 | AL27: 4560 | AM27: 0 | AN27: 0 | AO27: 0 | AP27: 0 | AQ27: 0 | AR27: 0 | AS27: 155 | AT27: =AS27*AJ27 -> 7440 | AV27: 0 | AW27: =IF(AF27>0,AX27/AF27,0) -> 10 | AX27: 12000
B28: Adjust pipeline to route to Llama UG | C28: Not in current mine plan; cost remains to keep Stage in tact. | E28: x | F28: 500 | G28: m | H28: =0.03 -> 0.03 | I28: 1 | J28: =F28*H28*I28+50 -> 65 | K28: 95 | L28: 6175 | M28: 0 | N28: 0 | O28: 0 | P28: 0 | Q28: 0 | R28: 0 | T28: 0 | V28: 0 | W28: =IF(F28>0,Y28/F28,0) -> 12.35 | X28: 12.55995 | Y28: 6175 | Z28: 6279.975 | AB28: Adjust pipeline to route to Llama UG | AC28: Completed during Operations | AE28: x | AF28: 500 | AG28: m | AH28: =0.03 -> 0.03 | AI28: 1 | AJ28: =AF28*AH28*AI28+50 -> 65 | AK28: 95 | AL28: 6175 | AM28: 0 | AN28: 0 | AO28: 0 | AP28: 0 | AQ28: 0 | AR28: 0 | AT28: =AS28*250 -> 0 | AV28: 0 | AW28: =IF(AF28>0,AX28/AF28,0) -> 12.35 | AX28: 6175
B29: Dewater SWP to Llama UG | C29: Not in current mine plan; cost remains to keep Stage in tact. | E29: x | F29: 324234 | G29: m3 | I29: 1 | J29: 80 | K29: 95 | L29: 7600 | M29: 0 | N29: 0 | O29: 0 | P29: 0 | Q29: 0 | R29: 0 | T29: 0 | U29: 0.11 | V29: 35665.74 | W29: 0.1334398613 | X29: 0.135708339 | Y29: 43265.74 | Z29: 44001.25758 | AB29: Dewater SWP to Llama UG | AE29: x | AF29: 324234 | AG29: m3 | AI29: 1 | AJ29: 80 | AK29: 95 | AL29: 7600 | AM29: 0 | AN29: 0 | AO29: 0 | AP29: 0 | AQ29: 0 | AR29: 0 | AT29: 0 | AU29: 0.11 | AV29: 35665.74 | AW29: =IF(AF29>0,AX29/AF29,0) -> 0.1334398613 | AX29: 43265.74
B30: Adjust pipeline to route to Goose UG | C30: Not in current mine plan; cost remains to keep Stage in tact. | E30: x | F30: 4500 | G30: m | H30: 0.04 | I30: 1 | J30: =F30*H30*I30+50 -> 230 | K30: 95 | L30: =J30*K30 -> 21850 | M30: 0 | N30: =F30*M30 -> 0 | O30: 0 | P30: =F30*O30 -> 0 | Q30: 0 | R30: =F30*Q30 -> 0 | S30: 155 | T30: =S30*J30 -> 35650 | V30: =$F30*U30 -> 0 | W30: =IF(F30>0,Y30/F30,0) -> 12.77777778 | X30: 12.995 | Y30: =L30+N30+P30+R30+T30+V30 -> 57500 | Z30: 58477.5 | AB30: Adjust pipeline to route to Goose UG | AE30: x | AF30: 4500 | AG30: m | AH30: 0.04 | AI30: 1 | AJ30: =AF30*AH30*AI30+50 -> 230 | AK30: 95 | AL30: 21850 | AM30: 0 | AN30: 0 | AO30: 0 | AP30: 0 | AQ30: 0 | AR30: 0 | AS30: 155 | AT30: =AS30*AJ30 -> 35650 | AV30: 0 | AW30: =IF(AF30>0,AX30/AF30,0) -> 12.77777778 | AX30: 57500
B31: Dewater SWP to Goose UG | C31: Not in current mine plan; cost remains to keep Stage in tact. | E31: x | F31: 391630 | G31: m3 | I31: 1 | J31: 215 | K31: 95 | L31: 20425 | M31: 0 | N31: 0 | O31: 0 | P31: 0 | Q31: 0 | R31: 0 | T31: =S31*F31 -> 0 | U31: 0.11 | V31: 43079.3 | W31: =IF(F31>0,Y31/F31,0) -> 0.1621538187 | X31: 0.1649104336 | Y31: 63504.3 | Z31: 64583.8731 | AB31: Dewater SWP to Goose UG | AE31: x | AF31: 391630 | AG31: m3 | AI31: 1 | AJ31: 215 | AK31: 95 | AL31: 20425 | AM31: 0 | AN31: 0 | AO31: 0 | AP31: 0 | AQ31: 0 | AR31: 0 | AT31: =AS31*AF31 -> 0 | AU31: 0.11 | AV31: 43079.3 | AW31: =IF(AF31>0,AX31/AF31,0) -> 0.1621538187 | AX31: 63504.3
B32: Decommission SWP to Goose UG pipelines | C32: Not in current mine plan; cost remains to keep Stage in tact. | E32: x | F32: 10800 | G32: m | H32: 0.04 | I32: 1 | J32: =H32*I32*F32 -> 432 | K32: 95 | L32: 41040 | M32: 0 | N32: 0 | O32: 0 | P32: 0 | Q32: 0 | R32: 0 | S32: 155 | T32: =S32*J32 -> 66960 | V32: 0 | W32: 10 | X32: 10.17 | Y32: 108000 | Z32: 109836 | AB32: Decommission SWP to Goose UG pipelines | AE32: x | AF32: 10800 | AG32: m | AH32: 0.04 | AI32: 1 | AJ32: =AH32*AI32*AF32 -> 432 | AK32: 95 | AL32: 41040 | AM32: 0 | AN32: 0 | AO32: 0 | AP32: 0 | AQ32: 0 | AR32: 0 | AS32: 155 | AT32: =AS32*AJ32 -> 66960 | AV32: 0 | AW32: 10 | AX32: 108000
B33: Breach SWP Diversion Berms and Containment Dams | C33: Occurs during Operations | E33: x | F33: 0 | G33: m3 | H33: 0.12 | I33: 1 | J33: =H33*I33*F33 -> 0 | L33: 0 | M33: 0 | N33: 0 | O33: 0 | P33: 0 | Q33: 0 | R33: 0 | S33: 8 | T33: =S33*F33 -> 0 | V33: 0 | W33: 0 | X33: 0 | Y33: 0 | Z33: 0 | AB33: Breach SWP Diversion Berms and Containment Dams | AE33: x | AF33: =24*5+24*5+19*5*2 -> 430 | AG33: m3 | AH33: 0.12 | AI33: 1 | AJ33: =AH33*AI33*AF33 -> 51.6 | AL33: 0 | AM33: 0 | AN33: 0 | AO33: 0 | AP33: 0 | AQ33: 0 | AR33: 0 | AS33: 8 | AT33: =AS33*AF33 -> 3440 | AV33: 0 | AW33: 8 | AX33: 3440
B34: Decommission WTP-Goose Lake pipeline | E34: x | F34: 1140 | G34: m | H34: 0.04 | I34: 1 | J34: =H34*I34*F34 -> 45.6 | K34: 95 | L34: 4332 | M34: 0 | N34: 0 | O34: 0 | P34: 0 | Q34: 0 | R34: 0 | S34: 155 | T34: =S34*J34 -> 7068 | V34: 0 | W34: 10 | X34: 10.17 | Y34: 11400 | Z34: 11593.8 | AB34: Decommission WTP-Goose Lake pipeline | AE34: x | AF34: 1140 | AG34: m | AH34: 0.04 | AI34: 1 | AJ34: =AH34*AI34*AF34 -> 45.6 | AK34: 95 | AL34: 4332 | AM34: 0 | AN34: 0 | AO34: 0 | AP34: 0 | AQ34: 0 | AR34: 0 | AS34: 155 | AT34: =AS34*AJ34 -> 7068 | AV34: 0 | AW34: 10 | AX34: 11400
B35: Llama UG | AB35: Llama UG
B36: Decommission pipeline | C36: Not in current mine plan; item remains to keep Stage in tact. | E36: x | F36: 2700 | G36: m | H36: 0.04 | I36: 1 | J36: =F36*H36*I36 -> 108 | K36: 95 | L36: =J36*K36 -> 10260 | M36: 0 | N36: =F36*M36 -> 0 | O36: 0 | P36: =F36*O36 -> 0 | Q36: 0 | R36: =F36*Q36 -> 0 | S36: 155 | T36: =S36*J36 -> 16740 | V36: =$F36*U36 -> 0 | W36: =IF(F36>0,Y36/F36,0) -> 10 | X36: =IF($F36>0,Z36/$F36,0) -> 10.17 | Y36: =L36+N36+P36+R36+T36+V36 -> 27000 | Z36: =Y36*(1+$Z$2) -> 27459 | AB36: Decommission pipeline | AC36: Completed during Operations | AE36: x | AF36: 2700 | AG36: m | AH36: 0.04 | AI36: 1 | AJ36: =AF36*AH36*AI36 -> 108 | AK36: 95 | AL36: =AJ36*AK36 -> 10260 | AM36: 0 | AN36: =AF36*AM36 -> 0 | AO36: 0 | AP36: =AF36*AO36 -> 0 | AQ36: 0 | AR36: =AF36*AQ36 -> 0 | AS36: 155 | AT36: =AS36*AJ36 -> 16740 | AV36: =$F36*AU36 -> 0 | AW36: =IF(AF36>0,AX36/AF36,0) -> 10 | AX36: =AL36+AN36+AP36+AR36+AT36+AV36 -> 27000
B37: Umwelt portal | AB37: Umwelt portal
B38: Plug declines with waste rock | E38: x | F38: 150 | G38: m3 | H38: 0.052 | I38: 1 | J38: =F38*H38*I38 -> 7.8 | L38: =J38*K38 -> 0 | M38: 0 | N38: =F38*M38 -> 0 | O38: 0 | P38: =F38*O38 -> 0 | Q38: 0 | R38: =F38*Q38 -> 0 | S38: 6 | T38: =S38*F38 -> 900 | V38: =$F38*U38 -> 0 | W38: =IF(F38>0,Y38/F38,0) -> 6 | X38: =IF($F38>0,Z38/$F38,0) -> 6.102 | Y38: =L38+N38+P38+R38+T38+V38 -> 900 | Z38: =Y38*(1+$Z$2) -> 915.3 | AB38: Plug declines with waste rock | AE38: x | AF38: 150 | AG38: m3 | AH38: 0.052 | AI38: 1 | AJ38: =AF38*AH38*AI38 -> 7.8 | AL38: =AJ38*AK38 -> 0 | AM38: 0 | AN38: =AF38*AM38 -> 0 | AO38: 0 | AP38: =AF38*AO38 -> 0 | AQ38: 0 | AR38: =AF38*AQ38 -> 0 | AS38: 6 | AT38: =AS38*AF38 -> 900 | AV38: =$F38*AU38 -> 0 | AW38: =IF(AF38>0,AX38/AF38,0) -> 6 | AX38: =AL38+AN38+AP38+AR38+AT38+AV38 -> 900
B39: Llama portal | AB39: Llama portal
B40: Plug declines with waste rock | C40: Not in current mine plan; item remains to keep Stage in tact. | E40: x | F40: 150 | G40: m3 | H40: 0.05 | I40: 1 | J40: =F40*H40*I40 -> 7.5 | L40: =J40*K40 -> 0 | M40: 0 | N40: =F40*M40 -> 0 | O40: 0 | P40: =F40*O40 -> 0 | Q40: 0 | R40: =F40*Q40 -> 0 | S40: 6 | T40: =S40*F40 -> 900 | V40: =$F40*U40 -> 0 | W40: =IF(F40>0,Y40/F40,0) -> 6 | X40: =IF($F40>0,Z40/$F40,0) -> 6.102 | Y40: =L40+N40+P40+R40+T40+V40 -> 900 | Z40: =Y40*(1+$Z$2) -> 915.3 | AB40: Plug declines with waste rock | AE40: x | AF40: 150 | AG40: m3 | AH40: 0.05 | AI40: 1 | AJ40: =AF40*AH40*AI40 -> 7.5 | AL40: =AJ40*AK40 -> 0 | AM40: 0 | AN40: =AF40*AM40 -> 0 | AO40: 0 | AP40: =AF40*AO40 -> 0 | AQ40: 0 | AR40: =AF40*AQ40 -> 0 | AS40: 6 | AT40: =AS40*AF40 -> 900 | AV40: =$F40*AU40 -> 0 | AW40: =IF(AF40>0,AX40/AF40,0) -> 6 | AX40: =AL40+AN40+AP40+AR40+AT40+AV40 -> 900
B41: Goose portal | AB41: Goose portal
B42: Plug declines with waste rock | C42: Not in current mine plan; item remains to keep Stage in tact. | E42: x | F42: 150 | G42: m3 | H42: 0.05 | I42: 1 | J42: =F42*H42*I42 -> 7.5 | L42: =J42*K42 -> 0 | M42: 0 | N42: =F42*M42 -> 0 | O42: 0 | P42: =F42*O42 -> 0 | Q42: 0 | R42: =F42*Q42 -> 0 | S42: 6 | T42: =S42*F42 -> 900 | V42: =$F42*U42 -> 0 | W42: =IF(F42>0,Y42/F42,0) -> 6 | X42: =IF($F42>0,Z42/$F42,0) -> 6.102 | Y42: =L42+N42+P42+R42+T42+V42 -> 900 | Z42: =Y42*(1+$Z$2) -> 915.3 | AB42: Plug declines with waste rock | AE42: x | AF42: 150 | AG42: m3 | AH42: 0.05 | AI42: 1 | AJ42: =AF42*AH42*AI42 -> 7.5 | AL42: =AJ42*AK42 -> 0 | AM42: 0 | AN42: =AF42*AM42 -> 0 | AO42: 0 | AP42: =AF42*AO42 -> 0 | AQ42: 0 | AR42: =AF42*AQ42 -> 0 | AS42: 6 | AT42: =AS42*AF42 -> 900 | AV42: =$F42*AU42 -> 0 | AW42: =IF(AF42>0,AX42/AF42,0) -> 6 | AX42: =AL42+AN42+AP42+AR42+AT42+AV42 -> 900
B43: Echo portal | AB43: Echo portal
B44: Plug declines with waste rock | C44: Not in current mine plan; item remains to keep Stage in tact. | E44: x | F44: 150 | G44: m3 | H44: 0.05 | I44: 1 | J44: =F44*H44*I44 -> 7.5 | L44: =J44*K44 -> 0 | M44: 0 | N44: =F44*M44 -> 0 | O44: 0 | P44: =F44*O44 -> 0 | Q44: 0 | R44: =F44*Q44 -> 0 | S44: 6 | T44: =S44*F44 -> 900 | V44: =$F44*U44 -> 0 | W44: =IF(F44>0,Y44/F44,0) -> 6 | X44: =IF($F44>0,Z44/$F44,0) -> 6.102 | Y44: =L44+N44+P44+R44+T44+V44 -> 900 | Z44: =Y44*(1+$Z$2) -> 915.3 | AB44: Plug declines with waste rock | AE44: x | AF44: 150 | AG44: m3 | AH44: 0.05 | AI44: 1 | AJ44: =AF44*AH44*AI44 -> 7.5 | AL44: =AJ44*AK44 -> 0 | AM44: 0 | AN44: =AF44*AM44 -> 0 | AO44: 0 | AP44: =AF44*AO44 -> 0 | AQ44: 0 | AR44: =AF44*AQ44 -> 0 | AS44: 6 | AT44: =AS44*AF44 -> 900 | AV44: =$F44*AU44 -> 0 | AW44: =IF(AF44>0,AX44/AF44,0) -> 6 | AX44: =AL44+AN44+AP44+AR44+AT44+AV44 -> 900
B45: Umwelt vent/circular backfill raises | AB45: Umwelt vent/circular backfill raises
B46: Plug vent raises with concrete plug | E46: x | F46: 1 | G46: LS | H46: 1 | I46: 1 | J46: 60 | L46: =J46*K46 -> 0 | M46: 0 | N46: =F46*M46 -> 0 | O46: 0 | P46: =F46*O46 -> 0 | Q46: 0 | R46: =F46*Q46 -> 0 | S46: 0 | T46: =S46*F46 -> 0 | V46: =$F46*U46 -> 0 | W46: =IF(F46>0,Y46/F46,0) -> 120000 | X46: =IF($F46>0,Z46/$F46,0) -> 122040 | Y46: 120000 | Z46: =Y46*(1+$Z$2) -> 122040 | AB46: Plug vent raises with concrete plug | AE46: x | AF46: 1 | AG46: LS | AH46: 1 | AI46: 1 | AJ46: 60 | AL46: =AJ46*AK46 -> 0 | AM46: 0 | AN46: =AF46*AM46 -> 0 | AO46: 0 | AP46: =AF46*AO46 -> 0 | AQ46: 0 | AR46: =AF46*AQ46 -> 0 | AS46: 0 | AT46: =AS46*AF46 -> 0 | AV46: =$F46*AU46 -> 0 | AW46: =IF(AF46>0,AX46/AF46,0) -> 120000 | AX46: 120000
B47: Llama vent/circular backfill raises | AB47: Llama vent/circular backfill raises
B48: Plug vent raises with concrete plug | C48: Not in current mine plan; item remains to keep Stage in tact. | E48: x | F48: 1 | G48: LS | H48: 1 | I48: 1 | J48: 60 | L48: =J48*K48 -> 0 | M48: 0 | N48: =F48*M48 -> 0 | O48: 0 | P48: =F48*O48 -> 0 | Q48: 0 | R48: =F48*Q48 -> 0 | S48: 0 | T48: =S48*F48 -> 0 | V48: =$F48*U48 -> 0 | W48: =IF(F48>0,Y48/F48,0) -> 50000 | X48: =IF($F48>0,Z48/$F48,0) -> 50850 | Y48: 50000 | Z48: =Y48*(1+$Z$2) -> 50850 | AB48: Plug vent raises with concrete plug | AE48: x | AF48: 1 | AG48: LS | AH48: 1 | AI48: 1 | AJ48: 60 | AL48: =AJ48*AK48 -> 0 | AM48: 0 | AN48: =AF48*AM48 -> 0 | AO48: 0 | AP48: =AF48*AO48 -> 0 | AQ48: 0 | AR48: =AF48*AQ48 -> 0 | AS48: 0 | AT48: =AS48*AF48 -> 0 | AV48: =$F48*AU48 -> 0 | AW48: =IF(AF48>0,AX48/AF48,0) -> 50000 | AX48: 50000
B49: Goose vent/circular backfill raises | AB49: Goose vent/circular backfill raises
B50: Plug vent raises with concrete plug | C50: Not in current mine plan; item remains to keep Stage in tact. | E50: x | F50: 1 | G50: LS | H50: 1 | I50: 1 | J50: 60 | L50: =J50*K50 -> 0 | M50: 0 | N50: =F50*M50 -> 0 | O50: 0 | P50: =F50*O50 -> 0 | Q50: 0 | R50: =F50*Q50 -> 0 | S50: 0 | T50: =S50*F50 -> 0 | V50: =$F50*U50 -> 0 | W50: =IF(F50>0,Y50/F50,0) -> 50000 | X50: =IF($F50>0,Z50/$F50,0) -> 50850 | Y50: 50000 | Z50: =Y50*(1+$Z$2) -> 50850 | AB50: Plug vent raises with concrete plug | AE50: x | AF50: 1 | AG50: LS | AH50: 1 | AI50: 1 | AJ50: 60 | AL50: =AJ50*AK50 -> 0 | AM50: 0 | AN50: =AF50*AM50 -> 0 | AO50: 0 | AP50: =AF50*AO50 -> 0 | AQ50: 0 | AR50: =AF50*AQ50 -> 0 | AS50: 0 | AT50: =AS50*AF50 -> 0 | AV50: =$F50*AU50 -> 0 | AW50: =IF(AF50>0,AX50/AF50,0) -> 50000 | AX50: 50000
B51: Echo vent/circular backfill raises | AB51: Echo vent/circular backfill raises
B52: Plug vent raises with concrete plug | C52: Not in current mine plan; item remains to keep Stage in tact. | E52: x | F52: 1 | G52: LS | H52: 1 | I52: 1 | J52: 60 | L52: =J52*K52 -> 0 | M52: 0 | N52: =F52*M52 -> 0 | O52: 0 | P52: =F52*O52 -> 0 | Q52: 0 | R52: =F52*Q52 -> 0 | S52: 0 | T52: =S52*F52 -> 0 | V52: =$F52*U52 -> 0 | W52: 50000 | X52: =IF($F52>0,Z52/$F52,0) -> 50850 | Y52: 50000 | Z52: =Y52*(1+$Z$2) -> 50850 | AB52: Plug vent raises with concrete plug | AE52: x | AF52: 1 | AG52: LS | AH52: 1 | AI52: 1 | AJ52: 60 | AL52: =AJ52*AK52 -> 0 | AM52: 0 | AN52: =AF52*AM52 -> 0 | AO52: 0 | AP52: =AF52*AO52 -> 0 | AQ52: 0 | AR52: =AF52*AQ52 -> 0 | AS52: 0 | AT52: =AS52*AF52 -> 0 | AV52: =$F52*AU52 -> 0 | AW52: 50000 | AX52: 50000
B53: Echo crown pillar | AB53: Echo crown pillar
B54: Plug UG stopes | C54: Not in current mine plan; item remains to keep Stage in tact. | E54: x | F54: 3550 | G54: m3 | H54: 0.05 | I54: 1 | J54: =F54*H54*I54 -> 177.5 | L54: =J54*K54 -> 0 | M54: 0 | N54: =F54*M54 -> 0 | O54: 0 | P54: =F54*O54 -> 0 | Q54: 0 | R54: =F54*Q54 -> 0 | S54: 6 | T54: =S54*F54 -> 21300 | V54: =$F54*U54 -> 0 | W54: =IF(F54>0,Y54/F54,0) -> 6 | X54: =IF($F54>0,Z54/$F54,0) -> 6.102 | Y54: =L54+N54+P54+R54+T54+V54 -> 21300 | Z54: =Y54*(1+$Z$2) -> 21662.1 | AB54: Plug UG stopes | AE54: x | AF54: 3550 | AG54: m3 | AH54: 0.05 | AI54: 1 | AJ54: =AF54*AH54*AI54 -> 177.5 | AL54: =AJ54*AK54 -> 0 | AM54: 0 | AN54: =AF54*AM54 -> 0 | AO54: 0 | AP54: =AF54*AO54 -> 0 | AQ54: 0 | AR54: =AF54*AQ54 -> 0 | AS54: 6 | AT54: =AS54*AF54 -> 21300 | AV54: =$F54*AU54 -> 0 | AW54: =IF(AF54>0,AX54/AF54,0) -> 6 | AX54: =AL54+AN54+AP54+AR54+AT54+AV54 -> 21300
B55: Waste Rock Stockpiles and Landfills | AB55: Waste Rock Stockpiles and Landfills
B56: WR Pile Closure | AB56: WR Pile Closure
B57: Cap and Slope WR Piles | C57: Updated Waste Rock Volume cover allotment. | E57: x | F57: 1200000 | G57: m3 | H57: 0.06 | I57: 1 | J57: =F57*H57*I57 -> 72000 | L57: =J57*K57 -> 0 | M57: 0 | N57: =F57*M57 -> 0 | O57: 0 | P57: =F57*O57 -> 0 | Q57: 0 | R57: =F57*Q57 -> 0 | S57: 6 | T57: =S57*F57 -> 7200000 | V57: =$F57*U57 -> 0 | W57: =IF(F57>0,Y57/F57,0) -> 6 | X57: =IF($F57>0,Z57/$F57,0) -> 6.102 | Y57: =(L57+N57+P57+R57+T57+V57) -> 7200000 | Z57: =Y57*(1+$Z$2) -> 7322400 | AB57: Cap and Slope WR Piles | AE57: x | AF57: 3400000 | AG57: m3 | AH57: 0.06 | AI57: 1 | AJ57: =AF57*AH57*AI57 -> 204000 | AL57: =AJ57*AK57 -> 0 | AM57: 0 | AN57: =AF57*AM57 -> 0 | AO57: 0 | AP57: =AF57*AO57 -> 0 | AQ57: 0 | AR57: =AF57*AQ57 -> 0 | AS57: 6 | AT57: =AS57*AF57 -> 20400000 | AV57: =$F57*AU57 -> 0 | AW57: =IF(AF57>0,AX57/AF57,0) -> 6 | AX57: =(AL57+AN57+AP57+AR57+AT57+AV57) -> 20400000
B58: Landfill Closure | AB58: Landfill Closure
B59: Cap and Reslope Landfills | E59: x | F59: 25000 | G59: m3 | H59: 0.06 | I59: 1 | J59: =F59*H59*I59 -> 1500 | L59: =J59*K59 -> 0 | M59: 0 | N59: =F59*M59 -> 0 | O59: 0 | P59: =F59*O59 -> 0 | Q59: 0 | R59: =F59*Q59 -> 0 | S59: 6 | T59: =S59*F59 -> 150000 | V59: =$F59*U59 -> 0 | W59: =IF(F59>0,Y59/F59,0) -> 6 | X59: =IF($F59>0,Z59/$F59,0) -> 6.102 | Y59: =(L59+N59+P59+R59+T59+V59) -> 150000 | Z59: =Y59*(1+$Z$2) -> 152550 | AB59: Cap and Reslope Landfills | AE59: x | AF59: 25000 | AG59: m3 | AH59: 0.06 | AI59: 1 | AJ59: =AF59*AH59*AI59 -> 1500 | AL59: =AJ59*AK59 -> 0 | AM59: 0 | AN59: =AF59*AM59 -> 0 | AO59: 0 | AP59: =AF59*AO59 -> 0 | AQ59: 0 | AR59: =AF59*AQ59 -> 0 | AS59: 6 | AT59: =AS59*AF59 -> 150000 | AV59: =$F59*AU59 -> 0 | AW59: =IF(AF59>0,AX59/AF59,0) -> 6 | AX59: =(AL59+AN59+AP59+AR59+AT59+AV59) -> 150000
B60: Water Management Structures | AB60: Water Management Structures
B61: Llama Structures | AB61: Llama Structures
B62: Breach Llama Lake Diversion Berms | C62: Occurs during Operations | E62: x | F62: 0 | G62: m3 | H62: 0.064 | I62: 1 | J62: =F62*H62*I62 -> 0 | L62: =J62*K62 -> 0 | M62: 0 | N62: =F62*M62 -> 0 | O62: 0 | P62: =F62*O62 -> 0 | Q62: 0 | R62: =F62*Q62 -> 0 | S62: =7.3 -> 7.3 | T62: =S62*F62 -> 0 | V62: =$F62*U62 -> 0 | W62: =IF(F62>0,Y62/F62,0) -> 0 | X62: =IF($F62>0,Z62/$F62,0) -> 0 | Y62: =L62+N62+P62+R62+T62+V62 -> 0 | Z62: =Y62*(1+$Z$2) -> 0 | AB62: Breach Llama Lake Diversion Berms | AE62: x | AF62: =19*5*7 -> 665 | AG62: m3 | AH62: 0.064 | AI62: 1 | AJ62: =AF62*AH62*AI62 -> 42.56 | AL62: =AJ62*AK62 -> 0 | AM62: 0 | AN62: =AF62*AM62 -> 0 | AO62: 0 | AP62: =AF62*AO62 -> 0 | AQ62: 0 | AR62: =AF62*AQ62 -> 0 | AS62: =7.3 -> 7.3 | AT62: =AS62*AF62 -> 4854.5 | AV62: =$F62*AU62 -> 0 | AW62: =IF(AF62>0,AX62/AF62,0) -> 7.3 | AX62: =AL62+AN62+AP62+AR62+AT62+AV62 -> 4854.5
B63: Breach Llama WRSA Diversion Berm | C63: Occurs during Operations | E63: x | F63: 0 | G63: m3 | H63: 0.064 | I63: 1 | J63: =F63*H63*I63 -> 0 | L63: =J63*K63 -> 0 | M63: 0 | N63: =F63*M63 -> 0 | O63: 0 | P63: =F63*O63 -> 0 | Q63: 0 | R63: =F63*Q63 -> 0 | S63: 7.3 | T63: =S63*F63 -> 0 | V63: =$F63*U63 -> 0 | W63: 0 | X63: 0 | Y63: =L63+N63+P63+R63+T63+V63 -> 0 | Z63: =Y63*(1+$Z$2) -> 0 | AB63: Breach Llama WRSA Diversion Berm | AE63: x | AF63: =19*5*1 -> 95 | AG63: m3 | AH63: 0.064 | AI63: 1 | AJ63: =AF63*AH63*AI63 -> 6.08 | AL63: =AJ63*AK63 -> 0 | AM63: 0 | AN63: =AF63*AM63 -> 0 | AO63: 0 | AP63: =AF63*AO63 -> 0 | AQ63: 0 | AR63: =AF63*AQ63 -> 0 | AS63: 7.3 | AT63: =AS63*AF63 -> 693.5 | AV63: =$F63*AU63 -> 0 | AW63: 7.3 | AX63: =AL63+AN63+AP63+AR63+AT63+AV63 -> 693.5
B64: Breach Llama WRSA Containment Dam | C64: Occurs during Operations | F64: 0 | G64: m3 | H64: 0.064 | I64: 1 | J64: =F64*H64*I64 -> 0 | L64: =J64*K64 -> 0 | M64: 0 | N64: =F64*M64 -> 0 | O64: 0 | P64: =F64*O64 -> 0 | Q64: 0 | R64: =F64*Q64 -> 0 | S64: 7.3 | T64: =S64*F64 -> 0 | V64: =$F64*U64 -> 0 | W64: 0 | X64: 0 | Y64: =L64+N64+P64+R64+T64+V64 -> 0 | Z64: =Y64*(1+$Z$2) -> 0 | AB64: Breach Llama WRSA Containment Dam | AF64: =19*5*1 -> 95 | AG64: m3 | AH64: 0.064 | AI64: 1 | AJ64: =AF64*AH64*AI64 -> 6.08 | AL64: =AJ64*AK64 -> 0 | AM64: 0 | AN64: =AF64*AM64 -> 0 | AO64: 0 | AP64: =AF64*AO64 -> 0 | AQ64: 0 | AR64: =AF64*AQ64 -> 0 | AS64: 7.3 | AT64: =AS64*AF64 -> 693.5 | AV64: =$F64*AU64 -> 0 | AW64: 7.3 | AX64: =AL64+AN64+AP64+AR64+AT64+AV64 -> 693.5
B65: Decommission Llama pump and pipeline | E65: x | F65: 700 | G65: m | H65: 0.04 | I65: 1 | J65: =F65*H65*I65+24 -> 52 | K65: 95 | L65: =J65*K65 -> 4940 | M65: 0 | N65: =F65*M65 -> 0 | O65: 0 | P65: =F65*O65 -> 0 | Q65: 0 | R65: =F65*Q65 -> 0 | S65: 155 | T65: =S65*J65 -> 8060 | V65: =$F65*U65 -> 0 | W65: 18.57142857 | X65: 18.88714286 | Y65: =L65+N65+P65+R65+T65+V65 -> 13000 | Z65: =Y65*(1+$Z$2) -> 13221 | AB65: Decommission Llama pump and pipeline | AE65: x | AF65: 700 | AG65: m | AH65: 0.04 | AI65: 1 | AJ65: =AF65*AH65*AI65+24 -> 52 | AK65: 95 | AL65: =AJ65*AK65 -> 4940 | AM65: 0 | AN65: =AF65*AM65 -> 0 | AO65: 0 | AP65: =AF65*AO65 -> 0 | AQ65: 0 | AR65: =AF65*AQ65 -> 0 | AS65: 155 | AT65: =AS65*AJ65 -> 8060 | AV65: =$F65*AU65 -> 0 | AW65: 18.57142857 | AX65: =AL65+AN65+AP65+AR65+AT65+AV65 -> 13000
B66: Umwelt Structures | AB66: Umwelt Structures
B67: Breach Primary Pond Containment Dam | C67: Occurs during Operations | E67: x | F67: 0 | G67: m3 | H67: 0.064 | I67: 1 | J67: =F67*H67*I67 -> 0 | L67: =J67*K67 -> 0 | M67: 0 | N67: =F67*M67 -> 0 | O67: 0 | P67: =F67*O67 -> 0 | Q67: 0 | R67: =F67*Q67 -> 0 | S67: 7.3 | T67: =S67*F67 -> 0 | V67: =$F67*U67 -> 0 | W67: =IF(F67>0,Y67/F67,0) -> 0 | X67: =IF($F67>0,Z67/$F67,0) -> 0 | Y67: =L67+N67+P67+R67+T67+V67 -> 0 | Z67: =Y67*(1+$Z$2) -> 0 | AB67: Breach Primary Pond Containment Dam | AE67: x | AF67: =40*5*1 -> 200 | AG67: m3 | AH67: 0.064 | AI67: 1 | AJ67: =AF67*AH67*AI67 -> 12.8 | AL67: =AJ67*AK67 -> 0 | AM67: 0 | AN67: =AF67*AM67 -> 0 | AO67: 0 | AP67: =AF67*AO67 -> 0 | AQ67: 0 | AR67: =AF67*AQ67 -> 0 | AS67: 7.3 | AT67: =AS67*AF67 -> 1460 | AV67: =$F67*AU67 -> 0 | AW67: =IF(AF67>0,AX67/AF67,0) -> 7.3 | AX67: =AL67+AN67+AP67+AR67+AT67+AV67 -> 1460
B68: Breach Umwelt WRSA Containment Dam | C68: Berm has been removed from water management design | E68: x | F68: 0 | G68: m3 | H68: 0.064 | I68: 1 | J68: =F68*H68*I68 -> 0 | L68: =J68*K68 -> 0 | M68: 0 | N68: =F68*M68 -> 0 | O68: 0 | P68: =F68*O68 -> 0 | Q68: 0 | R68: =F68*Q68 -> 0 | S68: 7.3 | T68: =S68*F68 -> 0 | V68: =$F68*U68 -> 0 | W68: 0 | X68: 0 | Y68: =L68+N68+P68+R68+T68+V68 -> 0 | Z68: =Y68*(1+$Z$2) -> 0 | AB68: Breach Umwelt WRSA Containment Dam | AE68: x | AF68: =24*5*1 -> 120 | AG68: m3 | AH68: 0.064 | AI68: 1 | AJ68: =AF68*AH68*AI68 -> 7.68 | AL68: =AJ68*AK68 -> 0 | AM68: 0 | AN68: =AF68*AM68 -> 0 | AO68: 0 | AP68: =AF68*AO68 -> 0 | AQ68: 0 | AR68: =AF68*AQ68 -> 0 | AS68: 7.3 | AT68: =AS68*AF68 -> 876 | AV68: =$F68*AU68 -> 0 | AW68: 7.3 | AX68: =AL68+AN68+AP68+AR68+AT68+AV68 -> 876
B69: Breach Umwelt WRSA Diversion Berm | C69: Berm has been removed from water management design | E69: x | F69: 0 | G69: m3 | H69: 0.064 | I69: 1 | J69: =F69*H69*I69 -> 0 | L69: =J69*K69 -> 0 | M69: 0 | N69: =F69*M69 -> 0 | O69: 0 | P69: =F69*O69 -> 0 | Q69: 0 | R69: =F69*Q69 -> 0 | S69: 7.3 | T69: =S69*F69 -> 0 | V69: =$F69*U69 -> 0 | W69: 0 | X69: 0 | Y69: =L69+N69+P69+R69+T69+V69 -> 0 | Z69: =Y69*(1+$Z$2) -> 0 | AB69: Breach Umwelt WRSA Diversion Berm | AE69: x | AF69: =19*5*1 -> 95 | AG69: m3 | AH69: 0.064 | AI69: 1 | AJ69: =AF69*AH69*AI69 -> 6.08 | AL69: =AJ69*AK69 -> 0 | AM69: 0 | AN69: =AF69*AM69 -> 0 | AO69: 0 | AP69: =AF69*AO69 -> 0 | AQ69: 0 | AR69: =AF69*AQ69 -> 0 | AS69: 7.3 | AT69: =AS69*AF69 -> 693.5 | AV69: =$F69*AU69 -> 0 | AW69: 7.3 | AX69: =AL69+AN69+AP69+AR69+AT69+AV69 -> 693.5
B70: Remove Saline Water Pond pump and pipeline | C70: Occurs during Operations | E70: x | F70: 0 | G70: m | H70: 0.04 | I70: 1 | J70: =I70*H70*F70+30 -> 30 | K70: 95 | L70: =J70*K70 -> 2850 | M70: 0 | N70: =F70*M70 -> 0 | O70: 0 | P70: =F70*O70 -> 0 | Q70: 0 | R70: =F70*Q70 -> 0 | S70: 155 | T70: =S70*J70 -> 4650 | V70: =$F70*U70 -> 0 | W70: 0 | X70: 0 | Y70: =L70+N70+P70+R70+T70+V70 -> 7500 | Z70: =Y70*(1+$Z$2) -> 7627.5 | AB70: Remove Saline Water Pond pump and pipeline | AE70: x | AF70: 950 | AG70: m | AH70: 0.04 | AI70: 1 | AJ70: =AI70*AH70*AF70+30 -> 68 | AK70: 95 | AL70: =AJ70*AK70 -> 6460 | AM70: 0 | AN70: =AF70*AM70 -> 0 | AO70: 0 | AP70: =AF70*AO70 -> 0 | AQ70: 0 | AR70: =AF70*AQ70 -> 0 | AS70: 155 | AT70: =AS70*AJ70 -> 10540 | AV70: =$F70*AU70 -> 0 | AW70: 17.89473684 | AX70: =AL70+AN70+AP70+AR70+AT70+AV70 -> 17000
B71: Remove Primary pond pump and pipeline | C71: Occurs during Operations | E71: x | F71: 0 | G71: m | H71: 0.04 | I71: 1 | J71: =I71*H71*F71+30 -> 30 | K71: 95 | L71: =J71*K71 -> 2850 | M71: 0 | N71: =F71*M71 -> 0 | O71: 0 | P71: =F71*O71 -> 0 | Q71: 0 | R71: =F71*Q71 -> 0 | S71: 155 | T71: 4650 | V71: =$F71*U71 -> 0 | W71: 0 | X71: 0 | Y71: =L71+N71+P71+R71+T71+V71 -> 7500 | Z71: =Y71*(1+$Z$2) -> 7627.5 | AB71: Remove Primary pond pump and pipeline | AE71: x | AF71: 7250 | AG71: m | AH71: 0.04 | AI71: 1 | AJ71: =AI71*AH71*AF71+30 -> 320 | AK71: 95 | AL71: =AJ71*AK71 -> 30400 | AM71: 0 | AN71: =AF71*AM71 -> 0 | AO71: 0 | AP71: =AF71*AO71 -> 0 | AQ71: 0 | AR71: =AF71*AQ71 -> 0 | AS71: 155 | AT71: 49600 | AV71: =$F71*AU71 -> 0 | AW71: 11.03448276 | AX71: =AL71+AN71+AP71+AR71+AT71+AV71 -> 80000
B72: Echo Structures | AB72: Echo Structures
B73: Breach Echo WRSA Containment Dam | C73: Not in current mine plan; item remains to keep Stage in tact. | E73: x | F73: =19*5*2 -> 190 | G73: m3 | H73: 0.063 | I73: 1 | J73: =F73*H73*I73 -> 11.97 | L73: =J73*K73 -> 0 | M73: 0 | N73: =F73*M73 -> 0 | O73: 0 | P73: =F73*O73 -> 0 | Q73: 0 | R73: =F73*Q73 -> 0 | S73: 7.3 | T73: =S73*F73 -> 1387 | V73: =$F73*U73 -> 0 | W73: =IF(F73>0,Y73/F73,0) -> 7.3 | X73: =IF($F73>0,Z73/$F73,0) -> 7.4241 | Y73: =L73+N73+P73+R73+T73+V73 -> 1387 | Z73: =Y73*(1+$Z$2) -> 1410.579 | AB73: Breach Echo WRSA Containment Dam | AE73: x | AF73: =19*5*2 -> 190 | AG73: m3 | AH73: 0.063 | AI73: 1 | AJ73: =AF73*AH73*AI73 -> 11.97 | AL73: =AJ73*AK73 -> 0 | AM73: 0 | AN73: =AF73*AM73 -> 0 | AO73: 0 | AP73: =AF73*AO73 -> 0 | AQ73: 0 | AR73: =AF73*AQ73 -> 0 | AS73: 7.3 | AT73: =AS73*AF73 -> 1387 | AV73: =$F73*AU73 -> 0 | AW73: =IF(AF73>0,AX73/AF73,0) -> 7.3 | AX73: =AL73+AN73+AP73+AR73+AT73+AV73 -> 1387
B74: Breach Echo Diversion Berm (East and West) | C74: Not in current mine plan; item remains to keep Stage in tact. | E74: x | F74: =19*5*2 -> 190 | G74: m3 | H74: 0.063 | I74: 1 | J74: =F74*H74*I74 -> 11.97 | L74: 0 | M74: 0 | N74: 0 | O74: 0 | P74: 0 | Q74: 0 | R74: 0 | S74: 7.3 | T74: 1387 | V74: 0 | W74: 7.3 | X74: 7.4241 | Y74: 1387 | Z74: 1410.579 | AB74: Breach Echo Diversion Berm (East and West) | AE74: x | AF74: =19*5*2 -> 190 | AG74: m3 | AH74: 0.063 | AI74: 1 | AJ74: =AF74*AH74*AI74 -> 11.97 | AL74: 0 | AM74: 0 | AN74: 0 | AO74: 0 | AP74: 0 | AQ74: 0 | AR74: 0 | AS74: 7.3 | AT74: 1387 | AV74: 0 | AW74: 7.3 | AX74: 1387
B75: Breach Echo WRSA Diversion Berm | C75: Not in current mine plan; item remains to keep Stage in tact. | E75: x | F75: =19*5*1 -> 95 | G75: m3 | H75: 0.064 | I75: 1 | J75: =F75*H75*I75 -> 6.08 | L75: 0 | M75: 0 | N75: 0 | O75: 0 | P75: 0 | Q75: 0 | R75: 0 | S75: 7.3 | T75: 693.5 | V75: 0 | W75: 7.3 | X75: 7.4241 | Y75: 693.5 | Z75: 705.2895 | AB75: Breach Echo WRSA Diversion Berm | AE75: x | AF75: =19*5*1 -> 95 | AG75: m3 | AH75: 0.064 | AI75: 1 | AJ75: =AF75*AH75*AI75 -> 6.08 | AL75: 0 | AM75: 0 | AN75: 0 | AO75: 0 | AP75: 0 | AQ75: 0 | AR75: 0 | AS75: 7.3 | AT75: 693.5 | AV75: 0 | AW75: 7.3 | AX75: 693.5
B76: Breach East Echo Containment Dam | C76: Not in current mine plan; item remains to keep Stage in tact. | E76: x | F76: =19*5*1 -> 95 | G76: m3 | H76: 0.064 | I76: 1 | J76: =F76*H76*I76 -> 6.08 | L76: 0 | M76: 0 | N76: 0 | O76: 0 | P76: 0 | Q76: 0 | R76: 0 | S76: 7.3 | T76: 693.5 | V76: 0 | W76: 7.3 | X76: 7.4241 | Y76: 693.5 | Z76: 705.2895 | AB76: Breach East Echo Containment Dam | AE76: x | AF76: =19*5*1 -> 95 | AG76: m3 | AH76: 0.064 | AI76: 1 | AJ76: =AF76*AH76*AI76 -> 6.08 | AL76: 0 | AM76: 0 | AN76: 0 | AO76: 0 | AP76: 0 | AQ76: 0 | AR76: 0 | AS76: 7.3 | AT76: 693.5 | AV76: 0 | AW76: 7.3 | AX76: 693.5
B77: Remove Echo WRSA Pond pump and pipeline | C77: Not in current mine plan; item remains to keep Stage in tact. | E77: x | F77: 2400 | G77: m | H77: 0.04 | I77: 1 | J77: =F77*H77*I77 -> 96 | K77: 95 | L77: 9120 | M77: 0 | N77: 0 | O77: 0 | P77: 0 | Q77: 0 | R77: 0 | S77: 155 | T77: =S77*J77 -> 14880 | V77: 0 | W77: 10 | X77: 10.17 | Y77: 24000 | Z77: 24408 | AB77: Remove Echo WRSA Pond pump and pipeline | AE77: x | AF77: 2400 | AG77: m | AH77: 0.04 | AI77: 1 | AJ77: =AF77*AH77*AI77 -> 96 | AK77: 95 | AL77: 9120 | AM77: 0 | AN77: 0 | AO77: 0 | AP77: 0 | AQ77: 0 | AR77: 0 | AS77: 155 | AT77: =AS77*AJ77 -> 14880 | AV77: 0 | AW77: 10 | AX77: 24000
B78: Remove Echo NCW pond pump and pipeline | C78: Not in current mine plan; item remains to keep Stage in tact. | E78: x | F78: 220 | G78: m | H78: 0.04 | I78: 1 | J78: =F78*H78*I78+12 -> 20.8 | K78: 95 | L78: 1976 | M78: 0 | N78: 0 | O78: 0 | P78: 0 | Q78: 0 | R78: 0 | S78: 155 | T78: =S78*J78 -> 3224 | V78: 0 | W78: 23.63636364 | X78: 24.03818182 | Y78: 5200 | Z78: 5288.4 | AB78: Remove Echo NCW pond pump and pipeline | AE78: x | AF78: 220 | AG78: m | AH78: 0.04 | AI78: 1 | AJ78: =AF78*AH78*AI78+12 -> 20.8 | AK78: 95 | AL78: 1976 | AM78: 0 | AN78: 0 | AO78: 0 | AP78: 0 | AQ78: 0 | AR78: 0 | AS78: 155 | AT78: =AS78*AJ78 -> 3224 | AV78: 0 | AW78: 23.63636364 | AX78: 5200
B79: Goose Structures | AB79: Goose Structures
B80: Breach Goose Main Diversion Berm | E80: x | F80: =19*5*1 -> 95 | G80: m3 | H80: 1 | I80: 1 | J80: =F80*H80*I80 -> 95 | L80: =J80*K80 -> 0 | M80: 0 | N80: =F80*M80 -> 0 | O80: 0 | P80: =F80*O80 -> 0 | Q80: 0 | R80: =F80*Q80 -> 0 | S80: 7.3 | T80: =S80*F80 -> 693.5 | V80: =$F80*U80 -> 0 | W80: =IF(F80>0,Y80/F80,0) -> 7.3 | X80: =IF($F80>0,Z80/$F80,0) -> 7.4241 | Y80: =L80+N80+P80+R80+T80+V80 -> 693.5 | Z80: =Y80*(1+$Z$2) -> 705.2895 | AB80: Breach Goose Main Diversion Berm | AE80: x | AF80: =19*5*1 -> 95 | AG80: m3 | AH80: 1 | AI80: 1 | AJ80: =AF80*AH80*AI80 -> 95 | AL80: =AJ80*AK80 -> 0 | AM80: 0 | AN80: =AF80*AM80 -> 0 | AO80: 0 | AP80: =AF80*AO80 -> 0 | AQ80: 0 | AR80: =AF80*AQ80 -> 0 | AS80: 7.3 | AT80: =AS80*AF80 -> 693.5 | AV80: =$F80*AU80 -> 0 | AW80: =IF(AF80>0,AX80/AF80,0) -> 7.3 | AX80: =AL80+AN80+AP80+AR80+AT80+AV80 -> 693.5
B81: TSF Structures | AB81: TSF Structures
B82: Breach TSF Dam | E82: x | F82: =550*20 -> 11000 | G82: m3 | H82: 0.05 | I82: 1 | J82: =F82*H82*I82 -> 550 | L82: =J82*K82 -> 0 | M82: 0 | N82: =F82*M82 -> 0 | O82: 0 | P82: =F82*O82 -> 0 | Q82: 0 | R82: =F82*Q82 -> 0 | S82: 7.3 | T82: =S82*F82 -> 80300 | V82: =$F82*U82 -> 0 | W82: =IF(F82>0,Y82/F82,0) -> 7.3 | X82: =IF($F82>0,Z82/$F82,0) -> 7.4241 | Y82: =L82+N82+P82+R82+T82+V82 -> 80300 | Z82: =Y82*(1+$Z$2) -> 81665.1 | AB82: Breach TSF Dam | AE82: x | AF82: =550*20 -> 11000 | AG82: m3 | AH82: 0.05 | AI82: 1 | AJ82: =AF82*AH82*AI82 -> 550 | AL82: =AJ82*AK82 -> 0 | AM82: 0 | AN82: =AF82*AM82 -> 0 | AO82: 0 | AP82: =AF82*AO82 -> 0 | AQ82: 0 | AR82: =AF82*AQ82 -> 0 | AS82: 7.3 | AT82: =AS82*AF82 -> 80300 | AV82: =$F82*AU82 -> 0 | AW82: =IF(AF82>0,AX82/AF82,0) -> 7.3 | AX82: =AL82+AN82+AP82+AR82+AT82+AV82 -> 80300
B83: Breach TSF WRSA Diversion Berm | E83: x | F83: =19*5*3 -> 285 | G83: m3 | H83: 0.05 | I83: 1 | J83: =F83*H83*I83 -> 14.25 | L83: =J83*K83 -> 0 | M83: 0 | N83: =F83*M83 -> 0 | O83: 0 | P83: =F83*O83 -> 0 | Q83: 0 | R83: =F83*Q83 -> 0 | S83: 7.3 | T83: =S83*F83 -> 2080.5 | V83: =$F83*U83 -> 0 | W83: =IF(F83>0,Y83/F83,0) -> 7.3 | X83: =IF($F83>0,Z83/$F83,0) -> 7.4241 | Y83: =L83+N83+P83+R83+T83+V83 -> 2080.5 | Z83: =Y83*(1+$Z$2) -> 2115.8685 | AB83: Breach TSF WRSA Diversion Berm | AE83: x | AF83: =19*5*3 -> 285 | AG83: m3 | AH83: 0.05 | AI83: 1 | AJ83: =AF83*AH83*AI83 -> 14.25 | AL83: =AJ83*AK83 -> 0 | AM83: 0 | AN83: =AF83*AM83 -> 0 | AO83: 0 | AP83: =AF83*AO83 -> 0 | AQ83: 0 | AR83: =AF83*AQ83 -> 0 | AS83: 7.3 | AT83: =AS83*AF83 -> 2080.5 | AV83: =$F83*AU83 -> 0 | AW83: =IF(AF83>0,AX83/AF83,0) -> 7.3 | AX83: =AL83+AN83+AP83+AR83+AT83+AV83 -> 2080.5
B84: Ore Stockpile Structures | AB84: Ore Stockpile Structures
